{"text_format":"1","workbook":"xlsx","n_sheets":13,"sheets":["ДовидникКВК(месн)","ДовидникКПК","ДовидникКФК","ДовидникКВК(ГОС)","КПКВМБ","Заполнить","кошторис","план скорочений","план","ДовДоходів","ДовФінансування","ДовКЕКВ","ДовКреди"],"not_rendered":{"charts":0,"images":1,"macros":1,"external_links":0,"defined_names":7,"comments":0,"pivot_tables":0},"unopened":[],"bounds":{"document_bytes":16777216,"sheet_cells":100000,"rows_first":2000,"rows_last":500,"rows_between":2000,"halvings":0,"cell_chars":16384,"cell_head_chars":4096},"cells_cut":0,"cells_raw":0,"read":"whole","date_system":"1900"}

{"sheet":"ДовидникКВК(месн)","index":0,"n_rows":51,"n_cols":2,"rows_kept":51,"cut":false,"hidden":false,"merged":[]}
[]
[]
["Код відомчої класифікації та кредитування","Назва головного розпорядника коштів місцевого бюджету"]
["01","Апарат (секретаріат) місцевої ради (Верховної Ради Автономної Республіки Крим, обласних, Київської та Севастопольської міських рад, районних рад і рад міст обла"]
["02","Виконавчі органи місцевих рад,  Рада міністрів Автономної Республіки Крим, державна адміністрація (обласні державні адміністрації, Київська, Севастопольська міс"]
["03","Рахункова палата Верховної Ради Автономної Республіки Крим "]
["04","Виборча комісія Автономної Республіки Крим "]
["05","Постійне представництво Автономної Республіки Крим в столиці України - місті Києві"]
["06","Орган з питань освіти і науки"]
["07","Орган з питань охорони здоров'я"]
["08","Орган з питань праці та соціального захисту населення"]
["09","Орган у справах дітей"]
["10","Орган з питань культури, національностей та релігій"]
["11","Орган з питань молоді та спорту"]
["12","Орган з питань житлово-комунального господарства"]
["13","Орган з питань палива і енергетики"]
["14","Орган з питань благоустрою населених пунктів"]
["15","Орган з питань будівництва"]
["16","Орган з питань містобудування  та архітектури"]
["17","Орган з питань державного архітектурно-будівельного контролю"]
["18","Орган з питань охорони культурної спадщини"]
["19","Орган з питань інфраструктури, розвитку та утримання мережі автомобільних доріг загального користування місцевого значення"]
["20","Орган з питань інформатизації, аналітичного забезпечення та електронного урядування"]
["21","Орган з питань пожежної охорони"]
["22","Орган з питань охорони громадського порядку"]
["23","Орган з питань інформаційної діяльності, засобів масової інформації та комунікацій з громадськістю"]
["24","Орган з питань агропромислового комплексу, сільського господарства та продовольства"]
["25","Орган з питань зовнішньоекономічної та міжнародної  діяльності"]
["26","Орган з питань туризму та курортів"]
["27","Орган з питань економічного розвитку, торгівлі та інвестицій"]
["28","Орган з питань екології, охорони навколишнього середовища та природних ресурсів "]
["29","Орган з питань захисту населення і територій від надзвичайних ситуацій техногенного та природного характеру"]
["30","Орган з питань мобілізаційної підготовки та цивільного захисту населення"]
["31","Орган з питань управління комунальним майном"]
["32","Орган з питань реклами та масових заходів"]
["33","Орган з питань реєстрації та державного реєстру"]
["34","Орган з питань надання адміністративних послуг"]
["35","Орган з питань промисловості, розвитку інфраструктури та науково-технічної,  інноваційної політики"]
["36","Орган з питань земельних відносин"]
["37","Орган з питань фінансів"]
["38","Орган з питань внутрішнього фінансового контролю"]
["40","Районні державні адміністрації у містах з районним поділом за відсутності районних у містах рад"]
["41","Районні державні адміністрації у містах з районним поділом за відсутності районних у містах рад"]
["42","Районні державні адміністрації у містах з районним поділом за відсутності районних у містах рад"]
["43","Районні державні адміністрації у містах з районним поділом за відсутності районних у містах рад"]
["44","Районні державні адміністрації у містах з районним поділом за відсутності районних у містах рад"]
["45","Районні державні адміністрації у містах з районним поділом за відсутності районних у містах рад"]
["46","Районні державні адміністрації у містах з районним поділом за відсутності районних у містах рад"]
["47","Районні державні адміністрації у містах з районним поділом за відсутності районних у містах рад"]
["48","Районні державні адміністрації у містах з районним поділом за відсутності районних у містах рад"]
["49","Районні державні адміністрації у містах з районним поділом за відсутності районних у містах рад"]

{"sheet":"ДовидникКПК","index":1,"n_rows":2151,"n_cols":3,"rows_kept":2151,"cut":false,"hidden":true,"merged":[]}
[null,"110000","Апарат Верховної Ради України"]
[null,"111000","Апарат Верховної Ради України"]
[null,"111010","Здійснення законотворчої діяльності Верховної Ради України"]
[null,"111020","Обслуговування та організаційне. інформаційно-аналітичне. матеріально-технічне забезпечення діяльності Верховної Ради України"]
[null,"111030","Організація та здійснення офіційних прийомів Верховною Радою України"]
[null,"111040","Візити народних депутатів України за кордон"]
[null,"111050","Обслуговування діяльності Верховної Ради України"]
[null,"111060","Створення автоматизованої інформаційно-аналітичної системи органів законодавчої влади"]
[null,"111070","Фінансова підтримка санаторно-курортного комплексу Управління справами Верховної Ради України"]
[null,"111080","Висвітлення діяльності народних депутатів України через засоби телебачення і радіомовлення"]
[null,"111090","Висвітлення діяльності  Верховної  Ради  України через  засоби  телебачення  і радіомовлення та фінансова підтримка видання газети \"Голос України\""]
[null,"111100","Капітальний ремонт житлового фонду Верховної Ради України"]
[null,"300000","Державне управління справами"]
[null,"301000","Апарат Державного управління справами"]
[null,"301010","Обслуговування та організаційне. інформаційно-аналітичне. матеріально-технічне забезпечення діяльності Президента України та Офісу Президента України"]
[null,"301020","Організаційне. інформаційно-аналітичне та матеріально-технічне забезпечення діяльності  Президента України"]
[null,"301030","Обслуговування діяльності Президента України. Адміністрації Президента України та інших державних органів"]
[null,"301040","Візити Президента України за кордон"]
[null,"301050","Виготовлення державних нагород та пам'ятних знаків"]
[null,"301060","Фінансова підтримка санаторно-курортних закладів та закладів оздоровлення"]
[null,"301080","Наукова і науково-технічна діяльність у сфері державного управління. стратегічних проблем внутрішньої та зовнішньої політики і з питань посередництва та примирення при вирішенні колективних трудових спорів (конфліктів)"]
[null,"301090","Прикладні розробки у сфері державного управління"]
[null,"301110","Оздоровлення і відпочинок дітей в дитячих закладах оздоровлення"]
[null,"301130","Підготовка кадрів. підвищення кваліфікації керівних працівників. спеціалістів державного управління. підготовка науково-педагогічних і наукових кадрів з питань стратегічних проблем внутрішньої і зовнішньої політики"]
[null,"301140","Збереження природно-заповідного фонду в національних природних парках та заповідниках"]
[null,"301150","Прикладні дослідження і розробки у сфері профілактичної та клінічної медицини"]
[null,"301160","Створення автоматизованої системи інформаційно-аналітичного забезпечення Адміністрації Президента України"]
[null,"301170","Надання  медичних  послуг  медичними  закладами"]
[null,"301190","Поліклінічно-амбулаторне обслуговування. діагностика та лікування народних депутатів України та керівного складу органів державної влади"]
[null,"301200","Державний санітарно-епідеміологічний нагляд в  лікувально-оздоровчих закладах Державного управління справами та на об'єктах органів державної влади"]
[null,"301230","Підвищення кваліфікації лікарів та середнього медичного персоналу в системі лікувально-оздоровчих закладів Державного управління справами"]
[null,"301240","Виплати на реалізацію положень Закону України \"Про реструктуризацію заборгованості з виплат. передбачених статтею 57 Закону України \"Про освіту\" педагогічним. науково-педагогічним та іншим категоріям працівників навчальних закладів\""]
[null,"301260","Ведення лісового та мисливського господарства та забезпечення утримання резиденції"]
[null,"301270","Фінансова підтримка інформаційного бюлетеня \"Офіційний вісник Президента України\""]
[null,"301280","Виконання загальнодержавних організаційних. інформаційно-аналітичних та науково-методологічних заходів з питань євроатлантичної інтеграції"]
[null,"301290","Ліквідація аварійного стану. реконструкція. реставрація. капітальний ремонт будівель. споруд і систем інженерного забезпечення з оновленням обладнання державного підприємства \"Санаторій \"Гурзуфський\""]
[null,"301330","Підготовка науково-педагогічних і наукових кадрів з питань стратегічних проблем внутрішньої і зовнішньої політики"]
[null,"301340","Заходи щодо зміцнення матеріально-технічної бази Національного палацу мистецтв \"Україна\""]
[null,"301360","Фінансова підтримка Національного камерного ансамблю \"Київські солісти\". Національного культурно-мистецького та музейного комплексу \"Мистецький арсенал\""]
[null,"301370","Надання науково-методичної та консультативної підтримки розвитку місцевого самоврядування"]
[null,"301380","Забезпечення перевезень вищих посадових осіб держави авіаційним транспортом"]
[null,"301390","Відновлення у державній власності будівель і споруд пансіонату \"Гліцинія\""]
[null,"301410","Фінансова підтримка Національного комплексу \"Експоцентр України\""]
[null,"301420","Заходи з обміну та вивчення досвіду у провідних клініках світу"]
[null,"301430","Створення Національного культурно-мистецького та музейного комплексу \"Мистецький арсенал\""]
[null,"301440","Проведення міжнародного форуму \"Європа _ Україна\""]
[null,"301450","Конкурсний відбір та присудження Національної премії України імені Тараса Шевченка"]
[null,"301460","Виплата Державних премій України"]
[null,"301470","Проведення Всеукраїнського фестивалю патріотичної пісні \"Будь вільним!\""]
[null,"301480","Реалізація державного інвестиційного проекту \"Відновлення матеріально-технічної бази та об'єктів інфраструктури ДП України \"Міжнародний дитячий центр \"Артек\" (розширення та реконструкція приміщень харчоблоку)\""]
[null,"301490","Реалізація державного інвестиційного проекту \"Удосконалення методів функціональної діагностики шляхом модернізації технологічного обладнання для підвищення якості надання медичної допомоги\""]
[null,"301500","Реалізація державного інвестиційного проекту \"Реконструкція будівлі Державного підприємства \"Національний центр ділового та культурного співробітництва \"Український дім\" на вул. Хрещатик. 2. в м. Києві\""]
[null,"301800","Капітальний ремонт житлового фонду"]
[null,"301810","Будівництво. капітальний ремонт. реконструкція. реставрація та придбання обладнання"]
[null,"301820","Реконструкція корпусу № 1 Державного підприємства \"Санаторій \"Кришталевий палац\""]
[null,"301830","Виконання невідкладних заходів у Маріїнському палаці"]
[null,"301840"]
[null,"301850","Реалізація державного інвестиційного проекту \"Удосконалення профілактики. діагностики. хірургічного лікування офтальмологічної патології у дорослого населення на основі впровадження інноваційних технологій\""]
[null,"301860","Реставрація та пристосування Маріїнського палацу в м. Києві"]
[null,"301870","Аварійно-відновлювальні роботи з ліквідації аварійного стану житлового будинку по вул. Срібнокільській. 20 у м. Києві"]
[null,"301880","Капітальний ремонт будівель Державного підприємства \"Санаторій \"Південний\""]
[null,"301890","Будівництво Реабілітаційного центру на базі Державного підприємства \"Санаторій \"Конча-Заспа\""]
[null,"303000","Представництво Президента України в Автономній Республіці Крим"]
[null,"303010","Здійснення повноважень постійним представником Президента України в Автономній Республіці Крим"]
[null,"304000","Національна служба посередництва і примирення України"]
[null,"304010","Сприяння врегулюванню колективних трудових спорів (конфліктів)"]
[null,"304020","Прикладні розробки з питань посередництва і примирення при вирішенні колективних трудових спорів (конфліктів)"]
[null,"410000","Господарсько-фінансовий департамент Секретаріату Кабінету Міністрів України"]
[null,"411000","Секретаріат Кабінету Міністрів України"]
[null,"411010","Обслуговування та організаційне. інформаційно-аналітичне та матеріально-технічне забезпечення діяльності Кабінету Міністрів України"]
[null,"411020","Організація та здійснення офіційних прийомів керівництвом Кабінету Міністрів України"]
[null,"411030","Обслуговування діяльності Кабінету Міністрів України"]
[null,"411040","Створення спеціальної інформаційно-телекомунікаційної системи органів виконавчої влади. розвиток та інтеграція інформаційних ресурсів і технологій органів державної влади"]
[null,"411050","Візити урядових делегацій та відрядження працівників органів державної влади за кордон  за рішенням Кабінету Міністрів України"]
[null,"411060","Перепідготовка та підвищення кваліфікації працівників Секретаріату Кабінету Міністрів України"]
[null,"411070","Фінансова підтримка газети \"Урядовий кур'єр\""]
[null,"411110","Організаційне забезпечення підготовки та проведення в Україні фінальної частини чемпіонату Європи 2012 року з футболу"]
[null,"411120","Забезпечення функціонування та розвитку системи спеціальної інформації"]
[null,"411130","Ўнформаційно-аналітичне та організаційне забезпечення оперативного реагування органів виконавчої влади"]
[null,"411140","Підтримка реалізації комплексної реформи державного управління"]
[null,"411150","Забезпечення розслідування авіаційних подій та інцидентів з цивільними повітряними суднами Національним бюро"]
[null,"411160","Забезпечення функціонування Фонду розвитку інновацій"]
[null,"411170","Забезпечення функціонування офісу із залучення та підтримки інвестицій"]
[null,"411190","Заходи з підтримки розвитку лідерства в Україні"]
[null,"411200","Організаційне. матеріально-технічне. інформаційне та інше забезпечення діяльності Національної ради України з питань розвитку науки і технологій"]
[null,"411220","Фонд президента України з підтримки освіти. науки та спорту"]
[null,"412000","Державна служба з питань Автономної Республіки Крим та міста Севастополя"]
[null,"412010","Керівництво та управління з питань Автономної Республіки Крим та міста Севастополя"]
[null,"414000","Державна служба статистики України"]
[null,"414010","Керівництво та управління у сфері статистики"]
[null,"414020","Статистичні спостереження"]
[null,"414030","Щоквартальна плата домогосподарствам за ведення записів доходів. витрат та інших відомостей під час проведення обстеження умов їх життя"]
[null,"414040","Наукова і науково-технічна діяльність у сфері державної статистики"]
[null,"414090","Підготовка кадрів у сфері статистики закладом вищої освіти та забезпечення діяльності його баз практики"]
[null,"416000","Державне агентство з питань електронного урядування України"]
[null,"417000","Державна аудиторська служба України"]
[null,"420000","Господарсько-фінансовий департамент Секретаріату Кабінету Міністрів України (загальнодержавні видатки та кредитування)"]
[null,"421000","Секретаріат Кабінету Міністрів України (загальнодержавні видатки та кредитування)"]
[null,"421010","Заходи щодо оптимізації системи центральних органів виконавчої влади та скорочення кількості контролюючих органів"]
[null,"421020","Здійснення державного контролю за додержанням законодавства про захист прав споживачів"]
[null,"421040","Протиепізоотичні заходи та участь у Міжнародному епізоотичному бюро"]
[null,"421050","Організація і регулювання діяльності установ ветеринарної та фітосанітарної служби"]
[null,"421060","Підтримка реалізації комплексної реформи державного управління"]
[null,"426000","Державне агентство з питань електронного урядування України (загальнодержавні видатки та кредитування)"]
[null,"500000","Державна судова адміністрація України"]
[null,"501000","Апарат Державної судової адміністрації України"]
[null,"501010","Організаційне забезпечення діяльності судів та установ судової системи"]
[null,"501020","Забезпечення здійснення правосуддя місцевими. апеляційними судами та функціонування органів і установ системи правосуддя"]
[null,"501030","Здійснення правосуддя апеляційними загальними судами"]
[null,"501040","Здійснення правосуддя місцевими загальними судами"]
[null,"501050","Здійснення правосуддя військовими судами"]
[null,"501080","Здійснення правосуддя апеляційними господарськими судами"]
[null,"501100","Забезпечення діяльності Вищої кваліфікаційної комісії суддів України"]
[null,"501110","Організація спеціальної підготовки кандидатів на посаду судді. підготовка суддів та працівників апарату судів Національною школою суддів України"]
[null,"501150","Виконання рішень судів на користь суддів  та працівників апаратів судів"]
[null,"501160","Здійснення правосуддя апеляційними адміністративними судами"]
[null,"501170","Здійснення правосуддя місцевими адміністративними судами"]
[null,"501180","Придбання (будівництво) житла для суддів Апеляційного суду України. апеляційних і місцевих судів"]
[null,"501190","Створення автоматизованої системи документообігу у судах та забезпечення її функціонування"]
[null,"501200","Проведення санації будівель бюджетних установ Державної судової адміністрації. у тому числі розроблення проектно-кошторисної документації"]
[null,"501210","Забезпечення ведення Єдиного державного реєстру судових рішень. створення та забезпечення функціонування єдиної бази даних електронних адрес. номерів факсів (телефаксів) суб'єктів владних повноважень"]
[null,"501600","Підтримка судової реформи"]
[null,"501820","Забезпечення судів належними приміщеннями та суддів службовим житлом"]
[null,"501840","Реконструкція  з добудовою приміщення Шацького районного суду Волинської області"]
[null,"550000","Верховний Суд"]
[null,"551000","Апарат Верховного Суду"]
[null,"551010","Здійснення правосуддя Верховним Судом"]
[null,"600000","Верховний Суд України"]
[null,"601000","Апарат Верховного Суду України"]
[null,"601010","Здійснення правосуддя Верховним Судом України"]
[null,"601020","Підвищення кваліфікації суддів та працівників апарату Верховного Суду України"]
[null,"650000","Вищий спеціалізований суд України з розгляду цивільних і кримінальних справ"]
[null,"651000","Апарат Вищого спеціалізованого суду України з розгляду цивільних і кримінальних справ"]
[null,"651010","Здійснення правосуддя Вищим спеціалізованим судом України з розгляду цивільних і кримінальних справ"]
[null,"700000","Вищий господарський суд України"]
[null,"701000","Вищий господарський суд України"]
[null,"701010","Здійснення правосуддя Вищим господарським судом України"]
[null,"750000","Вищий адміністративний суд України"]
[null,"751000","Апарат Вищого адміністративного суду України"]
[null,"751010","Здійснення правосуддя Вищим адміністративним судом України"]
[null,"800000","Конституційний Суд України"]
[null,"801000","Конституційний Суд України"]
[null,"801010","Забезпечення конституційної юрисдикції в Україні"]
[null,"850000","Вищий антикорупційний суд"]
[null,"851000","Апарат Вищого антикорупційного суду"]
[null,"851010","Здійснення правосуддя Вищим антикорупційним судом"]
[null,"851020","Здійснення правосуддя Апеляційною палатою Вищого антикорупційного суду"]
[null,"900000","Офіс Генерального прокурора"]
[null,"901000","Офіс Генерального прокурора"]
[null,"901010","Здійснення прокурорсько-слідчої діяльності. підготовка та підвищення кваліфікації кадрів прокуратури"]
[null,"901020","Підготовка кадрів та підвищення кваліфікації прокурорсько-слідчих кадрів Національною академією прокуратури України"]
[null,"901030","Забезпечення функцій Спеціалізованою антикорупційною прокуратурою"]
[null,"901040","Забезпечення діяльності Кваліфікаційно-дисциплінарної комісії прокурорів"]
[null,"901050","Будівництво (придбання) житла для прокурорів органів прокуратури"]
[null,"950000","Вищий суд з питань інтелектуальної власності"]
[null,"951000","Апарат Вищого суду з питань інтелектуальної власності"]
[null,"951010","Здійснення правосуддя Вищим судом з питань інтелектуальної власності"]
[null,"951020","Здійснення правосуддя Апеляційною палатою Вищого суду з питань інтелектуальної власності"]
[null,"1000000","Міністерство внутрішніх справ України"]
[null,"1001000","Апарат Міністерства внутрішніх справ України"]
[null,"1001010","Керівництво та управління діяльністю Міністерства внутрішніх справ України"]
[null,"1001020","Створення та функціонування Державної інформаційної системи реєстраційного обліку фізичних осіб та їх документування"]
[null,"1001030","Створення та впровадження Національної автоматизованої інформаційної системи Департаменту державної автомобільної інспекції України"]
[null,"1001040","Участь органів внутрішніх справ у боротьбі з нелегальною міграцією. створення та утримання пунктів розміщення незаконних мігрантів"]
[null,"1001050","Реалізація державної політики у сфері внутрішніх справ. забезпечення діяльності органів. установ та закладів Міністерства внутрішніх справ України"]
[null,"1001060","Створення та впровадження єдиної системи цифрового зв'язку органів та підрозділів внутрішніх справ"]
[null,"1001070","Участь органів внутрішніх справ у міжнародних миротворчих операціях"]
[null,"1001080","Підготовка кадрів закладами вищої освіти із специфічними умовами навчання"]
[null,"1001090","Заходи. пов'язані  із забезпеченням правопорядку під час проведення Євро-2012"]
[null,"1001100","Медичне забезпечення працівників Міністерства внутрішніх справ України. поліцейських та працівників Національної поліції України"]
[null,"1001110","Закупівля і модернізація озброєння. військової та спеціальної техніки за державним оборонним замовленням Міністерства внутрішніх справ"]
[null,"1001130","Дошкільна освіта та заходи з позашкільної роботи з дітьми працівників Міністерства внутрішніх справ України"]
[null,"1001160","Забезпечення заходів спеціальними підрозділами  по боротьбі  з організованою злочинністю Міністерства внутрішніх справ України"]
[null,"1001170","Наукове та інформаційно-аналітичне забезпечення заходів по боротьбі з організованою злочинністю і корупцією"]
[null,"1001180","Забезпечення особистої безпеки суддів і членів їх сімей. охорони приміщень суду. громадського порядку під час здійснення правосуддя"]
[null,"1001190","Будівництво (придбання) житла для осіб рядового і начальницького складу органів внутрішніх справ"]
[null,"1001200","Державна підтримка фізкультурно-спортивного товариства \"Динамо\" України на організацію та проведення роботи з розвитку фізичної культури і спорту серед працівників і військовослужбовців правоохоронних органів"]
[null,"1001210","Видатки для Міністерства внутрішніх справ України на реалізацію заходів щодо підвищення обороноздатності і безпеки держави"]
[null,"1001220","Створення єдиної авіаційної системи безпеки та цивільного захисту"]
[null,"1002000","Адміністрація Державної прикордонної служби України"]
[null,"1002010","Керівництво та управління у сфері охорони державного кордону України"]
[null,"1002030","Забезпечення виконання завдань та функцій Державної прикордонної служби України"]
[null,"1002060","Підготовка кадрів та підвищення кваліфікації Національною академією Державної прикордонної служби України"]
[null,"1002070","Будівництво (придбання) житла для військовослужбовців Державної прикордонної служби України"]
[null,"1002080","Розвиток Державної прикордонної служби України"]
[null,"1002100","Облаштування та реконструкція державного кордону"]
[null,"1002110","Розвідувальна діяльність у сфері захисту державного кордону"]
[null,"1002120","Заходи з інженерно-технічного облаштування кордону"]
[null,"1002130","Видатки для Адміністрації Державної прикордонної служби України на реалізацію заходів щодо підвищення обороноздатності і безпеки держави"]
[null,"1002150","Cтворення системи охорони морських кордонів"]
[null,"1002600","Реалізація проекту з розбудови підрозділів охорони кордону"]
[null,"1002800","Будівництво. реконструкція та капітальний ремонт об'єктів Державної прикордонної служби України"]
[null,"1003000","Національна гвардія України"]
[null,"1003010","Керівництво та управління Національною гвардією України"]
[null,"1003020","Забезпечення виконання завдань та функцій Національної гвардії України"]
[null,"1003030","Охорона особливо важливих державних об'єктів. дипломатичних та консульських представництв іноземних держав на території України. супроводження перевезення ядерних матеріалів по території України"]
[null,"1003040","Фінансове забезпечення зобов'язань по сплаті земельного податку військовими частинами. закладами. установами та організаціями внутрішніх військ Міністерства внутрішніх справ. які утримуються за рахунок бюджету"]
[null,"1003050","Заходи. пов'язані із переходом на військову службу за контрактом"]
[null,"1003070","Підготовка кадрів для Національної гвардії України закладами вищої освіти"]
[null,"1003080","Стаціонарне лікування військовослужбовців Національної гвардії України у власних медичних закладах"]
[null,"1003090","Будівництво (придбання) житла для військовослужбовців Національної гвардії України"]
[null,"1003100","Видатки для Національної гвардії України на реалізацію заходів щодо підвищення обороноздатності і безпеки держави"]
[null,"1004000","Державна міграційна служба України"]
[null,"1004010","Керівництво та управління у сфері міграції. громадянства. імміграції та реєстрації фізичних осіб"]
[null,"1004020","Забезпечення виконання завдань та функцій у сфері громадянства. імміграції та реєстрації фізичних осіб"]
[null,"1004040","Створення та впровадження єдиної національної бази даних управління міграційними потоками"]
[null,"1004050","Утримання установ тимчасового розміщення біженців та інших категорій мігрантів. виконання міжнародних угод про реадмісію"]
[null,"1004060","Надання допомоги біженцям"]
[null,"1004070","Внески до Міжнародної організації з міграції"]
[null,"1004080","Створення та утримання пунктів розміщення незаконних мігрантів та інформаційної системи обліку та аналізу міграційних потоків"]
[null,"1004090","Створення та функціонування Єдиного державного демографічного реєстру"]
[null,"1006000","Державна служба України з надзвичайних ситуацій"]
[null,"1006010","Керівництво та управління у сфері надзвичайних ситуацій"]
[null,"1006050","Авіаційні роботи з пошуку і рятування"]
[null,"1006060","Гідрометеорологічна діяльність"]
[null,"1006070","Наукова і науково-технічна діяльність у сфері гідрометеорології"]
[null,"1006080","Наукова і науково-технічна діяльність у сфері цивільного захисту і пожежної безпеки"]
[null,"1006090","Придбання пожежної та іншої спеціальної техніки вітчизняного виробництва"]
[null,"1006100","Видатки для Державної служби України з надзвичайних ситуацій на реалізацію заходів щодо підвищення обороноздатності і безпеки держави"]
[null,"1006110","Будівництво (придбання) житла для осіб рядового і начальницького складу Державної служби України з надзвичайних ситуацій"]
[null,"1006280","Забезпечення діяльності сил цивільного захисту"]
[null,"1006360","Підготовка кадрів у сфері цивільного захисту"]
[null,"1007000","Національна поліція України"]
[null,"1007010","Керівництво та управління діяльністю Національної поліції України"]
[null,"1007020","Забезпечення діяльності підрозділів. установ та закладів Національної поліції України"]
[null,"1007030","Дошкільна освіта та заходи з позашкільної роботи з дітьми поліцейських та працівників Національної поліції України"]
[null,"1007040","Видатки для Національної поліції України на реалізацію заходів щодо підвищення обороноздатності і безпеки держави"]
[null,"1010000","Міністерство внутрішніх справ України (загальнодержавні витрати)"]
[null,"1011000","Міністерство внутрішніх справ України (загальнодержавні витрати)"]
[null,"1100000","Міністерство енергетики та вугільної промисловості України"]
[null,"1101000","Апарат Міністерства енергетики та вугільної промисловості України"]
[null,"1101010","Загальне керівництво та управління у сфері паливно-енергетичного комплексу та вугільної промисловості"]
[null,"1101080","Поповнення статутного капіталу державного концерну \"Ядерне паливо\" з метою придбання Концерном акцій додаткової емісії ПрАТ \u0011Завод з виробництва  ядерного палива\u0010"]
[null,"1101090","Підготовка фахівців для підприємств ядерно-промислового комплексу Севастопольським національним університетом ядерної енергії та промисловості"]
[null,"1101110","Державна підтримка вугледобувних підприємств на часткове покриття витрат із собівартості готової товарної вугільної продукції"]
[null,"1101120","Створення резерву ядерного палива та ядерних матеріалів"]
[null,"1101130","Фінансова підтримка розвитку наукової інфраструктури у сфері енергетики"]
[null,"1101160","Заходи з охорони праці та підвищення техніки безпеки на вугледобувних підприємствах"]
[null,"1101180","Реалізація заходів. передбачених Державною цільовою економічною програмою енергоефективності на 2010 - 2015 роки"]
[null,"1101190","Заходи з реалізації Державної цільової  екологічної програми  приведення в безпечний стан уранових об'єктів виробничого об'єднання \"Придніпровський хімічний завод\""]
[null,"1101200","Державна підтримка будівництва вугле- та торфодобувних підприємств. технічне переоснащення зазначених підприємств"]
[null,"1101290","Державна цільова екологічна програма першочергових заходів приведення у безпечний стан об_єктів і майданчика колишнього уранового виробництва виробничого об_єднання \"Придніпровський хімічний завод\" на 2019-2023 роки"]
[null,"1101310","Облаштування Одеського і Безіменного газових родовищ та Субботінського нафтового родовища для введення їх в експлуатацію"]
[null,"1101340","Заходи по передачі об'єктів соціальної інфраструктури. які перебувають на балансі вугледобувних підприємств. у комунальну власність"]
[null,"1101390","Будівництво енергоблоків атомних. гідроакумулюючих. інших електростанцій. теплоелектроцентралей. будівництво та реконструкція ліній електропередачі та підстанцій"]
[null,"1101400","Виплати на реалізацію положень Закону України \"Про реструктуризацію заборгованості з виплат. передбачених статтею 57 Закону України \"Про освіту\" педагогічним. науково-педагогічним та іншим категоріям працівників навчальних закладів\""]
[null,"1101420","Часткова компенсація Національній акціонерній компанії \"Нафтогаз України\" різниці між цінами закупівлі імпортованого природного газу та його реалізації суб'єктам господарювання на виробництво теплової енергії. яка споживається населенням. у тому числі не"]
[null,"1101430","Виконання першочергових екологічних заходів у м. Дніпродзержинськ"]
[null,"1101450","Будівництво. реконструкція та технічне переоснащення об'єктів паливно-енергетичного комплексу (за рахунок коштів. залучених під державні гарантії на поворотній основі)"]
[null,"1101480","Приведення в безпечний стан уранових об_єктів"]
[null,"1101500","Збільшення статутного капіталу державного підприємства \"Національна атомна енергогенеруюча компанія \"Енергоатом\""]
[null,"1101520","Поповнення обігових коштів або збільшення статутних фондів вугледобувних підприємств для погашення заборгованості із заробітної плати працівникам. що утворилася на 1 січня 2016 року"]
[null,"1101560","Ўнформаційне та організаційне забезпечення проведення 9-го Міжнародного Форуму з енергетики для сталого розвитку"]
[null,"1101570","Державна підтримка вугледобувних підприємств на часткове покриття витрат із собівартості готової товарної вугільної продукції"]
[null,"1101580","Здешевлення кредитів на будівництво та технічне переоснащення для державних підприємств вугільної галузі та господарських товариств вугільної галузі. 100 відсотків акцій яких належить державі"]
[null,"1101610","Будівництво Канівської ГАЕС"]
[null,"1101660","Підтримка впровадження Енергетичної стратегії України на період до 2030 року"]
[null,"1101800","Будівництво першої черги Дністровської гідроакумулюючої електростанції"]
[null,"1102000","Державна служба гірничого нагляду та промислової безпеки України"]
[null,"1102030","Прикладні дослідження та розробки. підготовка наукових кадрів у сфері промислової безпеки та охорони праці"]
[null,"1102040","Фінансування проектів. пов'язаних з підвищенням техніки безпеки шахт шляхом впровадження уніфікованих телекомунікаційних систем диспетчерського контролю та автоматизованого керування гірничими машинами і технологічними комплексами (УТАС) та проектів моде"]
[null,"1102060","Утримання Центру комплексної безпеки підприємств вугільної промисловості"]
[null,"1103000","Державна інспекція енергетичного нагляду України"]
[null,"1110000","Міністерство енергетики та вугільної промисловості України (загальнодержавні витрати)"]
[null,"1111000","Міністерство енергетики та вугільної промисловості України (загальнодержавні витрати)"]
[null,"1111020","Субвенція з державного бюджету місцевим бюджетам на проекти ліквідації підприємств вугільної та торфодобувної промисловості і утримання водовідливних комплексів у безпечному режимі на умовах співфінансування (50 відсотків)"]
[null,"1200000","Міністерство розвитку економіки. торгівлі та сільського господарства України"]
[null,"1201000","Апарат Міністерства розвитку економіки. торгівлі та сільського господарства України"]
[null,"1201010","Керівництво та управління у сфері розвитку економіки. торгівлі та сільського господарства"]
[null,"1201020","Виконання зобов_язань України за участь у програмі ЄС \"Конкурентоспроможність підприємств малого та середнього бізнесу (COSME)\""]
[null,"1201030","Забезпечення двостороннього співробітництва України з іноземними державами та міжнародними організаціями. інформаційне та організаційне забезпечення участі України у міжнародних форумах. конференціях. виставках"]
[null,"1201040","Здешевлення кредитів сільськогосподарським товаровиробникам для купівлі земель сільськогосподарського призначення"]
[null,"1201050","Наукова і науково-технічна діяльність у сфері розвитку агропромислового комплексу.  стандартизації та сертифікації сільськогосподарської продукції"]
[null,"1201060","Підвищення кваліфікації фахівців агропромислового комплексу"]
[null,"1201070","Дослідження. прикладні наукові і науково-технічні розробки. виконання робіт за державними цільовими програмами і державним замовленням. підготовка наукових кадрів та фінансова підтримка розвитку наукової інфраструктури  у сфері економічного розвитку"]
[null,"1201080","Ліквідація та екологічна реабілітація території впливу гірничих робіт державного підприємства \"Солотвинський солерудник\" Тячівського району Закарпатської області"]
[null,"1201090","Фінансова підтримка заходів в агропромисловому комплексі"]
[null,"1201100","Фінансова підтримка розвитку фермерських господарств"]
[null,"1201110","Витрати Аграрного фонду пов'язані з комплексом заходів із  зберігання. перевезення. переробки та експортом об'єктів державного цінового регулювання державного інтервенційного фонду"]
[null,"1201120","Фінансова підтримка видань з економічних питань"]
[null,"1201130","Державна підтримка розвитку хмелярства. закладення молодих садів. виноградників та ягідників і нагляд за ними"]
[null,"1201140","Державна підтримка тваринництва. зберігання та переробки сільськогосподарської продукції. аквакультури (рибництва)"]
[null,"1201150","Фінансова підтримка сільгосптоваровиробників"]
[null,"1201160","Повернення коштів. наданих на формування Аграрним фондом державного інтервенційного фонду. а також для закупівлі матеріально-технічних ресурсів для потреб сільськогосподарських товаровиробників"]
[null,"1201170","Повернення бюджетних позичок. наданих на закупівлю сільськогосподарської продукції за державним замовленням (контрактом) 1994-1997 років"]
[null,"1201180","Повернення коштів. наданих для фінансової підтримки заходів в агропромисловому комплексі на умовах фінансового лізингу. а також закупівлі племінних нетелів та корів. вітчизняної техніки і обладнання для агропромислового комплексу. з наступною їх реалізац"]
[null,"1201190","Повернення кредитів. наданих з державного бюджету фермерським господарствам"]
[null,"1201200","Надання кредитів фермерським господарствам"]
[null,"1201210","Фінансова підтримка заходів в агропромисловому комплексі на умовах фінансового лізингу"]
[null,"1201220","Наукова і науково-технічна діяльність у сфері економічного розвитку. стандартизації. метрології та метрологічної діяльності"]
[null,"1201230","Фінансова підтримка розвитку туризму. створення умов безпеки туристів. розбудови туристичної інфраструктури міжнародних транспортних коридорів та магістралей в Україні"]
[null,"1201260","Формування Аграрним фондом державного інтервенційного фонду. а також закупівлі матеріально-технічних ресурсів для потреб сільськогосподарських товаровиробників"]
[null,"1201270","Організація і регулювання діяльності установ в системі агропромислового комплексу та забезпечення діяльності Аграрного фонду"]
[null,"1201280","Доплати працівникам за роботу у зоні відчуження та громадянам. які постраждали внаслідок Чорнобильської катастрофи"]
[null,"1201290","Компенсація роботодавцю частини фактичних витрат. пов'язаних зі сплатою єдиного внеску на загальнообов'язкове державне соціальне страхування"]
[null,"1201300","Формування статутного капіталу Фонду часткового гарантування кредитів"]
[null,"1201310","Виконання програми \"Сприяння взаємній торгівлі шляхом усунення технічних бар_єрів у торгівлі між Україною та ЄС\""]
[null,"1201320","Виконання судових рішень. що набрали законної сили"]
[null,"1201330","Здійснення заходів для впровадження та підтримання роботи бази даних електронної звітності суб'єктів господарювання державного сектору економіки"]
[null,"1201340","Заходи по реалізації Національної програми сприяння розвитку малого підприємництва в Україні"]
[null,"1201350","Часткове відшкодування відсоткових ставок за кредитами. що надаються суб'єктам малого та середнього бізнесу на реалізацію інвестиційних проектів"]
[null,"1201360","Мікрокредитування суб'єктів малого підприємництва"]
[null,"1201370","Створення та функціонування Фонду національного багатства (у тому числі поповнення статутного капіталу)"]
[null,"1201380","Державний метрологічний нагляд"]
[null,"1201390","Заходи щодо запобігання катастрофи техногенного характеру на державному підприємстві \"Горлівський хімічний завод\""]
[null,"1201400","Прикладні наукові і науково-технічні розробки. виконання робіт за державними цільовими програмами і державним замовленням. наукові розробки у сфері стандартизації та сертифікації промислової продукції. фінансова підтримка розвитку наукової інфраструктури"]
[null,"1201410","Фінансова підтримка заходів в агропромисловому комплексі шляхом здешевлення кредитів"]
[null,"1201420","Забезпечення міжнародного співробітництва та участь у міжнародних виставках"]
[null,"1201430","Формування статутного капіталу Державного концерну \"Укроборонпром\""]
[null,"1201440","Виконання програми \"Сприяння взаємній торгівлі шляхом усунення технічних бар'єрів у торгівлі між Україною та Європейським Союзом\""]
[null,"1201450","Функціонування Центральної державної науково-технічної бібліотеки та Державного металургійного музею України"]
[null,"1201460","Консервація виробничих потужностей промислових підприємств"]
[null,"1201470","Реструктуризація та ліквідація об'єктів підприємств гірничої хімії і здійснення невідкладних природоохоронних заходів в зоні їх діяльності. а також реструктуризація підприємств з підземного видобутку залізної руди"]
[null,"1201480","Забезпечення життєдіяльності Криворізького гірничо-збагачувального комбінату окислених руд"]
[null,"1201490","Повернення кредитів. наданих у 2007 році з Державного бюджету України на реалізацію інноваційних та інвестиційних проектів у галузях економіки. у першу чергу з впровадження передових енергозберігаючих технологій і технологій з виробництва альтернативних"]
[null,"1201500","Повернення мікрокредитів. наданих з державного бюджету суб_єктам малого підприємництва"]
[null,"1201510","Функціонування торгових представництв за кордоном"]
[null,"1201520","Виконання державних цільових програм реформування та розвитку оборонно-промислового комплексу. розроблення. освоєння і впровадження нових технологій. нарощування наявних виробничих потужностей для виготовлення продукції оборонного призначення"]
[null,"1201530","Формування статутного капіталу акціонерного товариства \u0011Експортно-кредитне агентство\u0010"]
[null,"1201540","Функціонування інституції з підтримки та просування експорту"]
[null,"1201550","Поповнення статутного капіталу державної інноваційної фінансово-кредитної установи для забезпечення статутної діяльності"]
[null,"1201560","Державна підтримка технологічних інновацій для розвитку промисловості"]
[null,"1201570","Заходи із створення та організації функціонування експортно-кредитного агентства в Україні"]
[null,"1201580","Заходи із посилення інституційної спроможності для підготовки проектів державно-приватного партнерства"]
[null,"1201590","Поповнення статутного капіталу Державного концерну \"Укроборонпром\""]
[null,"1201610","Заходи щодо зміцнення інформаційної бази для прийняття рішень і прогнозування"]
[null,"1201640","Розвиток приватного сектора"]
[null,"1201800","Реконструкція та ремонт приміщень ННЦ \"Ўнститут метрології\" для зберігання джерел іонізуючого випромінювання та функціонування еталонної бази України"]
[null,"1202000","Державна служба України з питань геодезії. картографії та кадастру"]
[null,"1202010","Керівництво та управління у сфері геодезії. картографії та кадастру"]
[null,"1202020","Проведення земельної реформи"]
[null,"1202030","Загальнодержавні топографо-геодезичні та картографічні роботи. демаркація та делімітація державного кордону"]
[null,"1202050","Збереження та функціонування національної еталонної бази"]
[null,"1202070","Гармонізація національних стандартів з міжнародними та європейськими"]
[null,"1202080","Виробництво та розповсюдження соціальної реклами щодо шкоди тютюнопаління та зловживання алкоголем"]
[null,"1202090","Придбання та функціонування пересувних лабораторій з контролю якості та безпеки нафтопродуктів"]
[null,"1202100","Створення та вдосконалення електронних інформаційних систем та ресурсів Держспоживстандарту України"]
[null,"1202110","Створення національної системи геомоніторингу та дистанційного зондування землі"]
[null,"1202130","Забезпечення функціонування державних служб"]
[null,"1202140","Проведення незалежної експертизи (випробувань) якості товарів. сировини. матеріалів. напівфабрикатів та комплектуючих виробів"]
[null,"1202620","Проведення інвентаризації земель та оновлення картографічної основи Державного земельного кадастру"]
[null,"1202810","Реконструкція споруд та лабораторних приміщень Національного наукового центру \"Ўнститут метрології\""]
[null,"1203000","Державне агентство резерву України"]
[null,"1203010","Керівництво та управління у сфері державного резерву"]
[null,"1203020","Обслуговування державного матеріального резерву"]
[null,"1203030","Відшкодування підприємствам. установам та організаціям витрат. пов'язаних з обслуговуванням матеріальних цінностей державного резерву"]
[null,"1203040","Накопичення (приріст) матеріальних цінностей державного матеріального резерву"]
[null,"1203050","Повернення коштів. наданих з державного бюджету на закупівлю сільськогосподарської продукції"]
[null,"1203060","Заходи щодо  формування державного замовлення на ринку продовольчих товарів"]
[null,"1203070","Створення державних запасів світлих нафтопродуктів та цукру"]
[null,"1203090","Проведення державним підприємством \"Ресурспостач\" розрахунків за надання послуг у галузі права щодо повернення бюджетних коштів"]
[null,"1204000","Державне агентство рибного господарства України"]
[null,"1205000","Державне агентство лісових ресурсів України"]
[null,"1205030","Заходи з легалізації комп'ютерних програм. що використовуються в органах виконавчої влади"]
[null,"1205050","Надання кредитів на реалізацію інноваційних та інвестиційних проектів в галузях економіки. у першу чергу з впровадження передових енергозберігаючих технологій і технологій з виробництва альтернативних джерел палива"]
[null,"1205070","Повернення кредитів. наданих на фінансову підтримку інноваційної та інвестиційної діяльності суб'єктів підприємництва"]
[null,"1205080","Збільшення статутного капіталу Державної іпотечної установи"]
[null,"1206000","Державна служба з питань праці"]
[null,"1206010","Керівництво та управління у сфері промислової безпеки. охорони та гігієни праці. нагляду за додержанням законодавства про працю"]
[null,"1206020","Наукова і науково-технічна діяльність у сфері промислової безпеки та охорони праці"]
[null,"1206030","Розробки найважливіших новітніх технологій у сфері ефективного використання енергетичних ресурсів та енергозбереження"]
[null,"1206050","Заходи з реалізації Комплексної програми будівництва вітрових електростанцій"]
[null,"1206060","Реалізація Державної цільової економічної програми енергоефективності на 2010 - 2015 роки"]
[null,"1207000","Державна служба статистики України"]
[null,"1207060","Підвищення кваліфікації працівників органів державної статистики"]
[null,"1207070","Створення та розвиток інтегрованої інформаційно-аналітичної системи державної статистики"]
[null,"1207080","Фінансова підтримка підготовки наукових кадрів у сфері державної статистики"]
[null,"1207600","Реформування державної статистики"]
[null,"1208000","Державна служба експортного контролю України"]
[null,"1208010","Керівництво та управління у сфері експортного контролю"]
[null,"1208020","Прикладні розробки у сфері розвитку експортного контролю"]
[null,"1209000","Державна служба України з питань безпечності харчових продуктів та захисту споживачів"]
[null,"1209010","Керівництво та управління у сфері безпечності харчових продуктів та захисту споживачів"]
[null,"1209020","Протиепізоотичні заходи та участь у  Міжнародному епізоотичному бюро"]
[null,"1209030","Організація та регулювання діяльності установ в системі Державної служби України з питань безпечності харчових продуктів та захисту споживачів"]
[null,"1209040","Проведення лабораторних випробувань. вимірювань. досліджень та експертизи під час здійснення державного контролю (нагляду)"]
[null,"1209610","Заходи з будівництва прикордонних інспекційних постів та покращення доступу сільськогосподарських МСП до експортних ринків"]
[null,"1210000","Міністерство розвитку економіки. торгівлі та сільського господарства України (загальнодержавні видатки та кредитування)"]
[null,"1211000","Міністерство розвитку економіки. торгівлі та сільського господарства України (загальнодержавні видатки та кредитування)"]
[null,"1211020","Субвенція з державного бюджету обласному бюджету Дніпропетровської області на створення регіонального центру надання адміністративних послуг"]
[null,"1211050","Мобілізаційна підготовка галузей національної економіки України"]
[null,"1211080","Субвенція з державного бюджету обласному бюджету Одеської області на берегоукріплювальні роботи і на розвиток інфраструктури селища Біле на о. Зміїний"]
[null,"1211100","Субвенція з державного бюджету місцевим бюджетам на проведення заходів. пов'язаних з підготовкою і проведенням в Україні фінальної частини чемпіонату Європи 2012 року з футболу"]
[null,"1211110","Підтримка державних та регіональних інвестиційних проектів"]
[null,"1211120","Державні капітальні вкладення на розроблення та реалізацію державних інвестиційних проектів"]
[null,"1300000","Міністерство вугільної промисловості України"]
[null,"1301000","Апарат Міністерства вугільної промисловості України"]
[null,"1301010","Загальне керівництво та управління у вугільній промисловості"]
[null,"1301030","Прикладні наукові та науково-технічні розробки. виконання робіт за державними цільовими програмами і державним замовленням у вугледобувній промисловості"]
[null,"1301100","Державна підтримка підприємств з видобутку кам'яного вугілля. лігніту (бурого вугілля) і торфу на будівництво. технічне переоснащення та капітальний ремонт гірничошахтного обладнання. а також на здешевлення кредитів для будівництва та технічного переосна"]
[null,"1301120","Охорона праці та підвищення техніки безпеки на вугледобувних та шахтобудівельних підприємствах (включаючи підприємства з видобутку бурого вугілля). у тому числі дегазація вугільних пластів"]
[null,"1301130","Заходи по передачі об'єктів соціальної інфраструктури. які перебувають на балансі вугледобувних підприємств"]
[null,"1301170","Погашення простроченої заборгованості за спожиту в минулих періодах електричну енергію державних вугледобувних підприємств. в тому числі підприємств. які готуються до ліквідації. та вугледобувних господарських товариств. 100 відсотків акцій яких належать"]
[null,"1301200","Видатки із Стабілізаційного фонду на підтримку вугільної галузі"]
[null,"1310000","Міністерство вугільної промисловості України (загальнодержавні витрати)"]
[null,"1311000","Міністерство вугільної промисловості України (загальнодержавні витрати)"]
[null,"1400000","Міністерство закордонних справ України"]
[null,"1401000","Апарат Міністерства закордонних справ України"]
[null,"1401010","Керівництво та управління у сфері державної політики щодо зовнішніх відносин"]
[null,"1401020","Внески України до бюджетів ООН. органів і спеціалізованих установ системи ООН. інших міжнародних організацій та конвенційних органів"]
[null,"1401030","Функціонування закордонних дипломатичних установ України та розширення мережі власності України для потреб цих установ"]
[null,"1401040","Розширення мережі власності України за кордоном для потреб дипломатичних установ України"]
[null,"1401050","Реалізація Міністерством закордонних справ України повноважень з проведення зовнішньої політики України. організація і контроль за діяльністю закордонних дипломатичних установ України"]
[null,"1401060","Забезпечення головування України у міжнародних інституціях"]
[null,"1401070","Внески до установ і організацій СНД"]
[null,"1401080","Забезпечення перебування в Україні іноземних делегацій. пов'язаних з офіційними візитами"]
[null,"1401090","Виконання зобов'язань Уряду України щодо функціонування бюро інформації Ради Європи та фінансового забезпечення членства України в ГУАМ"]
[null,"1401100","Професійне навчання посадових осіб дипломатичної служби та працівників інших державних органів у сфері зовнішніх зносин"]
[null,"1401110","Фінансова підтримка забезпечення міжнародного позитивного іміджу України. забезпечення діяльності Українського інституту. заходи щодо підтримки зв'язків з українцями. які проживають за межами України"]
[null,"1401120","Підвищення кваліфікації працівників дипломатичної служби. які віднесені до посад  п'ятої-сьомої категорій державних службовців"]
[null,"1401130","Документування громадян та створення і забезпечення функціонування інформаційно-телекомунікаційних систем консульської служби"]
[null,"1401140","Забезпечення представництва України під час розгляду справ у Міжнародному Cуді ООН"]
[null,"1401150","Заходи щодо підтримки зв'язків з українцями. які проживають за межами України"]
[null,"1401160","Виплати на реалізацію положень Закону України \"Про реструктуризацію заборгованості з виплат. передбачених статтею 57 Закону України \"Про освіту\" педагогічним. науково-педагогічним та іншим категоріям працівників навчальних закладів\""]
[null,"1401170","Реалізація Українським агентством міжнародного розвитку повноважень щодо надання міжнародної технічної допомоги"]
[null,"1401180","Здійснення заходів з підтримання зв'язків із закордонними українцями за рахунок коштів Стабілізаційного фонду"]
[null,"1500000","Міністерство у справах ветеранів. тимчасово окупованих територій та внутрішньо переміщених осіб України"]
[null,"1501000","Апарат Міністерства у справах ветеранів. тимчасово окупованих територій та внутрішньо переміщених осіб України"]
[null,"1501010","Керівництво та управління у справах ветеранів. тимчасово окупованих територій та внутрішньо переміщених осіб України"]
[null,"1501030","Фінансова підтримка громадських об_єднань ветеранів на виконання загальнодержавних програм (проектів. заходів). заходи з відвідування військових поховань і військових пам_ятників та з відзначення святкових. пам_ятних та історичних дат"]
[null,"1501040","Заходи із психологічної реабілітації. соціальної та професійної адаптації. забезпечення санаторно-курортним лікуванням постраждалих учасників Революції Гідності. учасників антитерористичної операції та осіб. які здійснювали заходи із забезпечення націона"]
[null,"1501050","Заходи щодо захисту і забезпечення прав та свобод осіб. які позбавлені (були позбавлені) особистої свободи незаконними збройними формуваннями. окупаційною адміністрацією та/або органами влади Російської Федерації з політичних мотивів. а також у зв_язку з"]
[null,"1501060","Заходи. спрямовані на зменшення соціального. економічного та екологічного впливу вибухонебезпечних предметів на життя та діяльність населення (протимінна діяльність) та інформування населення про небезпеки вибухонебезпечних предметів"]
[null,"1501070","Грошова компенсація постраждалим. житлові будинки (квартири) яких зруйновано внаслідок надзвичайної ситуації воєнного характеру. спричиненої збройною агресією Російської Федерації"]
[null,"1501600","Пілотні заходи з реагування на проблеми для розвитку. викликані переміщенням осіб та поверненням комбатантів"]
[null,"1501610","Надання пільгових іпотечних кредитів внутрішньо переміщеним особам"]
[null,"1501620","Повернення кредитів. наданих із спеціального фонду державного бюджету внутрішньо переміщеним особам на придбання житла"]
[null,"1501630","Реалізація проекту  з постачання питної води у м. Маріуполі"]
[null,"1510000","Міністерство у справах ветеранів. тимчасово окупованих територій та внутрішньо переміщених осіб України (загальнодержавні видатки та кредитування)"]
[null,"1511000","Міністерство у справах ветеранів. тимчасово окупованих територій та внутрішньо переміщених осіб України (загальнодержавні видатки та кредитування)"]
[null,"1511020","Субвенція з державного бюджету місцевим бюджетам на здійснення заходів щодо підтримки територій. що зазнали негативного впливу внаслідок збройного конфлікту на сході України"]
[null,"1511040","Субвенція з державного бюджету місцевим бюджетам на виплату грошової компенсації за належні для отримання жилі приміщення для сімей осіб. визначених абзацами 5-8 пункту 1 статті 10 Закону України \u0011Про статус ветеранів війни. гарантії їх соціального захис"]
[null,"1511050","Субвенція з державного бюджету місцевим бюджетам на виплату грошової компенсації за належні для отримання жилі приміщення для внутрішньо переміщених осіб. які захищали незалежність. суверенітет та територіальну цілісність України і брали безпосередню уча"]
[null,"1511060","Субвенція з державного бюджету місцевим бюджетам на виплату грошової компенсації за належні для отримання жилі приміщення для сімей учасників бойових дій на території інших держав. визначених у абзаці першому пункту 1 статті 10 Закону України \u0011Про статус"]
[null,"1511070","Субвенція з державного бюджету місцевим бюджетам на виплату грошової компенсації за належні для отримання жилі приміщення для сімей осіб. визначених у абзаці чотирнадцятому пункту 1 статті 10 Закону України \u0011Про статус ветеранів війни. гарантії їх соціал"]
[null,"1511080","Субвенція з державного бюджету місцевим бюджетам на виплату грошової компенсації за належні для отримання жилі приміщення для сімей осіб. визначених у абзаці чотирнадцятому пункту 1 статті 10 Закону України \u0011Про статус ветеранів війни. гарантії їх соціал"]
[null,"1511600","Субвенція з державного бюджету місцевим бюджетам на реалізацію проекту \"Житло для внутрішньо-переміщених осіб\""]
[null,"1600000","Міністерство з питань тимчасово окупованих територій та внутрішньо переміщених осіб України"]
[null,"1601000","Апарат Міністерства з питань тимчасово окупованих територій та внутрішньо переміщених осіб України"]
[null,"1601010","Керівництво та управління з питань тимчасово окупованих територій та внутрішньо переміщених осіб"]
[null,"1610000","Міністерство з питань тимчасово окупованих територій та внутрішньо переміщених осіб (загальнодержавні видатки та кредитування)"]
[null,"1611000","Міністерство з питань тимчасово окупованих територій та внутрішньо переміщених осіб (загальнодержавні видатки та кредитування)"]
[null,"1611020","Субвенція з державного бюджету місцевим бюджетам на здійснення заходів щодо підтримки територій. що зазнали негативного впливу внаслідок збройного конфлікту на сході України"]
[null,"1700000","Державний комітет телебачення і радіомовлення України"]
[null,"1701000","Апарат Державного комітету телебачення і радіомовлення України"]
[null,"1701030","Забезпечення населення засобами приймання сигналів цифрового телерадіомовлення"]
[null,"1701070","Ўнформаційно-культурне забезпечення населення Криму у відродженні та розвитку культур народів Криму"]
[null,"1701100","Фінансова підтримка преси"]
[null,"1701110","Випуск книжкової продукції за програмою \"Українська книга\""]
[null,"1701120","Збирання. обробка та розповсюдження офіційної інформаційної продукції"]
[null,"1701150","Трансляція телерадіопрограм. вироблених для державних потреб"]
[null,"1701160","Здійснення контролю у сфері захисту суспільної моралі"]
[null,"1701170","Ўнформаційне та організаційне забезпечення участі України у міжнародних форумах. конференціях. виставках та інших заходах"]
[null,"1701210","Технічне переоснащення обласних державних телерадіокомпаній"]
[null,"1701220","Державна адресна підтримка періодичних видань літературно-художнього напряму"]
[null,"1701230","Фінансова підтримка державних музичних колективів"]
[null,"1701240","Виконання заходів з питань європейської інтеграції в інформаційній сфері"]
[null,"1701250","Забезпечення висвітлення Літніх Олімпійських та Паралімпійських Ўгор 2008 року у м. Пекін (Китай)"]
[null,"1701260","Здійснення заходів з підготовки і проведення Євро-2012 в інформаційній сфері"]
[null,"1701270","Оплата послуг. наданих Концерном радіомовлення. радіозв'язку та телебачення і відкритим акціонерним товариством \"Укртелеком\". з трансляції телепрограм Національної телекомпанії в обсязі 1167.96 години на умовах державного замовлення"]
[null,"1701280","Погашення заборгованості Національної телекомпанії  перед каналом \"EuroNews\""]
[null,"1701290","Створення та функціонування україномовної версії міжнародного каналу \"EuroNews\""]
[null,"1701370","Забезпечення підготовки та проведення  пісенного конкурсу \"Євробачення - 2017\""]
[null,"1701380","Повернення бюджетних коштів. наданих на поворотній основі для фінансування заходів з підготовки та проведення у 2017 році в Україні пісенного конкурсу \"Євробачення\""]
[null,"1701810","Створення міжнародних телерадіоцентрів"]
[null,"1800000","Міністерство культури України"]
[null,"1801000","Апарат Міністерства культури України"]
[null,"1801010","Загальне керівництво та управління у сфері культури"]
[null,"1801040","Надання загальної та спеціальної музичної освіти у загальноосвітніх спеціалізованих школах-інтернатах"]
[null,"1801050","Підготовка кадрів для сфери культури і мистецтва вищими навчальними закладами Ў і ЎЎ рівнів акредитації"]
[null,"1801080","Методичне забезпечення діяльності навчальних закладів у галузі культури і мистецтва"]
[null,"1801090","Підготовка кадрів акторської майстерності для національних мистецьких та творчих колективів"]
[null,"1801150","Поповнення експозицій музеїв та репертуарів театрів і концертних та циркових організацій"]
[null,"1801160","Фінансова підтримка гастрольної діяльності вітчизняних виконавців"]
[null,"1801200","Музейна справа та виставкова діяльність"]
[null,"1801210","Організація та проведення архітектурного конкурсу. проектування та будівництво Національного меморіального комплексу Героїв Небесної Сотні - Музею Революції гідності"]
[null,"1801220","Підготовка кадрів Дитячою хореографічною школою при Національному заслуженому академічному ансамблі танцю України ім. Вірського"]
[null,"1801230","Здійснення проектних робіт та будівництво Меморіалу українських героїв для увічнення пам'яті загиблих воїнів під час антитерористичної операції"]
[null,"1801240","Здійснення культурно-інформаційної та культурно-просвітницької діяльності"]
[null,"1801250","Реставрація. реконструкція. капітальний ремонт будівель і споруд Меморіального комплексу \"Національний музей історії Великої вітчизняної війни 1941-1945 років\" та придбання необхідного обладнання\""]
[null,"1801260","Заходи з відтворення культури національних меншин. заходи Української Всесвітньої Координаційної Ради. заходи з реалізації Європейської хартії регіональних мов або мов меншин. заходи щодо встановлення культурних зв'язків з українською діаспорою. заходи щ"]
[null,"1801270","Заходи щодо встановлення культурних зв'язків з українською діаспорою"]
[null,"1801290","Заходи Всеукраїнського товариства \"Просвіта\""]
[null,"1801300","Фінансова підтримка друкованих періодичних видань культурологічного напрямку. газет мовами національних меншин"]
[null,"1801310","Забезпечення розвитку та застосування української мови"]
[null,"1801320","Заходи з виявлення та підтримки творчо обдарованих дітей та молоді"]
[null,"1801330","Підготовка кадрів для сфери культури і мистецтва Київським національним університетом культури і мистецтв"]
[null,"1801340","Надання фінансової підтримки державному підприємству \"Кримський дім\""]
[null,"1801350","Виплати на реалізацію положень Закону України \"Про реструктуризацію заборгованості з виплат. передбачених статтею 57 Закону України \"Про освіту\" педагогічним. науково-педагогічним та іншим категоріям працівників навчальних закладів\""]
[null,"1801360","Реставрація та  ремонт будівель. фасадів та приміщень вищих навчальних закладів сфери культури і мистецтва в містах проведення Євро-2012"]
[null,"1801370","Будівельно-ремонтні та реставраційні роботи об'єктів культури і мистецтва у приймаючих містах та населених пунктах. де перебуватимуть гості та учасники Євро-2012"]
[null,"1801410","Державні науково-технічні програми та наукові частини державних цільових програм у сфері розвитку туризму"]
[null,"1801420","Фінансова підтримка створення умов для забезпечення безпеки туристів та розбудови туристичної інфраструктури міжнародних транспортних коридорів та магістралей в Україні"]
[null,"1801430","Забезпечення діяльності Українського інституту національної пам'яті"]
[null,"1801440","Проектування та створення музейної експозиції в будинку-музеї Т.Г.Шевченка в Шевченківському національному заповіднику в м. Каневі Черкаської області"]
[null,"1801450","Заходи з вшанування пам'яті"]
[null,"1801460","Функціонування національних історико-меморіальних заповідників"]
[null,"1801470","Функціонування національних меморіальних музеїв"]
[null,"1801500","Розробка впровадження комплексної інформаційної системи Міністерства культури України"]
[null,"1801520","Заходи Української Всесвітньої Координаційної Ради"]
[null,"1801550","Заходи з реалізації Європейської хартії регіональних мов або мов меншин"]
[null,"1801570","Забезпечення функціонування Українського культурного фонду"]
[null,"1801580","Заходи. пов'язані із забезпеченням свободи совісті та релігії"]
[null,"1801590","Заходи щодо зміцнення зв'язків закордонних українців з Україною та забезпечення міжнародної діяльності у сфері міжнаціональних відносин"]
[null,"1801810","Спорудження Меморіалу жертв тоталітаризму на території Національного історико-меморіального заповідника \"Биківнянські могили\""]
[null,"1801870","Реалізація державного інвестиційного проекту \"Комплексна реставрація і пристосування ансамблю Жовківського замку Державного історико-архітектурного заповідника у м. Жовкві\""]
[null,"1802000","Державна служба з питань національної культурної спадщини"]
[null,"1802040","Заходи з охорони культурної спадщини. паспортизація. інвентаризація та реставрація пам'яток культурної спадщини"]
[null,"1804000","Державна служба туризму і курортів"]
[null,"1804050","Заходи у сфері туризму. пов'язані з підготовкою до Євро - 2012"]
[null,"1805000","Державна служба контролю за переміщенням культурних цінностей через державний кордон України"]
[null,"1805020","Заходи щодо запобігання незаконному переміщенню культурних цінностей через державний кордон України та сприяння їх поверненню державам. яким вони належали"]
[null,"1806020","Створення та розповсюдження національних фільмів"]
[null,"1806040","Здійснення концертно-мистецьких та культурологічних заходів у сфері кінематографії"]
[null,"1806050","Здійснення концертно-мистецьких. культурологічних заходів у сфері кінематографії. фінансова підтримка Національної спілки кінематографістів України"]
[null,"1806070","Премії за видатні досягнення у галузі кінематографії"]
[null,"1806800","Реконструкція та технічне переоснащення Будинку кіно Національної спілки кінематографістів України"]
[null,"1807000","Державний комітет України у справах національностей та релігій"]
[null,"1807010","Керівництво та управління у сфері національностей та релігій"]
[null,"1808000","Національна академія мистецтв України"]
[null,"1808020","Наукова і організаційна діяльність президії Національної академії мистецтв України"]
[null,"1808030","Фундаментальні дослідження та підготовка наукових кадрів у сфері мистецтвознавства"]
[null,"1810000","Міністерство культури України (загальнодержавні витрати)"]
[null,"1811000","Міністерство культури України (загальнодержавні витрати)"]
[null,"1811020","Субвенція з державного бюджету міському бюджету міста Києва на проведення консервації та сучасної музеєфікації. завершення археологічних досліджень Старокиївської гори із залишками фундаменту Десятинної церкви території пам'ятки археології національного"]
[null,"1811070","Субвенція з державного бюджету місцевим бюджетам на створення рекреаційних зон. меморіальних та музейних комплексів. а також розвиток історико-культурних пам_яток та заповідників"]
[null,"1811080","Субвенція з державного бюджету обласному бюджету Полтавської області на проведення заходів з підготовки та відзначення 200- річчя від дня народження М.В.Гоголя"]
[null,"1811090","Субвенція з державного бюджету обласному бюджету Полтавської області на проведення комплексу робіт із створення пам'ятників Ўвану Мазепі та Карлу XЎЎ. ремонту та реставрації історико-культурного заповідника \"Поле Полтавської битви\""]
[null,"1811100","Субвенція з державного бюджету обласному бюджету Сумської області на створення меморіального комплексу. присвяченого перемозі війська під проводом гетьмана України Ў. Виговського у Конотопській битві"]
[null,"1811110","Субвенція з державного бюджету обласному бюджету Кіровоградської області на завершення реконструкції будівлі Кіровоградського академічного обласного українського музично-драматичного театру імені М.Л. Кропивницького"]
[null,"1811120","Субвенція з державного бюджету обласному бюджету Черкаської області на реконструкцію та реставрацію. здійснення ремонтних робіт об_єктів Шевченківського національного заповідника (м. Канів)"]
[null,"1811130","Субвенція з державного бюджету обласному бюджету Чернігівської області на фінансування реставраційно-відновлювальних робіт по комплексу пам'яток архітектури НЎКЗ \"Гетьманська столиця\" у м. Батурині"]
[null,"1811140","Субвенція з державного бюджету місцевим бюджетам на проведення заходів з відзначення 200-річчя від дня народження Тараса Шевченка"]
[null,"1900000","Державне агентство лісових ресурсів України"]
[null,"1901000","Апарат Державного агентства лісових ресурсів України"]
[null,"1901050","Підготовка кадрів для лісового господарства вищими навчальними закладами Ў і ЎЎ рівнів акредитації"]
[null,"1901070","Розвиток комплексної системи електронного документообігу та створення інформаційно-аналітичної системи обліку лісових ресурсів"]
[null,"2100000","Міністерство оборони України"]
[null,"2101000","Апарат Міністерства оборони України"]
[null,"2101010","Керівництво та військове управління Збройними Силами України"]
[null,"2101020","Забезпечення діяльності Збройних Сил України. підготовка кадрів і військ. медичне забезпечення особового складу. ветеранів військової служби та членів їхніх сімей. ветеранів війни"]
[null,"2101070","Забезпечення Збройних Сил України зв'язком. створення та розвиток командних пунктів та автоматизованих систем управління"]
[null,"2101080","Медичне лікування. реабілітація та санаторне забезпечення особового складу Збройних Сил України. ветеранів військової служби та членів їх сімей. ветеранів війни"]
[null,"2101100","Підготовка військових фахівців у вищих навчальних закладах. підвищення кваліфікації та перепідготовка військових фахівців і державних службовців. початкова військова підготовка та патріотичне виховання молоді"]
[null,"2101110","Проведення мобілізаційної роботи і призову до Збройних Сил України та інших військових формувань"]
[null,"2101130","Виплати на реалізацію положень Закону України \"Про реструктуризацію заборгованості з виплат. передбачених статтею 57 Закону України \"Про освіту\" педагогічним. науково-педагогічним та іншим категоріям працівників навчальних закладів\""]
[null,"2101140","Реформування та розвиток Збройних Сил України"]
[null,"2101150","Розвиток. закупівля. модернізація та ремонт озброєння. військової техніки. засобів та обладнання"]
[null,"2101160","Прикладні дослідження у сфері військової оборони держави"]
[null,"2101170","Відновлення боєздатності. утримання. експлуатація. ремонт озброєння та військової техніки"]
[null,"2101180","Будівництво та капітальний ремонт військової інфраструктури"]
[null,"2101190","Будівництво (придбання) житла для військовослужбовців Збройних Сил України"]
[null,"2101200","Забезпечення живучості та вибухопожежобезпеки арсеналів. баз і складів озброєння ракет і боєприпасів Збройних Сил України"]
[null,"2101210","Утилізація боєприпасів. рідинних компонентів ракетного палива. озброєння. військової техніки та іншого військового майна. забезпечення живучості та вибухопожежобезпеки арсеналів. баз і складів Збройних Сил України"]
[null,"2101230","Забезпечення участі у міжнародних миротворчих операціях"]
[null,"2101240","Забезпечення виконання міжнародних угод у військовій сфері"]
[null,"2101260","Створення. закупівля і модернізація озброєння та військової техніки за державним оборонним замовленням Міністерства оборони"]
[null,"2101270","Підготовка курсантів льотних спеціалізацій для Збройних Сил України Харківським аероклубом Товариства сприяння обороні України"]
[null,"2101330","Відшкодування Фонду соціального страхування на випадок безробіття додаткових витрат. пов'язаних з виплатою військовослужбовцям. звільненим у зв'язку з реформуванням Збройних Сил України. допомоги по безробіттю та матеріальної допомоги у період професійно"]
[null,"2101340","Захист важливих державних об'єктів"]
[null,"2101350","Соціальна та професійна адаптація військовослужбовців. що звільняються в запас або відставку"]
[null,"2101410","Здійснення заходів. пов'язаних  з проведенням землевпорядних робіт. оформленням правовстановлюючих документів на нерухоме військове майно та земельні ділянки"]
[null,"2101420","Заходи. пов'язані із переходом на військову службу за контрактом"]
[null,"2101430","Забезпечення речовим майном військовослужбовців та задоволення інших невідкладних потреб Збройних Сил України"]
[null,"2101440","Забезпечення житлом військовослужбовців Збройних Сил України"]
[null,"2101450","Видатки для Міністерства оборони України на реалізацію заходів щодо підвищення обороноздатності і безпеки держави"]
[null,"2101500","Видатки із Стабілізаційного фонду за напрямом оборони та придбання пожежної техніки"]
[null,"2101510","Облаштування військових комісаріатів (територіальних центрів комплектування та соціальної підтримки) та їх всебічне забезпечення"]
[null,"2102000","Головне управління розвідки Міністерства оборони України"]
[null,"2105000","Адміністрація Державної спеціальної служби транспорту України"]
[null,"2105010","Забезпечення діяльності Державної спеціальної служби транспорту"]
[null,"2110000","Міністерство оборони України (загальнодержавні витрати)"]
[null,"2111000","Міністерство оборони України (загальнодержавні витрати)"]
[null,"2111040","Субвенція з державного бюджету місцевим бюджетам на здійснення заходів по передачі житлового фонду та об'єктів соціально-культурної сфери Міністерства оборони України у комунальну власність"]
[null,"2200000","Міністерство освіти і науки України"]
[null,"2201000","Апарат Міністерства освіти і науки України"]
[null,"2201010","Загальне керівництво та управління у сфері освіти і науки"]
[null,"2201020","Забезпечення організації роботи Національного агентства із забезпечення якості вищої освіти. Національного агентства кваліфікацій. освітнього омбудсмена. державна атестація та акредитація закладів освіти"]
[null,"2201030","Забезпечення здобуття професійної (професійно-технічної) освіти за професіями загальнодержавного значення"]
[null,"2201040","Наукова і науково-технічна діяльність закладів вищої освіти та наукових установ"]
[null,"2201050","Фінансова підтримка розвитку інфраструктури науково-технічної. інноваційної діяльності та інформатизації. наукової преси. наукових об'єктів. що становлять національне надбання. забезпечення діяльності Державного фонду фундаментальних досліджень"]
[null,"2201060","Наукові та науково-технічні розробки за державними цільовими програмами і державними замовленнями"]
[null,"2201070","Фонд Президента України з підтримки освіти. науки та спорту"]
[null,"2201080","Державні премії. стипендії та гранти в галузі освіти. науки і техніки. стипендії переможцям міжнародних конкурсів"]
[null,"2201090","Фінансова підтримка наукових об'єктів. що становлять національне надбання"]
[null,"2201100","Надання освіти закладами загальної середньої освіти державної форми власності"]
[null,"2201110","Надання освіти у загальноосвітніх школах соціальної реабілітації"]
[null,"2201120","Забезпечення діяльності Національного центру \"Мала академія наук України\". надання позашкільної освіти державними закладами позашкільної освіти. заходи з позашкільної роботи"]
[null,"2201130","Забезпечення здобуття професійної (професійно-технічної) освіти у закладах освіти соціальної реабілітації та адаптації державної форми власності. методичне забезпечення закладів професійної (професійно-технічної) освіти"]
[null,"2201140","Фонд розвитку закладів вищої освіти"]
[null,"2201150","Підготовка кадрів вищими навчальними закладами Ў і ЎЎ рівнів акредитації та забезпечення діяльності їх баз практики"]
[null,"2201160","Підготовка кадрів закладами вищої освіти та забезпечення діяльності їх баз практики"]
[null,"2201170","Здійснення методичного та аналітичного забезпечення діяльності закладів освіти"]
[null,"2201180","Проведення всеукраїнських та міжнародних олімпіад у сфері освіти. всеукраїнського конкурсу \"Учитель року\""]
[null,"2201190","Виплата академічних стипендій студентам (курсантам). аспірантам. докторантам закладів фахової передвищої та вищої освіти"]
[null,"2201200","Пільговий проїзд студентів закладів фахової передвищої та вищої освіти і учнів закладів професійної (професійно-технічної) освіти у залізничному. автомобільному та водному транспорті"]
[null,"2201210","Надання пільгових довгострокових кредитів для здобуття вищої освіти"]
[null,"2201220","Реалізація державного інвестиційного проекту \"Створення Міжнародного центру підготовки пілотів на базі Національного авіаційного університету\""]
[null,"2201230","Реалізація державного інвестиційного проекту \"Реконструкція навчального корпусу № 4 Черкаського національного університету імені Богдана Хмельницького - пам'ятки архітектури місцевого значення за адресою: м. Черкаси. вул. Остафія Дашковича. 24\""]
[null,"2201240","Реалізація державного інвестиційного проекту \"Реставрація староакадемічного корпусу ансамблю Братського монастиря по вул. Г. Сковороди. 2 у Подільському районі м. Києва\""]
[null,"2201250","Підвищення кваліфікації педагогічних та науково-педагогічних працівників. керівних працівників і спеціалістів харчової. переробної промисловості та агропромислового комплексу. медичних та фармацевтичних кадрів"]
[null,"2201260","Загальнодержавні заходи у сфері освіти"]
[null,"2201270","Функціонування музеїв"]
[null,"2201280","Підготовка кадрів Київським національним університетом імені Тараса Шевченка"]
[null,"2201290","Дослідження. наукові та науково-технічні розробки. проведення наукових заходів Київським національним університетом імені Тараса Шевченка. фінансова підтримка наукових об_єктів. що становлять національне надбання"]
[null,"2201300","Забезпечення діяльності Національного фонду досліджень. грантова підтримка наукових досліджень і науково-технічних (експериментальних) розробок"]
[null,"2201310","Фізична і спортивна підготовка учнівської та студентської молоді"]
[null,"2201320","Підвищення кваліфікації керівних працівників і спеціалістів харчової і переробної промисловості"]
[null,"2201330","Дослідження. наукові та науково-технічні розробки. проведення наукових заходів Національним технічним університетом України \"Київський політехнічний інститут імені Ўгоря Сікорського\". фінансова підтримка наукових об_єктів. що становлять національне надба"]
[null,"2201340","Фінансова підтримка розвитку інфраструктури у сфері наукової діяльності"]
[null,"2201350","Дослідження. прикладні наукові і науково-технічні розробки. виконання робіт за державними цільовими програмами та державним замовленням"]
[null,"2201360","Заходи з реалізації Європейської хартії регіональних мов або мов меншин. фінансова підтримка пропаганди української освіти за кордоном"]
[null,"2201370","Підготовка фахівців Національним університетом \"Юридична академія України  імені Ярослава Мудрого\""]
[null,"2201380","Виконання зобов'язань України у сфері міжнародного науково-технічного та освітнього співробітництва"]
[null,"2201390","Підтримка пріоритетних напрямів наукових досліджень і науково-технічних (експериментальних) розробок у закладах вищої освіти"]
[null,"2201400","Державні премії. стипендії та гранти в галузі науки і техніки"]
[null,"2201410","Наукова і науково-технічна діяльність  на антарктичній станції \"Академік Вернадський\""]
[null,"2201420","Підготовка кадрів закладами фахової передвищої освіти"]
[null,"2201430","Підготовка кадрів Національним технічним університетом \"Київський політехнічний інститут\""]
[null,"2201440","Забезпечення діяльності Національного центру \"Мала академія наук України\""]
[null,"2201450","Виплати на реалізацію положень Закону України \"Про реструктуризацію заборгованості з виплат. передбачених статтею 57 Закону України \"Про освіту\" педагогічним. науково-педагогічним та іншим категоріям працівників навчальних закладів\""]
[null,"2201460","Надання кредитів на будівництво (придбання) житла для науково-педагогічних та педагогічних працівників"]
[null,"2201470","Здійснення зовнішнього оцінювання та моніторинг якості освіти Українським центром оцінювання якості освіти та його регіональними підрозділами"]
[null,"2201480","Повернення коштів. наданих з державного бюджету для кредитування окремих категорій громадян. які відповідно до чинного законодавства мають право на отримання таких кредитів на будівництво (придбання) житла. та науково-педагогічних і педагогічних працівни"]
[null,"2201490","Діагностика і лікування захворювань із впровадженням експериментальних та нових медичних технологій у структурних підрозділах вищих навчальних медичних закладах"]
[null,"2201500","Підготовка кадрів Національним авіаційним університетом"]
[null,"2201510","Державна атестація наукових і науково-педагогічних кадрів вищої кваліфікації. ліцензування. атестація та акредитація навчальних закладів"]
[null,"2201520","Фінансова підтримка пропаганди України за кордоном"]
[null,"2201530","Підготовка кадрів для гуманітарної сфери Національним університетом \"Острозька академія\""]
[null,"2201540","Придбання шкільних автобусів для перевезення дітей. що проживають у сільській місцевості"]
[null,"2201550","Забезпечення підготовки та перепідготовки у вищих навчальних закладах спеціалістів. залучених для проведення Євро - 2012"]
[null,"2201560","Фундаментальні дослідження у сфері державного управління"]
[null,"2201570","Виконання зобов_язань України у Рамковій програмі Європейського Союзу з наукових досліджень та інновацій \"Горизонт 2020\""]
[null,"2201580","Підготовка. перепідготовка та підвищення кваліфікації керівних працівників. спеціалістів державного управління. інших категорій працівників. підготовка наукових та науково-педагогічних працівників"]
[null,"2201590","Наукове забезпечення робіт щодо ліквідації наслідків Чорнобильської катастрофи"]
[null,"2201600","Заходи щодо модернізації системи загальної середньої освіти"]
[null,"2201610","Вища освіта. енергоефективність та сталий розвиток"]
[null,"2201810","Проведення реставраційних робіт Староакадемічного корпусу Національного університету \"Києво-Могилянська академія\""]
[null,"2201820","Будівництво. ремонт та реконструкція закладів і об'єктів Міністерства освіти і науки України"]
[null,"2201830","Виконання робіт із будівництва об'єктів Національного медичного університету ім. О.О. Богомольця"]
[null,"2201840","Реалізація державного інвестиційного проекту \"Реставрація головного корпусу Львівського національного університету імені Ўвана Франка\""]
[null,"2201850","Реалізація державного інвестиційного проекту \"Будівництво Міжнародного центру зустрічей студентської молоді України та Республіки Польща\""]
[null,"2201860","Добудова до навчального корпусу НТУ \"Київський політехнічний інститут\" для розміщення Українсько-Японського центру"]
[null,"2201870","Перепрофілювання незавершеного будівництва будинку культури в м. Острог під навчальний корпус Національного університету \u0011Острозька академія\u0010"]
[null,"2201890","Завершення будівництва учбового корпусу Шосткинського інституту Сумського державного університету"]
[null,"2202000","Національна академія наук України"]
[null,"2202020","Наукова і організаційна діяльність президії Національної академії наук України"]
[null,"2202030","Фундаментальні дослідження. прикладні наукові і науково-технічні розробки. виконання робіт за державними цільовими програмами і державним замовленням. підготовка наукових кадрів. фінансова підтримка розвитку наукової інфраструктури та наукових об'єктів."]
[null,"2202040","Заходи щодо оптимізації системи національних галузевих академій наук"]
[null,"2202060","Діагностика і лікування захворювань із впровадженням експериментальних та нових медичних технологій. спеціалізована консультативно-поліклінічна допомога. що надається науково-дослідними установами Національної академії медичних наук України"]
[null,"2202080","Здійснення заходів щодо підтримки науково-дослідних господарств"]
[null,"2202090","Підвищення кваліфікації з пріоритетних напрямів науки та підготовка до державної атестації наукових кадрів Національної академії наук України"]
[null,"2202100","Збереження природно-заповідного фонду в біосферному заповіднику \"Асканія-Нова\""]
[null,"2202140","Здійснення науково-дослідницьких та дослідно-конструкторських робіт Ўнститутом проблем безпеки атомних електростанцій Національної академії наук України"]
[null,"2202180","Підготовка кадрів з пріоритетних напрямів науки вищими навчальними закладами ЎЎЎ і ЎV рівнів акредитації"]
[null,"2203000","Державна служба якості освіти"]
[null,"2203010","Керівництво та управління у сфері забезпечення якості освіти"]
[null,"2203020","Здійснення сертифікації педагогічних працівників. експертизи освітніх програм у сфері забезпечення якості освіти"]
[null,"2204000","Національна академія педагогічних наук України"]
[null,"2204020","Наукова і організаційна діяльність президії Національної академії педагогічних наук України"]
[null,"2204030","Фундаментальні дослідження. прикладні наукові і науково-технічні розробки. виконання робіт за державними цільовими програмами і державним замовленням у сфері педагогічних наук. підготовка наукових кадрів. фінансова підтримка розвитку наукової інфраструкт"]
[null,"2204040","Підготовка кадрів для сфери спорту вищими навчальними закладами ЎЎЎ і ЎV рівнів акредитації"]
[null,"2204050","Підвищення кваліфікації працівників державних органів. установ і організацій у справах сім'ї. молоді та спорту"]
[null,"2204060","Підвищення кваліфікації керівних кадрів і спеціалістів у сфері освіти закладами післядипломної освіти ЎЎЎ і ЎV рівнів акредитації"]
[null,"2204080","Виплати на реалізацію положень Закону України \"Про реструктуризацію заборгованості з виплат. передбачених статтею 57 Закону України \"Про освіту\" педагогічним. науково-педагогічним та іншим категоріям працівників навчальних закладів\""]
[null,"2204090","Фінансова підтримка Спортивного комітету України"]
[null,"2204130","Фінансова підтримка паралімпійського руху в Україні"]
[null,"2204140","Здійснення заходів з реалізації державної політики з питань дітей та заходів. спрямованих на подолання дитячої бездоглядності і безпритульності"]
[null,"2204150","Надання державних пільгових довгострокових кредитів на підготовку кадрів для сфери спорту вищими навчальними закладами"]
[null,"2204160","Фінансова підтримка програм і заходів аерокосмічного профілю серед дітей та молоді"]
[null,"2204170","Державна підтримка молодіжних і дитячих громадських організацій на виконання загальнодержавних програм і заходів стосовно дітей. молоді. жінок. сім'ї"]
[null,"2204180","Прикладні розробки у сфері сім'ї та молоді. розвитку спорту та методики підготовки спортсменів"]
[null,"2204190","Здійснення державними органами централізованих заходів по організації відпочинку та оздоровлення дітей"]
[null,"2204200","Пільговий проїзд дітей віком від 6 до 14 років у залізничному транспорті"]
[null,"2204210","Державна підтримка дитячих громадських організацій на виконання загальнодержавних програм і заходів стосовно дітей"]
[null,"2204220","Розвиток фізичної культури. спорту вищих досягнень та резервного спорту"]
[null,"2204230","Функціонування музею спортивної слави України"]
[null,"2204240","Забезпечення підготовки спортсменів вищих категорій"]
[null,"2204250","Створення та розвиток матеріально-технічної бази спорту"]
[null,"2204260","Прикладні розробки у сфері розвитку окремих видів спорту та методики підготовки спортсменів"]
[null,"2204270","Розвиток авіаційних видів спорту"]
[null,"2204290","Видатки на облаштування спортивних та футбольних майданчиків"]
[null,"2204310","Проведення навчально-тренувальних зборів і змагань з олімпійських видів спорту"]
[null,"2204330","Проведення заходів з неолімпійських видів спорту і масових заходів з фізичної культури"]
[null,"2204350","Забезпечення діяльності Всеукраїнського центру фізичного здоров'я населення \"Спорт для всіх\""]
[null,"2204360","Оздоровлення і відпочинок дітей в дитячих оздоровчих таборах та МДЦ \"Артек\" і ДЦ \"Молода Гвардія\""]
[null,"2204400","Фінансова підтримка Національного олімпійського комітету України"]
[null,"2204430","Забезпечення підготовки національної збірної команди України з футболу для участі в чемпіонаті Євро-2012"]
[null,"2204450","Виготовлення посвідчень для батьків та дітей багатодітних родин"]
[null,"2204460","Підготовка і участь національних збірних команд в Юнацьких Олімпійських іграх"]
[null,"2204490","Надання загальної та поглибленої освіти з фізкультури і спорту загальноосвітніми спеціалізованими школами-інтернатами"]
[null,"2204500","Видатки із Стабілізаційного фонду за напрямом забезпечення житлом громадян та витрати ДЎУ"]
[null,"2204800","Проведення протизсувних робіт з укріплення схилу. реконструкції та реставрації адміністративного будинку по вул. Десятинній. 14"]
[null,"2204810","Реконструкція стадіону Національного спортивного комплексу \"Олімпійський\""]
[null,"2204830","Реконструкція та капітальний ремонт об'єктів Міжнародного дитячого центру \"Артек\" та Українського дитячого центру \"Молода гвардія\""]
[null,"2204860","Будівництво стадіону у м. Львові. необхідного для проведення Євро-2012"]
[null,"2204870","Реконструкція стадіону комунального підприємства \"Обласний спортивний комплекс \"Металіст\" в  м. Харкові"]
[null,"2204880","Реконструкція гуртожитків Національного університету фізичного виховання і спорту для розміщення вболівальників під час проведення Євро-2012"]
[null,"2204890","Придбання сучасного аналітичного обладнання для лабораторії Національного антидопінгового центру України в рамках підготовки до Євро-2012"]
[null,"2205000","Національна академія медичних наук України"]
[null,"2206000","Національна академія мистецтв України"]
[null,"2206010","Фундаментальні дослідження у сфері природничих і технічних. гуманітарних і суспільних наук"]
[null,"2206040","Проведення з'їздів. симпозіумів. конференцій і семінарів Київським національним університетом імені Тараса Шевченка"]
[null,"2206050","Підготовка кадрів Київським національним університетом імені Тараса Шевченка"]
[null,"2207000","Національна комісія зі стандартів державної мови"]
[null,"2207010","Керівництво та управління у сфері стандартів державної мови"]
[null,"2208000","Національна академія аграрних наук України"]
[null,"2210000","Міністерство освіти і науки України (загальнодержавні видатки та кредитування)"]
[null,"2211000","Міністерство освіти і науки України (загальнодержавні видатки та кредитування)"]
[null,"2211020","Субвенція з державного бюджету місцевим бюджетам на здійснення виплат. визначених Законом України \"Про реструктуризацію заборгованості з виплат. передбачених статтею 57 Закону України \"Про освіту\" педагогічним. науково-педагогічним та іншим категоріям пр"]
[null,"2211030","Субвенція з державного бюджету місцевим бюджетам на придбання шкільних автобусів для перевезення дітей. що проживають у сільській місцевості"]
[null,"2211060","Субвенція з державного бюджету місцевим бюджетам на реалізацію державної цільової соціальної програми \"Школа майбутнього\""]
[null,"2211070","Субвенція з державного бюджету місцевим бюджетам на комп'ютеризацію та інформатизацію загальноосвітніх навчальних закладів районів"]
[null,"2211090","Субвенція з державного бюджету обласному бюджету Київської області на проведення експерименту за принципом \"гроші ходять за дитиною\""]
[null,"2211130","Субвенція з державного бюджету місцевим бюджетам на завершення ремонтних робіт в закладах. що надають соціальні послуги  дітям та молоді. створення яких було розпочато в 2007 році"]
[null,"2211140","Субвенція з державного бюджету місцевим бюджетам на завершення розпочатих у 2007 році робіт з облаштування закладів. які надають соціальні послуги дітям та молоді"]
[null,"2211150","Субвенція з державного бюджету обласному бюджету Одеської області на реконструкцію з розширенням палацу спорту в місті Одесі"]
[null,"2211170","Субвенція з державного бюджету місцевим бюджетам на забезпечення харчуванням (сніданками) учнів 5-11 класів загальноосвітніх навчальних закладів"]
[null,"2211180","Субвенція на підготовку робітничих кадрів з державного бюджету місцевим бюджетам"]
[null,"2211190","Освітня субвенція з державного бюджету місцевим бюджетам"]
[null,"2211200","Субвенція на підготовку кадрів у вищих навчальних закладах Ў-ЎЎ рівнів акредитації з державного бюджету місцевим бюджетам"]
[null,"2211210","Субвенція з державного бюджету місцевим бюджетам на створення навчально-практичних центрів сучасної професійної (професійно-технічної) освіти"]
[null,"2211220","Субвенція з державного бюджету місцевим бюджетам на надання державної підтримки особам з особливими освітніми потребами"]
[null,"2211230","Субвенція з державного бюджету місцевим бюджетам на забезпечення якісної. сучасної та доступної загальної середньої освіти \u0011Нова українська школа\u0010"]
[null,"2211240","Субвенція з державного бюджету місцевим бюджетам на створення та ремонт існуючих спортивних комплексів при загальноосвітніх навчальних закладах усіх ступенів"]
[null,"2211250","Субвенція з державного бюджету місцевим бюджетам на реалізацію заходів. спрямованих на підвищення якості освіти"]
[null,"2211260","Субвенція з державного бюджету місцевим бюджетам на реалізацію програми \"Спроможна школа для кращих результатів\""]
[null,"2211270","Субвенція з державного бюджету місцевим бюджетам на покращення соціального захисту окремих категорій педагогічних працівників закладів загальної середньої освіти"]
[null,"2300000","Міністерство охорони здоров'я України"]
[null,"2301000","Апарат Міністерства охорони здоров'я України"]
[null,"2301010","Керівництво та управління у сфері охорони здоров'я"]
[null,"2301020","Наукова і науково-технічна діяльність у сфері охорони здоров'я"]
[null,"2301030","Фінансування заходів по забезпеченню реалізації інвестиційного проекту з оснащення закладів охорони здоров_я сучасним високотехнологічним медичним обладнанням"]
[null,"2301040","Громадське здоров'я та заходи боротьби з епідеміями"]
[null,"2301050","Прикладні наукові та науково-технічні розробки. виконання робіт за державними цільовими програмами і державним замовленням. фінансова підтримка підготовки наукових кадрів у сфері охорони здоров'я"]
[null,"2301060","Фінансова підтримка розвитку інфраструктури наукової діяльності у сфері профілактичної та клінічної медицини"]
[null,"2301070","Підготовка і підвищення кваліфікації кадрів у сфері охорони здоров'я. підготовка наукових та науково-педагогічних кадрів закладами фахової передвищої та вищої освіти"]
[null,"2301080","Підготовка. перепідготовка та підвищення кваліфікації кадрів у сфері охорони здоров'я. підготовка наукових та науково-педагогічних кадрів закладами післядипломної освіти"]
[null,"2301090","Загальнодержавні заклади та заходи у сфері медичної освіти"]
[null,"2301100","Проведення міжнародного моніторингового дослідження якості вищої медичної освіти"]
[null,"2301110","Спеціалізована та високоспеціалізована медична допомога. що надається загальнодержавними закладами охорони здоров'я"]
[null,"2301120","Підготовка медичних і фармацевтичних кадрів вищими навчальними закладами Ў і ЎЎ рівнів акредитації"]
[null,"2301130","Реалізація державного інвестиційного проекту \"Удосконалення молекулярно-генетичної діагностики онкологічних захворювань в Україні\""]
[null,"2301140","Реалізація державного інвестиційного проекту \"Будівництво клініко-симуляційного центру Вищого державного навчального закладу України \"Українська медична стоматологічна академія\". розташованого за адресою: Полтавська область. м. Полтава. вул. Шевченка. 23"]
[null,"2301150","Капітальний ремонт приміщень Центру реконструктивної та відновної медицини (Університетської клініки) Одеського національного медичного університету та придбання медичного обладнання"]
[null,"2301160","Створення центрів позитронно-емісійної томографії та придбання ПЕТ-КТ сканерів"]
[null,"2301170","Діагностика і лікування захворювань  із впровадженням експериментальних та нових медичних технологій у закладах охорони здоров'я науково-дослідних установ та  вищих навчальних медичних закладах Міністерства охорони здоров'я України"]
[null,"2301180","Санаторне лікування хворих на туберкульоз та дітей і підлітків з соматичними захворюваннями"]
[null,"2301190","Створення оперативно-диспетчерських служб з використанням сучасних GPS-технологій"]
[null,"2301200","Спеціалізована консультативна амбулаторно-поліклінічна та стоматологічна допомога. що надається вищими навчальними закладами. науково-дослідними установами та загальнодержавними закладами охорони здоров'я"]
[null,"2301210","Модернізація та оновлення матеріально-технічної бази багатопрофільних лікарень інтенсивного лікування"]
[null,"2301230","Надання послуг у стоматологічних поліклініках вищих навчальних медичних закладів та інших загальнодержавних стоматологічних закладах"]
[null,"2301250","Державний санітарно-епідеміологічний нагляд. дезінфекційні заходи та заходи по боротьбі з епідеміями"]
[null,"2301260","Заходи по боротьбі з епідеміями"]
[null,"2301270","Програми і централізовані заходи з імунопрофілактики"]
[null,"2301280","Виконання боргових зобов'язань за кредитами. залученими ДП \"Укрмедпостач\" під державні гарантії. для реалізації інвестиційного проекту. оплата податкових зобов_язань (з урахуванням штрафних санкцій). що виникли в рамках реалізації інвестиційного проекту"]
[null,"2301290","Централізована закупівля рентгенологічного. діагностичного та іншого обладнання для закладів охорони здоров'я"]
[null,"2301310","Централізовані заходи з трансплантації органів та тканин"]
[null,"2301320","Проведення державним підприємством \"Укрвакцина\" розрахунків за надання послуг у галузі права щодо повернення бюджетних коштів"]
[null,"2301340","Державний контроль за якістю лікарських засобів"]
[null,"2301350","Організація і регулювання діяльності установ та окремі заходи у системі охорони здоров'я"]
[null,"2301360","Лікування громадян України за кордоном"]
[null,"2301370","Забезпечення медичних заходів по боротьбі з туберкульозом. профілактики та лікування СНЎДу. лікування онкологічних хворих"]
[null,"2301380","Розвиток служби екстреної медичної допомоги (придбання медичного автотранспорту) для закладів охорони здоров_я України"]
[null,"2301390","Забезпечення постраждалих учасників антитерористичної операції санаторно-курортним лікуванням"]
[null,"2301400","Забезпечення медичних заходів окремих державних програм та комплексних заходів програмного характеру"]
[null,"2301410","Функціонування Національної наукової медичної бібліотеки. збереження та популяризація історії медицини"]
[null,"2301420","Збереження та популяризація історії медицини"]
[null,"2301430","Виплати на реалізацію положень Закону України \"Про реструктуризацію заборгованості з виплат. передбачених статтею 57 Закону України \"Про освіту\" педагогічним. науково-педагогічним та іншим категоріям працівників навчальних закладів\""]
[null,"2301440","Заходи з обміну та вивчення досвіду у провідних клініках світу"]
[null,"2301450","Забезпечення окремих централізованих заходів з лікування цукрового діабету"]
[null,"2301460","Медичне обслуговування працівників та пасажирів залізничного транспорту"]
[null,"2301480","Компенсація виробникам додаткових витрат. пов'язаних з підвищенням з 1 січня 2004 р. ставки акцизного збору на спирт етиловий. що використовується для виготовлення лікарських засобів"]
[null,"2301490","Комплексне медико-санітарне забезпечення та лікування онкологічних захворювань із застосуванням високовартісних медичних технологій громадян. які постраждали внаслідок Чорнобильської катастрофи"]
[null,"2301500","Компенсація населенню додаткових витрат. пов_язаних з підвищенням ставки податку на додану вартість на лікарські засоби"]
[null,"2301510","Заходи із реабілітації хворих на дитячий церебральний параліч"]
[null,"2301520","Фінансова підтримка служб Товариства Червоного Хреста України та внесок до Міжнародної федерації Товариств Червоного Хреста та Червоного Півмісяця"]
[null,"2301540","Надання державних пільгових довгострокових кредитів на підготовку медичних та фармацевтичних кадрів вищими навчальними закладами"]
[null,"2301550","Реалізація пілотного проекту щодо зміни механізму фінансового забезпечення оперативного лікування з трансплантації органів та інших анатомічних матеріалів"]
[null,"2301580","Заходи із запобігання поширенню та лікування грипу типу А/Н1N1/Каліфорнія/04/09 і гострих респіраторних захворювань"]
[null,"2301590","Заходи із проектування. реконструкції та капітального ремонту закладів охорони здоров'я в містах проведення  Євро - 2012"]
[null,"2301600","Заходи з подолання епідемії туберкульозу та СНЎДу"]
[null,"2301610","Поліпшення охорони здоров`я на службі у людей"]
[null,"2301800","Заходи щодо створення державної клініки високих медичних технологій у Запорізькій області"]
[null,"2301810","Реалізація державного інвестиційного проекту \"Будівництво сучасного лікувально-діагностичного комплексу Національної дитячої спеціалізованої лікарні \"Охматдит\""]
[null,"2301820","Добудова лікувального корпусу Державного закладу \"Прикарпатський центр репродукції людини на вул. Чорновола. 51-Г. в м. Ўвано-Франківську\""]
[null,"2301830","Реалізація державного інвестиційного проекту \"Покращення якості променевої терапії при лікуванні онкологічних захворювань в Національному інституті раку\""]
[null,"2301840","Запровадження медичної інформаційної системи в Національному інституті раку"]
[null,"2301850","Реалізація державного інвестиційного проекту \"Реконструкція і розширення Національного інституту раку по вул. Ломоносова. 33/43 в Голосіївському р-ні м. Києва\""]
[null,"2301860","Розроблення проектно-кошторисної документації та виконання робіт з реконструкції будівель та споруд Українського науково-практичного центру ендокринної хірургії. трансплантології ендокринних органів і тканин"]
[null,"2301870","Будівництво клінік медичних навчальних закладів ЎЎЎ - ЎV рівнів акредитації"]
[null,"2301890","Реконструкція та капітальний ремонт навчальних корпусів і гуртожитків Донецького національного медичного університету ім. М.Горького"]
[null,"2302000","Державна служба України з лікарських засобів"]
[null,"2302010","Керівництво та управління у сфері лікарських засобів"]
[null,"2302020","Заходи по боротьбі з виробництвом та розповсюдженням фальсифікованих та субстандартних лікарських засобів"]
[null,"2302030","Створення державної інформаційно-аналітичної системи контролю за лікарськими засобами і медичною продукцією"]
[null,"2303000","Державна служба України з контролю за наркотиками"]
[null,"2303010","Керівництво та управління у сфері контролю за наркотиками"]
[null,"2304000","Державна санітарно-епідеміологічна служба України"]
[null,"2304010","Керівництво та управління у сфері санітарно-епідеміологічної служби"]
[null,"2304020","Проведення лабораторних досліджень у сфері санітарного та епідемічного благополуччя населення і вжиття спеціальних заходів на локалізацію та ліквідацію спалахів та епідемій"]
[null,"2305000","Державна служба України з питань протидії ВЎЛ-інфекції/СНЎДу та інших соціально небезпечних захворювань"]
[null,"2305010","Керівництво та управління у сфері протидії ВЎЛ-інфекції/СНЎДу та інших соціально небезпечних захворювань"]
[null,"2305020","Удосконалення заходів протидіі ВЎЛ-інфекції/СНЎДу та інших соціально-небезпечних захворювань в Україні"]
[null,"2306000","Національна академія медичних наук України"]
[null,"2306020","Наукова і організаційна діяльність президії Національної академії медичних наук України"]
[null,"2306030","Фундаментальні дослідження. прикладні наукові і науково-технічні розробки. виконання робіт за державними цільовими програмами і державним замовленням у сфері профілактики і лікування хвороб людини. підготовка наукових кадрів. фінансова підтримка розвитку"]
[null,"2306060","Діагностика і лікування захворювань із впровадженням експериментальних та нових медичних технологій. спеціалізована консультативно-поліклінічна допомога. що надається науково-дослідними установами Національної академії медичних наук України"]
[null,"2306820","Реалізація державних інвестиційних проектів Національної академії медичних наук України"]
[null,"2307000","Державна служба з лікарських засобів та контролю за наркотиками"]
[null,"2307010","Керівництво та управління у сфері лікарських засобів та контролю за наркотиками"]
[null,"2308000","Національна служба здоров_я України"]
[null,"2308010","Керівництво та управління у сфері державних фінансових гарантій медичного обслуговування населення"]
[null,"2308020","Надання первинної медичної допомоги населенню"]
[null,"2308030","Пілотний проект з реалізації державних гарантій медичного обслуговування населення за програмою медичних гарантій для вторинної (спеціалізованої) медичної допомоги у Полтавській області"]
[null,"2308040","Відшкодування вартості лікарських засобів для лікування окремих захворювань"]
[null,"2308050","Пілотний проект з реалізації державних гарантій медичного обслуговування населення за програмою медичних гарантій для амбулаторно-поліклінічної вторинної (спеціалізованої) медичної допомоги"]
[null,"2308060","Реалізація програми державних гарантій медичного обслуговування населення"]
[null,"2310000","Міністерство охорони здоров'я України (загальнодержавні видатки та кредитування)"]
[null,"2311000","Міністерство охорони здоров'я України (загальнодержавні видатки та кредитування)"]
[null,"2311020","Субвенція з державного бюджету місцевим бюджетам на оснащення сільських амбулаторій та фельдшерсько-акушерських пунктів. придбання автомобілів швидкої медичної допомоги для сільських закладів охорони здоров'я"]
[null,"2311030","Субвенція з державного бюджету обласному бюджету Черкаської області на дооснащення медичним обладнанням для введення в експлуатацію дитячої обласної лікарні"]
[null,"2311050","Субвенція з державного бюджету обласному бюджету Донецької області на забезпечення лікування інвалідів-спинальників у Донецькій обласній лікарні відновного лікування"]
[null,"2311060","Субвенція з державного бюджету місцевим бюджетам на фінансування заходів із запобігання поширенню та лікування грипу типу А/Н1N1/Каліфорнія/04/09 і гострих респіраторних захворювань"]
[null,"2311090","Субвенція з державного бюджету міському бюджету міста Києва на реконструкцію з розширенням будівель Київської міської клінічної лікарні № 6 з перепрофілюванням її під лікарню швидкої медичної допомоги"]
[null,"2311100","Субвенція з державного бюджету обласному бюджету Донецької області на будівництво та капітальний ремонт окремих об'єктів обласних закладів охорони здоров'я"]
[null,"2311110","Субвенція з державного бюджету міському бюджету м. Києва на капітальний ремонт Київського міського центру репродуктивної та перинатальної медицини"]
[null,"2311120","Субвенція з державного бюджету обласному бюджету Чернівецької області на придбання обладнання для закладів охорони здоров'я Чернівецької області"]
[null,"2311130","Субвенція з державного бюджету міському бюджету міста Києва на реконструкцію та ремонт приміщення з подальшим обладнанням Київського міського центру репродуктивної та перинатальної медицини"]
[null,"2311140","Субвенція з державного бюджету міському бюджету міста Одеси на будівництво. реконструкцію. реставрацію і капітальний ремонт Одеської міської клінічної інфекційної лікарні"]
[null,"2311150","Субвенція з державного бюджету міському бюджету міста Ўвано-Франківська на придбання медичного обладнання для закладів охорони здоров'я міста Ўвано-Франківськ"]
[null,"2311160","Субвенція з державного бюджету місцевим бюджетам на придбання витратних матеріалів для закладів охорони здоров'я та лікарських засобів для інгаляційної анестезії"]
[null,"2311170","Субвенція з державного бюджету обласному бюджету Кіровоградської області на придбання високовартісного медичного обладнання"]
[null,"2311180","Субвенція з державного бюджету обласному бюджету Волинської області на закупівлю рентген-діагностичного обладнання. в тому числі ангіографу"]
[null,"2311190","Субвенція з державного бюджету обласному бюджету Донецької області на будівництво ПЕТ-КТ центру. капітальний ремонт і реконструкцію лікарняних споруд та закупівлю високовартісного медичного обладнання для Донецького обласного клінічного територіального м"]
[null,"2311200","Субвенція з державного бюджету обласному бюджету Одеської області на закупівлю рентген-діагностичного та іншого медичного обладнання"]
[null,"2311210","Субвенція з державного бюджету районному бюджету Васильківського району Київської області на завершення будівництва та введення в експлуатацію амбулаторії смт Глеваха"]
[null,"2311220","Субвенція з державного бюджету місцевим бюджетам на придбання витратних матеріалів та медичного обладнання для закладів охорони здоров'я"]
[null,"2311230","Субвенція з державного бюджету місцевим бюджетам на поліпшення умов оплати праці медичних працівників. які надають медичну допомогу хворим на туберкульоз"]
[null,"2311240","Субвенція з державного бюджету міському бюджету міста Донецька на придбання сучасного медичного обладнання для закладів охорони здоров'я"]
[null,"2311250","Субвенція з державного бюджету міському бюджету міста Дзержинськ Донецької області на придбання сучасного лікувально-діагностичного обладнання для закладів охорони здоров'я"]
[null,"2311260","Субвенція з державного бюджету обласному бюджету Дніпропетровської області на придбання медичного обладнання та автомобілів швидкої медичної допомоги для закладів охорони здоров'я"]
[null,"2311270","Субвенція з державного бюджету обласному бюджету Київської області на придбання медичного обладнання для Київської обласної клінічної лікарні"]
[null,"2311280","Субвенція з державного бюджету обласному бюджету Закарпатської області на придбання сучасного високовартісного лікувального та діагностичного обладнання для закладів охорони здоров'я"]
[null,"2311290","Субвенція з державного бюджету місцевим бюджетам на підтримку реформування системи охорони здоров'я у Вінницькій. Дніпропетровській. Донецькій областях та м. Києві"]
[null,"2311300","Субвенція з державного бюджету місцевим бюджетам на придбання медикаментів та виробів медичного призначення для забезпечення швидкої медичної допомоги"]
[null,"2311310","Субвенція з державного бюджету місцевим бюджетам на придбання медикаментів та виробів медичного призначення для реалізації заходів державних цільових програм та комплексних заходів програмного характеру"]
[null,"2311320","Субвенція з державного бюджету місцевим бюджетам на придбання медичного обладнання (мамографічного. рентгенологічного та апаратів ультразвукової діагностики) вітчизняного виробництва"]
[null,"2311330","Субвенція з державного бюджету міському бюджету міста Києва на забезпечення функціонування Київської міської клінічної лікарні \"Київський міський центр серця\""]
[null,"2311340","Субвенція з державного бюджету місцевим бюджетам на погашення кредиторської заборгованості за медичне обладнання. придбане в 2011 році за рахунок субвенції з державного бюджету місцевим бюджетам на придбання витратних матеріалів та медичного обладнання д"]
[null,"2311350","Субвенція з державного бюджету місцевим бюджетам на часткове відшкодування вартості лікарських засобів для лікування осіб з гіпертонічною хворобою"]
[null,"2311360","Субвенція з державного бюджету обласному бюджету Харківської області на придбання лікарських засобів та виробів медичного призначення для Обласної клінічної лікарні - центру екстреної медичної допомоги та медицини катастроф"]
[null,"2311370","Субвенція з державного бюджету міському бюджету міста Києва на забезпечення функціонування Центру ядерної медицини Київського міського клінічного онкологічного центру"]
[null,"2311380","Субвенція з державного бюджету місцевим бюджетам на придбання медичного обладнання та  автотранспорту для закладів охорони здоров'я "]
[null,"2311390","Субвенція з державного бюджету міському бюджету міста Києва на забезпечення функціонування Центру ядерної медицини Київського міського клінічного онкологічного центру"]
[null,"2311410","Медична субвенція з державного бюджету місцевим бюджетам"]
[null,"2311420","Субвенція з державного бюджету місцевим бюджетам на забезпечення медичних заходів окремих державних програм та комплексних заходів програмного характеру"]
[null,"2311430","Субвенція з державного бюджету обласному бюджету Львівської області на завершення реконструкції Львівського обласного перинатального центру"]
[null,"2311440","Субвенція з державного бюджету обласному бюджету Чернівецької області на реконструкцію будівель Чернівецького перинатального центру. структурного підрозділу Чернівецької обласної клінічної лікарні"]
[null,"2311450","Субвенція з державного бюджету місцевим бюджетам на придбання ангіографічного обладнання"]
[null,"2311460","Субвенція з державного бюджету місцевим бюджетам на відшкодування вартості лікарських засобів для лікування окремих захворювань"]
[null,"2311470","Субвенція з державного бюджету місцевим бюджетам на розвиток системи екстреної медичної допомоги"]
[null,"2311480","Субвенція з державного бюджету районному бюджету Валківського району Харківської області на придбання комп_ютерного томографа для комунального закладу охорони здоров_я \"Валківська центральна районна лікарня\""]
[null,"2311500","Субвенція з державного бюджету місцевим бюджетам на здійснення підтримки окремих закладів та заходів у системі охорони здоров_я"]
[null,"2311510","Субвенція з державного бюджету обласному бюджету Львівської області на погашення кредиторської заборгованості. що утворилася за придбане у 2012 році медичне обладнання (мамографічне. рентгенологічне та апарати ультразвукової діагностики) вітчизняного вир"]
[null,"2311600","Субвенція з державного бюджету місцевим бюджетам на реформування регіональних систем охорони здоров_я для здійснення  заходів з виконання спільного з Міжнародним банком реконструкції та розвитку проекту \"Поліпшення охорони здоров'я на службі у людей\""]
[null,"2400000","Міністерство енергетики та захисту довкілля України"]
[null,"2401000","Апарат Міністерства енергетики та захисту довкілля України"]
[null,"2401010","Загальне керівництво та управління у сфері енергетики та захисту довкілля"]
[null,"2401020","Управління та контроль у сфері охорони навколишнього природного середовища на регіональному рівні"]
[null,"2401030","Наукова і науково-технічна діяльність у сфері паливно-енергетичного комплексу й вугільної промисловості"]
[null,"2401040","Наукова і науково-технічна діяльність у сфері енергетики та захисту довкілля"]
[null,"2401070","Заходи з ліквідації неперспективних вугледобувних підприємств"]
[null,"2401090","Підвищення кваліфікації та перепідготовка кадрів у сфері екології. природних ресурсів та водного господарства. підготовка наукових та науково-педагогічних кадрів"]
[null,"2401100","Гірничорятувальні заходи на вугледобувних підприємствах"]
[null,"2401140","Фізичний захист ядерних установок та ядерних матеріалів"]
[null,"2401160","Збереження природно-заповідного фонду"]
[null,"2401190","Моніторинг навколишнього природного середовища та забезпечення державного контролю за додержанням вимог природоохоронного законодавства"]
[null,"2401210","Державна цільова екологічна програма першочергових заходів приведення у безпечний стан об_єктів і майданчика колишнього уранового виробництва виробничого об_єднання \"Придніпровський хімічний завод\" на 2019-2023 роки"]
[null,"2401230","Очистка стічних вод"]
[null,"2401240","Міжнародне співробітництво у сфері охорони навколишнього природного середовища. сприяння сталому розвитку. екологічній освіті та поширенню екологічної інформації"]
[null,"2401250","Поводження з відходами та небезпечними хімічними речовинами"]
[null,"2401260","Формування національної екологічної мережі"]
[null,"2401270","Здійснення природоохоронних заходів. зокрема з покращення стану довкілля"]
[null,"2401280","Здійснення природоохоронних заходів. направлених на упередження та ліквідацію наслідків негативних природних явищ"]
[null,"2401290","Підвищення якості атмосферного повітря"]
[null,"2401320","Фінансова підтримка природоохоронної діяльності. у тому числі через механізм здешевлення кредитів комерційних банків"]
[null,"2401330","Заходи щодо очистки стічних вод в місті Одесі"]
[null,"2401420","Реалізація державного інвестиційного проекту \"Новокостянтинівська шахта. Розвиток виробничих потужностей\""]
[null,"2401440","Внесок України до Енергетичного Співтовариства"]
[null,"2401450","Загальнодержавні топографо-геодезичні та картографічні роботи. демаркація та делімітація державного кордону"]
[null,"2401460","Повернення коштів. наданих публічному акціонерному товариству \"Укргідроенерго\"на поворотній основі для реалізації проектів соціально-економічного розвитку"]
[null,"2401470","Виконання боргових зобов'язань за кредитами. залученими під державні гарантії. з метою реалізації проектів соціально-економічного розвитку"]
[null,"2401480","Державна підтримка будівництва шахти №10 \"Нововолинська\""]
[null,"2401490","Підтримка впровадження Енергетичної стратегії України"]
[null,"2401500","Здійснення заходів щодо реалізації пріоритетів розвитку сфери охорони навколишнього природного середовища"]
[null,"2401510","Внески України до бюджетів Рамкової конвенції ООН про зміну клімату. Кіотського протоколу та Міжнародного журналу транзакцій"]
[null,"2401520","Забезпечення діяльності Національного центру обліку викидів парникових газів"]
[null,"2401530","Державна підтримка заходів. спрямованих на зменшення обсягів викидів (збільшення абсорбції) парникових газів. у тому числі на утеплення приміщень закладів соціального забезпечення. розвиток міжнародного співробітництва з питань зміни клімату"]
[null,"2401550","Заходи з провадження підготовчої діяльності для забезпечення виконання функцій оператора газотранспортної системи"]
[null,"2401560","Забезпечення діяльності Національної комісії з радіаційного захисту населення України"]
[null,"2401590","Реструктуризація вугільної галузі"]
[null,"2401610","Реконструкція гідроелектростанцій ПАТ \"Укргідроенерго\""]
[null,"2401620","Реконструкція. капітальний ремонт та технічне переоснащення магістрального газопроводу Уренгой-Помари-Ужгород"]
[null,"2401630","Впровадження Програми реформування та розвитку енергетичного сектора"]
[null,"2401640","Підвищення надійності постачання електроенергії в Україні"]
[null,"2401650","Будівництво ПЛ 750 кВ Рівненська АЕС - Київська"]
[null,"2401670","Будівництво повітряної лінії 750 кВ Запорізька - Каховська"]
[null,"2401680","Підвищення ефективності передачі електроенергії (модернізація підстанцій)"]
[null,"2401690","Реконструкція трансформаторних підстанцій східної частини України"]
[null,"2402000","Державне агентство рибного господарства України"]
[null,"2402010","Керівництво та управління у сфері рибного господарства"]
[null,"2402020","Організація діяльності рибовідтворювальних комплексів та інших бюджетних установ  у сфері рибного господарства"]
[null,"2402030","Наукова і науково-технічна діяльність у сфері рибного господарства"]
[null,"2402040","Утримання регіональних центрів інноваційного розвитку"]
[null,"2402070","Селекція у рибному господарстві та відтворення водних біоресурсів у внутрішніх водоймах та Азово-Чорноморському басейні"]
[null,"2402090","Міжнародна діяльність у галузі рибного  господарства"]
[null,"2403000","Державна інспекція енергетичного нагляду України"]
[null,"2403010","Керівництво та управління у сфері енергетичного нагляду"]
[null,"2404000","Державна служба геології та надр України"]
[null,"2404010","Керівництво та управління у сфері геологічного вивчення та використання надр"]
[null,"2404020","Розвиток мінерально-сировинної бази"]
[null,"2404030","Геолого-екологічні дослідження та заходи"]
[null,"2405000","Державна екологічна інспекція України"]
[null,"2405010","Керівництво та управління у сфері екологічного контролю"]
[null,"2405020","Зміцнення матеріально-технічної бази і методологічне забезпечення Державної екологічної інспекції України та її територіальних органів"]
[null,"2406000","Державне агентство з енергоефективності та енергозбереження України"]
[null,"2406010","Керівництво та управління у сфері ефективного використання енергетичних ресурсів"]
[null,"2406040","Державна підтримка заходів з енергозбереження через механізм здешевлення кредитів"]
[null,"2406060","Реалізація Державної цільової економічної програми енергоефективності"]
[null,"2407000","Державне агентство водних ресурсів України"]
[null,"2407010","Керівництво та управління у сфері водного господарства"]
[null,"2407020","Наукова і науково-технічна діяльність у сфері розвитку водного господарства"]
[null,"2407030","Розробки найважливіших новітніх технологій у сфері екологічного оздоровлення водних ресурсів"]
[null,"2407040","Підвищення кваліфікації кадрів у сфері водного господарства"]
[null,"2407050","Експлуатація державного водогосподарського комплексу та управління водними ресурсами"]
[null,"2407060","Ведення державного моніторингу поверхневих вод. водного кадастру. паспортизація. управління водними ресурсами"]
[null,"2407070","Захист від шкідливої дії вод сільських населених пунктів та сільськогосподарських угідь. в тому числі в басейні р. Тиса у Закарпатській області"]
[null,"2407080","Комплексний протипаводковий захист в басейні р. Тиса у Закарпатській області"]
[null,"2407090","Першочергове забезпечення сільських населених пунктів централізованим водопостачанням"]
[null,"2407100","Виплати на реалізацію положень Закону України \"Про реструктуризацію заборгованості з виплат. передбачених статтею 57 Закону України \"Про освіту\" педагогічним. науково-педагогічним та іншим категоріям працівників навчальних закладів\""]
[null,"2407110","Комплексний протипаводковий захист Прикарпатського регіону"]
[null,"2407120","Розвиток та поліпшення екологічного стану зрошуваних та осушених систем"]
[null,"2407130","Виконання боргових зобов'язань за кредитом. залученим ДП \"Львівська обласна дирекція з протипаводкового захисту\" під державну гарантію"]
[null,"2407140","Здійснення заходів із заповнення водою водосховищ та інших водних об'єктів  Автономної Республіки Крим"]
[null,"2407150","Покращення гідрологічного режиму та санітарного стану річок. будівництво та реконструкція берегоукріплювальних і гідротехнічних споруд у басейні р. Сіверський Донець"]
[null,"2407160","Реалізація державного інвестиційного проекту \"Забезпечення питним водопостачанням сільських населених пунктів Казанківського. Новобузького районів та реконструкція водоскидної споруди Софіївського водосховища Новобузького району Миколаївської області\""]
[null,"2407170","Реалізація державного інвестиційного проекту \"Заходи із забезпечення комплексного протипаводкового захисту від шкідливої дії вод сільських населених пунктів та сільськогосподарських угідь у Львівській області\""]
[null,"2407800","Реалізація державного інвестиційного проекту \"Реконструкція гідротехнічних споруд захисних масивів дніпровських водосховищ\""]
[null,"2408000","Державне агентство України з управління зоною відчуження"]
[null,"2408010","Керівництво та управління діяльністю у зоні відчуження"]
[null,"2408040","Внески України до Чорнобильського фонду \"Укриття\" та до рахунку ядерної безпеки ЄБРР"]
[null,"2408070","Радіологічний захист населення та екологічне оздоровлення території. що зазнала радіоактивного забруднення"]
[null,"2408080","Збереження етнокультурної спадщини регіонів. постраждалих від наслідків Чорнобильської катастрофи"]
[null,"2408090","Виконання робіт у сфері поводження з радіоактивними відходами неядерного циклу. будівництво комплексу \"Вектор\" та експлуатація його об'єктів"]
[null,"2408110","Підтримка екологічно безпечного стану у зонах відчуження і безумовного (обов'язкового) відселення"]
[null,"2408120","Підтримка у безпечному стані енергоблоків та об'єкта \"Укриття\" та заходи щодо підготовки до зняття з експлуатації Чорнобильської АЕС"]
[null,"2408140","Реалізація державного інвестиційного проекту \"Відновлення об'єктів транспортної інфраструктури зони відчуження\""]
[null,"2408800","Реалізація державних інвестиційних проектів закриття сховищ ПЗРВ \"ЎЎЎ черга ЧАЕС\u0010 та консервація сховища №29 ПЗРВ \"Буряківка\""]
[null,"2409000","Державне агентство лісових ресурсів України"]
[null,"2409010","Керівництво та управління у сфері лісового господарства"]
[null,"2409020","Наукова і науково-технічна діяльність у сфері лісового господарства"]
[null,"2409060","Ведення лісового і мисливського господарства. охорона і захист лісів в лісовому фонді"]
[null,"2410000","Міністерство енергетики та захисту довкілля України (загальнодержавні видатки та кредитування)"]
[null,"2411000","Міністерство енергетики та захисту довкілля України (загальнодержавні видатки та кредитування)"]
[null,"2411020","Субвенція з державного бюджету місцевим бюджетам на здійснення природоохоронних заходів на об_єктах комунальної власності"]
[null,"2411030","Субвенція з державного бюджету місцевим бюджетам на фінансування заходів соціально-економічної компенсації ризику населення. яке проживає на території зони спостереження"]
[null,"2500000","Міністерство соціальної політики України"]
[null,"2501000","Апарат Міністерства соціальної політики України"]
[null,"2501010","Керівництво та управління у сфері соціальної політики"]
[null,"2501030","Виплата деяких видів допомог. компенсацій. грошового забезпечення та оплата послуг окремим категоріям населення"]
[null,"2501040","Наукова і науково-технічна діяльність у сфері соціальної політики"]
[null,"2501050","Підготовка кадрів для галузі соціального захисту вищими навчальними закладами Ў і ЎЎ рівнів акредитації"]
[null,"2501060","Підвищення кваліфікації фахівців із соціальної роботи та інших працівників системи соціального захисту"]
[null,"2501070","Спеціалізована протезно-ортопедична та медично-реабілітаційна  допомога особам з інвалідністю у клініці Науково-дослідного інституту протезування. протезобудування та відновлення працездатності"]
[null,"2501080","Фінансова підтримка заходів із створення робочих місць для відтворення та розвитку інфраструктури Донецької області"]
[null,"2501090","Створення і програмно-технічне забезпечення системи інформаційно-аналітичної підтримки. інформаційно-методичне забезпечення та виготовлення бланків посвідчень і нагрудних знаків для системи соціального захисту"]
[null,"2501100","Забезпечення житлом інвалідів війни. воїнів-інтернаціоналістів.  громадян. які постраждали внаслідок Чорнобильської катастрофи. інвалідів по зору та слуху. військовослужбовців. звільнених у запас або у відставку. для відселення їх із закритих та віддален"]
[null,"2501110","Фінансова підтримка заходів із соціального захисту дітей"]
[null,"2501120","Розселення та облаштування депортованих кримських татар та осіб інших національностей. які були  депортовані з території України"]
[null,"2501130","Заходи із соціального захисту дітей. сімей. жінок та інших найбільш вразливих категорій населення"]
[null,"2501140","Створення і програмно-технічне забезпечення системи інформаційно-аналітичної підтримки та інформаційно-методичне забезпечення установ системи Міністерства соціальної політики України"]
[null,"2501150","Щорічна разова грошова допомога ветеранам війни і жертвам нацистських переслідувань та соціальна допомога особам. які мають особливі та особливі трудові заслуги перед Батьківщиною"]
[null,"2501160","Довічні державні стипендії"]
[null,"2501170","Розробка нових видів протезно-ортопедичних виробів та обслуговування інвалідів у стаціонарах при протезних підприємствах"]
[null,"2501180","Виплата соціальних стипендій студентам (курсантам) закладів фахової передвищої та вищої освіти"]
[null,"2501190","Надання одноразової грошової допомоги членам сімей осіб. смерть яких пов'язана з участю в масових акціях громадського протесту. що відбулися у період з 21 листопада 2013 р. по 21 лютого 2014 року та особам. які отримали тілесні ушкодження. побої. мордува"]
[null,"2501200","Соціальний захист громадян. які постраждали внаслідок Чорнобильської катастрофи"]
[null,"2501210","Компенсація сім'ям з дітьми та видатки на безплатне харчування дітей. які постраждали внаслідок Чорнобильської катастрофи"]
[null,"2501220","Фінансова підтримка громадських об_єднань інвалідів та ветеранів. заходи з відвідування військових поховань і військових пам_ятників та з відзначення Дня пам_яті та примирення. Дня перемоги над нацизмом у Другій світовій війні"]
[null,"2501230","Виплата пільг і житлових субсидій громадянам на оплату житлово-комунальних послуг. придбання твердого та рідкого пічного побутового палива і скрапленого газу у грошовій формі"]
[null,"2501240","Компенсації за втрачене майно та оплата витрат у зв'язку з переїздом на нове місце проживання громадянам. які постраждали внаслідок Чорнобильської катастрофи"]
[null,"2501250","Компенсації за шкоду. заподіяну здоров'ю. та допомоги на оздоровлення. у разі звільнення з роботи громадян. які постраждали внаслідок Чорнобильської катастрофи"]
[null,"2501260","Виплати на реалізацію положень Закону України \"Про реструктуризацію заборгованості з виплат. передбачених статтею 57 Закону України \"Про освіту\" педагогічним. науково-педагогічним та іншим категоріям працівників навчальних закладів\""]
[null,"2501270","Допомога по тимчасовій непрацездатності громадянам. які постраждали внаслідок Чорнобильської катастрофи"]
[null,"2501280","Забезпечення житлом громадян. які постраждали внаслідок Чорнобильської катастрофи"]
[null,"2501300","Обслуговування банківських позик. наданих на пільгових умовах до 1999 року громадянам. які постраждали внаслідок Чорнобильської катастрофи"]
[null,"2501350","Компенсація підприємствам. установам. організаціям у межах середнього заробітку працівників. призваних на військову службу за призовом під час мобілізації. на особливий період за 2014-2015 роки"]
[null,"2501360","Оздоровлення громадян. які постраждали внаслідок Чорнобильської катастрофи"]
[null,"2501370","Впровадження інноваційних технологій у виробництві технічних засобів реабілітації інвалідів"]
[null,"2501380","Санаторно-курортне лікування ветеранів війни.  осіб. на яких поширюється чинність законів України \"Про статус ветеранів війни. гарантії їх соціального захисту\". \"Про жертви нацистських переслідувань\" та інвалідів. хворих на туберкульоз"]
[null,"2501400","Часткове покриття видатків Фонду загальнообов'язкового державного соціального страхування України на випадок безробіття на створення нових робочих місць для забезпечення зайнятості мешканців вугледобувних регіонів"]
[null,"2501410","Реєстрація державною службою зайнятості трудових договорів. укладених між працівниками та фізичними особами"]
[null,"2501420","Надання роботодавцям компенсації для забезпечення молоді першим робочим місцем"]
[null,"2501430","Одноразова виплата жінкам. яким присвоєно почесне звання України \"Мати-героїня\""]
[null,"2501440","Реалізація державної політики з питань сім'ї та дітей"]
[null,"2501450","Оздоровлення і відпочинок дітей. які потребують особливої уваги та підтримки. в дитячих оздоровчих таборах МДЦ \"Артек\" і ДЦ \"Молода Гвардія\""]
[null,"2501460","Комплексне медико-санітарне забезпечення та лікування онкологічних захворювань із застосуванням високовартісних медичних технологій громадян. які постраждали внаслідок Чорнобильської катастрофи"]
[null,"2501470","Санаторно-курортне лікування ветеранів війни. осіб. на яких поширюється чинність законів України \u0011Про статус ветеранів війни. гарантії їх соціального захисту\u0010. \u0011Про жертви нацистських переслідувань\u0010 та осіб з інвалідністю"]
[null,"2501480","Надання щомісячної адресної допомоги внутрішньо переміщеним особам для покриття витрат на проживання. в тому числі на оплату житлово-комунальних послуг"]
[null,"2501490","Реалізація пілотного проекту ..Розвиток соціальних послуг\""]
[null,"2501500","Фінансова підтримка заходів із залучення до роботи членів малозабезпечених сімей та внутрішньо переміщених осіб в умовах експерименту"]
[null,"2501510","Компенсація частини витрат на здійснення заходів з реалізації державних програм соціального захисту населення"]
[null,"2501550","Підготовка кадрів для галузі соціального захисту вищими навчальними закладами ЎЎЎ - ЎV рівнів акредитації"]
[null,"2501570","Виплата матеріальної допомоги військовослужбовцям. звільненим з  військової строкової служби"]
[null,"2501580","Придбання (будівництво) житла для інвалідів-сліпих та інвалідів глухих"]
[null,"2501590","Компенсація роботодавцю частини фактичних витрат. пов_язаних зі сплатою єдиного внеску на загальнообов_язкове державне соціальне страхування"]
[null,"2501600","Розробка та впровадження моделей соціального інвестування"]
[null,"2501610","Підвищення  ефективності  управління реформою системи соціального захисту"]
[null,"2501620","Створення єдиної системи збору та обліку внесків на загальнообов'язкове державне соціальне страхування та подальше формування системи накопичувального пенсійного забезпечення"]
[null,"2501630","Модернізація системи соціальної підтримки населення України"]
[null,"2501640","Соціальна підтримка громад"]
[null,"2501650","Ўнвестиції на підтримку соціального розвитку територіальних громад"]
[null,"2501800","Будівництво та реконструкція об_єктів державного підприємства \"Український дитячий центр \"Молода гвардія\""]
[null,"2501900","Надання пільг. житлових субсидій та компенсацій населенню на оплату електроенергії. природного газу. послуг тепло-. водопостачання і водовідведення. квартирної плати (утримання будинків і споруд та прибудинкових територій). вивезення побутового сміття та"]
[null,"2501910","Надання пільг та житлових субсидій населенню на придбання твердого та рідкого пічного побутового палива і скрапленого газу"]
[null,"2501920","Надання пільг з послуг зв'язку.  інших передбачених законодавством пільг (крім  пільг  на одержання    ліків.   зубопротезування.   оплату   електроенергії. природного і скрапленого газу на  побутові  потреби.  твердого  та рідкого пічного побутового пал"]
[null,"2501930","Виплата допомоги сім'ям з дітьми. малозабезпеченим сім'ям. інвалідам з дитинства. дітям-інвалідам. тимчасової державної допомоги дітям та на догляд за інвалідом Ў чи ЎЎ групи внаслідок психічного розладу"]
[null,"2502000","Державна служба з питань праці"]
[null,"2503000","Державна інспекція України з питань праці"]
[null,"2503010","Керівництво та управління у сфері нагляду за додержанням законодавства про працю"]
[null,"2503020","Прикладні дослідження та розробки. підготовка наукових кадрів у сфері промислової безпеки та охорони праці"]
[null,"2505000","Державна служба України у справах ветеранів війни та учасників антитерористичної операції"]
[null,"2505010","Керівництво та управління у сфері соціального захисту ветеранів війни та учасників антитерористичної операції"]
[null,"2505030","Фінансова підтримка громадських об_єднань ветеранів. які мають статус всеукраїнських. заходи з відвідування військових поховань і військових пам_ятників та з відзначення святкових. пам_ятних та історичних дат"]
[null,"2505040","Протезування та ортезування виробами підвищеної функціональності за новітніми технологіями та технологіями виготовлення. які відсутні в Україні. а також регенерація для окремих категорій громадян. які брали участь в антитерористичній операції та/або у за"]
[null,"2505050","Забезпечення житлом воїнів-інтернаціоналістів"]
[null,"2505080","Здійснення заходів щодо надання соціальної та психологічної допомоги центрами соціально-психологічної реабілітації населення"]
[null,"2505110","Встановлення телефонів інвалідам Ў і ЎЎ груп"]
[null,"2505120","Компенсаційні виплати інвалідам на бензин. ремонт. техобслуговування автотранспорту та транспортне обслуговування"]
[null,"2505130","Будівництво (придбання) житла для військовослужбовців. звільнених в запас або у відставку. для відселення їх із закритих та віддалених від населених пунктів військових гарнізонів"]
[null,"2505140","Забезпечення житлом осіб. які брали безпосередню участь в антитерористичній операції та/або у забезпеченні її проведення і втратили функціональні можливості нижніх кінцівок"]
[null,"2505150","Заходи із психологічної реабілітації. соціальної та професійної адаптації. забезпечення санаторно-курортним лікуванням постраждалих учасників Революції Гідності. учасників антитерористичної операції та осіб. які здійснювали заходи із забезпечення націона"]
[null,"2505160","Забезпечення постраждалих учасників антитерористичної операції санаторно-курортним лікуванням"]
[null,"2505170","Заходи з соціальної та професійної адаптації учасників антитерористичної операції (крім військовослужбовців. звільнених у запас або у відставку)"]
[null,"2505800","Будівництво (придбання) житла для інвалідів по зору і слуху"]
[null,"2506000","Пенсійний фонд України"]
[null,"2506020","Дотація на виплату пенсій. надбавок та підвищень до пенсій. призначених за різними пенсійними програмами"]
[null,"2506030","Дотація Пенсійному фонду України на пенсійне забезпечення військовослужбовців. осіб начальницького і рядового складу та суддів у відставці"]
[null,"2506050","Покриття дефіциту коштів Пенсійного фонду України для виплати пенсій"]
[null,"2506060","Допомога пенсіонерам на придбання ліків"]
[null,"2506070","Пенсійне забезпечення працівників. зайнятих повний робочий день на підземних роботах. та членів їх сімей"]
[null,"2506080","Фінансове забезпечення виплати пенсій. надбавок та підвищень до пенсій. призначених за пенсійними програмами. та дефіциту коштів Пенсійного фонду"]
[null,"2506090","Відшкодування витрат ПАТ \"Укрпошта\" за надання послуг. пов'язаних з виплатою та доставкою пенсій і грошової допомоги населенню"]
[null,"2507000","Фонд соціального захисту інвалідів"]
[null,"2507020","Фінансова підтримка громадських об_єднань осіб з інвалідністю"]
[null,"2507030","Заходи із соціальної. трудової та професійної реабілітації осіб з інвалідністю"]
[null,"2507040","Забезпечення діяльності Фонду соціального захисту інвалідів"]
[null,"2507050","Фінансова підтримка громадських організацій інвалідів та ветеранів. заходи з відвідування військових поховань і військових пам'ятників та з увічнення Перемоги у Великій Вітчизняній війні 1941 - 1945 років"]
[null,"2507070","Санаторно-курортне лікування ветеранів війни. осіб. на яких поширюється чинність законів України \"Про статус ветеранів війни. гарантії їх соціального захисту\". \"Про жертви нацистських переслідувань\" та інвалідів"]
[null,"2507080","Соціальна. трудова та професійна реабілітація інвалідів. видатки на створення Національного центру параолімпійської і дефлімпійської підготовки та реабілітації інвалідів та Західного реабілітаційно-спортивного центру"]
[null,"2507090","Забезпечення окремих категорій населення України технічними та іншими засобами реабілітації"]
[null,"2507100","Реабілітація дітей з інвалідністю"]
[null,"2508000","Державна служба гірничого нагляду та промислової безпеки України"]
[null,"2508010","Керівництво та управління у сфері гірничого нагляду та промислової безпеки"]
[null,"2510000","Міністерство соціальної політики України (загальнодержавні видатки та кредитування)"]
[null,"2511000","Міністерство соціальної політики України (загальнодержавні видатки та кредитування)"]
[null,"2511040","Субвенція з державного бюджету бюджету м. Києва на капітальний ремонт третього корпусу центру захисту дітей \"Наші діти\""]
[null,"2511050","Видатки для забезпечення доплат до заробітної плати працівникам бюджетної сфери до рівня прожиткового мінімуму для працездатних осіб"]
[null,"2511060","Субвенція з державного бюджету місцевим бюджетам на фінансування ремонту приміщень управлінь праці та соціального захисту виконавчих органів міських (міст республіканського в Автономній Республіці Крим і обласного значення). районних у містах Києві і Сев"]
[null,"2511100","Субвенція з державного бюджету обласному бюджету Луганської області на капітальний ремонт управління соціального захисту населення"]
[null,"2511110","Субвенція з державного бюджету місцевим бюджетам на виплату державної соціальної допомоги на дітей-сиріт та дітей. позбавлених батьківського піклування. грошового забезпечення батькам-вихователям і прийомним батькам за надання соціальних послуг у дитячих"]
[null,"2511130","Субвенція з державного бюджету місцевим бюджетам на надання пільг та житлових субсидій населенню на оплату електроенергії. природного газу. послуг тепло-. водопостачання і водовідведення. квартирної плати (утримання будинків і споруд та прибудинкових тер"]
[null,"2511140","Субвенція з державного бюджету місцевим бюджетам на надання пільг та житлових субсидій населенню на придбання твердого та рідкого пічного побутового палива і скрапленого газу"]
[null,"2511150","Субвенція з державного бюджету місцевим бюджетам на надання пільг з послуг зв'язку. інших передбачених законодавством пільг (крім пільг на одержання ліків. зубопротезування. оплату електроенергії. природного і скрапленого газу на побутові потреби. твердо"]
[null,"2511160","Субвенція з державного бюджету місцевим бюджетам на виплату допомоги сім`ям з дітьми. малозабезпеченим сім`ям. особам. які не мають права на пенсію. особам з інвалідністю. дітям з інвалідністю. тимчасової державної допомоги дітям. тимчасової державної с"]
[null,"2511170","Субвенція з державного бюджету місцевим бюджетам на проведення робіт. пов'язаних зі створенням і забезпеченням функціонування центрів надання адміністративних послуг. у тому числі послуг соціального характеру. в форматі \u0011Прозорий офіс\u0010"]
[null,"2511180","Субвенція з державного бюджету місцевим бюджетам на проектні. будівельно-ремонтні роботи. придбання житла та приміщень для розвитку сімейних та інших форм виховання. наближених до сімейних. та забезпечення житлом дітей-сиріт. дітей. позбавлених батьківсь"]
[null,"2511220","Субвенція з державного бюджету місцевим бюджетам на надання пільг та житлових субсидій населенню на оплату електроенергії. природного газу. послуг тепло-. водопостачання і водовідведення. квартирної плати (утримання будинків і споруд та прибудинкових тер"]
[null,"2700000","Міністерство з питань житлово-комунального господарства України"]
[null,"2701000","Апарат Міністерства з питань житлово-комунального господарства України"]
[null,"2701010","Керівництво та управління у сфері житлово-комунального господарства"]
[null,"2701030","Прикладні наукові та науково-технічні розробки. виконання робіт за державними цільовими програмами і державним замовленням  у сфері розвитку житлово-комунального господарства"]
[null,"2701040","Наукові розробки із нормування та стандартизації у сфері житлової політики"]
[null,"2701070","Реклама та інформування громадськості щодо створення та діяльності об'єднань співвласників багатоквартирних будинків"]
[null,"2701080","Нагородження переможців всеукраїнського конкурсу \"Населений пункт найкращого благоустрою і підтримки громадського порядку\" за 2009 рік"]
[null,"2701100","Розробка схем та проектних рішень масового застосування"]
[null,"2701170","Ліквідація наслідків підтоплення територій в містах і селищах України"]
[null,"2701180","Загальнодержавна програма реформування житлово-комунального господарства в т. ч. на здешевлення кредитів для виконання цієї програми"]
[null,"2701190","Підготовка фахівців для житлово-комунального господарства"]
[null,"2701200","Відшкодування відсоткової ставки по кредитах. спрямованих на реалізацію проектів з енергозбереження в житлово-комунальному господарстві"]
[null,"2701210","Реалізація інвестиційних та інноваційних проектів з енергозбереження в житлово-комунальному господарстві"]
[null,"2701220","Погашення бюджетної кредиторської заборгованості за виконані роботи. що виникла у 2007-2009 роках за бюджетними програмами \"Ремонт і реконструкція теплових мереж та котелень\". \"Загальнодержавна програма реформування і розвитку житлово-комунального господ"]
[null,"2701240","Реалізація інвестиційних (пілотних) проектів у сфері житлово-комунального господарства"]
[null,"2701340","Реконструкція централізованих систем водопостачання і водовідведення з використанням енергоощадного обладнання та технологій"]
[null,"2701850","Будівництво другої нитки Головного міського каналізаційного колектора в м. Києві в рамках підготовки до Євро-2012"]
[null,"2705000","Державна архітектурно-будівельна інспекція"]
[null,"2710000","Міністерство з питань житлово-комунального господарства України (загальнодержавні витрати)"]
[null,"2711000","Міністерство з питань житлово-комунального господарства України (загальнодержавні витрати)"]
[null,"2711020","Субвенція з державного бюджету місцевим бюджетам на придбання вагонів для комунального електротранспорту (тролейбусів і трамваїв)"]
[null,"2711100","Субвенція з державного бюджету місцевим бюджетам на заходи з енергозбереження. у тому числі оснащення інженерних вводів багатоквартирних житлових будинків засобами обліку споживання води і теплової енергії. ремонт і реконструкцію теплових мереж та котеле"]
[null,"2711140","Субвенція з державного бюджету місцевим бюджетам на погашення заборгованості з різниці в тарифах на теплову енергію. послуги з водопостачання та водовідведення. що вироблялися. транспортувалися та постачалися населенню. яка виникла у зв'язку з невідповід"]
[null,"2711150","Субвенція з державного бюджету міському бюджету м. Алчевськ на соціально-економічний розвиток"]
[null,"2711170","Ліквідація наслідків підтоплення територій в містах і селищах України"]
[null,"2750000","Міністерство розвитку громад та територій України"]
[null,"2751000","Апарат Міністерства розвитку громад та територій України"]
[null,"2751010","Керівництво та управління у сфері розвитку громад та територій"]
[null,"2751030","Наукова і науково-технічна діяльність у сфері будівництва. житлової політики. житлово-комунального господарства та регіонального розвитку. дослідження збереження та вивчення видів флори у спеціально створених умовах"]
[null,"2751040","Наукові розробки із нормування та стандартизації у сфері будівництва та житлової політики"]
[null,"2751050","Заходи з реалізації Загальнодержавної цільової програми \"Питна вода України\" та реконструкція та будівництво систем централізованого водовідведення"]
[null,"2751060","Відзначення Державною премією у сфері архітектури та фінансова підтримка творчих спілок"]
[null,"2751070","Функціонування Державної науково-технічної бібліотеки"]
[null,"2751080","Збереження архітектурної спадщини в заповідниках"]
[null,"2751090","Паспортизація. інвентаризація та реставрація пам'яток архітектури"]
[null,"2751100","Розробка схем та проектних рішень масового застосування"]
[null,"2751110","Поповнення статутних капіталів державних банків з метою збільшення ними іпотечного кредитування у першу чергу працівників освіти. культури. охорони здоров'я та інших працівників бюджетної сфери"]
[null,"2751120","Підготовка фахівців для органів місцевого самоврядування"]
[null,"2751130","Реалізація пілотних проектів у сфері житлово-комунального господарства"]
[null,"2751140","Державний насіннєвий контроль у сфері зеленого будівництва та квітникарства"]
[null,"2751150","Збереження і вивчення у спеціально створених умовах різноманітних видів дерев і чагарників"]
[null,"2751160","Забезпечення житлом осіб. які брали безпосередню участь в антитерористичній операції та/або у забезпеченні її проведення і втратили функціональні можливості нижніх кінцівок"]
[null,"2751170","Реконструкція систем водопостачання м. Львова"]
[null,"2751180","Надання господарським товариствам та іншим організаціям. створеним у процесі приватизації (корпоратизації). компенсації за передачу гуртожитків у власність територіальних громад"]
[null,"2751190","Надання державної підтримки для будівництва (придбання) доступного житла"]
[null,"2751200","Надання пільгового довгострокового державного кредиту молодим сім'ям та одиноким молодим громадянам на будівництво (реконструкцію) та придбання житла за рахунок стабілізаційного фонду"]
[null,"2751210","Проведення земельної реформи"]
[null,"2751220","Часткова компенсація витрат за спожиту електроенергію. пов_язаних з перекиданням води у маловодні регіони"]
[null,"2751230","Пошук і впорядкування поховань жертв війни та політичних репресій"]
[null,"2751240","Компенсація різниці в тарифах на теплову енергію вироблену для населення на теплогенеруючих установках (крім теплоелектроцентралей і теплоелектростанцій. які не використовують альтернативні види палива. та атомних електростанцій) з використанням будь-яки"]
[null,"2751250","Загальнодержавні топографо-геодезичні та картографічні роботи. демаркація та делімітація державного кордону"]
[null,"2751260","Державне пільгове кредитування будівництва (придбання) житла для окремих категорій громадян. які відповідно до чинного законодавства мають право на отримання таких кредитів"]
[null,"2751270","Підтримка регіональної політики України"]
[null,"2751280","Державні капітальні вкладення на реалізацію Чорнобильської будівельної програми"]
[null,"2751290","Функціонування Фонду енергоефективності"]
[null,"2751300","Забезпечення житлом інвалідів війни"]
[null,"2751310","Погашення кредиторської заборгованості. зареєстрованої станом на 1 січня 2010 року за програмами реалізації інвестиційних проектів соціально-економічного розвитку регіонів та іншими програмами розвитку регіонів"]
[null,"2751320","Будівництво футбольних полів зі штучним покриттям в регіонах України"]
[null,"2751330","Облаштування багатоквартирних будинків сучасними засобами обліку і регулювання води та теплової енергії"]
[null,"2751340","Пільгове кредитування юридичних осіб. в тому числі ОСББ. для проведення реконструкції. капітальних та поточних ремонтів об'єктів житлово-комунального господарства"]
[null,"2751360","Повернення кредитів. наданих з державного бюджету молодим сім'ям та одиноким молодим громадянам на будівництво (реконструкцію) та придбання житла. і пеня"]
[null,"2751370","Фінансова підтримка Державного фонду сприяння молодіжному житловому будівництву"]
[null,"2751380","Часткова компенсація відсоткової ставки кредитів комерційних банків молодим сім'ям та одиноким молодим громадянам на будівництво (реконструкцію) та придбання житла"]
[null,"2751390","Надання пільгового довгострокового державного кредиту молодим сім'ям та одиноким молодим громадянам на будівництво (реконструкцію) та придбання житла"]
[null,"2751420","Збільшення статутного капіталу Державної спеціалізованої фінансової установи \"Державний фонд сприяння молодіжному житловому будівництву\" з подальшим використанням на реалізацію Державної програми забезпечення молоді житлом"]
[null,"2751430","Державне пільгове кредитування індивідуальних сільських забудовників на будівництво (реконструкцію) та придбання житла"]
[null,"2751440","Повернення кредитів. наданих з державного бюджету індивідуальним сільським забудовникам на будівництво (реконструкцію) та придбання житла"]
[null,"2751450","Реконструкція та будівництво систем централізованого водовідведення"]
[null,"2751460","Капітальний ремонт гуртожитків. що передаються з державної власності у власність територіальних громад"]
[null,"2751470","Здешевлення вартості іпотечних кредитів для забезпечення доступним житлом громадян. які потребують поліпшення житлових умов"]
[null,"2751500","Видатки із Стабілізаційного фонду за напрямом здійснення інвестицій в об'єкти розвитку соціально-культурної сфери"]
[null,"2751520","Реалізація проекту \"Реконструкція споруд очистки стічних каналізаційних вод і будівництво технологічної лінії по обробці та утилізації осадів Бортницької станції аерації\""]
[null,"2751530","Підтримка статутної діяльності Всеукраїнських асоціацій органів місцевого самоврядування"]
[null,"2751540","Повернення кредитів. наданих у 2012 році з державного бюджету України на реалізацію бюджетної програми \"Пільгове кредитування юридичних осіб. в тому числі ОСББ. для проведення реконструкції. капітальних та поточних ремонтів об'єктів житлово-комунального"]
[null,"2751560","Очищення побутово-стічних вод міста Калуш"]
[null,"2751570","Реалізація Загальнодержавної цільової програми \"Питна вода України\""]
[null,"2751580","Реалізація проектів ремонту. реконструкції. будівництва зовнішнього освітлення вулиць із застосуванням енергозберігаючих технологій"]
[null,"2751590","Відновлення (будівництво. капітальний ремонт. реконструкція) інфраструктури у Донецькій та Луганській областях"]
[null,"2751600","Розвиток міської інфраструктури і заходи в секторі централізованого теплопостачання України. розвиток системи водопостачання та водовідведення в м. Миколаєві. реконструкція та розвиток системи комунального водного господарства м. Чернівці"]
[null,"2751610","Впровадження та координація заходів проекту розвитку міської інфраструктури. заходів в секторі централізованого теплопостачання України. надзвичайної кредитної програми для України та програми розвитку муніципальної інфраструктури України"]
[null,"2751620","Розвиток системи водопостачання та водовідведення в м. Миколаєві"]
[null,"2751630","Реалізація надзвичайної  кредитної  програми для відновлення України"]
[null,"2751640","Програма розвитку муніципальної інфраструктури"]
[null,"2751650","Відновлення Сходу України"]
[null,"2751800","Проведення протизсувних заходів. інженерного захисту. протиаварійних та ремонтно-реставраційних робіт на території Києво-Печерської Лаври"]
[null,"2751810","Капітальний ремонт. модернізація та заміна ліфтів у житлових будинках"]
[null,"2751820","Реконструкція та реставрація об'єктів культурної спадщини в містах проведення чемпіонату Євро - 2012"]
[null,"2751830","Реставрація та пристосування Маріїнського палацу в м. Києві"]
[null,"2751850","Реконструкція та будівництво очисних споруд та інших об_єктів з метою захисту акваторії Азово-Чорноморського узбережжя та басейнів річок Дніпро і Сіверський Донець від забруднення"]
[null,"2751880","Будівництво. реконструкція. проведення проектних і ремонтних робіт на пріоритетних об'єктах державного та регіонального значення. які перебувають у незадовільному стані і потребують невідкладного проведення зазначених робіт. та придбання обладнання. а та"]
[null,"2752000","Державна архітектурно-будівельна інспекція України"]
[null,"2752010","Керівництво та управління у сфері архітектурно-будівельного контролю та нагляду"]
[null,"2753000","Державне агентство з питань електронного урядування України"]
[null,"2754000","Державне агентство з енергоефективності та енергозбереження України"]
[null,"2755000","Державна служба України з питань геодезії. картографії та кадастру"]
[null,"2755010","Керівництво та управління у сфері геодезії. картографії та кадастру"]
[null,"2755020","Проведення земельної реформи"]
[null,"2755030","Загальнодержавні топографо-геодезичні та картографічні роботи. демаркація та делімітація державного кордону"]
[null,"2756000","Державне агентство з питань відновлення Донбасу"]
[null,"2756010","Керівництво та управління у сфері відновлення Донбасу"]
[null,"2760000","Міністерство розвитку громад та територій України (загальнодержавні видатки та кредитування)"]
[null,"2761000","Міністерство розвитку громад та територій України (загальнодержавні видатки та кредитування)"]
[null,"2761020","Субвенція з державного бюджету міському бюджету міста Ўвано-Франківська на відзначення 350-річчя міста Ўвано-Франківська"]
[null,"2761030","Субвенція з державного бюджету місцевим бюджетам на реалізацію проектів транскордонного співробітництва"]
[null,"2761040","Субвенція з державного бюджету місцевим бюджетам на реалізацію заходів. спрямованих на розвиток системи охорони здоров'я у сільській місцевості"]
[null,"2761050","Субвенція з державного бюджету місцевим бюджетам на будівництво і придбання житла військовослужбовцям та особам рядового і начальницького складу. звільненим у запас або відставку за станом здоров_я. віком. вислугою років та у зв_язку із скороченням штаті"]
[null,"2761060","Субвенція з державного бюджету бюджету Василівського району на соціально-економічний розвиток смт. Степногірськ"]
[null,"2761070","Державний фонд регіонального розвитку"]
[null,"2761080","Субвенція з державного бюджету міському бюджету м. Львова на відновлення історичної спадщини міста"]
[null,"2761090","Субвенція з державного бюджету місцевим бюджетам на здійснення заходів щодо соціально-економічного розвитку окремих територій"]
[null,"2761100","Субвенція з державного бюджету обласному бюджету Тернопільської області на продовження будівництва житлових будинків у м. Почаєві Кременецького району з метою відселення сторонніх осіб з території Свято-Успенської Почаївської Лаври"]
[null,"2761110","Субвенція з державного бюджету місцевим бюджетам на забезпечення житлом працівників бюджетної сфери. які заключили контракт на 20 років"]
[null,"2761120","Субвенція з державного бюджету міському бюджету міста Дніпродзержинська на проведення протизсувних заходів у Шамишиній балці"]
[null,"2761130","Субвенція з державного бюджету місцевим бюджетам на підтримку розвитку об_єднаних територіальних громад"]
[null,"2761140","Субвенція з державного бюджету обласному бюджету Донецької області  на погашення заборгованості за електричну енергію підприємств водопостачання"]
[null,"2761150","Субвенція з державного бюджету місцевим бюджетам на фінансування Програм-переможців Всеукраїнського конкурсу проектів та програм розвитку місцевого самоврядування"]
[null,"2761160","Субвенція з державного бюджету бюджету Новоград-Волинського району Житомирської області на соціально-економічний розвиток району"]
[null,"2761170","Субвенція з державного бюджету міському бюджету міста Макіївка Донецької області на соціально-економічний розвиток"]
[null,"2761180","Субвенція з державного бюджету обласному бюджету Чернігівської області на газифікацію (будівництво підвідних газопроводів до сільських населених пунктів)"]
[null,"2761190","Субвенція з державного бюджету міському бюджету міста Бердянськ Запорізької області на укріплення Бердянської коси"]
[null,"2761200","Субвенція з державного бюджету міському бюджету міста Жовті Води Дніпропетровської області на соціально-економічний розвиток"]
[null,"2761210","Субвенція з державного бюджету місцевим бюджетам на соціально-економічний розвиток міст районного значення та селищ міського типу - районних центрів"]
[null,"2761220","Субвенція з державного бюджету міському бюджету міста Львова на реалізацію заходів з цілодобового водозабезпечення міста Львова"]
[null,"2761230","Субвенція з державного бюджету міському бюджету міста Канева Черкаської області на завершення у 2009 році ремонтно-реставраційних робіт і створення музейної експозиції на об'єкті Шевченківського національного заповідника в місті Каневі \"Будинок-музей Т.Г"]
[null,"2761240","Субвенція з державного бюджету міському бюджету міста Славутича на виконання заходів із запобігання аваріям та техногенним катастрофам у житлово-комунальному господарстві міста Славутича"]
[null,"2761250","Субвенція з державного бюджету місцевим бюджетам на співфінансування проектів міжрегіонального та прикордонного (транскордонного) співробітництва. що реалізуються в рамках Програм Сусідства та ППС ЄЎСП"]
[null,"2761260","Субвенція з державного бюджету міському бюджету міста Дніпропетровська на соціально-економічний розвиток"]
[null,"2761270","Субвенція з державного бюджету міському бюджету міста Харцизьк Донецької області на соціально-економічний розвиток"]
[null,"2761280","Субвенція з державного бюджету районному бюджету Кілійського району Одеської області на соціально-економічний розвиток Кілійського району"]
[null,"2761290","Субвенція з державного бюджету міському бюджету міста Єнакієве Донецької області на соціально-економічний розвиток"]
[null,"2761300","Субвенція з державного бюджету районному бюджету Шахтарського району Донецької області на соціально-економічний розвиток Шахтарського району"]
[null,"2761310","Субвенція з державного бюджету обласному бюджету Волинської області на введення в експлуатацію блоку \"Б\" Центру радіаційного захисту населення в м. Луцьку"]
[null,"2761320","Субвенція з державного бюджету міському бюджету міста Києва на будівництво дошкільного та загальноосвітнього навчальних закладів у Голосіївському районі"]
[null,"2761360","Субвенція з державного бюджету районному бюджету Сарненського району Рівненської області на проектування й будівництво автомобільної дороги та газифікацію між селами Костянтинівка. Чемерне та Довге"]
[null,"2761370","Субвенція з державного бюджету міському бюджету м. Глухів Сумської області на проведення ремонтно-реставраційних робіт пам'яток культурної спадщини"]
[null,"2761380","Субвенція з державного бюджету місцевим бюджетам на погашення заборгованості з різниці в тарифах на теплову енергію. послуги з водопостачання та водовідведення. що вироблялися. транспортувалися та постачалися населенню. яка виникла у зв'язку з невідповід"]
[null,"2761390","Субвенція з державного бюджету обласному бюджету Одеської області на проведення першочергових робіт з будівництва системи відводу стічних вод від станції біологічної очистки \"Північна\" у місті Одесі на об'єкті \"Глибоководний випуск\""]
[null,"2761400","Субвенція з державного бюджету районному бюджету Баранівського району Житомирської області на соціально-економічний розвиток"]
[null,"2761410","Субвенція з державного бюджету міському бюджету міста Новоград-Волинський Житомирської області на соціально-економічний розвиток"]
[null,"2761420","Субвенція з державного бюджету районному бюджету Новоград-Волинського району Житомирської області на соціально-економічний розвиток"]
[null,"2761430","Субвенція з державного бюджету районному бюджету Червоноармійського району Житомирської області на соціально-економічний розвиток"]
[null,"2761440","Субвенція з державного бюджету районному бюджету Ємільчинського району Житомирської області на соціально-економічний розвиток"]
[null,"2761450","Субвенція з державного бюджету міському бюджету міста Феодосія на будівництво та реконструкцію водогонів Фронтового та Феодосійського водосховищ"]
[null,"2761460","Субвенція з державного бюджету міському бюджету міста Добропілля Донецької області на розроблення техніко-економічного обгрунтування проекту захисту території міста Білозерське. що зазнало небезпечного впливу гірничих виробок діючої шахти \"Білозерська\" т"]
[null,"2761470","Субвенція з державного бюджету міському бюджету міста Горлівка Донецької області на розроблення техніко-економічного об'рунтування проекту захисту території міста Горлівка від впливу гірничих виробок"]
[null,"2761480","Субвенція з державного бюджету міському бюджету міста Донецьк на реконструкцію парку культури та відпочинку ім. Г.Ў. Петровського та палацу культури ім. Г.Ў. Петровського"]
[null,"2761490","Субвенція з державного бюджету обласному бюджету Донецької області на здійснення природоохоронних заходів по оздоровленню басейну річки Сіверський Донець та реконструкцію каналу Сіверський Донець-Донбас"]
[null,"2761500","Субвенція з державного бюджету міському бюджету міста Бровари на будівництво тролейбусної лінії  Бровари - Київ"]
[null,"2761510","Субвенція з державного бюджету міському бюджету міста Судака на відзначення 1800-річчя міста Судака"]
[null,"2761520","Субвенція з державного бюджету місцевим бюджетам на погашення різниці між фактичною вартістю теплової енергії. послуг з централізованого опалення. постачання гарячої води. централізованого водопостачання та водовідведення. постачання холодної води та вод"]
[null,"2761530","Субвенція з державного бюджету місцевим бюджетам на капітальний ремонт систем централізованого водопостачання та водовідведення"]
[null,"2761540","Субвенція з державного бюджету міському бюджету м.Дніпропетровська на будівництво та підтримання в безпечному стані гірничих виробок Дніпропетровського метрополітену"]
[null,"2761550","Субвенція з державного бюджету міському бюджету міста Києва на будівництво під_їзної дороги та зовнішньо-інженерних мереж до інноваційного парку \"Біонік Хілл\""]
[null,"2761560","Субвенція з державного бюджету місцевим бюджетам на відновлення (будівництво. капітальний ремонт. реконструкцію) інфраструктури у Донецькій та Луганській областях"]
[null,"2761590","Субвенція з державного бюджету місцевим бюджетам на будівництво (придбання) житла для сімей загиблих військовослужбовців. які брали безпосередню участь в антитерористичній  операції. а також для інвалідів Ў _ ЎЎ групи з числа військовослужбовців. які бра"]
[null,"2761600","Субвенція з державного бюджету місцевим бюджетам на реалізацію проектів в рамках Надзвичайної кредитної програми для відновлення України"]
[null,"2800000","Міністерство аграрної політики та продовольства України"]
[null,"2801000","Апарат Міністерства аграрної політики та продовольства України"]
[null,"2801010","Загальне керівництво та управління у сфері агропромислового комплексу"]
[null,"2801020","Створення та впровадження комплексної автоматизованої системи Міністерства аграрної політики та продовольства України"]
[null,"2801040","Часткове відшкодування суб'єктам господарювання вартості будівництва та реконструкції тваринницьких ферм і комплексів та підприємств з виробництва комбікормів"]
[null,"2801060","Наукові розробки у сфері стандартизації та сертифікації сільськогосподарської продукції"]
[null,"2801070","Оздоровлення та відпочинок дітей працівників агропромислового комплексу"]
[null,"2801080","Підготовка кадрів для агропромислового комплексу вищими навчальними закладами Ў і ЎЎ рівнів акредитації"]
[null,"2801090","Фінансова підтримка заходів з розвитку скотарства. овочівництва. садівництва. виноградарства та ягідництва"]
[null,"2801100","Підготовка кадрів для агропромислового комплексу вищими навчальними закладами ЎЎЎ і ЎV рівнів акредитації. методичне забезпечення діяльності навчальних закладів"]
[null,"2801110","Методичне забезпечення діяльності аграрних навчальних закладів"]
[null,"2801140","Підвищення кваліфікації кадрів агропромислового комплексу закладами післядипломної освіти"]
[null,"2801150","Державна підтримка сільськогосподарських обслуговуючих кооперативів"]
[null,"2801170","Фінансування заходів по захисту. відтворенню та підвищенню родючості 'рунтів"]
[null,"2801190","Селекція в тваринництві та птахівництві на підприємствах агропромислового комплексу"]
[null,"2801200","Заходи по боротьбі з шкідниками та хворобами сільськогосподарських рослин. запобігання розповсюдженню збудників інфекційних хвороб тварин"]
[null,"2801210","Бюджетна тваринницька дотація та державна підтримка виробництва продукції рослинництва"]
[null,"2801240","Здійснення фінансової підтримки підприємств агропромислового комплексу через механізм здешевлення кредитів та компенсації лізингових платежів"]
[null,"2801260","Заходи з охорони і захисту. раціонального використання лісів. наданих в постійне користування агропромисловим підприємствам"]
[null,"2801280","Фінансова підтримка агропромислових підприємств. що знаходяться в особливо складних кліматичних умовах"]
[null,"2801290","Проведення державних виставкових заходів у сфері агропромислового комплексу"]
[null,"2801300","Реформування та розвиток комунального господарства у сільській місцевості"]
[null,"2801320","Дослідження і експериментальні розробки в системі агропромислового комплексу"]
[null,"2801330","Створення і забезпечення резервного запасу сортового та гібридного насіння"]
[null,"2801340","Запобігання розповсюдженню збудників інфекційних хвороб тварин"]
[null,"2801360","Часткова компенсація вартості електроенергії. використаної для поливу на зрошуваних землях"]
[null,"2801370","Збільшення статутного капіталу НАК \"Украгролізинг\" для закупівлі технічних засобів для агропромислового комплексу з подальшою передачею їх на умовах фінансового лізингу"]
[null,"2801420","Повернення коштів у частині відшкодування вартості сільськогосподарської техніки. переданої суб'єктам господарювання на умовах фінансового лізингу"]
[null,"2801430","Часткова компенсація вартості складної сільськогосподарської техніки вітчизняного виробництва"]
[null,"2801440","Кошти. що надійдуть у рахунок погашення заборгованості за кредитами. залученими державою або під державні гарантії і наданими для закупівлі сільськогосподарської техніки іноземного виробництва. переданої сільськогосподарським товаровиробникам та іншим су"]
[null,"2801450","Підготовка кадрів для агропромислового комплексу вищими навчальними закладами ЎЎЎ і ЎV рівнів акредитації Національного університету біоресурсів і природокористування"]
[null,"2801470","Фінансова підтримка Української лабораторії якості і безпеки продукції агропромислового комплексу"]
[null,"2801480","Створення Державного земельного банку"]
[null,"2801500","Державна підтримка Всеукраїнського фізкультурно-спортивного товариства \"Колос\" на організацію та проведення роботи з розвитку фізичної культури і спорту серед сільського населення"]
[null,"2801510","Державна підтримка розвитку хмелярства"]
[null,"2801520","Фінансова підтримка створення оптових ринків сільськогосподарської продукції"]
[null,"2801530","Повернення коштів. наданих Міністерству аграрної політики та продовольства України для кредитування Аграрного фонду"]
[null,"2801550","Повернення коштів. наданих як часткова фінансова допомога сільськогосподарським підприємствам. які зазнали збитків внаслідок стихійного лиха у 2007 році"]
[null,"2801570","Забезпечення діяльності Аграрного фонду"]
[null,"2801590","Часткове відшкодування вартості будівництва нових тепличних комплексів"]
[null,"2801800","Заходи з ліквідації наслідків затоплення шахти № 9 та аварійного ствола шахти № 8 Солотвинського солерудника Тячівського району Закарпатської області"]
[null,"2801900","Видатки із Стабілізаційного фонду на підтримку АПК"]
[null,"2802000","Державна ветеринарна та фітосанітарна служба України"]
[null,"2802010","Керівництво та управління у сфері ветеринарної медицини та фітосанітарної служби України"]
[null,"2802020","Протиепізоотичні заходи та участь у Міжнародному епізоотичному бюро"]
[null,"2802030","Організація та регулювання діяльності установ ветеринарної медицини та фітосанітарної служби"]
[null,"2802040","Організація і регулювання діяльності установ агропромислового комплексу з карантину рослин"]
[null,"2802050","Організація і регулювання діяльності установ в системі охорони прав на сорти рослин"]
[null,"2802070","Формування національних сортових рослинних ресурсів"]
[null,"2802080","Участь у міжнародному союзі по охороні нових сортів рослин (УПОВ)"]
[null,"2802090","Погашення зобов_язань Державною службою з охорони прав на сорти рослин за кредитами. наданими з державного бюджету за рахунок коштів. залучених від міжнародних фінансових організацій на розвиток насінництва"]
[null,"2802100","Заходи по боротьбі з шкідниками та хворобами сільськогосподарських рослин. запобігання розповсюдженню збудників інфекційних хвороб тварин"]
[null,"2803000","Державна служба України з питань геодезії. картографії та кадастру"]
[null,"2803040","Збереження. відтворення та забезпечення раціонального використання земельних ресурсів"]
[null,"2803050","Повернення кредиту наданого на розвиток системи кадастру"]
[null,"2803600","Видача державних актів на право приватної власності на землю в сільській місцевості"]
[null,"2803610","Надання кредитів на розвиток системи кадастру"]
[null,"2804000","Державне агентство рибного господарства України"]
[null,"2804040","Підготовка кадрів у сфері рибного господарства вищими навчальними закладами Ў і ЎЎ рівнів акредитації"]
[null,"2804050","Підготовка кадрів у сфері рибного господарства вищими навчальними закладами ЎЎЎ і ЎV рівнів акредитації"]
[null,"2804080","Селекція у рибному господарстві"]
[null,"2804100","Заходи по операціях фінансового лізингу суден рибопромислового флоту"]
[null,"2804110","Створення та впровадження комплексної системи електронного документообігу та інформаційно-аналітичних підсистем Державного агентства рибного господарства України"]
[null,"2805000","Державне агентство лісових ресурсів України"]
[null,"2806000","Національна акціонерна компанія \"Украгролізинг\""]
[null,"2806030","Заходи по операціях фінансового лізингу вітчизняної сільськогосподарської техніки"]
[null,"2806120","Заходи по операціях фінансового лізингу вітчизняної сільськогосподарської техніки"]
[null,"2806130","Повернення коштів в частині відшкодування вартості сільськогосподарської техніки. переданої суб'єктам господарювання на умовах фінансового лізингу"]
[null,"2806140","Придбання сільськогосподарської техніки на умовах фінансового лізингу та заходи по операціях фінансового лізингу"]
[null,"2806150","Кошти. що надійдуть в рахунок погашення заборгованості за кредитами. залученими державою або під державні гарантії і наданими для закупівлі сільськогосподарської техніки іноземного виробництва. переданої сільгоспвиробникам та іншим суб'єктам господарюван"]
[null,"2806160","Ремонт сільськогосподарської техніки та обладнання для агропромислового комплексу. що вилучені з фінансового лізингу у лізингоотримувачів. визначених банкрутами або такими. що порушили договір лізингу"]
[null,"2806220","Повернення коштів у частині відшкодування вартості сільськогосподарської техніки. переданої суб'єктам господарювання на умовах фінансового лізингу"]
[null,"2806230","Заходи по операціях фінансового лізингу вітчизняної сільськогосподарської техніки"]
[null,"2806240","Збільшення статутного фонду НАК \"Украгролізинг\" для придбання сільськогосподарської техніки. обладнання та племінної худоби"]
[null,"2806250","Кошти. що надійдуть у рахунок погашення заборгованості за кредитами. залученими державою або під державні гарантії і наданими для закупівлі сільськогосподарської техніки іноземного виробництва. переданої сільгосптоваровиробникам та іншим суб'єктам господ"]
[null,"2807000","Державна інспекція сільського господарства України"]
[null,"2807010","Здійснення державного контролю у галузі сільського господарства"]
[null,"2807020","Організація та регулювання діяльності установ в системі Державної інспекції сільського господарства України"]
[null,"2808000","Національна академія аграрних наук України"]
[null,"2808020","Наукова і організаційна діяльність президії Національної академії аграрних наук України"]
[null,"2808030","Фундаментальні дослідження. прикладні наукові і науково-технічні розробки. виконання робіт за державними цільовими програмами і державним замовленням у сфері агропромислового комплексу. підготовка наукових кадрів. фінансова підтримка технічного забезпече"]
[null,"2808080","Здійснення заходів щодо підтримки науково-дослідних господарств"]
[null,"2808100","Збереження природно-заповідного фонду в біосферному заповіднику \"Асканія-Нова\""]
[null,"2809000","Державна служба України з питань безпечності харчових продуктів та захисту споживачів"]
[null,"2900000","Міністерство цифрової трансформації України"]
[null,"2901000","Апарат Міністерства цифрової трансформації України"]
[null,"2901010","Керівництво та управління у сфері цифрової трансформації"]
[null,"2901030","Електронне урядування"]
[null,"2910000","Міністерство цифрової трансформації України  (загальнодержавні видатки та кредитування)"]
[null,"2911000","Міністерство цифрової трансформації України  (загальнодержавні видатки та кредитування)"]
[null,"2911040","Національна програма інформатизації"]
[null,"3000000","Державна служба статистики України"]
[null,"3001000","Апарат Державної служби статистики України"]
[null,"3100000","Міністерство інфраструктури України"]
[null,"3101000","Апарат Міністерства інфраструктури України"]
[null,"3101010","Загальне керівництво та управління у сфері інфраструктури"]
[null,"3101030","Прикладні наукові та науково-технічні розробки. виконання робіт за державними цільовими програмами і державним замовленням у сфері розвитку національної транспортної мережі та туризму"]
[null,"3101050","Підготовка кадрів для сфери автомобільного транспорту вищими навчальними закладами Ў і ЎЎ рівнів акредитації"]
[null,"3101060","Підготовка кадрів для сфери залізничного транспорту вищими навчальними закладами ЎЎЎ і ЎV рівнів акредитації. методичне забезпечення діяльності навчальних закладів"]
[null,"3101070","Виплати на реалізацію положень Закону України \"Про реструктуризацію заборгованості з виплат. передбачених статтею 57 Закону України \"Про освіту\" педагогічним. науково-педагогічним та іншим категоріям працівників навчальних закладів\""]
[null,"3101090","Підвищення кваліфікації державних службовців п'ятої - сьомої категорій у сфері транспорту"]
[null,"3101120","Придбання літаків АН-148 через державне лізингове підприємство"]
[null,"3101130","Створення навчально-тренувального центру підготовки авіаційного персоналу літака АН-148 на ДП \"Лізингтехтранс\""]
[null,"3101140","Будівництво залізнично-автомобільного мостового переходу через р. Дніпро у м. Києві"]
[null,"3101150","Будівництво та розвиток мережі метрополітенів"]
[null,"3101160","Прикладні розробки у сфері розвитку туризму"]
[null,"3101180","Фінансова підтримка розвитку туризму"]
[null,"3101190","Відшкодування витрат державних підприємств зв'язку на розповсюдження вітчизняних періодичних друкованих видань"]
[null,"3101210","Забезпечення експлуатаційно-безпечного стану судноплавних шлюзів"]
[null,"3101220","Виконання боргових зобов'язань за кредитами. залученими під державні гарантії. що використовуються для реалізації завдань та здійснення заходів. передбачених Державною цільовою програмою підготовки та проведення в Україні фінальної частини чемпіонату Євр"]
[null,"3101230","Здійснення заходів щодо підтримки впровадження транспортної стратегії України"]
[null,"3101240","Фінансове забезпечення заходів із забезпечення безпеки дорожнього руху відповідно до державних програм"]
[null,"3101250","Проектування та будівництво аеропорту \u0011Придніпров_я\u0010 у Дніпропетровській області"]
[null,"3101600","Відновлення транспортної інфраструктури у Східних регіонах України"]
[null,"3101610","Розвиток міського пасажирського транспорту в містах України"]
[null,"3101620","Модернізація української залізниці"]
[null,"3101630","Безпека руху в містах України"]
[null,"3101810","Проектування робіт по будівництву транспортного переходу через Керченську протоку"]
[null,"3102000","Державна інспекція України з безпеки на наземному транспорті"]
[null,"3102010","Здійснення державного контролю з питань безпеки на наземному транспорті"]
[null,"3103000","Державна служба морського та річкового транспорту України"]
[null,"3103010","Керівництво та управління у сферах морського та річкового транспорту"]
[null,"3103070","Реконструкція . модернізація та придбання спеціального флоту для використання на внутрішніх водних шляхах"]
[null,"3103080","Забезпечення функціонування національної системи пошуку і рятування в морському пошуково-рятувальному районі України"]
[null,"3104000","Державна адміністрація залізничного транспорту"]
[null,"3104020","Підготовка кадрів для сфери залізничного транспорту вищими навчальними закладами Ў і ЎЎ рівнів акредитації"]
[null,"3104030","Методичне забезпечення діяльності вищих навчальних закладів Державної адміністрації залізничного транспорту"]
[null,"3104040","Медичне обслуговування працівників та пасажирів залізничного транспорту"]
[null,"3104050","Створення банків крові та її компонентів для лікування працівників залізничного транспорту"]
[null,"3104060","Амбулаторно-поліклінічне обслуговування працівників та пасажирів залізничного транспорту"]
[null,"3105000","Адміністрація Державної спеціальної служби транспорту України"]
[null,"3105010","Забезпечення діяльності Державної спеціальної служби транспорту"]
[null,"3105020","Заходи. пов'язані із переходом на військову службу за контрактом"]
[null,"3105030","Видатки для Державної спеціальної служби транспорту України на реалізацію заходів щодо підвищення обороноздатності і безпеки держави"]
[null,"3106000","Державне агентство автомобільних доріг України"]
[null,"3106060","Спецоб'єкти"]
[null,"3106080","Компенсація витрат УДППЗ \"Укрпошта\". пов'язаних з наданням послуг на пільгових умовах"]
[null,"3107000","Державне агентство інфраструктурних проектів України"]
[null,"3107010","Організаційне забезпечення реалізації інфраструктурних проектів"]
[null,"3107020","Фінансове забезпечення заходів із забезпечення безпеки дорожнього руху відповідно до державних програм"]
[null,"3107030","Проектування та будівництво аеродрому Міжнародного аеропорту \"Дніпропетровськ\""]
[null,"3107050","Будівництво залізнично-автомобільного мостового переходу через р. Дніпро у м. Києві"]
[null,"3107060","Будівництво. реконструкція. ремонт та проектування аеропортів в рамках підготовки до Євро-2012"]
[null,"3107070","Реконструкція стадіону Національного спортивного комплексу \"Олімпійський\""]
[null,"3107080","Будівництво стадіону у м. Львові. необхідного для проведення Євро-2012"]
[null,"3107090","Будівництво. реконструкція. капітальний та поточний ремонт автомобільних доріг загального користування (міжміське сполучення) та доріг. задіяних до підготовки та проведення в Україні фінальної частини чемпіонату Європи 2012 року з футболу"]
[null,"3107100","Будівництво та облаштування функціональних зон на території. прилеглій до стадіону Національного спортивного комплексу \"Олімпійський\""]
[null,"3107110","Будівництво нових та реконструкція діючих тренувальних баз для забезпечення тренувань команд-учасниць чемпіонату Євро-2012"]
[null,"3107120","Будівництво. реконструкція. ремонт автомобільних доріг комунальної власності у містах проведення Євро-2012"]
[null,"3107130","Будівництво. реконструкція. капітальний ремонт мереж і споруд централізованого водопостачання та водовідведення у містах проведення Євро-2012"]
[null,"3107140","Оновлення парку трамвайних вагонів у містах проведення Євро-2012"]
[null,"3107150","Будівництво та реконструкція трамвайних і тролейбусних ліній у містах проведення Євро-2012"]
[null,"3107160","Придбання автобусів та тролейбусів на умовах фінансового лізингу в рамках підготовки і проведення  Євро-2012"]
[null,"3107170","Будівництво та реконструкція об'єктів електроенергетики в містах проведення Євро - 2012"]
[null,"3107180","Заходи. спрямовані на залучення інвестицій для підготовки Євро-2012 та здійснення її моніторингу"]
[null,"3107190","Будівництво. реконструкція та ремонт автомобільних доріг комунальної власності у містах проведення фінальної частини чемпіонату Європи 2012 року з футболу"]
[null,"3107200","Будівництво та забезпечення розвитку метрополітену в містах. в яких відбуватимуться матчі чемпіонату Євро-2012"]
[null,"3107210","Будівництво. реконструкція. капітальний ремонт мереж і споруд централізованого водопостачання і водовідведення у містах. в яких відбуватимуться матчі чемпіонату"]
[null,"3107250","Виконання Державної цільової програми з питань підготовки та проведення в Україні фінальної частини чемпіонату Європи 2012 року з футболу"]
[null,"3107260","Будівництво спортивних споруд з штучним льодом відповідно до Державної цільової соціальної програми \"Хокей України\""]
[null,"3107270","Капітальний ремонт (перша черга). технічне переоснащення інженерних та функціональних систем. поточний ремонт приміщень і територій Палацу спорту в м. Києві"]
[null,"3108000","Державна авіаційна служба України"]
[null,"3108010","Керівництво та управління у сфері авіаційного транспорту"]
[null,"3108020","Медичне обслуговування та сертифікація льотно-диспетчерського складу працівників авіаційного транспорту та надання первинної медичної допомоги пасажирам"]
[null,"3108030","Передпольотний та передзмінний контроль льотно-диспетчерського складу працівників авіаційного транспорту та надання первинної медичної допомоги пасажирам"]
[null,"3108050","Придбання повітряних суден"]
[null,"3108060","Будівництво. реконструкція. ремонт та проектування аеропортів в рамках підготовки до Євро-2012"]
[null,"3108070","Придбання літаків на умовах фінансового лізингу"]
[null,"3108830","Будівництво. реконструкція та ремонт аеропортів державної і комунальної власності"]
[null,"3109000","Державна служба України з безпеки на транспорті"]
[null,"3109010","Здійснення державного контролю з питань безпеки на транспорті"]
[null,"3110000","Державне агентство автомобільних доріг України"]
[null,"3111000","Апарат Державного агентства автомобільних доріг України"]
[null,"3111010","Керівництво та управління у сфері будівництва. ремонту та утримання автомобільних доріг"]
[null,"3111020","Розвиток мережі та утримання автомобільних доріг загального користування державного значення"]
[null,"3111030","Виконання боргових зобов'язань за запозиченнями. залученими державою або під державні гарантії на розвиток мережі автомобільних доріг  загального користування"]
[null,"3111040","Будівництво мостового переходу у м. Запоріжжя"]
[null,"3111090","Розвиток дорожнього господарства областей української частини Карпатського єврорегіону (зокрема доріг Мукачеве _ Львів. Татарів _ Кам_янець-Подільський. Стрий_Мамалига)"]
[null,"3111100","Покращення стану автомобільних доріг загального користування за маршрутом Львів _ Тернопіль _ Умань; Біла Церква _ Одеса _ Миколаїв _ Херсон"]
[null,"3111120","Покращення стану автомобільної дороги загального користування державного значення  М-03 Київ-Харків-Довжанський"]
[null,"3111130","Покращення стану автомобільних доріг загального користування за маршрутом Харків _ Куп'янськ _ Сватове _ Станиця Луганська"]
[null,"3111140","Покращення стану автомобільної дороги Н-31 Дніпро - Царичанка - Кобеляки - Решетилівка"]
[null,"3111150","Покращення стану автомобільної дороги Харків - Охтирка"]
[null,"3111160","Покращення стану автомобільної дороги Житомир - Чернівці"]
[null,"3111170","Покращення стану автомобільної дороги М-15 Одеса-Рені"]
[null,"3111180","Покращення стану автомобільної дороги Р-51 Мерефа _ Лозова _ Павлоград"]
[null,"3111190","Покращення стану автомобільної дороги Н-08 Бориспіль - Дніпро - Запоріжжя (через м. Кременчук) - Маріуполь за маршрутом Запоріжжя - Маріуполь"]
[null,"3111200","Покращення стану автомобільної дороги Н-14 Олександрівка -Кропивницький - Миколаїв за маршрутом Кропивницький - Миколаїв"]
[null,"3111210","Розвиток автомобільних доріг загального користування державного значення за маршрутом Північний об'їзд міста Рівного"]
[null,"3111230","Будівництво автотранспортної магістралі через р. Дніпро у м. Запоріжжі (автомобільна дорога загального користування державного значення Н-08 Бориспіль - Дніпро - Запоріжжя (через м. Кременчук) - Маріуполь \"Під'їзд до о. Хортиця (автотранспортна магістрал"]
[null,"3111240","Будівництво та реконструкція мостів"]
[null,"3111260","Реалізація державного інвестиційного проекту \"Розбудова міжнародної автомобільної дороги загального користування державного значення М-14 Одеса-Мелітополь-Новоазовськ (на м. Таганрог) на ділянці Одеса-Миколаїв-Херсон"]
[null,"3111600","Розвиток автомагістралей та реформа дорожнього сектору"]
[null,"3111610","Розбудова прикордонної дорожньої інфраструктури на українсько-польському кордоні"]
[null,"3111620","Розбудова прикордонної дорожньої інфраструктури на українсько-угорському державному кордоні"]
[null,"3111800","Реалізація державного інвестиційного проекту \"Покращення стану автомобільних доріг загального користування у Львівській області\""]
[null,"3111820","Розвиток автомобільної дороги Р-52 Дніпропетровськ - Царичанка - Кобеляки - Решетилівка"]
[null,"3111830","Реалізація державного інвестиційного проекту \"Приведення стану автомобільних доріг транспортного сполучення Київ-Суми-Харків (в межах Чернігівської та Сумської областей) до сучасних технічних вимог\""]
[null,"3120000","Міністерство інфраструктури України (загальнодержавні витрати)"]
[null,"3121000","Міністерство інфраструктури України (загальнодержавні витрати)"]
[null,"3121020","Субвенція з державного бюджету місцевим бюджетам на  будівництво та розвиток мережі метрополітенів"]
[null,"3121080","Субвенція з державного бюджету місцевим бюджетам на придбання нових трамвайних вагонів вітчизняного виробництва для комунального електротранспорту"]
[null,"3121090","Субвенція з державного бюджету обласному бюджету Одеської області на проведення капітального ремонту Міжнародного аеропорту \"Ўзмаїл\""]
[null,"3121110","Субвенція з державного бюджету обласному бюджету Одеської області на проведення реконструкції та будівництва будівель і споруд комунального підприємства _Аеропорт Ўзмаїл_"]
[null,"3130000","Державне агентство автомобільних доріг України (загальнодержавні видатки та кредитування)"]
[null,"3131000","Державне агентство автомобільних доріг України (загальнодержавні видатки та кредитування)"]
[null,"3131020","Субвенція з державного бюджету місцевим бюджетам на будівництво. реконструкцію. ремонт та утримання вулиць і доріг комунальної власності у населених пунктах"]
[null,"3131070","Субвенція з державного бюджету міському бюджету на покращення стану автомобільних доріг загального користування в м. Кропивницький (включаючи проведення капітального ремонту шляхопроводу через залізницю по пров. Об_їздному)"]
[null,"3131080","Субвенція з державного бюджету обласному бюджету Херсонської області на будівництво шляхопроводу по просп. Адмірала Сенявіна - вул. Залаегерсег у м. Херсоні"]
[null,"3131090","Субвенція з державного бюджету місцевим бюджетам на фінансове забезпечення будівництва. реконструкції. ремонту і утримання автомобільних доріг загального користування місцевого значення. вулиць і доріг комунальної власності у населених пунктах"]
[null,"3131200","Субвенція з державного бюджету обласному бюджету Херсонської області на будівництво шляхопроводу по просп. Адмірала Сенявіна _ вул. Залаегерсег у м. Херсоні"]
[null,"3131230","Субвенція з державного бюджету бюджету міста Києва на ремонт та реконструкцію мосту імені Є.О. Патона"]
[null,"3200000","Міністерство надзвичайних ситуацій України"]
[null,"3201000","Апарат Міністерства надзвичайних ситуацій України"]
[null,"3201010","Керівництво та управління у сфері надзвичайних ситуацій"]
[null,"3201030","Створення оперативного резерву для забезпечення ліквідації надзвичайних ситуацій"]
[null,"3201050","Авіаційні роботи з пошуку і рятування"]
[null,"3201060","Гідрометеорологічна діяльність"]
[null,"3201070","Прикладні наукові та науково-технічні розробки. виконання робіт за державними цільовими програмами і державним замовленням у сфері гідрометеорології. підготовка наукових кадрів"]
[null,"3201090","Проведення розрахунків з міжнародними експертами за надання юридичних послуг"]
[null,"3201130","Ўнформування громадськості з питань цивільного захисту населення"]
[null,"3201270","Розвиток та супроводження Урядової інформаційно-аналітичної системи з питань надзвичайних ситуацій"]
[null,"3201280","Забезпечення діяльності сил цивільного захисту"]
[null,"3201290","Заходи щодо ліквідації наслідків надзвичайної ситуації на території Мелітопольського району Запорізької області"]
[null,"3201300","Медичне забезпечення та санаторно-курортне лікування працівників. військовослужбовців та осіб рядового і начальницького складу Міністерства надзвичайних ситуацій України та членів їх сімей. здійснення санітарних та протиепідемічних заходів"]
[null,"3201310","Експертно-аналітичне супроводження та моніторинг наукових проектів з екологічної безпеки"]
[null,"3201340","Прикладні дослідження і розробки та науково-дослідні роботи у сфері цивільного захисту і пожежної безпеки"]
[null,"3201350","Знешкодження вибухонебезпечних предметів. що залишилися з часів Другої світової війни в районі міст Севастополя та Керчі"]
[null,"3201360","Підготовка кадрів у сфері цивільного захисту"]
[null,"3201390","Створення та впровадження системи екстреної допомоги населенню за єдиним телефонним номером 112"]
[null,"3201430","Матеріально-технічне забезпечення мобільного госпіталю"]
[null,"3201440","Пошук та знешкодження залишків хімічної зброї. затопленої у виключній (морській) економічній зоні України"]
[null,"3201450","Будівництво (придбання) житла для військовослужбовців. осіб рядового і начальницького складу Міністерства України з питань надзвичайних ситуацій та у справах захисту населення від наслідків Чорнобильської катастрофи"]
[null,"3201460","Аварійно-рятувальні заходи на загальнодержавному і регіональному рівнях при надзвичайних ситуаціях"]
[null,"3201470","Реалізація комплексної програми розвитку системи зв'язку. оповіщення та інформатизації Міністерства України з питань надзвичайних ситуацій та у справах захисту населення від наслідків Чорнобильської катастрофи"]
[null,"3201490","Придбання пожежної техніки та обладнання вітчизняного виробництва"]
[null,"3201510","Ліквідація наслідків надзвичайної ситуації на території військової частини А0829 (м. Лозова Харківської області)"]
[null,"3201540","Придбання спеціальної аварійно-рятувальної. пожежної техніки та обладнання. в тому числі авіаційної техніки"]
[null,"3201580","Здійснення заходів із створення сучасних систем надання допомоги у разі виникнення надзвичайних ситуацій для підготовки та проведення Євро - 2012"]
[null,"3202000","Державне агентство України з управління зоною відчуження"]
[null,"3202050","Будівництво пускового комплексу \"Вектор\" та експлуатація його об'єктів"]
[null,"3202100","Здійснення заходів громадськими організаціями по соціальному захисту громадян. які постраждали внаслідок Чорнобильської катастрофи"]
[null,"3202130","Заходи щодо підготовки до зняття з експлуатації атомних блоків та поводження з відпрацьованим ядерним паливом та радіоактивними відходами на Чорнобильській АЕС"]
[null,"3202140","Внесок України до Рахунку ядерної безпеки ЄБРР"]
[null,"3204000","Державна спеціальна (воєнізована) аварійно-рятувальна служба"]
[null,"3208000","Державна служба гірничого нагляду та промислової безпеки України"]
[null,"3208020","Підвищення кваліфікації кадрів у сфері промислової безпеки та наглядової діяльності"]
[null,"3208060","Створення Центру навчання теоретичним та практичним знанням з роботи уніфікованих телекомунікаційних систем диспетчерського контролю та автоматизованого керування гірничими машинами і технологічними комплексами (УТАС)"]
[null,"3209000","Державна інспекція техногенної безпеки України"]
[null,"3209010","Керівництво та управління у сфері техногенної безпеки"]
[null,"3209020","Забезпечення діяльності підрозділів техногенної безпеки"]
[null,"3209030","Прикладні наукові та науково-технічні розробки. виконання робіт за державними цільовими програмами і державним замовленням у сфері цивільного захисту та пожежної безпеки. підготовка наукових кадрів"]
[null,"3210000","Міністерство надзвичайних ситуацій України (загальнодержавні витрати)"]
[null,"3211000","Міністерство надзвичайних ситуацій України (загальнодержавні витрати)"]
[null,"3211060","Субвенція з державного бюджету місцевим бюджетам для проведення заходів по ліквідації наслідків стихійного лиха"]
[null,"3300000","Державна фіскальна служба України"]
[null,"3301000","Апарат Державної фіскальної служби України"]
[null,"3301010","Керівництво та управління у сфері фіскальної політики"]
[null,"3301020","Прикладні дослідження і розробки у сфері доходів і зборів та фінансового права"]
[null,"3301030","Підвищення кваліфікації у сфері фіскальної політики"]
[null,"3301040","Підготовка кадрів у сфері доходів і зборів вищими навчальними закладами Ў і ЎЎ рівнів акредитації"]
[null,"3301050","Підготовка кадрів та підвищення кваліфікації у сфері доходів і зборів вищими навчальними закладами ЎЎЎ і ЎV рівнів акредитації"]
[null,"3400000","Міністерство молоді та спорту України"]
[null,"3401000","Апарат Міністерства молоді та спорту України"]
[null,"3401010","Керівництво та управління у сфері молоді та спорту"]
[null,"3401030","Функціонування Музею спортивної слави"]
[null,"3410000","Міністерство  молоді та спорту України (загальнодержавні видатки та кредитування)"]
[null,"3411000","Міністерство  молоді та спорту України (загальнодержавні видатки та кредитування)"]
[null,"3411020","Субвенція з державного бюджету місцевим бюджетам на часткове  фінансування дитячо-юнацьких спортивних шкіл. які  до 2015 року отримували підтримку з Фонду соціального страхування з тимчасової втрати працездатності"]
[null,"3411160","Субвенція з державного бюджету місцевим бюджетам Донецької області на підготовку спортивних об'єктів. на яких проводитиметься чемпіонат світу з легкої атлетики у 2013 році"]
[null,"3411170","Субвенція з державного бюджету обласному бюджету Луганської області на здійснення капітального ремонту. реконструкції та будівництва споруд Луганського обласного фізкультурно-оздоровчого центру \"Авангард\" в м. Луганську"]
[null,"3411180","Субвенція з державного бюджету місцевим бюджетам на створення нових. будівельно-ремонтні роботи існуючих палаців спорту та завершення розпочатих у попередньому періоді робіт з будівництва/реконструкції палаців спорту"]
[null,"3411190","Субвенція з державного бюджету обласному бюджету Ўвано-Франківської області на будівництво сучасного біатлонного комплексу"]
[null,"3411200","Субвенція з державного бюджету місцевим бюджетам на будівництво мультифункціональних майданчиків для занять ігровими видами спорту"]
[null,"3411210","Субвенція з державного бюджету місцевим бюджетам на будівництво нових. реконструкцію та капітальний ремонт існуючих спортивних п_ятдесятиметрових і двадцятип_ятиметрових басейнів"]
[null,"3500000","Міністерство фінансів України"]
[null,"3501000","Апарат Міністерства фінансів України"]
[null,"3501010","Керівництво та управління у сфері фінансів"]
[null,"3501020","Створення автоматизованої інформаційно-аналітичної системи фінансових і фіскальних органів"]
[null,"3501030","Прикладні наукові розробки у сфері розвитку державних фінансів"]
[null,"3501040","Підготовка кадрів для фінансової системи вищими навчальними закладами Ў і ЎЎ рівнів акредитації"]
[null,"3501050","Підготовка кадрів для фінансової системи вищими навчальними закладами ЎЎЎ і ЎV рівнів акредитації"]
[null,"3501060","Підвищення кваліфікації кадрів фінансової системи"]
[null,"3501070","Функціонування Музею коштовного і декоративного каміння"]
[null,"3501080","Фінансова підтримка журналу \"Фінанси України\""]
[null,"3501090","Підтримка культурно-оздоровчих та соціальних заходів фінансової системи"]
[null,"3501100","Наукове і науково-методичне забезпечення у сфері виробництва і використання дорогоцінного і напівдорогоцінного каміння та забезпечення виробничих та соціально-культурних потреб у дорогоцінних металах і дорогоцінному камінні"]
[null,"3501110","Підготовка наукових кадрів у сфері фінансів"]
[null,"3501120","Прикладні наукові розробки. наукове забезпечення пріоритетних напрямів фінансово-бюджетної політики. підготовка наукових кадрів у сфері фінансів"]
[null,"3501130","Виплати на реалізацію положень Закону України \"Про реструктуризацію заборгованості з виплат. передбачених статтею 57 Закону України \"Про освіту\" педагогічним. науково-педагогічним та іншим категоріям працівників навчальних закладів\""]
[null,"3501140","Внески до міжнародних організацій"]
[null,"3501160","Заходи щодо поступової компенсації громадянам втрат від знецінення грошових заощаджень"]
[null,"3501180","Обслуговування зовнішнього державного боргу"]
[null,"3501190","Оплата послуг юридичних осіб. які залучаються для стягнення простроченої заборгованості перед державою за кредитами. залученими державою або під державні гарантії. та бюджетними позичками. а також банкрутством позичальника"]
[null,"3501200","Науково-методичне забезпечення у сфері виробництва і використання дорогоцінного і напівдорогоцінного каміння"]
[null,"3501220","Підтримка культурно-оздоровчих та соціальних заходів фінансової системи"]
[null,"3501230","Здійснення м. Києвом функцій столиці"]
[null,"3501250","Збільшення статутного капіталу ВАТ \"Державний ощадний банк\""]
[null,"3501260","Збільшення статутного капіталу ВАТ \"Державний експортно-імпортний банк\""]
[null,"3501270","Поповнення статутного капіталу Державної іпотечної установи"]
[null,"3501320","Реалізація інвестиційних проектів соціально-економічного розвитку м. Києва"]
[null,"3501340","Заходи по імплементації Бюджетного та Податкового кодексів"]
[null,"3501380","Збільшення статутного капіталу Державної іпотечної установи"]
[null,"3501400","Поповнення Фонду гарантування вкладів фізичних осіб"]
[null,"3501410","Підтримка реалізації Ўніціативи з енергетичної ефективності і навколишнього середовища у Східній Європі"]
[null,"3501420","Заходи щодо організації функціонування на Поліграфкомбінаті \"Україна\" обладнання з персоніфікації бланків паспорта громадянина України для виїзду за кордон"]
[null,"3501430","Створення єдиної інформаційно-аналітичної системи обліку та управління коштами соціальної сфери та пенсійного забезпечення і запровадження електронної соціальної картки"]
[null,"3501440","Оплата послуг радника та проведення заходів. пов'язаних з продажем пакетів акцій банків. що належать державі у статутному капіталі банків. у капіталізації яких взяла участь держава"]
[null,"3501450","Проведення в Україні зборів групи країн-членів МВФ та Світового банку"]
[null,"3501460","Фінансування послуг з технічного обслуговування кредитної лінії"]
[null,"3501470","Сплата послуг з розрахунково-касового обслуговування в рамках реалізації окремих міжнародних договорів України"]
[null,"3501480","Побудова та функціонування інформаційно-аналітичної платформи верифікації та інші заходи. пов_язані з її впровадженням"]
[null,"3501490","Забезпечення функціонування офісу із залучення та підтримки інвестицій"]
[null,"3501500","Забезпечення функціонування Фонду розвитку інновацій"]
[null,"3501510","Заходи з провадження підготовчої діяльності для забезпечення виконання функцій оператора газотранспортної системи"]
[null,"3501520","Підготовка кадрів у сфері фінансової політики закладами вищої освіти"]
[null,"3501530","Наукова і науково-технічна діяльність у сфері фінансової політики"]
[null,"3501610","Заходи щодо розвитку фінансового сектора та управління Проектом"]
[null,"3501620","Підвищення ефективності передачі електроенергії (модернізація підстанцій)"]
[null,"3501630","Реконструкція трансформаторних підстанцій східної частини України"]
[null,"3501640","Підвищення надійності постачання електроенергії в Україні"]
[null,"3501650","Надання кредитів в рамках Проекту \"Розширення доступу до ринків фінансових послуг\""]
[null,"3501660","Модернізація державних фінансів"]
[null,"3501670","Будівництво повітряної лінії 750 кВ Запорізька - Каховська"]
[null,"3501680","Прискорення інвестицій у сільське господарство України"]
[null,"3501690","Будівництво ПЛ 750 кВ Рівненська АЕС - Київська"]
[null,"3502000","Бюро фінансових розслідувань"]
[null,"3502010","Керівництво та управління у сфері фінансових розслідувань"]
[null,"3503000","Державна фіскальна служба України"]
[null,"3503010","Заходи з реорганізації Державної фіскальної служби"]
[null,"3503020","Наукове забезпечення у сфері пробірного контролю"]
[null,"3504000","Державна казначейська служба України"]
[null,"3504010","Керівництво та управління у сфері казначейського обслуговування"]
[null,"3504020","Підвищення кваліфікації працівників органів Державної казначейської служби України"]
[null,"3504030","Відшкодування шкоди. завданої громадянинові незаконними діями органів дізнання. досудового слідства. прокуратури і суду. відшкодування громадянинові вартості конфіскованого та безхазяйного майна стягнутого в дохід держави. відшкодування шкоди. завданої ф"]
[null,"3504040","Заходи щодо виконання рішень суду. що гарантовані державою"]
[null,"3504800","Забезпечення органів Державної казначейської служби України приміщеннями"]
[null,"3505000","Офіс фінансового контролю"]
[null,"3505010","Керівництво та управління у сфері фінансового контролю"]
[null,"3505020","Підвищення кваліфікації працівників Державної фінансової інспекції України"]
[null,"3505040","Проведення міжнародного аудиту державних банків. ефективності використання державних коштів. отриманих під час капіталізації державою банків. перевірка фінансово-господарської діяльності Фонду соціального страхування з тимчасової втрати працездатності. Ф"]
[null,"3505700","Поховання Голови Головного контрольно-ревізійного управління Сивульського М.Ў."]
[null,"3506000","Державна митна служба України"]
[null,"3506010","Керівництво та управління у сфері митної політики"]
[null,"3506020","Розбудова та модернізація об'єктів митної системи"]
[null,"3506030","Прикладні дослідження і розробки у сфері митної служби"]
[null,"3506040","Підвищення кваліфікації працівників органів державної митної служби"]
[null,"3506050","Прикладні дослідження і розробки у сфері митної служби"]
[null,"3506060","Облаштування пунктів пропуску через державний кордон. пов'язане з підготовкою  до Євро-2012"]
[null,"3506070","Впровадження системи захисту транзитних переміщень"]
[null,"3506080","Створення багатофункціональної комплексної системи \"Електронна митниця\""]
[null,"3506090","Реалізація заходів. передбачених Угодою про фінансування програми \"Підтримка секторальної політики управління кордоном в Україні\""]
[null,"3506610","Реалізація проекту з розбудови прикордонної дорожньої інфраструктури та облаштування пунктів пропуску"]
[null,"3507000","Державна податкова служба України"]
[null,"3507010","Керівництво та управління у сфері податкової політики"]
[null,"3507020","Наукова і науково-технічна діяльність у сфері податкової політики"]
[null,"3507030","Підвищення кваліфікації у сфері фіскальної політики"]
[null,"3507040","Підготовка кадрів та підвищення кваліфікації Національним університетом державної податкової служби"]
[null,"3507080","Створення та підготовка об'єктів інфраструктури Національного університету державної податкової служби до проведення Євро-2012"]
[null,"3507600","Модернізація податкової служби"]
[null,"3508000","Агентство з управління державним боргом"]
[null,"3508010","Керівництво та управління у сфері реалізації політики з питань управління державним боргом"]
[null,"3509000","Державна служба фінансового моніторингу України"]
[null,"3509010","Керівництво та управління у сфері фінансового моніторингу"]
[null,"3509020","Перепідготовка та підвищення кваліфікації у сфері боротьби з легалізацією (відмиванням) доходів. одержаних злочинним шляхом. і фінансуванням тероризму"]
[null,"3509800","Здійснення капітального ремонту будинку по вул.Білоруській.24"]
[null,"3510000","Міністерство фінансів України (загальнодержавні видатки та кредитування)"]
[null,"3511000","Міністерство фінансів України (загальнодержавні видатки та кредитування)"]
[null,"3511020","Субвенція з державного бюджету міському бюджету міста Донецька на  погашення частини кредиту.  залученого  на оновлення парку автобусів та тролейбусів приймаючих міст по підготовці до проведення в Україні фінальної частини чемпіонату Європи 2012 року з ф"]
[null,"3511030","Резервний фонд"]
[null,"3511050","Базова дотація"]
[null,"3511060","Додаткові дотації з державного бюджету місцевим бюджетам"]
[null,"3511070","Субвенція з державного бюджету місцевим бюджетам на придбання медичного автотранспорту. обладнання для закладів охорони здоров'я"]
[null,"3511080","Субвенція з державного бюджету районному бюджету Чернігівського району Чернігівської області на будівництво Седнівського навчально-виховного комплексу"]
[null,"3511090","Державні капітальні видатки. що розподіляються Кабінетом Міністрів України"]
[null,"3511100","Субвенція з державного бюджету місцевим бюджетам на збереження середньої заробітної плати на період працевлаштування посадових осіб місцевого самоврядування з числа депутатів відповідних рад. що потребують працевлаштування в зв'язку із закінченням строку"]
[null,"3511110","Стабілізаційна дотація"]
[null,"3511120","Субвенція з державного бюджету місцевим бюджетам на здійснення заходів щодо соціально-економічного розвитку окремих територій"]
[null,"3511130","Внески до міжнародних організацій"]
[null,"3511140","Субвенція з державного бюджету районному бюджету Шацького району Волинської області на будівництво та капітальний ремонт доріг Шацьк - Світязь - Залісся - Пульмо - Шацьк"]
[null,"3511150","Субвенція з державного бюджету місцевим бюджетам на надання пільг та житлових субсидій населенню на оплату електроенергії. природного газу. послуг тепло-. водопостачання і водовідведення. квартирної плати (утримання будинків і споруд та прибудинкових тер"]
[null,"3511160","Внески до міжнародних організацій"]
[null,"3511170","Субвенція з державного бюджету обласному бюджету Одеської області на придбання медичного обладнання для Одеської обласної дитячої клінічної лікарні"]
[null,"3511180","Субвенція з державного бюджету бюджету Автономної Республіки Крим на соціально-економічний розвиток Автономної Республіки Крим"]
[null,"3511190","Субвенція з державного бюджету місцевим бюджетам на соціально-економічний розвиток"]
[null,"3511200","Субвенція з державного бюджету міському бюджету міста Києва на виконання функцій столиці"]
[null,"3511210","Субвенція з державного бюджету місцевим бюджетам на здійснення заходів щодо соціально-економічного розвитку окремих територій"]
[null,"3511220","Видатки на реалізацію заходів щодо підвищення обороноздатності і безпеки держави. а також на відновлення об'єктів Донецької та Луганської областей. що розподіляються Кабінетом Міністрів України"]
[null,"3511230","Субвенція з державного бюджету місцевим бюджетам на надання пільг та житлових субсидій населенню на придбання твердого та рідкого пічного побутового палива і скрапленого газу"]
[null,"3511240","Субвенція з державного бюджету місцевим бюджетам на реалізацію пріоритетів розвитку регіонів"]
[null,"3511250","Субвенція з державного бюджету місцевим бюджетам на надання пільг з послуг зв'язку. інших передбачених законодавством пільг (крім пільг на одержання ліків. зубопротезування. оплату електроенергії. природного і скрапленого газу на побутові потреби. твердо"]
[null,"3511260","Додаткова дотація з державного бюджету місцевим бюджетам на забезпечення пальним станцій (відділень) екстреної. швидкої та невідкладної медичної допомоги"]
[null,"3511270","Пайова участь у будівництві та придбання житла для осіб. які займають посади в державних органах та забезпечують виконання завдань і функцій держави"]
[null,"3511280","Здійснення природоохоронних заходів з недопущення потрапляння мастила з гідротурбін в річку Дніпро"]
[null,"3511290","Субвенція з державного бюджету міському бюджету міста Запоріжжя на будівництво автотранспортної магістралі через річку Дніпро у місті Запоріжжі"]
[null,"3511300","Створення. закупівля. ремонт і модернізація озброєння. військової та спеціальної техніки за державним оборонним замовленням у національних виробників для забезпечення оборони. громадського порядку. цивільного захисту та пожежної безпеки"]
[null,"3511310","Субвенція з державного бюджету міському бюджету міста Умань Черкаської області на відселення мешканців будинків. які розташовані в частині дендропарку \"Софіївка\". що підлягає реконструкції"]
[null,"3511320","Субвенція з державного бюджету на обслуговування боргу за запозиченнями. здійсненими у 2012 році до загального фонду бюджету міста Києва"]
[null,"3511330","Субвенція з державного бюджету міському бюджету міста Києва на облаштування та реконструкцію інженерних мереж та будівництво сучасного дошкільного та шкільного закладу у Голосіївському районі міста Києва"]
[null,"3511340","Субвенція з державного бюджету місцевим бюджетам на виплату допомоги сім`ям з дітьми. малозабезпеченим сім`ям. особам. які не мають права на пенсію. особам з інвалідністю. дітям з інвалідністю. тимчасової державної допомоги дітям. тимчасової державної со"]
[null,"3511350","Обслуговування державного боргу"]
[null,"3511360","Субвенція з державного бюджету районному бюджету Городенківського району Ўвано-Франківської області на проведення ремонту та реконструкції приміщень клубу в с. Тишківці"]
[null,"3511370","Субвенція з державного бюджету міському бюджету міста Жовтих Вод на виконання заходів щодо радіаційного та соціального захисту населення міста Жовтих Вод"]
[null,"3511380","Стабілізаційний фонд"]
[null,"3511390","Субвенція з державного бюджету міському бюджету міста Києва на забезпечення функціонування Центру ядерної медицини з використанням ПЕТ - технологій Київської міської онкологічної лікарні"]
[null,"3511400","Субвенція з державного бюджету обласному бюджету Донецької області на будівництво сучасної регіональної лікарні швидкої медичної допомоги в м.Донецьку"]
[null,"3511410","Субвенція з державного бюджету міському бюджету міста Бердянська Запорізької області на соціально-економічний розвиток"]
[null,"3511420","Субвенція з державного бюджету бюджету міста Дніпропетровська на продовження будівництва автомобільної дороги в м. Дніпропетровськ на ділянці від вул. Кайдацький шлях до автомобільної дороги Київ-Луганськ-Ўзварине"]
[null,"3511430","Повернення позик. наданих за рахунок коштів Стабілізаційного фонду"]
[null,"3511440","Субвенція з державного бюджету місцевим бюджетам на відшкодування частини відсоткових ставок по залучених кредитах на оновлення парку автобусів та тролейбусів приймаючих міст по підготовці до проведення в Україні фінальної частини чемпіонату Європи 2012"]
[null,"3511450","Державний фонд регіонального розвитку"]
[null,"3511460","Державний фонд регіонального розвитку"]
[null,"3511470","Субвенція з державного бюджету місцевим бюджетам на компенсацію втрат доходів місцевих бюджетів внаслідок наданих державою податкових пільг суб'єктам космічної діяльності зі сплати земельного податку"]
[null,"3511480","Субвенція з державного бюджету міському бюджету міста Калуша на соціально-економічний розвиток"]
[null,"3511490","Субвенція з державного бюджету обласному бюджету Київської області на соціально-економічний розвиток. у тому числі для міст Бучі. Ўрпіня та Києво-Святошинського району"]
[null,"3511500","Субвенція з державного бюджету бюджету Київської міської державної адміністрації для здійснення заходів з деодорації на спорудах Бортницької станції аерації"]
[null,"3511510","Додаткова дотація з державного бюджету місцевим бюджетам на забезпечення видатків на оплату праці працівників бюджетних установ у зв'язку із наближенням запровадження Єдиної тарифної сітки розрядів і коефіцієнтів в повному обсязі"]
[null,"3511520","Повернення коштів. наданих зі Стабілізаційного фонду на поворотній основі"]
[null,"3511530","Повернення коштів. наданих за рахунок коштів Державного бюджету України підприємствам машинобудування для здійснення заходів. пов'язаних із збільшенням обсягів виробництва та розвитком ринку техніки для агропромислового комплексу"]
[null,"3511540","Повернення коштів. наданих для здійснення операцій з фінансового лізингу авіаційної техніки"]
[null,"3511550","Повернення безвідсоткових бюджетних позичок. наданих підприємствам державної форми власності на погашення заборгованості із заробітної плати"]
[null,"3511560","Повернення безвідсоткових бюджетних позик. наданих у 2004 році підприємствам державної форми власності паливно-енергетичного комплексу та у 2005 році підприємствам та організаціям вугільної промисловості на погашення заборгованості із заробітної плати пр"]
[null,"3511570","Повернення кредиту. наданого на реконструкцію гідроелектростанцій за рахунок коштів гранту Уряду Швейцарської конфедерації"]
[null,"3511580","Обслуговування та погашення боргових зобов_язань за кредитами. залученими під державні гарантії. що використовуються для реалізації завдань і заходів державного фонду регіонального розвитку"]
[null,"3511590","Обслуговування та погашення зобов_язань за залученими коштами під державні гарантії для здійснення капітальних видатків розпорядниками бюджетних коштів"]
[null,"3511600","Виконання державою гарантійних зобов'язань за позичальників. що отримали кредити під державні гарантії"]
[null,"3511610","Подовження третьої лінії метрополітену у м. Харкові"]
[null,"3511620","Фінансування проектів розвитку за рахунок коштів. залучених державою"]
[null,"3511630","Повернення позик. наданих для фінансування проектів розвитку за рахунок коштів. залучених державою"]
[null,"3511640","Субвенція з державного бюджету міському бюджету міста Харкова на подовження третьої лінії метрополітену у м. Харкові"]
[null,"3511650","Прискорення інвестицій у сільське господарство України"]
[null,"3511660","Повернення бюджетних коштів. наданих на поворотній основі на виконання окремих заходів"]
[null,"3511670","Cубвенція з державного бюджету міському бюджету міста Дніпра на завершення будівництва метрополітену у м. Дніпрі"]
[null,"3511680","Фінансування спільних з Європейським інвестиційним банком проектів"]
[null,"3511690","Відновлення Сходу України"]
[null,"3511800","Субвенція з державного бюджету міському бюджету міста Дніпропетровськ на співфінансування проекту \"Завершення будівництва метрополітену у м.Дніпропетровськ\""]
[null,"3511990","Нерозподілений резерв"]
[null,"3600000","Міністерство юстиції України"]
[null,"3601000","Апарат Міністерства юстиції України"]
[null,"3601010","Керівництво та управління у сфері юстиції"]
[null,"3601020","Виконання покарань установами і органами Державної кримінально-виконавчої служби України"]
[null,"3601030","Забезпечення діяльності органів пробації"]
[null,"3601060","Підготовка робітничих кадрів у професійно-технічних закладах соціальної адаптації при установах виконання покарань"]
[null,"3601070","Проведення судової експертизи і розробка методики проведення судових експертиз"]
[null,"3601080","Прикладні розробки у сфері методики проведення судових експертиз"]
[null,"3601090","Підвищення кваліфікації працівників органів юстиції"]
[null,"3601150","Забезпечення захисту прав та інтересів України під час урегулювання спорів. розгляду у закордонних юрисдикційних органах справ за участю іноземного суб_єкта та України. а також забезпечення представництва України в Європейському суді з прав людини"]
[null,"3601170","Платежі на виконання рішень закордонних юрисдикційних органів. прийнятих за наслідками розгляду справ проти України"]
[null,"3601180","Будівництво (придбання) житла для осіб рядового і начальницького складу Державної кримінально-виконавчої служби України"]
[null,"3601200","Державна підтримка органів реєстрації речових прав на нерухоме майно та їх обмеження"]
[null,"3601210","Заходи з підготовки та проведення ХХЎЎЎ Конгресу Всесвітньої асоціації юристів"]
[null,"3601250","Реалізація державного інвестиційного проекту \"Завершення будівництва режимного корпусу для засуджених до довічного позбавлення волі у державній установі \"Вільнянська установа виконання покарань (№ 11)\". у Запорізькій області\""]
[null,"3601260","Реалізація державного інвестиційного проекту \"Завершення будівництва системи водопостачання у державній установі \"Коломийська виправна колонія (№ 41)\". в Ўвано-Франківській обл.\""]
[null,"3601600","Створення державного реєстру виконавчих проваджень"]
[null,"3601710","Забезпечення захисту прав та інтересів Міністерства транспорту та зв'язку і Державної служби автомобільних доріг під час розгляду спору в Міжнародному арбітражному суді Міжнародної торгової палати"]
[null,"3601800","Оновлення копіювальної та комп'ютерної техніки. погашення кредиторської заборгованості за проведені роботи з капітального ремонту адміністративних приміщень органів юстиції"]
[null,"3601810","Реалізація державного інвестиційного проекту \"Завершення реконструкції режимного корпусу для тримання засуджених до довічного позбавлення волі у Полтавській установі виконання покарань № 23\""]
[null,"3601820","Створення слідчого ізолятора в Київській області"]
[null,"3601830","Реалізація державного інвестиційного проекту \"Завершення будівництва лікувального корпусу в Голопристанській виправній колонії № 7 у Херсонській області\""]
[null,"3602000","Державна реєстраційна служба України"]
[null,"3602010","Керівництво та управління у сфері державної реєстрації"]
[null,"3603000","Координаційний центр з надання правової допомоги"]
[null,"3603020","Забезпечення формування та функціонування системи безоплатної правової допомоги"]
[null,"3603030","Оплата послуг та відшкодування витрат адвокатів з надання безоплатної вторинної правової допомоги"]
[null,"3604000","Державна виконавча служба України"]
[null,"3604010","Керівництво та управління у сфері державної виконавчої служби"]
[null,"3606000","Державна пенітенціарна служба України"]
[null,"3606010","Керівництво та управління у пенітенціарній сфері"]
[null,"3606020","Виконання покарань установами і органами пенітенціарної служби"]
[null,"3606030","Виконання покарань та утримання персоналу установ і органів пенітенціарної служби"]
[null,"3606040","Фінансова підтримка санаторно-курортних закладів Державного департаменту України з питань виконання покарань"]
[null,"3606060","Утримання спецконтингенту. хворого на туберкульоз. в установах кримінально-виконавчої служби"]
[null,"3606070","Заходи щодо покращення умов тримання засуджених та осіб. взятих під варту"]
[null,"3606080","Будівництво (придбання) житла для осіб рядового і начальницького складу Державної кримінально-виконавчої служби України"]
[null,"3606090","Підготовка робітничих кадрів у професійно-технічних закладах соціальної адаптації при установах виконання покарань"]
[null,"3606100","Виплати на реалізацію положень Закону України \"Про реструктуризацію заборгованості з виплат. передбачених статтею 57 Закону України \"Про освіту\" педагогічним. науково-педагогічним та іншим категоріям працівників навчальних закладів\""]
[null,"3606600","Заходи з подолання епідемії туберкульозу та СНЎДу в установах кримінально-виконавчої системи"]
[null,"3607000","Національна академія правових наук України"]
[null,"3607020","Наукова і організаційна діяльність президії Національної академії правових наук України"]
[null,"3607030","Фундаментальні дослідження. прикладні наукові і науково-технічні розробки. виконання робіт за державними цільовими програмами і державним замовленням у сфері законодавства і права. підготовка наукових кадрів. фінансова підтримка розвитку наукової інфраст"]
[null,"3608000","Державна служба України з питань захисту персональних даних"]
[null,"3608010","Керівництво та управління у сфері захисту персональних даних"]
[null,"3609000","Державна архівна служба України"]
[null,"3609010","Керівництво та управління у сфері архівної справи"]
[null,"3609020","Наукова і науково-технічна діяльність у сфері архівної справи та страхового фонду документації"]
[null,"3609030","Забезпечення діяльності архівних установ та установ страхового фонду документації"]
[null,"3609040","Підвищення кваліфікації фахівців архівної справи"]
[null,"3609050","Забезпечення охорони приміщень державних архівів"]
[null,"3609060","Створення і зберігання страхового фонду документації"]
[null,"3609800","Розробка проектно-кошторисної документації на реконструкцію комплексу споруд центральних державних архівів у м.Києві"]
[null,"3609810","Реконструкція комплексу споруд центральних державних архівних установ"]
[null,"3800000","Міністерство культури. молоді та спорту України"]
[null,"3801000","Апарат Міністерства культури. молоді та спорту України"]
[null,"3801010","Керівництво та управління у сфері культури. молоді та спорту"]
[null,"3801020","Виробництво та трансляція телерадіопрограм для державних потреб. збирання. обробка та розповсюдження офіційної інформаційної продукції. фінансова підтримка системи державного іномовлення України"]
[null,"3801030","Здійснення заходів у сфері захисту національного інформаційного простору"]
[null,"3801040","Прикладні розробки у сфері розвитку культури"]
[null,"3801050","Надання освіти закладами загальної середньої та позашкільної освіти державної форми власності. методичне забезпечення діяльності закладів освіти"]
[null,"3801060","Наукова і науково-технічна діяльність у сфері розвитку молоді та спорту"]
[null,"3801070","Підвищення кваліфікації. перепідготовка кадрів та підготовка науково-педагогічних кадрів у сфері культури і мистецтва. підготовка кадрів акторської майстерності для національних мистецьких та творчих колективів"]
[null,"3801100","Здійснення культурно-мистецьких заходів національними творчими спілками та Всеукраїнським товариством \"Просвіта\""]
[null,"3801110","Фінансова підтримка національних театрів"]
[null,"3801120","Фінансова підтримка національних художніх колективів. концертних організацій та їх дирекції. національних і державних циркових організацій"]
[null,"3801130","Державна підтримка діячів культури і мистецтва"]
[null,"3801140","Забезпечення функціонування Українського культурного фонду. у тому числі здійснення Фондом заходів з підтримки проектів"]
[null,"3801160","Підготовка кадрів для сфери культури і мистецтва закладами фахової передвищої та вищої освіти"]
[null,"3801170","Загальнодержавні заходи у сферах культури та мистецтв. охорони культурної спадщини. вивезення. ввезення і повернення культурних цінностей. державної мовної політики. міжнаціональних відносин. релігії та захисту прав національних меншин"]
[null,"3801180","Виробництво (створення) та розповсюдження фільмів патріотичного спрямування"]
[null,"3801190","Забезпечення діяльності національних музеїв. національних і державних бібліотек та культурно-просвітницьких центрів"]
[null,"3801200","Методичне забезпечення у сфері спорту"]
[null,"3801210","Здійснення заходів державної політики з питань залучення молоді до суспільного життя"]
[null,"3801220","Розвиток спорту серед осіб з інвалідністю та їх фізкультурно-спортивна реабілітація"]
[null,"3801230","Підготовка і участь національних збірних команд в Паралімпійських  і Дефлімпійських іграх"]
[null,"3801240","Розвиток фізичної культури. спорту вищих досягнень та резервного спорту"]
[null,"3801250","Фінансова підтримка громадських організацій фізкультурно-спортивного спрямування"]
[null,"3801260","Підготовка і участь національних збірних команд України в міжнародних змаганнях. що проводять Міжнародний. Європейський олімпійські комітети. включаючи Олімпійські ігри. та Всесвітніх іграх"]
[null,"3801270","Реалізація державного інвестиційного проекту \"Будівництво Льодової арени\""]
[null,"3801280","Будівництво об_єктів загальнодержавного значення у сфері культури"]
[null,"3801290","Реалізація державного інвестиційного проекту \"Реконструкція легкоатлетичного ядра державного підприємства \"Спортивний комплекс \"Атлет\". за адресою м. Київ. пров. Лабораторний. 7а\""]
[null,"3801300","Зшивання країни - проєкт мобільності молоді"]
[null,"3801310","Розкриття туристичного потенціалу України"]
[null,"3801480","Надання фінансової підтримки державному підприємству \"Кримський дім\""]
[null,"3801490","Збереження історико-культурної та архітектурної спадщини в національних і державних заповідниках"]
[null,"3801560","Забезпечення діяльності Українського інституту книги. підтримка книговидавничої справи та популяризація української літератури у світі"]
[null,"3801820","Реалізація державного інвестиційного проекту \"Комплексна реставрація і пристосування ансамблю Жовківського замку Державного історико-архітектурного заповідника у м. Жовкві\""]
[null,"3801830","Реалізація державного інвестиційного проекту \"Реставрація з переплануванням горищних приміщень в буд. № 5 на вул. Нижанківського під навчальні приміщення Львівської національної музичної академії ім. М. В. Лисенка в межах об'єму існуючого горища. без змі"]
[null,"3801880","Реалізація державного інвестиційного проекту \"Удосконалення термоізоляційних властивостей будівлі Державного підприємства \"Харківський національний академічний театр опери та балету ім. М. В. Лисенка\" систем теплопостачання. кондиціювання і вентиляції\""]
[null,"3802000","Державний комітет телебачення і радіомовлення України"]
[null,"3802010","Керівництво та управління у сфері телебачення і радіомовлення"]
[null,"3802020","Наукова і науково-технічна діяльність у сфері засобів масової інформації. книговидавничої справи та інформаційно-бібліографічної діяльності"]
[null,"3802040","Підвищення кваліфікації працівників засобів масової інформації в Укртелерадіопресінституті"]
[null,"3802050","Фінансова підтримка творчих спілок у сфері засобів масової інформації. преси"]
[null,"3802080","Фінансова підтримка Національної суспільної телерадіокомпанії України"]
[null,"3802130","Державні стипендії видатним діячам інформаційної галузі. дітям журналістів. які загинули (померли) або яким встановлено інвалідність у зв_язку з виконанням професійних обов_язків та премій в інформаційній галузі"]
[null,"3802390","Здійснення заходів з питань європейської та євроатлантичної інтеграції в інформаційній сфері"]
[null,"3803000","Державна служба України з етнополітики та свободи совісті"]
[null,"3803010","Керівництво та управління у сфері етнополітики та свободи совісті"]
[null,"3806000","Державне агентство України з питань кіно"]
[null,"3806010","Керівництво та управління у сфері кінематографії"]
[null,"3806030","Державна підтримка кінематографії"]
[null,"3806060","Гранти Президента України молодим діячам мистецтва для створення і реалізації творчих проектів в сфері кінематографії та премії за видатні досягнення у галузі кінематографії"]
[null,"3809000","Український інститут національної пам'яті"]
[null,"3809010","Керівництво та управління у сфері відновлення та збереження національної пам_яті"]
[null,"3809020","Заходи з реалізації державної політики у сфері відновлення та збереження національної пам_яті. забезпечення діяльності Національного меморіального комплексу Героїв Небесної Сотні - Музею Революції гідності та Галузевого державного архіву Українського інс"]
[null,"3810000","Міністерство культури. молоді та спорту України (загальнодержавні видатки та кредитування)"]
[null,"3811000","Міністерство культури. молоді та спорту України (загальнодержавні видатки та кредитування)"]
[null,"3811020","Субвенція з державного бюджету місцевим бюджетам на будівництво нових. реконструкцію та капітальний ремонт існуючих спортивних п_ятдесятиметрових і двадцятип_ятиметрових басейнів"]
[null,"3811030","Субвенція з державного бюджету місцевим бюджетам на створення нових. будівельно-ремонтні роботи існуючих палаців спорту та завершення розпочатих у попередньому періоді робіт з будівництва/реконструкції палаців спорту"]
[null,"3811040","Субвенція з державного бюджету обласному бюджету Ўвано-Франківської області на будівництво сучасного біатлонного комплексу"]
[null,"5030000","Державне агентство з питань науки. інновацій та інформатизації України"]
[null,"5031000","Апарат Державного агентства з питань науки. інновацій та інформатизації України"]
[null,"5120000","Державне агентство резерву України"]
[null,"5121000","Апарат Державного агентства резерву України"]
[null,"5160000","Державна митна служба України"]
[null,"5270000","Державна інспекція ядерного регулювання України"]
[null,"5271000","Апарат Державної інспекції ядерного регулювання України"]
[null,"5271010","Керівництво та управління у сфері ядерного регулювання"]
[null,"5271020","Забезпечення ведення Державного регістру джерел іонізуючого випромінювання"]
[null,"5271030","Підвищення кваліфікації державних службовців п'ятої-сьомої категорій у сфері ядерного регулювання"]
[null,"5271040","Забезпечення ведення Державного регістру джерел іонізуючого випромінювання"]
[null,"5271050","Забезпечення безпечного зберігання відпрацьованих високоактивних джерел іонізуючого випромінювання"]
[null,"5340000","Адміністрація Державної прикордонної служби України"]
[null,"5341000","Апарат Адміністрації Державної прикордонної служби України"]
[null,"5341020","Забезпечення особового складу Державної прикордонної служби України"]
[null,"5341050","Створення. закупівля і модернізація озброєння. військової та спеціальної техніки за державним оборонним замовленням Адміністрації Державної прикордонної служби"]
[null,"5341110","Заходи. пов'язані із переходом на військову службу за контрактом"]
[null,"5341120","Заходи з облаштування та реконструкції державного кордону. пов'язані з проведенням Євро-2012"]
[null,"5342000","Розвідувальний орган Адміністрації Державної прикордонної служби України"]
[null,"5342020","Заходи. пов'язані із переходом на військову службу за контрактом"]
[null,"5500000","Національна комісія. що здійснює державне регулювання у сфері ринків фінансових послуг"]
[null,"5501000","Апарат Національної комісії. що здійснює державне регулювання у сфері ринків фінансових послуг"]
[null,"5501010","Керівництво та управління у сфері регулювання ринків фінансових послуг"]
[null,"5501020","Розробка та впровадження комплексної інформаційної системи"]
[null,"5530000","Державна служба фінансового моніторингу України"]
[null,"5531000","Апарат Державної служби фінансового моніторингу України"]
[null,"5550000","Державна служба України з контролю за наркотиками"]
[null,"5551000","Апарат Державної служби України з контролю за наркотиками"]
[null,"5560000","Національна комісія. що здійснює державне регулювання у сфері зв'язку та інформатизації"]
[null,"5561000","Національна комісія. що здійснює державне регулювання у сфері зв'язку та інформатизації"]
[null,"5561010","Керівництво та управління у сфері регулювання зв'язку та інформатизації"]
[null,"5960000","Головне управління розвідки Міністерства оборони України"]
[null,"5961000","Головне управління розвідки Міністерства оборони України"]
[null,"5961010","Розвідувальна діяльність у сфері оборони"]
[null,"5961020","Закупівля комплексу спеціального призначення"]
[null,"5961030","Заходи. пов'язані із переходом на військову службу за контрактом"]
[null,"5961040","Будівництво (придбання) житла для військовослужбовців Головного управління розвідки Міністерства оборони України"]
[null,"5961050","Розвиток озброєння. військової та спеціальної техніки Головного управління розвідки Міністерства оборони"]
[null,"5961060","Видатки для Головного управління розвідки Міністерства оборони України на реалізацію заходів щодо підвищення обороноздатності і безпеки держави"]
[null,"5961070","Реалізація державного інвестиційного проекту \"Створення фонду службового житла у Головному управлінні розвідки Міністерства оборони України\""]
[null,"5970000","Уповноважений із захисту державної мови"]
[null,"5971000","Секретаріат Уповноваженого із захисту державної мови"]
[null,"5971010","Організаційне. експертно-аналітичне. правове. інформаційне та матеріально-технічне забезпечення діяльності Секретаріату Уповноваженого із захисту державної мови"]
[null,"5980000","Вища рада правосуддя"]
[null,"5981000","Секретаріат Вищої ради правосуддя"]
[null,"5981010","Забезпечення засад функціонування незалежної судової влади"]
[null,"5990000","Секретаріат Уповноваженого Верховної Ради України з прав людини"]
[null,"5991000","Секретаріат Уповноваженого Верховної Ради України з прав людини"]
[null,"5991010","Парламентський контроль за додержанням конституційних прав і свобод людини"]
[null,"5991020","Заходи з реалізації національного превентивного механізму"]
[null,"6010000","Антимонопольний комітет України"]
[null,"6011000","Апарат Антимонопольного комітету України"]
[null,"6011010","Керівництво та управління  у сфері конкурентної політики. контроль за дотриманням законодавства про захист економічної конкуренції"]
[null,"6011020","Наукова і науково-технічна діяльність у сфері конкурентної політики"]
[null,"6020000","Вища атестаційна комісія України"]
[null,"6021000","Апарат Вищої атестаційної комісії України"]
[null,"6021010","Керівництво та управління у сфері атестації наукових та науково-педагогічних кадрів вищої кваліфікації. присудження наукових ступенів"]
[null,"6070000","Державна пенітенціарна служба України"]
[null,"6071000","Апарат Державної пенітенціарної служби України"]
[null,"6080000","Державний департамент України з питань виконання покарань (загальнодержавні витрати)"]
[null,"6081000","Державний департамент України з питань виконання покарань (загальнодержавні витрати)"]
[null,"6110000","Державна архівна служба України"]
[null,"6111000","Апарат Державної архівної служби України"]
[null,"6120000","Національне агентство України з питань державної служби"]
[null,"6121000","Апарат Національного агентства України з питань державної служби"]
[null,"6121010","Керівництво та  функціональне управління у сфері державної служби"]
[null,"6121020","Професійне навчання державних службовців та посадових осіб місцевого самоврядування"]
[null,"6121030","Підвищення кваліфікації фахівців у сфері європейської та світової інтеграції"]
[null,"6121040","Забезпечення інституційного розвитку державної служби. проведення прикладних досліджень і розробок у сфері державної служби та її адаптації до стандартів Європейського Союзу"]
[null,"6121060","Адаптація системи управління персоналом державної служби до стандартів ЄС"]
[null,"6121700","Погашення кредиторської заборгованості з відшкодування витрат. пов'язаних з проведенням аварійних робіт з ремонту головного фасаду адміністративної будівлі Головного управління державної служби"]
[null,"6122000","Центр адаптації державної служби до стандартів Європейського Союзу"]
[null,"6122040","Прикладні дослідження і розробки у сфері державної служби та її адаптації до стандартів Європейського Союзу"]
[null,"6122050","Організація підготовки та виконання тренінгових програм і заходів з розвитку вищого корпусу державної служби"]
[null,"6122060","Забезпечення автоматизованої інформаційно-аналітичної системи  обліку особових справ державних службовців і посадових осіб місцевого самоврядування"]
[null,"6150000","Національна комісія з цінних паперів та фондового ринку"]
[null,"6151000","Апарат Національної комісії з цінних паперів та фондового ринку"]
[null,"6151010","Керівництво та управління у сфері фондового ринку"]
[null,"6151020","Створення cистеми моніторингу фондового ринку"]
[null,"6151030","Підвищення кваліфікації фахівців з питань фондового ринку та корпоративного управління"]
[null,"6160000","Державна податкова адміністрація України (загальнодержавні витрати)"]
[null,"6161000","Державна податкова адміністрація України (загальнодержавні витрати)"]
[null,"6170000","Державна служба експортного контролю України"]
[null,"6171000","Апарат Державної служби експортного контролю України"]
[null,"6310000","Державне агентство з інвестицій та управління національними проектами України (загальнодержавні витрати)"]
[null,"6311000","Державне агентство з інвестицій та управління національними проектами України (загальнодержавні витрати)"]
[null,"6320000","Національне антикорупційне бюро України"]
[null,"6321000","Національне антикорупційне бюро України"]
[null,"6321010","Забезпечення діяльності Національного антикорупційного бюро України"]
[null,"6330000","Національне агентство з питань запобігання корупції"]
[null,"6331000","Апарат Національного агентства з питань запобігання корупції"]
[null,"6331010","Керівництво та управління у сфері запобігання корупції"]
[null,"6331020","Фінансування статутної діяльності політичних партій"]
[null,"6340000","Національна комісія. що здійснює державне регулювання у сферах енергетики та комунальних послуг"]
[null,"6341000","Апарат Національної комісії. що здійснює державне регулювання у сферах енергетики та комунальних послуг"]
[null,"6341010","Керівництво та управління у сфері регулювання енергетики та комунальних послуг"]
[null,"6360000","Державне агентство з енергоефективності та енергозбереження України"]
[null,"6361000","Апарат Державного агентства з енергоефективності та енергозбереження України"]
[null,"6370000","Національна комісія. що здійснює державне регулювання у сфері енергетики"]
[null,"6371000","Апарат Національної комісії. що здійснює державне регулювання у сфері енергетики"]
[null,"6371010","Керівництво та управління у сфері регулювання енергетики"]
[null,"6371600","Впровадження концепції Оптового ринку електроенергії України"]
[null,"6380000","Державне космічне агентство України"]
[null,"6381000","Апарат Державного космічного агентства України"]
[null,"6381010","Керівництво та управління у сфері космічної діяльності"]
[null,"6381020","Виконання робіт за державними цільовими програмами і державним замовленням у сфері космічної галузі. в тому числі загальнодержавної цільової науково-технічної космічної програми України"]
[null,"6381030","Надання позашкільної освіти Національним центром аерокосмічної освіти молоді ім.О.М. Макарова"]
[null,"6381040","Фінансова підтримка державного підприємства \"Виробниче об'єднання Південний машинобудівний завод імені О.М. Макарова\" на погашення заборгованості за спожиту електричну енергію"]
[null,"6381050","Управління та випробування космічних засобів"]
[null,"6381100","Будівництво (придбання) житла для військовослужбовців Державного космічного агентства України"]
[null,"6381120","Утилізація твердого ракетного палива"]
[null,"6381130","Виконання боргових зобов'язань за кредитом. залученим під державну гарантію для реалізації проекту \"Створення Національної супутникової системи зв'язку\""]
[null,"6381140","Реконструкція і технічне переоснащення ТЕЦ ДП \"ВО Південний машинобудівний завод ім. О.М. Макарова\""]
[null,"6381150","Підготовка виробництва та створення промислових потужностей для утилізації звичайних видів боєприпасів. непридатних для подальшого використання та зберігання"]
[null,"6381160","Реформування та розвиток державних підприємств \"ВО \"Південний машинобудівний завод ім. О.М. Макарова\" та Державного Конструкторського бюро \"Південне\" імені М.К. Янгеля"]
[null,"6381190","Забезпечення службовим житлом молодих спеціалістів державних підприємств космічної галузі"]
[null,"6381200","Підготовка та створення спеціальних технологій для виготовлення багатофункціонального ракетного комплексу за темою \"Сапсан\""]
[null,"6381210","Виконання державних цільових програм реформування та розвитку оборонно-промислового комплексу. розроблення. освоєння і впровадження нових технологій. нарощування наявних виробничих потужностей на підприємствах космічної галузі для виготовлення продукції"]
[null,"6381220","Фінансова підтримка державного підприємства \"Виробниче об_єднання Південний машинобудівний завод імені О.М. Макарова\u0010 на погашення заборгованості із заробітної плати"]
[null,"6390000","Національне агентство України з питань забезпечення ефективного використання енергетичних ресурсів (загальнодержавні витрати)"]
[null,"6391000","Національне агентство України з питань забезпечення ефективного використання енергетичних ресурсів (загальнодержавні витрати)"]
[null,"6400000","Національна комісія регулювання ринку комунальних послуг України"]
[null,"6420000","Державне бюро розслідувань"]
[null,"6421000","Державне бюро розслідувань"]
[null,"6421010","Забезпечення діяльності Державного бюро розслідувань"]
[null,"6430000","Національне агентство України з питань виявлення. розшуку та управління активами. одержаними від корупційних та інших злочинів"]
[null,"6431000","Апарат Національного агентства України з питань виявлення. розшуку та управління активами. одержаними від корупційних та інших злочинів"]
[null,"6431010","Керівництво та управління у сфері розшуку та управління активами. одержаними від корупційних та інших злочинів"]
[null,"6440000","Національна рада України з питань телебачення і радіомовлення"]
[null,"6441000","Апарат Національної ради України з питань телебачення і радіомовлення"]
[null,"6441010","Керівництво та управління здійсненням контролю у сфері телебачення і радіомовлення"]
[null,"6441030","Розробка висновків щодо електромагнітної сумісності радіоелектронних засобів мовлення. необхідних для створення та розвитку каналів мовлення. мереж мовлення та телемереж"]
[null,"6450000","Національна комісія. що здійснює державне регулювання у сфері комунальних послуг"]
[null,"6451000","Апарат Національної комісії. що здійснює державне регулювання у сфері комунальних послуг"]
[null,"6451010","Керівництво та управління у сфері регулювання ринку комунальних послуг"]
[null,"6460000","Національне агентство з питань підготовки та проведення в Україні фінальної частини чемпіонату Європи 2012 року з футболу"]
[null,"6461000","Апарат Національного агентства з питань підготовки та проведення в Україні фінальної частини чемпіонату Європи 2012 року з футболу"]
[null,"6461010","Організаційне забезпечення діяльності Національного агентства з питань підготовки та проведення в Україні фінальної частини чемпіонату Європи 2012 року з футболу"]
[null,"6461020","Заходи із залучення інвесторів для підготовки і проведення в Україні фінальної частини чемпіонату Європи 2012 року з футболу"]
[null,"6480000","Пенсійний фонд України"]
[null,"6481000","Пенсійний фонд України"]
[null,"6500000","Рада національної безпеки і оборони України"]
[null,"6501000","Апарат Ради національної безпеки і оборони України"]
[null,"6501010","Ўнформаційно-аналітичне забезпечення координаційної діяльності у сфері національної безпеки і оборони"]
[null,"6501020","Фундаментальні дослідження у сфері національної безпеки"]
[null,"6501030","Прикладні розробки у сфері національної безпеки"]
[null,"6501040","Підготовка науково-педагогічних та наукових кадрів у сфері національної безпеки"]
[null,"6501050","Резерв видатків на сектор оборони та безпеки"]
[null,"6501060","Нерозподілені видатки на національну безпеку і оборону"]
[null,"6510000","Рахункова палата"]
[null,"6511000","Апарат Рахункової палати"]
[null,"6511010","Керівництво та управління у сфері контролю за виконанням державного бюджету"]
[null,"6511020","Створення інформаційно-аналітичної системи Рахункової палати"]
[null,"6520000","Служба безпеки України"]
[null,"6521000","Центральне управління Служби безпеки України"]
[null,"6521010","Забезпечення заходів у сфері безпеки держави та діяльності органів системи Служби безпеки України"]
[null,"6521030","Наукова діяльність у сфері забезпечення державної безпеки. дослідження та розробки спеціальної техніки"]
[null,"6521040","Забезпечення перебування за кордоном працівників органів державної влади"]
[null,"6521050","Медичне обслуговування і оздоровлення особового складу та утримання закладів дошкільної освіти Служби безпеки України"]
[null,"6521060","Створення. закупівля і модернізація озброєння. військової та спеціальної техніки за державним оборонним замовленням Служби безпеки"]
[null,6521070,"Підготовка та післядипломна освіта кадрів Служби безпеки України у закладах вищої освіти"]
[null,6521080,"Заходи із забезпечення безпеки та протидії терористичній діяльності. пов'язані з проведенням  Євро-2012"]
[null,6521090,"Утримання закладів дошкільної освіти Служби безпеки України"]
[null,6521100,"Будівництво (придбання) житла для військовослужбовців Служби безпеки України"]
[null,6521200,"Забезпечення заходів спеціальними підрозділами по боротьбі з організованою злочинністю та корупцією Служби безпеки України"]
[null,6521210,"Заходи. пов'язані із переходом на військову службу за контрактом"]
[null,6521220,"Боротьба з тероризмом на території України"]
[null,6521230,"Видатки для Служби безпеки України на реалізацію заходів щодо підвищення обороноздатності і безпеки держави"]
[null,6522000,"Департамент розвідки Служби безпеки України"]
[null,6524000,"Антитерористичний центр при Службі безпеки України"]
[null,6524010,"Координація діяльності у запобіганні терористичним актам та боротьба з тероризмом на території України"]
[null,6524020,"Заходи. пов'язані із переходом на військову службу за контрактом"]
[null,6530000,"Служба безпеки України (загальнодержавні витрати)"]
[null,6531000,"Служба безпеки України (загальнодержавні витрати)"]
[null,6540000,"Національна академія наук України"]
[null,6541000,"Національна академія наук України"]
[null,6541020,"Наукова і організаційна діяльність президії Національної академії наук України"]
[null,6541030,"Наукова і науково-технічна діяльність наукових установ Національної академії наук України"]
[null,6541080,"Підготовка кадрів з пріоритетних напрямів науки"]
[null,6541100,"Медичне обслуговування працівників Національної академії наук України"]
[null,6541140,"Наукова і науково-технічна діяльність  Ўнституту проблем безпеки атомних електростанцій Національної академії наук України"]
[null,6541200,"Підвищення кваліфікації з пріоритетних напрямів науки та підготовка до державної атестації наукових кадрів Національної академії наук України"]
[null,6541230,"Підтримка розвитку пріоритетних напрямів наукових досліджень"]
[null,6550000,"Національна академія педагогічних наук України"]
[null,6551000,"Національна академія педагогічних наук України"]
[null,6551020,"Наукова і організаційна діяльність президії Національної академії педагогічних наук України"]
[null,6551030,"Наукова і науково-технічна діяльність у сфері освіти. педагогіки і психології"]
[null,6551060,"Підготовка кадрів та підвищення кваліфікації керівних кадрів і спеціалістів у сфері освіти закладами вищої освіти"]
[null,6551070,"Підготовка та перепідготовка робітничих кадрів і фахівців автосервісу навчально-науковим центром професійно-технічної освіти Національної академії педагогічних наук України"]
[null,6551100,"Збереження та популяризація історії педагогічної науки та практики"]
[null,6560000,"Національна академія медичних наук України"]
[null,6561000,"Національна академія медичних наук України"]
[null,6561040,"Наукова і науково-технічна діяльність у сфері профілактики і лікування хвороб людини"]
[null,6561060,"Діагностика і лікування захворювань із впровадженням експериментальних та нових медичних технологій. спеціалізована консультативно-поліклінічна допомога. що надається науково-дослідними установами Національної академії медичних наук України"]
[null,6561090,"Наукова і організаційна діяльність президії Національної академії медичних наук України"]
[null,6561140,"Оплата медичних послуг. що надаються клініками науково-дослідних установ Національної академії медичних наук"]
[null,6561160,"Реалізація пілотного проекту щодо зміни механізму фінансового забезпечення надання медичної допомоги у окремих науково-дослідних установах Національної академії медичних наук України"]
[null,6561180,"Реалізація державного інвестиційного проекту \"Реконструкція з розширенням харчоблоку. технічне переоснащення існуючої котельні. реконструкція пральні Державної установи \"Національний інститут фтизіатрії і пульмонології ім. Ф. Г. Яновського НАМН України\""]
[null,6561810,"Будівництво. реконструкція. капітальний ремонт та придбання обладнання  для об_єктів. що відносяться до сфери управління  Національної академії медичних наук України"]
[null,6561820,"Реалізація державного інвестиційного проекту \"Реконструкція рентген-радіологічного відділення ДУ \"Ўнститут отоларингології ім. проф. О.С.Коломійченка НАМН України \" з метою введення в експлуатацію закупленого у 2011-2013 роках високовартісного медичного"]
[null,6561830,"Реалізація державного інвестиційного проекту \"Створення сучасної клінічної бази для хірургічного лікування очної патології (недобудованого лікувального корпусу за адресою м. Одеса. Французький бул.. 49/51)\""]
[null,6561840,"Реалізація державного інвестиційного проекту \"Будівництво лікувально-реабілітаційного корпусу ДУ \"Національний інститут серцево-судинної хірургії ім. М. М. Амосова НАМНУ\""]
[null,6561850,"Реалізація державного інвестиційного проекту \"Будівництво лікувально-реабілітаційного корпусу ДУ \"Національний інститут серцево-судинної хірургії ім. М.М.Амосова НАМНУ\""]
[null,6561860,"Реалізація державного інвестиційного проекту \"Національний науково-практичний центр нейротравми і нейрореабілітації\" у складі Державної установи \"Ўнститут нейрохірургії ім. акад. А. П. Ромоданова НАМН України\" за адресою: м. Київ. вул. Платона Майбороди."]
[null,6570000,"Національна академія мистецтв України"]
[null,6571000,"Національна академія мистецтв України"]
[null,6571020,"Наукова і організаційна діяльність президії Національної академії мистецтв України"]
[null,6571030,"Наукова і науково-технічна діяльність у сфері мистецтвознавства"]
[null,6580000,"Національна академія правових наук України"]
[null,6581000,"Національна академія правових наук України"]
[null,6581020,"Наукова і організаційна діяльність президії Національної академії правових наук України"]
[null,6581040,"Наукова і науково-технічна діяльність у сфері законодавства і права"]
[null,6590000,"Національна академія аграрних наук України"]
[null,6591000,"Національна академія аграрних наук України"]
[null,6591020,"Наукова і організаційна діяльність президії Національної академії аграрних наук України"]
[null,6591060,"Наукова і науково-технічна діяльність у сфері агропромислового комплексу"]
[null,6591080,"Здійснення заходів щодо підтримки науково-дослідних господарств"]
[null,6591100,"Збереження природно-заповідного фонду в біосферному заповіднику \"Асканія-Нова\""]
[null,6600000,"Управління державної охорони України"]
[null,6601000,"Управління державної охорони України"]
[null,6601020,"Державна охорона органів державної влади та посадових осіб"]
[null,6601030,"Будівництво (придбання) житла для військовослужбовців Управління державної охорони України"]
[null,6601040,"Заходи. пов'язані із переходом на військову службу за контрактом"]
[null,6601050,"Видатки для Управління державної охорони України на реалізацію заходів щодо підвищення обороноздатності і безпеки держави"]
[null,6610000,"Фонд державного майна України"]
[null,6611000,"Апарат Фонду державного майна України"]
[null,6611010,"Керівництво та управління у сфері державного майна"]
[null,6611020,"Заходи. пов'язані з проведенням приватизації державного майна"]
[null,6611030,"Створення та впровадження комплексної системи електронного документообігу та інформаційно-аналітичних реєстрів Фонду державного майна України"]
[null,6620000,"Служба зовнішньої розвідки України"]
[null,6621000,"Служба зовнішньої розвідки України"]
[null,6621010,"Забезпечення розвідувальної діяльності у сфері безпеки держави. спеціального захисту державних представництв за кордоном та діяльності підрозділів системи Служби зовнішньої розвідки України"]
[null,6621020,"Медичне обслуговування та оздоровлення особового складу Служби зовнішньої розвідки України"]
[null,6621030,"Будівництво (придбання) житла для військовослужбовців Служби зовнішньої розвідки України"]
[null,6621040,"Підготовка та підвищення кваліфікації кадрів у сфері розвідувальної діяльності вищими навчальними закладами ЎЎЎ і ЎV рівнів акредитації"]
[null,6621050,"Заходи. пов'язані із переходом на військову службу за контрактом"]
[null,6621060,"Видатки для Служби зовнішньої розвідки України на реалізацію заходів щодо підвищення обороноздатності і безпеки держави"]
[null,6640000,"Адміністрація Державної служби спеціального зв'язку та захисту інформації України"]
[null,6641000,"Адміністрація Державної служби спеціального зв'язку та захисту інформації України"]
[null,6641010,"Забезпечення функціонування державної системи спеціального зв'язку та захисту інформації"]
[null,6641020,"Розвиток і модернізація державної системи спеціального зв'язку та захисту інформації"]
[null,6641030,"Розвиток та модернізація державної системи урядового зв'язку"]
[null,6641040,"Створення та забезпечення функціонування Національної системи конфіденційного зв'язку"]
[null,6641050,"Підготовка. перепідготовка та підвищення кваліфікації кадрів у сфері зв'язку закладами вищої освіти"]
[null,6641060,"Будівництво (придбання) житла для військовослужбовців Державної служби спеціального зв'язку та захисту інформації України"]
[null,6641070,"Створення. закупівля і модернізація спеціальної техніки за державним оборонним замовленням Державної служби спеціального зв'язку та захисту інформації"]
[null,6641080,"Прикладні наукові та науково-технічні розробки. виконання робіт за державним замовленням. фінансова підтримка розвитку інфраструктури наукової діяльності у сфері зв'язку. розвиток цифрового телерадіомовлення"]
[null,6641090,"Підготовка кадрів для сфери зв'язку вищими навчальними закладами Ў та ЎЎ рівнів акредитації"]
[null,6641110,"Доставка дипломатичної кореспонденції за кордон і в Україну"]
[null,6641120,"Доставка спеціальної службової кореспонденції органам державної влади"]
[null,6641130,"Модернізація вузлів зв_язку спеціального призначення"]
[null,6641140,"Видатки для Адміністрації Державної служби спеціального зв_язку та захисту інформації України на реалізацію заходів щодо підвищення обороноздатності і безпеки держави"]
[null,6642000,"Головне управління урядового фельд_єгерського зв_язку Державної служби спеціального зв'язку та захисту інформації України"]
[null,6642010,"Доставка дипломатичної кореспонденції за кордон і в Україну"]
[null,6642020,"Доставка спеціальної службової кореспонденції органам державної влади"]
[null,6650000,"Національне агентство з питань підготовки та проведення в Україні фінальної частини чемпіонату Європи 2012 року з футболу та реалізації інфраструктурних проектів"]
[null,6651000,"Національне агентство з питань підготовки та проведення в Україні фінальної частини чемпіонату Європи 2012 року з футболу та реалізації інфраструктурних проектів"]
[null,6651010,"Організаційне забезпечення підготовки та реалізації інфраструктурних проектів"]
[null,6730000,"Центральна виборча комісія"]
[null,6731000,"Апарат Центральної виборчої комісії"]
[null,"6731010","Керівництво та управління у сфері проведення виборів та референдумів"]
[null,"6731020","Проведення виборів народних депутатів України"]
[null,"6731040","Проведення виборів Президента України"]
[null,"6731050","Функціонування Державного реєстру виборців"]
[null,"6731080","Створення та запровадження системи відеоспостереження на звичайних виборчих дільницях на постійній основі під час виборів народних депутатів України у 2012 році"]
[null,"6731100","Проведення всеукраїнського консультативного опитування"]
[null,"6731110","Відшкодування витрат політичним партіям. пов_язаних із фінансуванням їх передвиборної агітації на виборах народних депутатів України"]
[null,"6740000","Центральна виборча комісія (загальнодержавні видатки та кредитування)"]
[null,"6741000","Центральна виборча комісія (загальнодержавні видатки та кредитування)"]
[null,"6741020","Субвенція з державного бюджету місцевим бюджетам на проведення виборів депутатів місцевих рад та сільських. селищних. міських голів"]
[null,"6800000","Національна акціонерна компанія \"Украгролізинг\""]
[null,"6801000","Національна акціонерна компанія \"Украгролізинг\""]
[null,"7710000","Рада міністрів Автономної Республіки Крим"]
[null,"7711000","Апарат Ради міністрів Автономної Республіки Крим"]
[null,"7711010","Здійснення виконавчої влади в Автономній Республіці Крим"]
[null,"7720000","Вінницька обласна державна адміністрація"]
[null,"7721000","Апарат Вінницької обласної державної адміністрації"]
[null,"7721010","Здійснення виконавчої влади у Вінницькій області"]
[null,"7721020","Субвенція з державного бюджету обласному бюджету Вінницької області для ліквідації наслідків стихійного лиха. що сталося 23 _ 27 липня 2008 року"]
[null,"7721800","Будівництво. реконструкція. капітальний ремонт об_єктів соціальної та іншої інфраструктури у Вінницькій області"]
[null,"7730000","Волинська обласна державна адміністрація"]
[null,"7731000","Апарат Волинської обласної державної адміністрації"]
[null,"7731010","Здійснення виконавчої влади у Волинській області"]
[null,"7740000","Дніпропетровська обласна державна адміністрація"]
[null,"7741000","Апарат Дніпропетровської обласної державної адміністрації"]
[null,"7741010","Здійснення виконавчої влади у Дніпропетровській області"]
[null,"7750000","Донецька обласна державна адміністрація"]
[null,"7751000","Апарат Донецької обласної державної адміністрації"]
[null,"7751010","Здійснення виконавчої влади у Донецькій області"]
[null,"7760000","Житомирська обласна державна адміністрація"]
[null,"7761000","Апарат Житомирської обласної державної адміністрації"]
[null,"7761010","Здійснення виконавчої влади у Житомирській області"]
[null,"7770000","Закарпатська обласна державна адміністрація"]
[null,"7771000","Апарат Закарпатської обласної державної адміністрації"]
[null,"7771010","Здійснення виконавчої влади у Закарпатській області"]
[null,"7771020","Субвенція з державного бюджету обласному бюджету Закарпатської області для ліквідації наслідків стихійного лиха. що сталося 23 _ 27 липня 2008 року"]
[null,"7780000","Запорізька обласна державна адміністрація"]
[null,"7781000","Апарат Запорізької обласної державної адміністрації"]
[null,"7781010","Здійснення виконавчої влади у Запорізькій області"]
[null,"7790000","Ўвано-Франківська обласна державна адміністрація"]
[null,"7791000","Апарат Ўвано-Франківської обласної державної адміністрації"]
[null,"7791010","Здійснення виконавчої влади в Ўвано-Франківській області"]
[null,"7800000","Київська обласна державна адміністрація"]
[null,"7801000","Апарат Київської обласної державної адміністрації"]
[null,"7801010","Здійснення виконавчої влади у Київській області"]
[null,"7810000","Кіровоградська обласна державна адміністрація"]
[null,"7811000","Апарат Кіровоградської обласної державної адміністрації"]
[null,"7811010","Здійснення виконавчої влади у Кіровоградській області"]
[null,"7820000","Луганська обласна державна адміністрація"]
[null,"7821000","Апарат Луганської обласної державної адміністрації"]
[null,"7821010","Здійснення виконавчої влади у Луганській області"]
[null,"7830000","Львівська обласна державна адміністрація"]
[null,"7831000","Апарат Львівської обласної державної адміністрації"]
[null,"7831010","Здійснення виконавчої влади у Львівській області"]
[null,"7831020","Субвенція з державного бюджету обласному бюджету Львівської області для ліквідації наслідків стихійного лиха. що сталося 23 _ 27 липня 2008 року"]
[null,"7840000","Миколаївська обласна державна адміністрація"]
[null,"7841000","Апарат Миколаївської обласної державної адміністрації"]
[null,"7841010","Здійснення виконавчої влади у Миколаївській області"]
[null,"7850000","Одеська обласна державна адміністрація"]
[null,"7851000","Апарат Одеської обласної державної адміністрації"]
[null,"7851010","Здійснення виконавчої влади в Одеській області"]
[null,"7851800","Будівництво. реконструкція та ремонт об'єктів соціальної та іншої інфраструктури у Одеській області"]
[null,"7860000","Полтавська обласна державна адміністрація"]
[null,"7861000","Апарат Полтавської обласної державної адміністрації"]
[null,"7861010","Здійснення виконавчої влади у Полтавській області"]
[null,"7870000","Рівненська обласна державна адміністрація"]
[null,"7871000","Апарат Рівненської обласної державної адміністрації"]
[null,"7871010","Здійснення виконавчої влади у Рівненській області"]
[null,"7880000","Сумська обласна державна адміністрація"]
[null,"7881000","Апарат Сумської обласної державної адміністрації"]
[null,"7881010","Здійснення виконавчої влади у Сумській області"]
[null,"7890000","Тернопільська обласна державна адміністрація"]
[null,"7891000","Апарат Тернопільської обласної державної адміністрації"]
[null,"7891010","Здійснення виконавчої влади у Тернопільській області"]
[null,"7891020","Субвенція з державного бюджету обласному бюджету Тернопільської області для ліквідації наслідків стихійного лиха. що сталося 23 _ 27 липня 2008 року"]
[null,"7900000","Харківська обласна державна адміністрація"]
[null,"7901000","Апарат Харківської обласної державної адміністрації"]
[null,"7901010","Здійснення виконавчої влади у Харківській області"]
[null,"7901810","Будівництво. реконструкція. ремонт та утримання вулиць і доріг комунальної власності у населених пунктах Харківської області"]
[null,"7910000","Херсонська обласна державна адміністрація"]
[null,"7911000","Апарат Херсонської обласної державної адміністрації"]
[null,"7911010","Здійснення виконавчої влади у Херсонській області"]
[null,"7920000","Хмельницька обласна державна адміністрація"]
[null,"7921000","Апарат Хмельницької обласної державної адміністрації"]
[null,"7921010","Здійснення виконавчої влади у Хмельницькій області"]
[null,"7930000","Черкаська обласна державна адміністрація"]
[null,"7931000","Апарат Черкаської обласної державної адміністрації"]
[null,"7931010","Здійснення виконавчої влади у Черкаській області"]
[null,"7940000","Чернівецька обласна державна адміністрація"]
[null,"7941000","Апарат Чернівецької обласної державної адміністрації"]
[null,"7941010","Здійснення виконавчої влади у Чернівецькій області"]
[null,"7941030","Субвенція з державного бюджету обласному бюджету Чернівецької області для завершення у 2009 році будівництва мостів. берегоукріплювальних споруд. об'єктів соціально-культурного призначення та водовідведення. що перебувають у комунальній власності"]
[null,"7950000","Чернігівська обласна державна адміністрація"]
[null,"7951000","Апарат Чернігівської обласної державної адміністрації"]
[null,"7951010","Здійснення виконавчої влади у Чернігівській області"]
[null,"7960000","Київська міська державна адміністрація"]
[null,"7961000","Апарат Київської міської державної адміністрації"]
[null,"7970000","Севастопольська міська державна адміністрація"]
[null,"7971000","Апарат Севастопольської міської державної адміністрації"]
[null,"7971010","Здійснення виконавчої влади у місті Севастополі"]
[null,"7980000","Рада міністрів Автономної республіки Крим (загальнодержавні витрати)"]
[null,"7981000","Рада міністрів Автономної республіки Крим (загальнодержавні витрати)"]
[null,"8680000","Державна регуляторна служба України"]
[null,"8681000","Апарат Державної регуляторної служби України"]
[null,"8681010","Керівництво та управління у сфері регуляторної політики та ліцензування"]
[null,"8681030","Заходи по реалізації Національної програми сприяння розвитку малого підприємництва в Україні"]
[null,"8681050","Мікрокредитування суб'єктів малого підприємництва"]

{"sheet":"ДовидникКФК","index":2,"n_rows":343,"n_cols":2,"rows_kept":343,"cut":false,"hidden":true,"merged":[]}
["010000","Державне управління"]
["010105","Апарат Верховної Ради Автономної Республіки Крим"]
["010106","Забезпечення діяльності депутатів Автономної Республіки Крим"]
["010108","Апарат Рахункової палати Верховної Ради Автономної Республіки Крим"]
["010114","Апарат Ради міністрів Автономної Республіки Крим та її місцевих органів"]
["010116","Органи місцевого самоврядування"]
["010117","Органи виконавчої влади в м. Києві"]
["060000","Правоохоронна діяльність та забезпечення безпеки держави"]
["060103","Підрозділи дорожньо-патрульної служби та дорожнього нагляду"]
["060106","Приймальники-розподільники для неповнолітніх"]
["060107","Спеціальні приймальники-розподільники"]
["060702","Місцева пожежна охорона"]
["061002","Спеціальні монтажно-експлуатаційні підрозділи"]
["061003","Адресно-довідкові бюро"]
["061007","Інші правоохоронні заходи і заклади"]
["070000","Освіта"]
["070101","Дошкільні заклади освіти"]
["070201","Загальноосвітні школи (в т.ч. школа-дитячий садок, інтернат при школі), спеціалізовані школи, ліцеї, гімназії, колегіуми"]
["070202","Вечірні (змінні) школи"]
["070301","Загальноосвітні  школи-інтернати, загальноосвітні санаторні школи-інтернати"]
["070302","Загальноосвітні школи-інтернати для дітей-сиріт та дітей, які залишилися без піклування батьків"]
["070303","Дитячі будинки (в т.ч. сімейного типу, прийомні сім'ї)"]
["070304","Спеціальні загальноосвітні школи-інтернати, школи та інші заклади освіти для дітей з вадами у фізичному чи розумовому розвитку"]
["070307","Загальноосвітні спеціалізовані школи-інтернати з поглибленим вивченням окремих предметів і курсів для поглибленої підготовки дітей в галузі науки і мистецтв, фізичної культури і спорту, інших галузях, ліцеї з посиленою військово-фізичною підготовкою"]
["070401","Позашкільні заклади освіти, заходи із позашкільної роботи з дітьми"]
["070501","Професійно-технічні  заклади освіти"]
["070502","Професійно-технічні  училища соціальної реабілітації"]
["070601","Вищі заклади освіти  І та ІІ рівнів акредитації"]
["070602","Вищі заклади освіти  ІІІ та ІV рівнів акредитації"]
["070701","Заклади післядипломної освіти ІІІ-ІV рівнів акредитації (академії, інститути, центри підвищення кваліфікації, перепідготовки, вдосконалення)"]
["070702","Інші заклади і заходи післядипломної освіти"]
["070801","Придбання підручників"]
["070802","Методична робота, інші заходи у сфері народної освіти"]
["070803","Служби технічного нагляду за будівництвом і капітальним ремонтом"]
["070804","Централізовані бухгалтерії обласних, міських, районних відділів освіти"]
["070805","Групи  централізованого господарського обслуговування"]
["070806","Інші заклади освіти"]
["070807","Інші  освітні програми"]
["070808","Допомога дітям-сиротам та дітям, позбавленим батьківського піклування, яким виповнюється 18 років"]
["070809","Здійснення виплат, визначених Законом України \"Про реструктуризацію заборгованості з виплат, передбачених статтею 57 Закону України \"Про освіту\" педагогічним, науково-педагогічним та іншим категоріям працівників навчальних закладів"]
["080000","Охорона здоров\"я"]
["080101","Лікарні"]
["080102","Територіальні медичні об'єднання"]
["080201","Спеціалізовані лікарні та інші спеціалізовані заклади (центри, диспансери, госпіталі для інвалідів ВВВ, лепрозорії, медико-санітарні частини  тощо, що мають ліжкову мережу)"]
["080202","Клініки науково-дослідних інститутів"]
["080203","Перинатальні центри, пологові будинки"]
["080204","Санаторії для хворих туберкульозом"]
["080205","Санаторії для дітей та підлітків (нетуберкульозні)"]
["080206","Санаторії медичної реабілітації"]
["080207","Будинки дитини"]
["080208","Станції переливання крові"]
["080209","Центри екстреної медичної допомоги та медицини катастроф, станції екстреної (швидкої) медичної допомоги"]
["080300","Поліклініки і амбулаторії (крім спеціалізованих поліклінік та загальних і спеціалізованих стоматологічних поліклінік)"]
["080400","Спеціалізовані поліклініки (в т.ч. диспансери, медико-санітарні частини, пересувні консультативні діагностичні центри  тощо, які не мають ліжкового фонду)"]
["080500","Загальні і спеціалізовані стоматологічні поліклініки"]
["080600","Фельдшерсько-акушерські пункти"]
["080703","Заходи  боротьби з епідеміями"]
["080704","Центри здоров'я і заходи у сфері санітарної освіти"]
["080800","Центри первинної медичної (медико-санітарної) допомоги"]
["081001","Медико-соціальні експертні комісії"]
["081002","Інші заходи по охороні здоров'я"]
["081003","Служби технічного нагляду за будівництвом та капітальним ремонтом, централізовані бухгалтерії, групи централізованого господарського обслуговування"]
["081006","Програми і централізовані заходи з імунопрофілактики"]
["081007","Програми і централізовані заходи  боротьби з туберкульозом"]
["081008","Програми і централізовані заходи  профілактики СНІДу"]
["081009","Забезпечення централізованих заходів з лікування хворих на цукровий та нецукровий діабет"]
["081010","Централізовані заходи з лікування онкологічних хворих"]
["090000","Соціальний захист та соціальне забезпечення"]
["090201","Пільги ветеранам війни, особам, на яких поширюється чинність Закону України \"Про статус ветеранів війни, гарантії їх соціального захисту\", особам, які мають особливі заслуги перед Батьківщиною, вдовам (вдівцям) та батькам померлих (загиблих) осіб, які ма"]
["090202","Пільги ветеранам війни, особам, на яких поширюється чинність Закону України \"Про статус ветеранів війни, гарантії їх соціального захисту\", особам, які мають особливі заслуги перед Батьківщиною, вдовам (вдівцям) та батькам померлих (загиблих) осіб, які ма"]
["090203","Інші пільги ветеранам війни, особам, на яких поширюється чинність Закону України \"Про статус ветеранів війни, гарантії їх соціального захисту\", особам, які мають особливі заслуги перед Батьківщиною, вдовам (вдівцям) та батькам померлих (загиблих) осіб, я"]
["090204","Пільги ветеранам військової служби, ветеранам органів внутрішніх справ, ветеранам податкової міліції, ветеранам державної пожежної охорони, ветеранам Державної кримінально-виконавчої служби, ветеранам служби цивільного захисту, ветеранам Державної служби"]
["090205","Пільги ветеранам військової служби, ветеранам органів внутрішніх справ, ветеранам податкової міліції, ветеранам державної пожежної охорони, ветеранам Державної кримінально-виконавчої служби, ветеранам служби цивільного захисту, ветеранам Державної служби"]
["090206","Інші пільги ветеранам військової служби, ветеранам органів внутрішніх справ, ветеранам податкової міліції, ветеранам державної пожежної охорони, ветеранам Державної кримінально-виконавчої служби, ветеранам служби цивільного захисту, ветеранам Державної с"]
["090207","Пільги громадянам, які постраждали внаслідок Чорнобильської катастрофи, дружинам (чоловікам) та опікунам (на час опікунства) дітей померлих громадян, смерть яких пов'язана з Чорнобильською катастрофою, на житлово-комунальні послуги"]
["090208","Пільги громадянам, які постраждали внаслідок Чорнобильської катастрофи, дружинам (чоловікам) та опікунам (на час опікунства) дітей померлих громадян, смерть яких пов'язана з Чорнобильською катастрофою, на придбання твердого палива"]
["090209","Інші пільги громадянам, які постраждали внаслідок Чорнобильської катастрофи, дружинам (чоловікам) та опікунам (на час опікунства) дітей померлих громадян, смерть яких пов'язана з Чорнобильською катастрофою"]
["090210","Пільги пенсіонерам з числа спеціалістів із захисту рослин, передбачені частиною четвертою статті 20 Закону України \"Про захист рослин\", громадянам, передбачені пунктом \"ї\" частини першої статті 77 Основ законодавства про охорону здоров'я, частиною п'ятою"]
["090211","Пільги пенсіонерам з числа спеціалістів із захисту рослин, передбачені частиною четвертою статті 20 Закону України \"Про захист рослин\", громадянам, передбачені пунктом \"ї\" частини першої статті 77 Основ законодавства про охорону здоров'я, частиною п'ятою"]
["090212","Пільги на медичне обслуговування громадянам, які постраждали внаслідок Чорнобильської катастрофи"]
["090213","Оздоровлення громадян, які постраждали внаслідок Чорнобильської катастрофи"]
["090214","Пільги окремим категоріям громадян з послуг зв'язку"]
["090215","Пільги багатодітним сім'ям, дитячим будинкам сімейного типу та прийомним сім'ям, в яких не менше року проживають відповідно троє або більше дітей, а також сім'ям (крім багатодітних сімей), в яких не менше року проживають троє і більше дітей, враховуючи т"]
["090216","Пільги багатодітним сім'ям, дитячим будинкам сімейного типу та прийомним сім'ям, в яких не менше року проживають відповідно троє або більше дітей, а також сім'ям (крім багатодітних сімей), в яких не менше року проживають троє і більше дітей, враховуючи т"]
["090217","Компенсація втрати частини доходів у зв'язку з відміною податку з власників  транспортних  засобів та інших самохідних машин і механізмів та відповідним збільшенням ставок акцизного  податку з пального"]
["090302","Допомога у зв'язку з вагітністю і пологами"]
["090303","Допомога до досягнення дитиною трирічного віку"]
["090304","Допомога при народженні дитини"]
["090305","Допомога на дітей, над якими встановлено опіку чи піклування"]
["090306","Допомога на дітей одиноким матерям"]
["090307","Тимчасова державна допомога дітям"]
["090308","Допомога при усиновленні дитини"]
["090401","Державна соціальна допомога малозабезпеченим сім'ям"]
["090403","Виплата компенсації реабілітованим"]
["090405","Субсидії населенню для відшкодування витрат на оплату житлово-комунальних послуг"]
["090406","Субсидії населенню для відшкодування витрат на придбання твердого та рідкого пічного побутового палива і скрапленого газу"]
["090407","Компенсація населенню додаткових витрат на оплату послуг газопостачання, центрального опалення та централізованого постачання гарячої води"]
["090411","Кошти на забезпечення побутовим вугіллям окремих категорій населення"]
["090412","Інші видатки на соціальний захист населення"]
["090413","Допомога на догляд за інвалідом І чи ІІ групи внаслідок психічного розладу"]
["090414","Компенсація особам, які згідно із статтями 43 та 48 Гірничого закону України мають право на безоплатне отримання вугілля на побутові потреби, але проживають у будинках, що мають центральне опалення"]
["090416","Інші видатки на соціальний захист ветеранів війни та праці"]
["090417","Витрати на поховання учасників бойових дій та інвалідів війни"]
["090501","Організація та проведення громадських робіт"]
["090601","Будинки-інтернати для малолітніх інвалідів"]
["090700","Утримання закладів, що надають соціальні послуги дітям, які опинились в складних життєвих обставинах"]
["090802","Інші програми соціального захисту дітей"]
["090901","Будинки-інтернати (пансіонати) для літніх людей та інвалідів системи соціального захисту"]
["090902","Інші будинки-інтернати для літніх людей та інвалідів"]
["091101","Утримання центрів соціальних служб для сім`ї, дітей   та  молоді"]
["091102","Програми і заходи центрів соціальних служб для сім`ї, дітей  та  молоді"]
["091103","Соціальні програми і заходи державних органів у справах молоді"]
["091104","Соціальні програми і заходи державних органів з питань забезпечення рівних прав та можливостей жінок і чоловіків"]
["091105","Утримання клубів підлітків за місцем проживання"]
["091106","Інші видатки"]
["091107","Соціальні програми і заходи державних органів у справах сім'ї"]
["091108","Заходи з оздоровлення та відпочинку дітей, крім заходів з оздоровлення дітей, що здійснюються за рахунок коштів на оздоровлення громадян, які постраждали внаслідок Чорнобильської катастрофи"]
["091201","Розселення та облаштування депортованих кримських татар та осіб інших національностей, депортованих з України"]
["091203","Навчання та трудове влаштування інвалідів"]
["091204","Територіальні центри соціального обслуговування (надання соціальних послуг)"]
["091205","Виплати грошової компенсації фізичним особам, які надають соціальні послуги громадянам похилого віку, інвалідам, дітям-інвалідам, хворим, які не здатні до самообслуговування і потребують сторонньої допомоги"]
["091206","Центри соціальної реабілітації дітей - інвалідів; центри професійної реабілітації інвалідів"]
["091207","Пільги, що надаються населенню (крім ветеранів війни і праці, військової служби, органів внутрішніх справ та громадян, які постраждали внаслідок Чорнобильської катастрофи), на оплату житлово-комунальних послуг і природного газу"]
["091209","Фінансова підтримка громадських організацій інвалідів і ветеранів"]
["091210","Служби технічного нагляду за будівництвом та капітальним ремонтом"]
["091211","Централізовані бухгалтерії"]
["091212","Обробка інформації з нарахування та виплати допомог і компенсацій"]
["091214","Інші установи та заклади"]
["091300","Державна соціальна допомога інвалідам з дитинства та дітям інвалідам"]
["091303","Компенсаційні виплати інвалідам на бензин, ремонт, техобслуговування автотранспорту та транспортне обслуговування"]
["091304","Встановлення телефонів інвалідам І та ІІ груп"]
["100000","Житлово-комунальне господарство"]
["100101","Житлово-експлуатаційне господарство"]
["100102","Капітальний ремонт житлового фонду місцевих органів влади"]
["100103","Дотація житлово-комунальному господарству"]
["100105","Видатки на утримання об'єктів соціальної сфери підприємств, що передаються до комунальної власності"]
["100106","Капітальний ремонт житлового фонду  об'єднань співвласників багатоквартирних будинків"]
["100201","Теплові мережі"]
["100202","Водопровідно - каналізаційне господарство"]
["100203","Благоустрій міст, сіл, селищ"]
["100205","Газові заводи і газова мережа"]
["100206","Готельне господарство"]
["100207","Берегоукріплювальні роботи"]
["100208","Видатки на впровадження засобів обліку витрат та регулювання споживання води та теплової енергії"]
["100209","Заходи, пов\"язані з поліпшенням питної води"]
["100301","Збір та вивезення сміття і відходів, експлуатація каналізаційних систем"]
["100302","Комбінати комунальних підприємств, районні виробничі об'єднання та інші підприємства, установи та організації житлово-комунального господарства"]
["100303","Ремонтно-будівельні організації житлово-комунального господарства"]
["100400","Підприємства і організації побутового обслуговування, що входять до комунальної власності"]
["100601","Відшкодування різниці між розміром ціни (тарифу) на житлово-комунальні послуги, що затверджувалися або погоджувалися рішенням місцевого органу виконавчої влади та органу місцевого самоврядування,  та розміром економічно обірунтованих витрат на їх  виробн"]
["100602","Погашення заборгованості з різниці в тарифах на теплову енергію, опалення та постачання гарячої води, послуги з централізованого водопостачання, водовідведення, що вироблялися, транспортувалися та постачалися населенню та/або іншим підприємствам централі"]
["110000","Культура і мистецтво"]
["110101","Творчі спілки"]
["110102","Театри"]
["110103","Філармонії, музичні колективи і ансамблі та інші мистецькі  заклади та заходи"]
["110104","Видатки на заходи, передбачені державними і місцевими програмами розвитку культури і мистецтва"]
["110105","Фінансова підтримка гастрольної діяльності"]
["110201","Бібліотеки"]
["110202","Музеї і виставки"]
["110203","Заповідники"]
["110204","Палаци і будинки культури, клуби та інші заклади клубного типу"]
["110205","Школи естетичного виховання дітей"]
["110300","Кінематографія"]
["110502","Інші культурно-освітні заклади та заходи"]
["120000","Засоби масової інформації"]
["120100","Телебачення і радіомовлення"]
["120201","Періодичні видання (газети та журнали)"]
["120300","Книговидання"]
["120400","Інші засоби масової інформації"]
["130000","Фізична культура і спорт"]
["130102","Проведення навчально-тренувальних зборів і змагань"]
["130104","Видатки на утримання центрів з інвалідного спорту і реабілітаційних шкіл"]
["130105","Проведення навчально-тренувальних зборів і змагань та заходів з інвалідного спорту"]
["130106","Проведення навчально-тренувальних зборів і змагань з неолімпійських видів спорту"]
["130107","Утримання та навчально-тренувальна робота дитячо-юнацьких спортивних шкіл"]
["130110","Фінансова підтримка спортивних споруд"]
["130112","Інші видатки"]
["130113","Централізовані бухгалтерії"]
["130114","Забезпечення підготовки спортсменів вищих категорій школами вищої спортивної майстерності"]
["130115","Центри \"Спорт для всіх\" та заходи з фізичної культури"]
["130201","Проведення навчально-тренувальних зборів і змагань (які проводяться громадськими організаціями фізкультурно-спортивної спрямованості)"]
["130202","Проведення заходів з нетрадиційних видів спорту і масових заходів з фізичної культури  (які проводяться громадськими організаціями фізкультурно-спортивної спрямованості)"]
["130203","Утримання та навчально-тренувальна робота дитячо-юнацьких спортивних шкіл (які підпорядковані громадським організаціям фізкультурно-спортивної спрямованості)"]
["130204","Утримання апарату управління громадських фізкультурно-спортивних організацій"]
["130205","Фінансова підтримка спортивних споруд, які належать громадським організаціям фізкультурно-спортивної спрямованості"]
["150000","Будівництво"]
["150101","Капітальні вкладення"]
["150104","Виплата компенсації на здешевлення вартості будівництва житла молодіжним житловим комплексам"]
["150107","Житлове будівництво і придбання житла військовослужбовцям та особам рядового і начальницького складу,  звільненим у запас або відставку за станом  здоров`я, віком, вислугою років та у зв`язку із скороченням штатів, які перебувають на квартирному обліку з"]
["150109","Компенсація селянським (фермерським) господарствам вартості будівництва об'єктів виробничого і невиробничого призначення"]
["150110","Проведення невідкладних відновлювальних робіт, будівництво та  реконструкція загальноосвітніх навчальних закладів"]
["150111","Проведення невідкладних відновлювальних робіт, будівництво та  реконструкція спеціалізованих навчальних закладів"]
["150112","Проведення невідкладних відновлювальних робіт, будівництво та  реконструкція позашкільних  навчальних закладів"]
["150114","Проведення невідкладних відновлювальних робіт, будівництво та реконструкція лікарень загального профілю"]
["150115","Завершення проектів газифікації сільських населених пунктів з високим ступенем готовності"]
["150118","Житлове будівництво та придбання житла для окремих категорій населення"]
["150119","Проведення невідкладних відновлювальних робіт, будівництво та реконструкція спеціалізованих лікарень  та інших спеціалізованих закладів"]
["150120","Будівництво та розвиток мережі метрополітенів"]
["150121","Заходи з упередження аварій та запобігання техногенних катастроф у житлово-комунальному господарстві та на інших аварійних об'єктах комунальної власності"]
["150122","Інвестиційні проекти"]
["150201","Збереження, розвиток, реконструкція та реставрація  пам'яток   історії та культури"]
["150202","Розробка схем та проектних рішень масового застосування"]
["150203","Операційні видатки і паспортизація, інвентаризація пам'яток архітектури, премії в галузі архітектури"]
["160000","Сільське і лісове господарство, рибне господарство та мисливство"]
["160101","Землеустрій"]
["160600","Лісове господарство і мисливство"]
["160903","Програми в галузі сільського господарства, лісового господарства, рибальства та мисливства"]
["160904","Організація та регулювання діяльності ветеринарних лікарень та ветеринарних лабораторій"]
["170000","Транспорт, дорожнє господарство, зв'язок, телекомунікації та інформатика"]
["170101","Регулювання цін на послуги місцевого автотранспорту"]
["170102","Коменсаційні виплати на пільговий проїзд автомобільним транспортом окремим категоріям громодян"]
["170103","Інші заходи у сфері автомобільного транспорту"]
["170202","Севастопольський морський торговельний порт"]
["170203","Компенсаційні виплати за пільговий проїзд окремих категорій громадян на водному транспорті"]
["170302","Компенсаційні виплати за пільговий проїзд окремих категорій громадян на залізничному транспорті"]
["170303","Регулювання цін на послуги метрополітену"]
["170601","Регулювання цін на послуги міського електротранспорту"]
["170602","Компенсаційні виплати на пільговий проїзд електротранспортом окремим категоріям громодян"]
["170603","Інші заходи у сфері електротранспорту"]
["170703","Видатки на проведення робіт, пов\"язаних з будівництвом, реконструкцією, ремонтом та утриманням автомобільних доріг"]
["170704","Реконструкція автомобільної дороги загального користування державного значення М-15 Одеса - Рені (на Бухарест), поточний ремонт автомобільної дороги загального користування державного значення Львів - Радехів - Луцьк (Н-17), ділянки Львів - Сколе"]
["170800","Зв'язок"]
["170901","Національна програма інформатизації"]
["171000","Діяльність і послуги, не віднесені до інших категорій"]
["180000","Інші послуги, пов'язані з економічною діяльністю"]
["180107","Фінансування енергозберігаючих заходів"]
["180109","Програма стабілізації та соціально-економічного розвитку територій"]
["180401","Платежі за кредитними угодами, укладеними під гарантії Уряду"]
["180403","Видатки на обслуговування та погашення зобов'язань за коштами, залученими розпорядниками бюджетних коштів  під державні гарантії для здійснення капітальних видатків"]
["180404","Підтримка малого і середнього підприємництва"]
["180405","Видатки на погашення реструктуризованої заборгованості перед комерційними банками та на поповнення їх капіталу"]
["180409","Внески органів влади Автономної Республіки Крим та органів місцевого самоврядування у статутні капітали суб\"єктів підприємницької діяльності"]
["180410","Інші заходи, пов\"язані з економічною діяльністю"]
["180411","Виконання Автономною Республікою Крим чи територіальною громадою міста гарантійних зобов'язань за позичальників, що отримали кредити під місцеві гарантії"]
["180412","Повернення коштів, наданих із бюджету Автономної Республіки Крим чи місцевого самоврядування для виконання Автономною Республікою Крим чи територіальною громадою міста гарантійних зобов'язань за позичальників, що отримали кредити під місцеві гарантії"]
["200000","Охорона навколишнього природного середовища та ядерна безпека"]
["200100","Охорона і раціональне використання водних ресурсів"]
["200200","Охорона і раціональне використання земель"]
["200300","Створення захисних лісових насаджень та полезахисних лісових смуг"]
["200400","Охорона і раціональне використання мінеральних ресурсів"]
["200600","Збереження природно-заповідного фонду"]
["200700","Інші природоохоронні заходи"]
["210000","Запобігання та ліквідація надзвичайних ситуацій та наслідків стихійного лиха"]
["210105","Видатки на запобігання та ліквідацію надзвичайних ситуацій та наслідків стихійного лиха"]
["210106","Заходи у сфері захисту населення і територій від надзвичайних ситуацій техногенного та природного характеру"]
["210107","Заходи та роботи з мобілізаційної підготовки місцевого значення"]
["210110","Заходи з організації рятування на водах"]
["210120","Видатки на ліквідацію наслідків стихійного лиха, що сталося 23-27 липня 2008 року"]
["230000","Обслуговування боргу"]
["240000","Цільові фонди"]
["240601","Охорона та раціональне використання природних ресурсів"]
["240602","Утилізація відходів"]
["240603","Ліквідація іншого забруднення навколишнього природного середовища"]
["240604","Інша діяльність у сфері охорони навколишнього природного середовища"]
["240605","Збереження природно-заповідного фонду"]
["240606","Заходи по заповненню водосховищ"]
["240800","Інші фонди"]
["240900","Цільові фонди, утворені Верховною Радою Автономної Республіки Крим, органами місцевого самоврядування і місцевими органами виконавчої влади"]
["250000","Видатки, не віднесені до основних груп"]
["250102","Резервний фонд"]
["250203","Проведення виборів депутатів місцевих рад та сільських, селищних, міських голів"]
["250205","Проведення референдумів"]
["250207","Утримання апарату Виборчої комісії Автономної Республіки Крим"]
["250301","Реверсна дотація"]
["250302","Кошти, що передаються до районних та міських (міст Києва і Севастополя, міст республіканського і обласного значення) бюджетів з міських (міст районного значення), селищних, сільських та районних у містах бюджетів"]
["250303","Кошти, що передаються за взаємними розрахунками із додаткової дотації до державного бюджету"]
["250304","Кошти, що передаються за взаємними розрахунками із додаткової дотації з районних та міських (міст Києва і Севастополя, міст республіканського та обласного значення) до міських (міст районного значення), селищних та сільських бюджетів"]
["250305","Кошти, що передаються за взаємними розрахунками із додаткової дотації з міських (міст районного значення), селищних та сільських бюджетів до районних та міських (міст Києва і Севастополя, міст республіканського та обласного значення) бюджетів"]
["250307","Кошти, що передаються за взаємними розрахунками до державного бюджету з місцевих бюджетів"]
["250308","Кошти, що передаються за взаємними розрахунками до місцевих бюджетів з державного бюджету"]
["250309","Кошти, що передаються за взаємними розрахунками між місцевими бюджетами"]
["250310","Додаткова дотація з державного бюджету місцевим бюджетам на компенсацію втрат доходів місцевих бюджетів внаслідок наданих державою податкових пільг зі сплати земельного податку суб'єктам космічної діяльності, літакобудування, суднобудування та кінематогр"]
["250313","Стабілізаційна дотація"]
["250314","Додаткова дотація з державного бюджету обласному бюджету Дніпропетровської області на здійснення видатків, пов'язаних з реалізацією заходів щодо підвищення рівня надання суспільних послуг"]
["250315","Інші додаткові дотації"]
["250316","Субвенція з державного бюджету обласному бюджету Донецької області на будівництво ПЕТ-КТ центру, капітальний ремонт і реконструкцію лікарняних споруд та закупівлю високовартісного медичного обладнання для Донецького обласного клінічного територіального м"]
["250318","Додаткова дотація з державного бюджету місцевим бюджетам на виплату надбавок за обсяг та якість виконаної роботи медичним працівникам закладів охорони здоров'я, що надають первинну медичну допомогу, у непілотних регіонах"]
["250319","Додаткова дотація з державного бюджету місцевим бюджетам на оплату праці працівників бюджетних установ"]
["250321","Субвенція з державного бюджету місцевим бюджетам на відшкодування частини відсоткових ставок по залучених кредитах на оновлення парку автобусів та тролейбусів приймаючих міст по підготовці до проведення в Україні фінальної частини чемпіонату Ївропи 2012"]
["250322","Субвенція з державного бюджету місцевим бюджетам на проекти ліквідації підприємств вугільної та торфодобувної промисловості і утримання водовідливних комплексів у безпечному режимі на умовах співфінансування (50 відсотків)"]
["250323","Субвенція на утримання об\"єктів спільного користування чи ліквідацію негативних наслідків діяльності об\"єктів спільного користування"]
["250324","Субвенція іншим бюджетам на виконання інвестиційних проектів"]
["250326","Субвенція з державного бюджету місцевим бюджетам на виплату допомоги сім'ям з дітьми, малозабезпеченим сім'ям, інвалідам з дитинства, дітям-інвалідам, тимчасової державної допомоги дітям та допомоги по догляду за інвалідами І чи ІІ групи внаслідок психіч"]
["250328","Субвенція з державного бюджету місцевим бюджетам на надання пільг та житлових субсидій населенню на оплату електроенергії, природного газу, послуг  тепло-, водопостачання і водовідведення, квартирної плати (утримання будинків і споруд та прибудинкових те"]
["250329","Субвенція з державного бюджету місцевим бюджетам на надання пільг з послуг зв'язку, інших передбачених законодавством пільг (крім пільг на одержання ліків, зубопротезування, оплату   електроенергії, природного і скрапленого газу на  побутові потреби, тве"]
["250330","Субвенція з державного бюджету місцевим бюджетам на надання пільг та житлових субсидій населенню на придбання твердого та рідкого  пічного побутового палива і скрапленого газу"]
["250331","Додаткова дотація з державного бюджету місцевим бюджетам на покращення надання соціальних послуг найуразливішим верствам населення"]
["250332","Субвенція на підготовку робітничих кадрів з державного бюджету місцевим бюджетам"]
["250333","Додаткова дотація з державного бюджету місцевим бюджетам на виплату допомоги по догляду за інвалідом І чи ІІ групи внаслідок психічного розладу"]
["250334","Субвенція з державного бюджету місцевим бюджетам на погашення кредиторської заборгованості за медичне обладнання, придбане в 2011 році за рахунок субвенції з державного бюджету місцевим бюджетам на придбання витратних матеріалів та медичного обладнання д"]
["250335","Субвенція з державного бюджету місцевим бюджетам на фінансування ремонту приміщень управлінь праці та соціального захисту виконавчих органів міських (міст республіканського в Автономній Республіці Крим і обласного значення), районних у містах Києві і Сев"]
["250336","Освітня субвенція з державного бюджету місцевим бюджетам"]
["250337","Субвенція з державного бюджету місцевим бюджетам на проведення заходів з відзначення 200-річчя від дня народження Тараса Шевченка"]
["250339","Медична субвенція з державного бюджету місцевим бюджетам"]
["250342","Субвенція з державного бюджету місцевим бюджетам для сплати заборгованості за поставлене у 2012 році медичне обладнання вітчизняного виробництва"]
["250343","Субвенція з державного бюджету обласному бюджету Тернопільської області на продовження будівництва житлових будинків у м. Почаєві Кременецького району з метою відселення сторонніх осіб з території Свято-Успенської Почаївської Лаври"]
["250344","Субвенція з місцевого бюджету державному бюджету на виконання програм соціально-економічного та культурного розвитку регіонів"]
["250347","Субвенція з державного бюджету районному бюджету  Шацького району Волинської області для продовження будівництва та капітального ремонту доріг Шацьк - Світязь - Залісся - Пульмо - Шацьк, в тому числі на оплату виконаних у 2012 році робіт"]
["250348","Субвенція з державного бюджету бюджету м. Дніпропетровська для продовження будівництва автомобільної дороги в м. Дніпропетровську на ділянці від Кайдацького шляху до автомобільної дороги Київ - Луганськ - Ізварине, у тому числі оплату виконаних у 2012 ро"]
["250349","Субвенція з державного бюджету місцевим бюджетам на капітальний ремонт систем централізованого водопостачання та водовідведення"]
["250355","Субвенція з державного бюджету місцевим бюджетам на реформування регіональних систем охорони здоров'я для здійснення  заходів з виконання спільного з Міжнародним банком реконструкції та розвитку проекту \"Поліпшення охорони здоров'я на службі у людей\""]
["250356","Субвенція з державного бюджету обласному бюджету Львівської області на завершення реконструкції Львівського обласного перинатального центру"]
["250357","Субвенція з державного бюджету місцевим бюджетам на відновлення (будівництво, капітальний ремонт, реконструкцію) інфраструктури у Донецькій та Луганській областях"]
["250359","Субвенція з державного бюджету місцевим бюджетам на придбання витратних матеріалів для закладів охорони здоров'я та лікарських засобів для інгаляційної анестезії"]
["250360","Субвенція з державного бюджету місцевим бюджетам на часткове відшкодування вартості лікарських засобів для лікування осіб з гіпертонічною хворобою"]
["250361","Субвенція з державного бюджету місцевим бюджетам на придбання нових трамвайних вагонів вітчизняного виробництва для комунального електротранспорту"]
["250362","Субвенція з державного бюджету місцевим бюджетам на фінансування заходів соціально-економічної компенсації ризику населення, яке проживає на території зони спостереження"]
["250363","Субвенція з державного бюджету місцевим бюджетам на придбання медикаментів та виробів медичного призначення для забезпечення швидкої медичної допомоги"]
["250366","Субвенція з державного бюджету місцевим бюджетам на здійснення заходів щодо соціально-економічного розвитку окремих територій"]
["250370","Субвенція з державного бюджету місцевим бюджетам на підтримку реформування системи охорони здоров'я (придбання медичного автотранспорту, автотранспорту, техніки, інвентарю та медичного обладнання для центрів первинної медичної (медико-санітарної) допомог"]
["250371","Субвенція з державного бюджету місцевим бюджетам на придбання медичного обладнання (мамографічного, рентгенологічного та апаратів ультразвукової діагностики) вітчизняного виробництва"]
["250372","Субвенція з державного бюджету місцевим бюджетам на придбання медичного автотранспорту та обладнання для закладів охорони здоров'я"]
["250373","Субвенція з державного бюджету міському бюджету  міста Києва для здійснення заходів з деодорації на спорудах Бортницької станції аерації"]
["250376","Субвенція з державного бюджету місцевим бюджетам на виплату державної соціальної допомоги на дітей-сиріт та дітей, позбавлених батьківського піклування, грошового забезпечення батькам-вихователям і прийомним батькам за надання соціальних послуг у дитячих"]
["250380","Інші субвенції"]
["250382","Субвенція з державного бюджету місцевим бюджетам на фінансування Програм - переможців Всеукраїнського конкурсу проектів та програм розвитку місцевого самоврядування"]
["250383","Субвенція з державного бюджету місцевим бюджетам на погашення заборгованості з різниці в тарифах на теплову енергію, опалення та постачання гарячої води, послуги з централізованого водопостачання, водовідведення,що вироблялися, транспортувалися та постач"]
["250384","Субвенція з державного бюджету місцевим бюджетам на будівництво (придбання) житла для сімей загиблих військовослужбовців, які брали безпосередню участь в антитерористичній операції, а також для інвалідів І - ІІ групи з числа військовослужбовців, які брал"]
["250388","Субвенція з державного бюджету місцевим бюджетам на проведення виборів депутатів місцевих рад та сільських, селищних, міських голів"]
["250389","Субвенція з державного бюджету міському бюджету міста Києва на забезпечення функціонування Центру ядерної медицини Київського міського клінічного онкологічного центру"]
["250390","Субвенція з державного бюджету обласному бюджету Одеської області на придбання медичного обладнання для Одеської обласної дитячої клінічної лікарні"]
["250391","Субвенція з державного бюджету місцевим бюджетам на часткове фінансування дитячо-юнацьких спортивних шкіл, які до 2015 року отримували підтримку з Фонду соціального страхування з тимчасової втрати працездатності"]
["250402","Видатки на покриття заборгованостей, що виникли у попередні роки із заробітної плати працівників бюджетних установ, грошового забезпечення, стипендій та інших соціальних виплатах"]
["250403","Видатки на покриття інших заборгованостей, що виникли у попередні роки"]
["250404","Інші видатки"]
["250405","Видатки на будівництво та реконструкцію релігійних споруд"]
["250406","Видатки на реалізацію програм допомоги і грантів міжнародних фінансових організацій та Ївропейського Союзу"]
["250500","Підготовка земельних ділянок несільськогосподарського призначення або прав на них комунальної власності для продажу на земельних торгах та проведення таких торгів"]
["250901","Впровадження проектів розвитку за рахунок коштів, залучених державою"]
["250902","Повернення позик, наданих для впровадження проектів розвитку за рахунок коштів, залучених державою"]
["250903","Надання бюджетних позичок субієктам підприємницької діяльності"]
["250904","Повернення бюджетних позичок"]
["250905","Часткова компенсація відсоткової ставки кредитів комерційних банків молодим сім'ям та одиноким молодим громадянам на будівництво (реконструкцію) та придбання житла"]
["250907","Погашення відсотків за користування довгостроковими пільговими кредитами на будівництво (реконструкцію) та придбання житла для молодих сімей та інших соціально незахищених категорій громадян"]
["250908","Надання пільгового довгострокового кредиту громадянам на будівництво (реконструкцію) та  придбання житла"]
["250909","Повернення коштів, наданих для кредитування  громадян на будівництво (реконструкцію) та придбання житла"]
["250910","Надання пільгового кредиту членам житлово-будівельних кооперативів"]
["250911","Надання державного пільгового кредиту індивідуальним сільським забудовникам"]
["250912","Повернення коштів, наданих для кредитування індивідуальних сільських забудовників"]
["250913","Витрати, пов'язані з наданням та обслуговуванням пільгових довгострокових кредитів, наданих громадянам на будівництво (реконструкцію) та придбання житла"]
["250914","Витрати, пов'язані з наданням та обслуговуванням державних пільгових кредитів, наданих індивідуальним сільським забудовникам"]
["250915","Фінансування ремонту приміщень управлінь праці та соціального захисту виконавчих органів міських (міст республіканського в Автономній Республіці Крим і обласного значення), районних у містах Києві і Севастополі та районних у містах рад для здійснення зах"]
["-","-"]

{"sheet":"ДовидникКВК(ГОС)","index":3,"n_rows":122,"n_cols":2,"rows_kept":122,"cut":false,"hidden":true,"merged":[]}
["11","Апарат Верховної Ради України"]
["30","Державне управління справами"]
["41","Господарсько-фінансовий департамент Секретаріату Кабінету Міністрів України"]
["42","Господарсько-фінансовий департамент Секретаріату Кабінету Міністрів України (загальнодержавні видатки та кредитування)"]
["50","Державна судова адміністрація України"]
["55","Верховний Суд"]
["80","Конституційний Суд України"]
["85","Вищий антикорупційний суд"]
["90","Офіс Генерального прокурора"]
["95","Вищий суд з питань інтелектуальної власності"]
["100","Міністерство внутрішніх справ України"]
["120","Міністерство розвитку економіки, торгівлі та сільського господарства України\n\n"]
["121","Міністерство розвитку економіки, торгівлі та сільського господарства України (загальнодержавні видатки та кредитування)\n\n"]
["140","Міністерство закордонних справ України"]
["150","Міністерство у справах ветеранів, тимчасово окупованих територій та внутрішньо переміщених осіб України\n\n"]
["151","Міністерство у справах ветеранів, тимчасово окупованих територій та внутрішньо переміщених осіб України (загальнодержавні видатки та кредитування)"]
["181","Міністерство культури України (загальнодержавні витрати)"]
["190","Державне агентство лісових ресурсів України"]
["210","Міністерство оборони України"]
["220","Міністерство освіти і науки України"]
["221","Міністерство освіти і науки України (загальнодержавні видатки та кредитування)"]
["230","Міністерство охорони здоров'я України"]
["231","Міністерство охорони здоров'я України (загальнодержавні видатки та кредитування)"]
["240","Міністерство енергетики та захисту довкілля України"]
["241","Міністерство енергетики та захисту довкілля України (загальнодержавні видатки та кредитування)\n\n"]
["250","Міністерство соціальної політики України"]
["251","Міністерство соціальної політики України (загальнодержавні видатки та кредитування)"]
["275","Міністерство розвитку громад та територій України\n\n"]
["276","Міністерство розвитку громад та територій України (загальнодержавні видатки та кредитування)\n\n"]
["290","Міністерство цифрової трансформації України\n\n"]
["291","Міністерство цифрової трансформації України (загальнодержавні видатки та кредитування)\n\n"]
["310","Міністерство інфраструктури України"]
["311","Державне агентство автомобільних доріг України"]
["312","Міністерство інфраструктури України (загальнодержавні видатки та кредитування)"]
["313","Державне агентство автомобільних доріг України (загальнодержавні видатки та кредитування)"]
["320","Міністерство надзвичайних ситуацій України"]
["321","Міністерство надзвичайних ситуацій України (загальнодержавні витрати)"]
["350","Міністерство фінансів України"]
["351","Міністерство фінансів України (загальнодержавні видатки та кредитування)"]
["360","Міністерство юстиції України"]
["380","Міністерство культури, молоді та спорту України\n\n"]
["381","Міністерство культури, молоді та спорту України (загальнодержавні видатки та кредитування)"]
["527","Державна інспекція ядерного регулювання України"]
["534","Адміністрація Державної прикордонної служби України"]
["550","Національна комісія, що здійснює державне регулювання у сфері ринків фінансових послуг"]
["555","Державна служба України з контролю за наркотиками"]
["556","Національна комісія, що здійснює державне регулювання у сфері зв'язку та інформатизації"]
["596","Головне управління розвідки Міністерства оборони України"]
["597","Уповноважений із захисту державної мови"]
["598","Вища рада правосуддя"]
["599","Секретаріат Уповноваженого Верховної Ради України з прав людини"]
["601","Антимонопольний комітет України"]
["612","Національне агентство України з питань державної служби"]
["615","Національна комісія з цінних паперів та фондового ринку"]
["632","Національне антикорупційне бюро України"]
["633","Національне агентство з питань запобігання корупції"]
["634","Національна комісія, що здійснює державне регулювання у сферах енергетики та комунальних послуг"]
["637","Національна комісія, що здійснює державне регулювання у сфері енергетики"]
["638","Державне космічне агентство України"]
["642","Державне бюро розслідувань"]
["643","Нацiональне агентство України з питань виявлення, розшуку та управлiння активами, одержаними вiд корупцiйних та iнших злочинiв"]
["644","Національна рада України з питань телебачення і радіомовлення"]
["645","Національна комісія, що здійснює державне регулювання у сфері комунальних послуг"]
["650","Рада національної безпеки і оборони України"]
["651","Рахункова палата"]
["652","Служба безпеки України"]
["654","Національна академія наук України"]
["655","Національна академія педагогічних наук України"]
["656","Національна академія медичних наук України"]
["657","Національна академія мистецтв України"]
["658","Національна академія правових наук України"]
["659","Національна академія аграрних наук України"]
["660","Управління державної охорони України"]
["661","Фонд державного майна України"]
["662","Служба зовнішньої розвідки України"]
["664","Адміністрація Державної служби спеціального зв'язку та захисту інформації України"]
["665","Національне агентство з питань підготовки та проведення в Україні фінальної частини чемпіонату європи2012 року з футболу та реалізації інфраструктурних проектів"]
["673","Центральна виборча комісія"]
["674","Центральна виборча комісія (загальнодержавні видатки та кредитування)"]
["680","Національна акціонерна компанія \"Украгролізинг\""]
["771","Рада міністрів Автономної Республіки Крим"]
["772","Вінницька обласна державна адміністрація"]
["773","Волинська обласна державна адміністрація"]
["774","Дніпропетровська обласна державна адміністрація"]
["775","Донецька обласна державна адміністрація"]
["776","Житомирська обласна державна адміністрація"]
["777","Закарпатська обласна державна адміністрація"]
["778","Запорізька обласна державна адміністрація"]
["779","Івано-Франківська обласна державна адміністрація"]
["780","Київська обласна державна адміністрація"]
["781","Кіровоградська обласна державна адміністрація"]
["782","Луганська обласна державна адміністрація"]
["783","Львівська обласна державна адміністрація"]
["784","Миколаївська обласна державна адміністрація"]
["785","Одеська обласна державна адміністрація"]
["786","Полтавська обласна державна адміністрація"]
["787","Рівненська обласна державна адміністрація"]
["788","Сумська обласна державна адміністрація"]
["789","Тернопільська обласна державна адміністрація"]
["790","Харківська обласна державна адміністрація"]
["791","Херсонська обласна державна адміністрація"]
["792","Хмельницька обласна державна адміністрація"]
["793","Черкаська обласна державна адміністрація"]
["794","Чернівецька обласна державна адміністрація"]
["795","Чернігівська обласна державна адміністрація"]
["796","Київська міська державна админістрація"]
["797","Севастопольська міська державна адміністрація"]
["868","Державна регуляторна служба України"]
[]
[]
[]
[]
[]
[]
[]
[]
[]
[]
[]
[]
[]
["-","-"]

{"sheet":"КПКВМБ","index":4,"n_rows":443,"n_cols":2,"rows_kept":443,"cut":false,"hidden":true,"merged":[]}
["0100","Державне управління"]
["0110","Організаційне, інформаційно-аналітичне та матеріально-технічне забезпечення діяльності Верховної Ради Автономної Республіки Крим"]
["0120","Організаційне, інформаційно-аналітичне та матеріально-технічне забезпечення діяльності Рахункової палати Верховної Ради Автономної Республіки Крим"]
["0130","Організаційне, інформаційно-аналітичне та матеріально-технічне забезпечення діяльності Ради міністрів Автономної Республіки Крим"]
["0140","Керівництво і управління у відповідній сфері в Автономній Республіці Крим"]
["0150","Організаційне, інформаційно-аналітичне та матеріально-технічне забезпечення діяльності обласної ради, районної ради, районної у місті ради (у разі її створення), міської, селищної, сільської рад"]
["0160","Керівництво і управління у відповідній сфері у містах (місті Києві), селищах, селах, територіальних громадах"]
["0170","Підвищення кваліфікації депутатів місцевих рад та посадових осіб місцевого самоврядування"]
["0180","Інша діяльність у сфері державного управління"]
["0190","Проведення місцевих виборів та референдумів, забезпечення діяльності виборчої комісії Автономної Республіки Крим"]
["0191","Проведення місцевих виборів"]
["0192","Проведення місцевих референдумів"]
["0193","Забезпечення діяльності виборчої комісії Автономної Республіки Крим"]
["1000","Освіта"]
["1010","Надання дошкільної освіти"]
["1020","Надання загальної середньої освіти за рахунок коштів місцевого бюджету"]
["1021","Надання загальної середньої освіти закладами загальної середньої освіти"]
["1022","Надання загальної середньої освіти спеціальними закладами загальної середньої освіти для дітей, які потребують корекції фізичного та/або розумового розвитку"]
["1023","Надання загальної середньої освіти спеціалізованими закладами загальної середньої освіти"]
["1024","Забезпечення належних умов для виховання та розвитку дітей-сиріт і дітей, позбавлених батьківського піклування, в дитячих будинках"]
["1025","Надання загальної середньої освіти навчально-реабілітаційними центрами для дітей з особливими освітніми потребами, зумовленими складними порушеннями розвитку"]
["1026","Надання загальної середньої освіти міжшкільними ресурсними центрами"]
["1030","Надання загальної середньої освіти за рахунок освітньої субвенції"]
["1031","Надання загальної середньої освіти закладами загальної середньої освіти"]
["1032","Надання загальної середньої освіти спеціальними закладами загальної середньої освіти для дітей, які потребують корекції фізичного та/або розумового розвитку"]
["1033","Надання загальної середньої освіти спеціалізованими закладами загальної середньої освіти"]
["1034","Забезпечення належних умов для виховання та розвитку дітей-сиріт і дітей, позбавлених батьківського піклування, в дитячих будинках"]
["1035","Надання загальної середньої освіти навчально-реабілітаційними центрами для дітей з особливими освітніми потребами, зумовленими складними порушеннями розвитку"]
["1040","Надання загальної середньої освіти за рахунок залишку коштів за освітньою субвенцією, що мають цільове призначення, виділених відповідно до рішень Кабінету Міністрів України у попередньому бюджетному періоді"]
["1041","Надання загальної середньої освіти закладами загальної середньої освіти"]
["1042","Надання загальної середньої освіти спеціальними закладами загальної середньої освіти для дітей, які потребують корекції фізичного та/або розумового розвитку"]
["1043","Надання загальної середньої освіти спеціалізованими закладами загальної середньої освіти"]
["1044","Забезпечення належних умов для виховання та розвитку дітей-сиріт і дітей, позбавлених батьківського піклування, в дитячих будинках"]
["1045","Надання загальної середньої освіти навчально-реабілітаційними центрами для дітей з особливими освітніми потребами, зумовленими складними порушеннями розвитку"]
["1050","Закупівля товарів, робіт і послуг, необхідних для забезпечення безпечного навчального процесу у закладах загальної середньої освіти, за рахунок залишку коштів за освітньою субвенцією (COVID-19)"]
["1051","Надання загальної середньої освіти закладами загальної середньої освіти"]
["1052","Надання загальної середньої освіти спеціальними закладами загальної середньої освіти для дітей, які потребують корекції фізичного та/або розумового розвитку"]
["1053","Надання загальної середньої освіти спеціалізованими закладами загальної середньої освіти"]
["1054","Забезпечення належних умов для виховання та розвитку дітей-сиріт і дітей, позбавлених батьківського піклування, в дитячих будинках"]
["1055","Надання загальної середньої освіти навчально-реабілітаційними центрами для дітей з особливими освітніми потребами, зумовленими складними порушеннями розвитку"]
["1060","Надання загальної середньої освіти за рахунок залишку коштів за освітньою субвенцією (крім залишку коштів, що мають цільове призначення, виділених відповідно до рішень Кабінету Міністрів України у попередньому бюджетному періоді, а також коштів, необхідних для забезпечення безпечного навчального процесу у закладах загальної середньої освіти)"]
["1061","Надання загальної середньої освіти закладами загальної середньої освіти"]
["1062","Надання загальної середньої освіти спеціальними закладами загальної середньої освіти для дітей, які потребують корекції фізичного та/або розумового розвитку"]
["1063","Надання загальної середньої освіти спеціалізованими закладами загальної середньої освіти"]
["1064","Забезпечення належних умов для виховання та розвитку дітей-сиріт і дітей, позбавлених батьківського піклування, в дитячих будинках"]
["1065","Надання загальної середньої освіти навчально-реабілітаційними центрами для дітей з особливими освітніми потребами, зумовленими складними порушеннями розвитку"]
["1070","Надання позашкільної освіти закладами позашкільної освіти, заходи із позашкільної роботи з дітьми"]
["1080","Надання спеціальної освіти мистецькими школами"]
["1090","Підготовка кадрів закладами професійної (професійно-технічної) освіти та іншими закладами освіти"]
["1091","Підготовка кадрів закладами професійної (професійно-технічної) освіти та іншими закладами освіти за рахунок коштів місцевого бюджету"]
["1092","Підготовка кадрів закладами професійної (професійно-технічної) освіти та іншими закладами освіти за рахунок освітньої субвенції"]
["1093","Підготовка кадрів закладами професійної (професійно-технічної) освіти та іншими закладами освіти за рахунок залишку коштів за освітньою субвенцією, що мають цільове призначення, виділених відповідно до рішень Кабінету Міністрів України у попередньому бюджетному періоді"]
["1094","Підготовка кадрів закладами професійної (професійно-технічної) освіти та іншими закладами освіти за рахунок залишку коштів за освітньою субвенцією (крім залишку коштів, що мають цільове призначення, виділених відповідно до рішень Кабінету Міністрів України у попередньому бюджетному періоді)"]
["1100","Підготовка кадрів закладами фахової передвищої освіти"]
["1101","Підготовка кадрів закладами фахової передвищої освіти за рахунок коштів місцевого бюджету"]
["1102","Підготовка кадрів закладами фахової передвищої освіти за рахунок освітньої субвенції"]
["1103","Підготовка кадрів закладами фахової передвищої освіти за рахунок залишку коштів за освітньою субвенцією, що мають цільове призначення, виділених відповідно до рішень Кабінету Міністрів України у попередньому бюджетному періоді"]
["1104","Підготовка кадрів закладами фахової передвищої освіти за рахунок залишку коштів за освітньою субвенцією (крім залишку коштів, що мають цільове призначення, виділених відповідно до рішень Кабінету Міністрів України у попередньому бюджетному періоді)"]
["1110","Підготовка кадрів закладами вищої освіти"]
["1120","Підвищення кваліфікації, перепідготовка кадрів закладами післядипломної освіти"]
["1130","Методичне забезпечення діяльності закладів освіти"]
["1140","Інші програми, заклади та заходи у сфері освіти"]
["1141","Забезпечення діяльності інших закладів у сфері освіти"]
["1142","Інші програми та заходи у сфері освіти"]
["1150","Забезпечення діяльності інклюзивно-ресурсних центрів"]
["1151","Забезпечення діяльності інклюзивно-ресурсних центрів за рахунок коштів місцевого бюджету"]
["1152","Забезпечення діяльності інклюзивно-ресурсних центрів за рахунок освітньої субвенції"]
["1153","Забезпечення діяльності інклюзивно-ресурсних центрів за рахунок залишку коштів за освітньою субвенцією, що мають цільове призначення, виділених відповідно до рішень Кабінету Міністрів України у попередньому бюджетному періоді"]
["1154","Забезпечення діяльності інклюзивно-ресурсних центрів за рахунок залишку коштів за освітньою субвенцією (крім залишку коштів, що мають цільове призначення, виділених відповідно до рішень Кабінету Міністрів України у попередньому бюджетному періоді)"]
["1160","Забезпечення діяльності центрів професійного розвитку педагогічних працівників"]
["1170","Виконання заходів в рамках реалізації програми \"Спроможна школа для кращих результатів\""]
["1171","Співфінансування заходів, що реалізуються за рахунок субвенції з державного бюджету місцевим бюджетам на реалізацію програми \"Спроможна школа для кращих результатів\""]
["1172","Виконання заходів в рамках реалізації програми \"Спроможна школа для кращих результатів\" за рахунок субвенції з державного бюджету місцевим бюджетам"]
["1180","Виконання заходів, спрямованих на забезпечення якісної, сучасної та доступної загальної середньої освіти \"Нова українська школа\""]
["1181","Співфінансування заходів, що реалізуються за рахунок субвенції з державного бюджету місцевим бюджетам на забезпечення якісної, сучасної та доступної загальної середньої освіти \"Нова українська школа\""]
["1182","Виконання заходів, спрямованих на забезпечення якісної, сучасної та доступної загальної середньої освіти \"Нова українська школа\" за рахунок субвенції з державного бюджету місцевим бюджетам"]
["1200","Надання освіти за рахунок субвенції з державного бюджету місцевим бюджетам на надання державної підтримки особам з особливими освітніми потребами"]
["1210","Надання освіти за рахунок залишку коштів за субвенцією з державного бюджету місцевим бюджетам на надання державної підтримки особам з особливими освітніми потребами"]
["2000","Охорона здоров'я"]
["2010","Багатопрофільна стаціонарна медична допомога населенню"]
["2020","Спеціалізована стаціонарна медична допомога населенню"]
["2030","Лікарсько-акушерська допомога вагітним, породіллям та новонародженим"]
["2040","Санаторно-курортна допомога населенню"]
["2050","Медико-соціальний захист дітей-сиріт і дітей, позбавлених батьківського піклування"]
["2060","Створення банків крові та її компонентів"]
["2070","Екстрена та швидка медична допомога населенню"]
["2080","Амбулаторно-поліклінічна допомога населенню, крім первинної медичної допомоги"]
["2090","Спеціалізована амбулаторно-поліклінічна допомога населенню"]
["2100","Стоматологічна допомога населенню"]
["2110","Первинна медична допомога населенню"]
["2111","Первинна медична допомога населенню, що надається центрами первинної медичної (медико-санітарної) допомоги"]
["2112","Первинна медична допомога населенню, що надається фельдшерськими, фельдшерсько-акушерськими пунктами"]
["2113","Первинна медична допомога населенню, що надається амбулаторно-поліклінічними закладами (відділеннями)"]
["2120","Інформаційно-методичне та просвітницьке забезпечення в галузі охорони здоров'я"]
["2130","Проведення належної медико-соціальної експертизи (МСЕК)"]
["2140","Програми і централізовані заходи у галузі охорони здоров'я"]
["2141","Програми і централізовані заходи з імунопрофілактики"]
["2142","Програми і централізовані заходи боротьби з туберкульозом"]
["2143","Програми і централізовані заходи профілактики ВІЛ-інфекції/СНІДу"]
["2144","Централізовані заходи з лікування хворих на цукровий та нецукровий діабет"]
["2145","Централізовані заходи з лікування онкологічних хворих"]
["2146","Відшкодування вартості лікарських засобів для лікування окремих захворювань"]
["2150","Інші програми, заклади та заходи у сфері охорони здоров'я"]
["2151","Забезпечення діяльності інших закладів у сфері охорони здоров'я"]
["2152","Інші програми та заходи у сфері охорони здоров'я"]
["3000","Соціальний захист та соціальне забезпечення"]
["3020","Забезпечення побутовим вугіллям окремих категорій громадян"]
["3030","Надання пільг з оплати послуг зв'язку, інших передбачених законодавством пільг окремим категоріям громадян та компенсації за пільговий проїзд окремих категорій громадян"]
["3031","Надання інших пільг окремим категоріям громадян відповідно до законодавства"]
["3032","Надання пільг окремим категоріям громадян з оплати послуг зв'язку"]
["3033","Компенсаційні виплати на пільговий проїзд автомобільним транспортом окремим категоріям громадян"]
["3034","Компенсаційні виплати за пільговий проїзд окремих категорій громадян на водному транспорті"]
["3035","Компенсаційні виплати за пільговий проїзд окремих категорій громадян на залізничному транспорті"]
["3036","Компенсаційні виплати на пільговий проїзд електротранспортом окремим категоріям громадян"]
["3050","Пільгове медичне обслуговування осіб, які постраждали внаслідок Чорнобильської катастрофи"]
["3060","Оздоровлення громадян, які постраждали внаслідок Чорнобильської катастрофи"]
["3070","Виплата компенсації реабілітованим"]
["3090","Видатки на поховання учасників бойових дій та осіб з інвалідністю внаслідок війни"]
["3100","Надання соціальних та реабілітаційних послуг громадянам похилого віку, особам з інвалідністю, дітям з інвалідністю в установах соціального обслуговування"]
["3101","Забезпечення соціальними послугами стаціонарного догляду з наданням місця для проживання дітей з вадами фізичного та розумового розвитку"]
["3102","Забезпечення соціальними послугами стаціонарного догляду з наданням місця для проживання, всебічної підтримки, захисту та безпеки осіб, які не можуть вести самостійний спосіб життя через похилий вік, фізичні та розумові вади, психічні захворювання або інші хвороби"]
["3103","Навчання та трудове влаштування осіб з інвалідністю"]
["3104","Забезпечення соціальними послугами за місцем проживання громадян, які не здатні до самообслуговування у зв'язку з похилим віком, хворобою, інвалідністю"]
["3105","Надання реабілітаційних послуг особам з інвалідністю та дітям з інвалідністю"]
["3110","Заклади і заходи з питань дітей та їх соціального захисту"]
["3111","Утримання закладів, що надають соціальні послуги дітям, які опинились у складних життєвих обставинах, підтримка функціонування дитячих будинків сімейного типу та прийомних сімей"]
["3112","Заходи державної політики з питань дітей та їх соціального захисту"]
["3113","Підтримка та утримання малих групових будинків"]
["3120","Здійснення соціальної роботи з вразливими категоріями населення"]
["3121","Утримання та забезпечення діяльності центрів соціальних служб"]
["3122","Заходи державної політики із забезпечення рівних прав та можливостей жінок та чоловіків"]
["3123","Заходи державної політики з питань сім'ї"]
["3130","Реалізація державної політики у молодіжній сфері"]
["3131","Здійснення заходів та реалізація проектів на виконання Державної цільової соціальної програми \"Молодь України\""]
["3132","Утримання клубів для підлітків за місцем проживання"]
["3133","Інші заходи та заклади молодіжної політики"]
["3140","Оздоровлення та відпочинок дітей (крім заходів з оздоровлення дітей, що здійснюються за рахунок коштів на оздоровлення громадян, які постраждали внаслідок Чорнобильської катастрофи)"]
["3150","Розселення та облаштування депортованих кримських татар та осіб інших національностей, депортованих з України"]
["3160","Надання соціальних гарантій фізичним особам, які надають соціальні послуги громадянам похилого віку, особам з інвалідністю, дітям з інвалідністю, хворим, які не здатні до самообслуговування і потребують сторонньої допомоги"]
["3170","Забезпечення реалізації окремих програм для осіб з інвалідністю"]
["3171","Компенсаційні виплати особам з інвалідністю на бензин, ремонт, технічне обслуговування автомобілів, мотоколясок і на транспортне обслуговування"]
["3172","Встановлення телефонів особам з інвалідністю I і II груп"]
["3180","Надання пільг населенню (крім ветеранів війни і праці, військової служби, органів внутрішніх справ та громадян, які постраждали внаслідок Чорнобильської катастрофи) на оплату житлово-комунальних послуг"]
["3190","Соціальний захист ветеранів війни та праці"]
["3191","Інші видатки на соціальний захист ветеранів війни та праці"]
["3192","Надання фінансової підтримки громадським об'єднанням ветеранів і осіб з інвалідністю, діяльність яких має соціальну спрямованість"]
["3200","Забезпечення обробки інформації з нарахування та виплати допомог і компенсацій"]
["3210","Організація та проведення громадських робіт"]
["3220","Грошова компенсація за належні для отримання жилі приміщення для окремих категорій населення відповідно до законодавства"]
["3221","Грошова компенсація за належні для отримання жилі приміщення для сімей осіб, визначених абзацами 5 - 8 пункту 1 статті 10 Закону України \"Про статус ветеранів війни, гарантії їх соціального захисту\", для осіб з інвалідністю I - II групи, яка настала внаслідок поранення, контузії, каліцтва або захворювання, одержаних під час безпосередньої участі в антитерористичній операції, забезпеченні її проведення, здійсненні заходів із забезпечення національної безпеки і оборони, відсічі і стримування збройної агресії Російської Федерації у Донецькій та Луганській областях, забезпеченні їх здійснення, визначених пунктами 11 - 14 частини другої статті 7 Закону України \"Про статус ветеранів війни, гарантії їх соціального захисту\", та які потребують поліпшення житлових умов"]
["3222","Грошова компенсація за належні для отримання жилі приміщення для внутрішньо переміщених осіб, які захищали незалежність, суверенітет та територіальну цілісність України і брали безпосередню участь в антитерористичній операції, забезпеченні її проведення, перебуваючи безпосередньо в районах антитерористичної операції у період її проведення, у здійсненні заходів із забезпечення національної безпеки і оборони, відсічі і стримування збройної агресії Російської Федерації у Донецькій та Луганській областях, забезпеченні їх здійснення, перебуваючи безпосередньо в районах та у період здійснення зазначених заходів, та визнані особами з інвалідністю внаслідок війни III групи відповідно до пунктів 11 - 14 частини другої статті 7 або учасниками бойових дій відповідно до пунктів 19 - 20 частини першої статті 6 Закону України \"Про статус ветеранів війни, гарантії їх соціального захисту\", та які потребують поліпшення житлових умов"]
["3223","Грошова компенсація за належні для отримання жилі приміщення для сімей учасників бойових дій на території інших держав, визначених у абзаці першому пункту 1 статті 10 Закону України \"Про статус ветеранів війни, гарантії їх соціального захисту\", для осіб з інвалідністю I - II групи з числа учасників бойових дій на території інших держав, інвалідність яких настала внаслідок поранення, контузії, каліцтва або захворювання, пов'язаних з перебуванням у цих державах, визначених пунктом 7 частини другої статті 7 Закону України \"Про статус ветеранів війни, гарантії їх соціального захисту\", та які потребують поліпшення житлових умов"]
["3224","Грошова компенсація за належні для отримання жилі приміщення для сімей осіб, визначених у абзаці чотирнадцятому пункту 1 статті 10 Закону України \"Про статус ветеранів війни, гарантії їх соціального захисту\", для осіб з інвалідністю I - II групи, які стали особами з інвалідністю внаслідок поранень, каліцтва, контузії чи інших ушкоджень здоров'я, одержаних під час участі у Революції Гідності, визначених пунктом 10 частини другої статті 7 Закону України \"Про статус ветеранів війни, гарантії їх соціального захисту\", та які потребують поліпшення житлових умов"]
["3240","Інші заклади та заходи"]
["3241","Забезпечення діяльності інших закладів у сфері соціального захисту і соціального забезпечення"]
["3242","Інші заходи у сфері соціального захисту і соціального забезпечення"]
["4000","Культура і мистецтво"]
["4010","Фінансова підтримка театрів"]
["4020","Фінансова підтримка філармоній, художніх і музичних колективів, ансамблів, концертних та циркових організацій"]
["4030","Забезпечення діяльності бібліотек"]
["4040","Забезпечення діяльності музеїв і виставок"]
["4050","Забезпечення діяльності заповідників"]
["4060","Забезпечення діяльності палаців і будинків культури, клубів, центрів дозвілля та інших клубних закладів"]
["4070","Фінансова підтримка кінематографії"]
["4080","Інші заклади та заходи в галузі культури і мистецтва"]
["4081","Забезпечення діяльності інших закладів в галузі культури і мистецтва"]
["4082","Інші заходи в галузі культури і мистецтва"]
["5000","Фізична культура і спорт"]
["5010","Проведення спортивної роботи в регіоні"]
["5011","Проведення навчально-тренувальних зборів і змагань з олімпійських видів спорту"]
["5012","Проведення навчально-тренувальних зборів і змагань з неолімпійських видів спорту"]
["5020","Здійснення фізкультурно-спортивної та реабілітаційної роботи серед осіб з інвалідністю"]
["5021","Утримання центрів фізичної культури і спорту осіб з інвалідністю і реабілітаційних шкіл"]
["5022","Проведення навчально-тренувальних зборів і змагань та заходів зі спорту осіб з інвалідністю"]
["5030","Розвиток дитячо-юнацького та резервного спорту"]
["5031","Утримання та навчально-тренувальна робота комунальних дитячо-юнацьких спортивних шкіл"]
["5032","Фінансова підтримка дитячо-юнацьких спортивних шкіл фізкультурно-спортивних товариств"]
["5033","Забезпечення підготовки спортсменів школами вищої спортивної майстерності"]
["5040","Підтримка і розвиток спортивної інфраструктури"]
["5041","Утримання та фінансова підтримка спортивних споруд"]
["5042","Фінансова підтримка спортивних споруд, які належать громадським об'єднанням фізкультурно-спортивної спрямованості"]
["5043","Створення нових, будівельно-ремонтні роботи існуючих палаців спорту та завершення розпочатих у попередньому періоді робіт з будівництва/реконструкції палаців спорту"]
["5044","Будівництво сучасного біатлонного комплексу в с. Поляниця Яремчанської міської ради Івано-Франківської області"]
["5045","Будівництво мультифункціональних майданчиків для занять ігровими видами спорту"]
["5046","Будівництво нових, реконструкція та капітальний ремонт існуючих спортивних п'ятдесятиметрових і двадцятип'ятиметрових басейнів"]
["5047","Реконструкція спортивного комплексу \"Металург\" комунального позашкільного навчального закладу \"Дитячо-юнацька спортивна школа N 1\" Криворізької міської ради"]
["5050","Підтримка фізкультурно-спортивного руху"]
["5051","Фінансова підтримка регіональних всеукраїнських об'єднань фізкультурно-спортивної спрямованості для проведення навчально-тренувальної та спортивної роботи"]
["5052","Фінансова підтримка регіональних осередків всеукраїнських об'єднань фізкультурно-спортивної спрямованості у здійсненні фізкультурно-масових заходів серед населення регіону"]
["5053","Фінансова підтримка на утримання місцевих осередків (рад) всеукраїнських об'єднань фізкультурно-спортивної спрямованості"]
["5060","Інші заходи з розвитку фізичної культури та спорту"]
["5061","Забезпечення діяльності місцевих центрів фізичного здоров'я населення \"Спорт для всіх\" та проведення фізкультурно-масових заходів серед населення регіону"]
["5062","Підтримка спорту вищих досягнень та організацій, які здійснюють фізкультурно-спортивну діяльність в регіоні"]
["5063","Забезпечення діяльності централізованої бухгалтерії"]
["6000","Житлово-комунальне господарство"]
["6010","Утримання та ефективна експлуатація об'єктів житлово-комунального господарства"]
["6011","Експлуатація та технічне обслуговування житлового фонду"]
["6012","Забезпечення діяльності з виробництва, транспортування, постачання теплової енергії"]
["6013","Забезпечення діяльності водопровідно-каналізаційного господарства"]
["6014","Забезпечення збору та вивезення сміття і відходів"]
["6015","Забезпечення надійної та безперебійної експлуатації ліфтів"]
["6016","Впровадження засобів обліку витрат та регулювання споживання води та теплової енергії"]
["6017","Інша діяльність, пов'язана з експлуатацією об'єктів житлово-комунального господарства"]
["6020","Забезпечення функціонування підприємств, установ та організацій, що виробляють, виконують та/або надають житлово-комунальні послуги"]
["6030","Організація благоустрою населених пунктів"]
["6040","Заходи, пов'язані з поліпшенням питної води"]
["6050","Попередження аварій та запобігання техногенним катастрофам у житлово-комунальному господарстві та на інших аварійних об'єктах комунальної власності"]
["6060","Утримання об'єктів соціальної сфери підприємств, що передаються до комунальної власності"]
["6070","Регулювання цін/тарифів на житлово-комунальні послуги"]
["6071","Відшкодування різниці між розміром ціни (тарифу) на житлово-комунальні послуги, що затверджувалися або погоджувалися рішенням місцевого органу виконавчої влади та органу місцевого самоврядування, та розміром економічно обґрунтованих витрат на їх виробництво (надання)"]
["6072","Погашення різниці між фактичною вартістю теплової енергії, послуг з централізованого опалення, постачання гарячої води, централізованого водопостачання та водовідведення, постачання холодної води та водовідведення (з використанням внутрішньобудинкових систем), що вироблялися, транспортувалися та постачалися населенню, бюджетним установам і організаціям та/або іншим підприємствам теплопостачання, централізованого питного водопостачання та водовідведення, які надають населенню такі послуги, та тарифами, що затверджувалися та/або погоджувалися органами державної влади чи місцевого самоврядування за рахунок субвенції з державного бюджету"]
["6080","Реалізація державних та місцевих житлових програм"]
["6081","Будівництво житла для окремих категорій населення відповідно до законодавства"]
["6082","Придбання житла для окремих категорій населення відповідно до законодавства"]
["6083","Проектні, будівельно-ремонтні роботи, придбання житла та приміщень для розвитку сімейних та інших форм виховання, наближених до сімейних, та забезпечення житлом дітей-сиріт, дітей, позбавлених батьківського піклування, осіб з їх числа"]
["6084","Витрати, пов'язані з наданням та обслуговуванням пільгових довгострокових кредитів, наданих громадянам на будівництво/реконструкцію/придбання житла"]
["6085","Здешевлення вартості іпотечних кредитів для забезпечення доступним житлом громадян, які потребують поліпшення житлових умов"]
["6086","Інша діяльність щодо забезпечення житлом громадян"]
["6090","Інша діяльність у сфері житлово-комунального господарства"]
["7000","Економічна діяльність"]
["7100","Сільське, лісове, рибне господарство та мисливство"]
["7110","Реалізація програм в галузі сільського господарства"]
["7130","Здійснення заходів із землеустрою"]
["7140","Інші заходи у сфері сільського господарства"]
["7150","Реалізація програм у галузі лісового господарства і мисливства"]
["7160","Реалізація програм в галузі рибного господарства"]
["7200","Газове господарство"]
["7210","Організація експлуатації газового господарства"]
["7220","Газифікація населених пунктів"]
["7300","Будівництво та регіональний розвиток"]
["7310","Будівництво1 об'єктів житлово-комунального господарства"]
["7320","Будівництво1 об'єктів соціально-культурного призначення"]
["7321","Будівництво1 освітніх установ та закладів"]
["7322","Будівництво1 медичних установ та закладів"]
["7323","Будівництво1 установ та закладів соціальної сфери"]
["7324","Будівництво1 установ та закладів культури"]
["7325","Будівництво1 споруд, установ та закладів фізичної культури і спорту"]
["7330","Будівництво1 інших об'єктів комунальної власності"]
["7340","Проектування, реставрація та охорона пам'яток архітектури"]
["7350","Розроблення схем планування та забудови територій (містобудівної документації)"]
["7360","Виконання інвестиційних проектів"]
["7361","Співфінансування інвестиційних проектів, що реалізуються за рахунок коштів державного фонду регіонального розвитку"]
["7362","Виконання інвестиційних проектів в рамках підтримки розвитку об'єднаних територіальних громад"]
["7363","Виконання інвестиційних проектів в рамках здійснення заходів щодо соціально-економічного розвитку окремих територій"]
["7364","Виконання інвестиційних проектів в рамках фінансування заходів соціально-економічної компенсації ризику населення, яке проживає на території зони спостереження"]
["7365","Виконання інвестиційних проектів в рамках реформування регіональних систем охорони здоров'я для здійснення заходів з виконання спільного з Міжнародним банком реконструкції та розвитку проекту \"Поліпшення охорони здоров'я на службі у людей\""]
["7366","Реалізація проектів в рамках Надзвичайної кредитної програми для відновлення України"]
["7367","Виконання інвестиційних проектів в рамках реалізації заходів, спрямованих на розвиток системи охорони здоров'я у сільській місцевості"]
["7368","Виконання інвестиційних проектів за рахунок субвенцій з інших бюджетів"]
["7369","Реалізація проектів з реконструкції, капітального ремонту приймальних відділень в опорних закладах охорони здоров'я у госпітальних округах"]
["7370","Реалізація інших заходів щодо соціально-економічного розвитку територій"]
["7380","Виконання інвестиційних проектів за рахунок інших субвенцій з державного бюджету"]
["7400","Транспорт та транспортна інфраструктура, дорожнє господарство"]
["7410","Забезпечення надання послуг з перевезення пасажирів автомобільним транспортом"]
["7411","Утримання та розвиток автотранспорту"]
["7412","Регулювання цін на послуги місцевого автотранспорту"]
["7413","Інші заходи у сфері автотранспорту"]
["7420","Забезпечення надання послуг з перевезення пасажирів електротранспортом"]
["7421","Утримання та розвиток наземного електротранспорту"]
["7422","Регулювання цін на послуги місцевого наземного електротранспорту"]
["7423","Утримання та розвиток метрополітену"]
["7424","Регулювання цін на послуги метрополітену"]
["7425","Розвиток мережі метрополітенів за рахунок коштів, які надаються з державного бюджету"]
["7426","Інші заходи у сфері електротранспорту"]
["7430","Утримання та розвиток місцевих аеропортів"]
["7440","Утримання та розвиток транспортної інфраструктури"]
["7441","Утримання та розвиток мостів/шляхопроводів"]
["7442","Утримання та розвиток інших об'єктів транспортної інфраструктури"]
["7450","Інша діяльність у сфері транспорту"]
["7460","Утримання та розвиток автомобільних доріг та дорожньої інфраструктури"]
["7461","Утримання та розвиток автомобільних доріг та дорожньої інфраструктури за рахунок коштів місцевого бюджету"]
["7462","Утримання та розвиток автомобільних доріг та дорожньої інфраструктури за рахунок субвенції з державного бюджету"]
["7463","Утримання та розвиток автомобільних доріг та дорожньої інфраструктури за рахунок трансфертів з інших місцевих бюджетів"]
["7464","Здійснення заходів в рамках проведення експерименту з розвитку автомобільних доріг загального користування, ділянок вулиць і доріг міст та інших населених пунктів, що суміщаються з автомобільними дорогами загального користування, в усіх областях та м. Києві, а також дорожньої інфраструктури у м. Києві"]
["7470","Інша діяльність у сфері дорожнього господарства"]
["7500","Зв'язок, телекомунікації та інформатика"]
["7510","Реалізація програм у сфері зв'язку"]
["7520","Реалізація Національної програми інформатизації"]
["7530","Інші заходи у сфері зв'язку, телекомунікації та інформатики"]
["7600","Інші програми та заходи, пов'язані з економічною діяльністю"]
["7610","Сприяння розвитку малого та середнього підприємництва"]
["7620","Розвиток готельного господарства та туризму"]
["7621","Підтримка діяльності готельного господарства"]
["7622","Реалізація програм і заходів в галузі туризму та курортів"]
["7630","Реалізація програм і заходів в галузі зовнішньоекономічної діяльності"]
["7640","Заходи з енергозбереження"]
["7650","Проведення експертної грошової оцінки земельної ділянки чи права на неї"]
["7660","Підготовка земельних ділянок несільськогосподарського призначення або прав на них комунальної власності для продажу на земельних торгах та проведення таких торгів"]
["7670","Внески до статутного капіталу суб'єктів господарювання"]
["7680","Членські внески до асоціацій органів місцевого самоврядування"]
["7690","Інша економічна діяльність"]
["7691","Виконання заходів за рахунок цільових фондів, утворених Верховною Радою Автономної Республіки Крим, органами місцевого самоврядування і місцевими органами виконавчої влади і фондів, утворених Верховною Радою Автономної Республіки Крим, органами місцевого самоврядування і місцевими органами виконавчої влади"]
["7692","Обслуговування та погашення зобов'язань за коштами, залученими розпорядниками бюджетних коштів під державні гарантії для здійснення капітальних видатків"]
["7693","Інші заходи, пов'язані з економічною діяльністю"]
["7700","Реалізація програм допомоги і грантів Європейського Союзу, урядів іноземних держав, міжнародних організацій, донорських установ"]
["8000","Інша діяльність"]
["8100","Захист населення і територій від надзвичайних ситуацій техногенного та природного характеру"]
["8110","Заходи із запобігання та ліквідації надзвичайних ситуацій та наслідків стихійного лиха"]
["8120","Заходи з організації рятування на водах"]
["8130","Забезпечення діяльності місцевої пожежної охорони"]
["8200","Громадський порядок та безпека"]
["8210","Муніципальні формування з охорони громадського порядку"]
["8220","Заходи та роботи з мобілізаційної підготовки місцевого значення"]
["8230","Інші заходи громадського порядку та безпеки"]
["8240","Заходи та роботи з територіальної оборони"]
["8300","Охорона навколишнього природного середовища"]
["8310","Запобігання та ліквідація забруднення навколишнього природного середовища"]
["8311","Охорона та раціональне використання природних ресурсів"]
["8312","Утилізація відходів"]
["8313","Ліквідація іншого забруднення навколишнього природного середовища"]
["8320","Збереження природно-заповідного фонду"]
["8330","Інша діяльність у сфері екології та охорони природних ресурсів"]
["8340","Природоохоронні заходи за рахунок цільових фондів"]
["8400","Засоби масової інформації"]
["8410","Фінансова підтримка засобів масової інформації"]
["8420","Інші заходи у сфері засобів масової інформації"]
["8500","Нерозподілені трансферти з державного бюджету"]
["8600","Обслуговування місцевого боргу"]
["8700","Резервний фонд"]
["8710","Резервний фонд місцевого бюджету"]
["8720","Заходи із запобігання та ліквідації наслідків у будівлі установ, закладів, організацій комунальної власності за рахунок коштів резервного фонду місцевого бюджету"]
["8721","Заходи із запобігання та ліквідації наслідків надзвичайної ситуації у будівлі закладу охорони здоров'я за рахунок коштів резервного фонду місцевого бюджету"]
["8722","Заходи із запобігання та ліквідації наслідків надзвичайної ситуації у будівлі закладу фізичної культури і спорту, спортивних спорудах за рахунок коштів резервного фонду місцевого бюджету"]
["8723","Заходи із запобігання та ліквідації наслідків надзвичайної ситуації у будівлі закладу культури, мистецтва за рахунок коштів резервного фонду місцевого бюджету"]
["8724","Заходи із запобігання та ліквідації наслідків надзвичайної ситуації у будівлі закладу освіти за рахунок коштів резервного фонду місцевого бюджету"]
["8725","Заходи із запобігання та ліквідації наслідків надзвичайної ситуації у будівлях інших установ, закладів, організацій за рахунок коштів резервного фонду місцевого бюджету"]
["8730","Заходи із запобігання та ліквідації наслідків у дорожньому господарстві, транспорті та телекомунікаціях за рахунок коштів резервного фонду місцевого бюджету"]
["8731","Заходи із запобігання та ліквідації наслідків надзвичайної ситуації на міському автомобільному транспорті за рахунок коштів резервного фонду місцевого бюджету"]
["8732","Заходи із запобігання та ліквідації наслідків надзвичайної ситуації на міському електротранспорті за рахунок коштів резервного фонду місцевого бюджету"]
["8733","Заходи із запобігання та ліквідації наслідків надзвичайної ситуації на об'єктах транспортної та дорожньої інфраструктури за рахунок коштів резервного фонду місцевого бюджету"]
["8734","Заходи із запобігання та ліквідації наслідків надзвичайної ситуації в системах телекомунікацій за рахунок коштів резервного фонду місцевого бюджету"]
["8740","Заходи із запобігання та ліквідації наслідків надзвичайних ситуацій у житлово-комунальному господарстві за рахунок коштів резервного фонду місцевого бюджету"]
["8741","Заходи із запобігання та ліквідації наслідків надзвичайної ситуації у будівлі або споруді житлового призначення за рахунок коштів резервного фонду місцевого бюджету"]
["8742","Заходи із запобігання та ліквідації наслідків надзвичайної ситуації в каналізаційній системі за рахунок коштів резервного фонду місцевого бюджету"]
["8743","Заходи із запобігання та ліквідації наслідків надзвичайної ситуації в теплових мережах за рахунок коштів резервного фонду місцевого бюджету"]
["8744","Заходи із запобігання та ліквідації наслідків надзвичайної ситуації на очисних спорудах за рахунок коштів резервного фонду місцевого бюджету"]
["8745","Заходи із запобігання та ліквідації наслідків надзвичайної ситуації в системах забезпечення населення питною водою за рахунок коштів резервного фонду місцевого бюджету"]
["8746","Заходи із запобігання та ліквідації наслідків надзвичайної ситуації в інших системах та об'єктах житлово-комунального господарства за рахунок коштів резервного фонду місцевого бюджету"]
["8750","Допомога населенню та суб'єктам господарювання, що постраждали внаслідок надзвичайної ситуації або стихійного лиха, за рахунок коштів резервного фонду місцевого бюджету"]
["8751","Допомога населенню, що постраждало внаслідок надзвичайної ситуації або стихійного лиха, за рахунок коштів резервного фонду місцевого бюджету"]
["8752","Допомога у вирішенні житлового питання особам, що постраждали внаслідок надзвичайної ситуації або стихійного лиха, за рахунок коштів резервного фонду місцевого бюджету"]
["8753","Надання допомоги суб'єктам господарювання, що постраждали внаслідок надзвичайної ситуації або стихійного лиха, за рахунок коштів резервного фонду місцевого бюджету"]
["8754","Повернення допомоги суб'єктами господарювання, що постраждали внаслідок надзвичайної ситуації або стихійного лиха, за рахунок коштів резервного фонду місцевого бюджету"]
["8760","Заходи із запобігання та ліквідації наслідків надзвичайної ситуації внаслідок стихійного лиха, пожежі в природних екологічних системах за рахунок коштів резервного фонду місцевого бюджету"]
["8761","Заходи із запобігання та ліквідації наслідків надзвичайної ситуації внаслідок стихійного лиха за рахунок коштів резервного фонду місцевого бюджету"]
["8762","Заходи із запобігання та ліквідації наслідків надзвичайної ситуації, пов'язані з пожежами в природних екологічних системах, за рахунок коштів резервного фонду місцевого бюджету"]
["8770","Інші непередбачувані заходи за рахунок коштів резервного фонду місцевого бюджету"]
["8771","Заходи із запобігання поширенню інфекційних захворювань за рахунок коштів резервного фонду місцевого бюджету"]
["8772","Заходи з ліквідації наслідків надзвичайної ситуації, пов'язані з інфекційним захворюванням та отруєнням людей, за рахунок коштів резервного фонду місцевого бюджету"]
["8773","Заходи, пов'язані із підготовкою та проведенням позачергових місцевих виборів, за рахунок коштів резервного фонду місцевого бюджету"]
["8774","Заходи із запобігання та ліквідації наслідків надзвичайної ситуації у споруді, на комунікації або технологічному устаткуванні промислового об'єкта за рахунок коштів резервного фонду місцевого бюджету"]
["8775","Інші заходи за рахунок коштів резервного фонду місцевого бюджету"]
["8800","Кредитування"]
["8810","Пільгові кредити для здобуття професійно-технічної та вищої освіти та їх повернення"]
["8811","Надання пільгових кредитів для здобуття професійно-технічної та вищої освіти"]
["8812","Повернення пільгових кредитів, наданих для здобуття професійно-технічної та вищої освіти"]
["8820","Пільгові довгострокові кредити молодим сім'ям та одиноким молодим громадянам на будівництво/придбання житла та їх повернення"]
["8821","Надання пільгових довгострокових кредитів молодим сім'ям та одиноким молодим громадянам на будівництво/придбання житла"]
["8822","Повернення пільгових довгострокових кредитів, наданих молодим сім'ям та одиноким молодим громадянам на будівництво/придбання житла"]
["8830","Довгострокові кредити індивідуальним забудовникам житла на селі та їх повернення"]
["8831","Надання довгострокових кредитів індивідуальним забудовникам житла на селі"]
["8832","Повернення довгострокових кредитів, наданих індивідуальним забудовникам житла на селі"]
["8840","Довгострокові кредити громадянам на будівництво / реконструкцію / придбання житла та їх повернення"]
["8841","Надання довгострокових кредитів громадянам на будівництво/реконструкцію/придбання житла"]
["8842","Повернення довгострокових кредитів, наданих громадянам на будівництво/реконструкцію/придбання житла"]
["8850","Пільгові кредити членам житлово-будівельних кооперативів та їх повернення"]
["8851","Надання пільгових кредитів членам житлово-будівельних кооперативів"]
["8852","Повернення пільгових кредитів, наданих членам житлово-будівельних кооперативів"]
["8860","Бюджетні позички суб'єктам господарювання та їх повернення"]
["8861","Надання бюджетних позичок суб'єктам господарювання"]
["8862","Повернення бюджетних позичок, наданих суб'єктам господарювання"]
["8870","Кредити (позики), що залучаються органами місцевого самоврядування, від міжнародних фінансових організацій для реалізації інвестиційних програм (проектів) та їх повернення"]
["8871","Отримання кредитів (позик), що залучаються органами місцевого самоврядування, від міжнародних фінансових організацій для реалізації інвестиційних проектів"]
["8872","Повернення кредитів (позик), що залучаються органами місцевого самоврядування, від міжнародних фінансових організацій для реалізації інвестиційних проектів"]
["8880","Виконання гарантійних зобов'язань за позичальників, що отримали кредити під місцеві гарантії"]
["8881","Надання коштів для забезпечення гарантійних зобов'язань за позичальників, що отримали кредити під місцеві гарантії"]
["8882","Повернення коштів, наданих для виконання гарантійних зобов'язань за позичальників, що отримали кредити під місцеві гарантії"]
["8900","Залишки коштів та бюджетна заборгованість розпорядників коштів місцевих бюджетів"]
["8910","Бюджетна заборгованість розпорядників коштів місцевих бюджетів Автономної Республіки Крим та міста Севастополя"]
["8920","Залишки коштів та бюджетна заборгованість розпорядників коштів місцевих бюджетів Донецької та Луганської областей, на території яких органи влади тимчасово не здійснюють своїх повноважень"]
["9000","Міжбюджетні трансферти"]
["9100","Дотації з місцевого бюджету іншим бюджетам"]
["9110","Реверсна дотація"]
["9120","Дотація з місцевого бюджету за рахунок стабілізаційної дотації з державного бюджету"]
["9130","Дотація з місцевого бюджету на здійснення переданих з державного бюджету видатків з утримання закладів освіти та охорони здоров'я за рахунок відповідної додаткової дотації з державного бюджету"]
["9140","Дотація з місцевого бюджету на компенсацію втрат доходів місцевих бюджетів внаслідок наданих державою податкових пільг зі сплати земельного податку суб'єктам космічної діяльності та літакобудування за рахунок відповідної додаткової дотації з державного бюджету"]
["9150","Інші дотації з місцевого бюджету"]
["9200","Субвенції з місцевого бюджету іншим місцевим бюджетам на здійснення програм соціального захисту за рахунок субвенцій з державного бюджету"]
["9240","Субвенції з місцевих бюджетів іншим місцевим бюджетам на виплату грошової компенсації за належні для отримання жилі приміщення для окремих категорій населення за рахунок відповідних субвенцій з державного бюджету"]
["9241","Субвенція з місцевого бюджету на виплату грошової компенсації за належні для отримання жилі приміщення для сімей осіб, визначених абзацами 5 - 8 пункту 1 статті 10 Закону України \"Про статус ветеранів війни, гарантії їх соціального захисту\", для осіб з інвалідністю I - II групи, яка настала внаслідок поранення, контузії, каліцтва або захворювання, одержаних під час безпосередньої участі в антитерористичній операції, забезпеченні її проведення, здійсненні заходів із забезпечення національної безпеки і оборони, відсічі і стримування збройної агресії Російської Федерації у Донецькій та Луганській областях, забезпеченні їх здійснення, визначених пунктами 11 - 14 частини другої статті 7 Закону України \"Про статус ветеранів війни, гарантії їх соціального захисту\", та які потребують поліпшення житлових умов за рахунок відповідної субвенції з державного бюджету"]
["9242","Субвенція з місцевого бюджету на виплату грошової компенсації за належні для отримання жилі приміщення для внутрішньо переміщених осіб, які захищали незалежність, суверенітет та територіальну цілісність України і брали безпосередню участь в антитерористичній операції, забезпеченні її проведення, перебуваючи безпосередньо в районах антитерористичної операції у період її проведення, у здійсненні заходів із забезпечення національної безпеки і оборони, відсічі і стримування збройної агресії Російської Федерації у Донецькій та Луганській областях, забезпеченні їх здійснення, перебуваючи безпосередньо в районах та у період здійснення зазначених заходів, та визнані особами з інвалідністю внаслідок війни III групи відповідно до пунктів 11 - 14 частини другої статті 7 або учасниками бойових дій відповідно до пунктів 19 - 20 частини першої статті 6 Закону України \"Про статус ветеранів війни, гарантії їх соціального захисту\", та які потребують поліпшення житлових умов за рахунок відповідної субвенції з державного бюджету"]
["9243","Субвенція з місцевого бюджету на виплату грошової компенсації за належні для отримання жилі приміщення для сімей учасників бойових дій на території інших держав, визначених у абзаці першому пункту 1 статті 10 Закону України \"Про статус ветеранів війни, гарантії їх соціального захисту\", для осіб з інвалідністю I - II групи з числа учасників бойових дій на території інших держав, інвалідність яких настала внаслідок поранення, контузії, каліцтва або захворювання, пов'язаних з перебуванням у цих державах, визначених пунктом 7 частини другої статті 7 Закону України \"Про статус ветеранів війни, гарантії їх соціального захисту\", та які потребують поліпшення житлових умов за рахунок відповідної субвенції з державного бюджету"]
["9244","Субвенція з місцевого бюджету на виплату грошової компенсації за належні для отримання жилі приміщення для сімей осіб, визначених у абзаці чотирнадцятому пункту 1 статті 10 Закону України \"Про статус ветеранів війни, гарантії їх соціального захисту\", для осіб з інвалідністю I - II групи, які стали особами з інвалідністю внаслідок поранень, каліцтва, контузії чи інших ушкоджень здоров'я, одержаних під час участі у Революції Гідності, визначених пунктом 10 частини другої статті 7 Закону України \"Про статус ветеранів війни, гарантії їх соціального захисту\", та які потребують поліпшення житлових умов за рахунок відповідної субвенції з державного бюджету"]
["9260","Субвенція з місцевого бюджету на фінансування заходів соціально-економічної компенсації ризику населення, яке проживає на території зони спостереження, за рахунок відповідної субвенції з державного бюджету"]
["9270","Субвенція з місцевого бюджету на проектні, будівельно-ремонтні роботи, придбання житла та приміщень для розвитку сімейних та інших форм виховання, наближених до сімейних, підтримку малих групових будинків та забезпечення житлом дітей-сиріт, дітей, позбавлених батьківського піклування, осіб з їх числа за рахунок відповідної субвенції з державного бюджету"]
["9300","Субвенції з місцевого бюджету іншим місцевим бюджетам на здійснення програм у галузі освіти за рахунок субвенцій з державного бюджету"]
["9310","Субвенція з місцевого бюджету на здійснення переданих видатків у сфері освіти за рахунок коштів освітньої субвенції"]
["9320","Субвенція з місцевого бюджету за рахунок залишку коштів освітньої субвенції, що утворився на початок бюджетного періоду"]
["9330","Субвенція з місцевого бюджету на надання державної підтримки особам з особливими освітніми потребами за рахунок відповідної субвенції з державного бюджету"]
["9340","Субвенція з місцевого бюджету на створення навчально-практичних центрів сучасної професійної (професійно-технічної) освіти за рахунок відповідної субвенції з державного бюджету"]
["9350","Субвенція з місцевого бюджету на забезпечення якісної, сучасної та доступної загальної середньої освіти \"Нова українська школа\" за рахунок відповідної субвенції з державного бюджету"]
["9360","Субвенція з місцевого бюджету на реалізацію програми \"Спроможна школа для кращих результатів\" за рахунок відповідної субвенції з державного бюджету"]
["9370","Субвенція з місцевого бюджету на покращення соціального захисту окремих категорій педагогічних працівників закладів загальної середньої освіти за рахунок відповідної субвенції з державного бюджету"]
["9380","Субвенція з місцевого бюджету за рахунок залишку коштів субвенції на надання державної підтримки особам з особливими освітніми потребами, що утворився на початок бюджетного періоду"]
["9400","Субвенції з місцевого бюджету іншим місцевим бюджетам на здійснення програм та заходів у галузі охорони здоров'я за рахунок субвенцій з державного бюджету"]
["9410","Субвенція з місцевого бюджету на здійснення переданих видатків у сфері охорони здоров'я за рахунок коштів медичної субвенції"]
["9411","Субвенція з місцевого бюджету на забезпечення подачею кисню ліжкового фонду закладів охорони здоров'я, які надають стаціонарну медичну допомогу пацієнтам з гострою респіраторною хворобою COVID-19, спричиненою коронавірусом SARS-CoV-2, за рахунок відповідної субвенції з державного бюджету"]
["9412","Субвенція з місцевого бюджету на забезпечення здійснення деяких заходів, спрямованих на запобігання виникненню та поширенню, локалізацію та ліквідацію спалахів, епідемій та пандемій гострої респіраторної хвороби COVID-19, спричиненої коронавірусом SARS-CoV-2, за рахунок відповідної субвенції з державного бюджету"]
["9413","Субвенція з місцевого бюджету на облаштування тимчасових закладів охорони здоров'я (спеціалізованих шпиталів) для надання медичної допомоги пацієнтам з гострою респіраторною хворобою COVID-19, спричиненою коронавірусом SARS-CoV-2, за рахунок відповідної субвенції з державного бюджету"]
["9420","Субвенція з місцевого бюджету за рахунок залишку коштів медичної субвенції, що утворився на початок бюджетного періоду"]
["9430","Субвенція з місцевого бюджету на здійснення підтримки окремих закладів та заходів у системі охорони здоров'я за рахунок відповідної субвенції з державного бюджету"]
["9440","Субвенція з місцевого бюджету на здійснення доплат медичним та іншим працівникам закладів охорони здоров'я за рахунок відповідної субвенції з державного бюджету"]
["9450","Субвенція з місцевого бюджету на придбання ангіографічного обладнання за рахунок відповідної субвенції з державного бюджету"]
["9460","Субвенція з місцевого бюджету на реалізацію проектів з реконструкції, капітального ремонту приймальних відділень в опорних закладах охорони здоров'я у госпітальних округах за рахунок відповідної субвенції з державного бюджету"]
["9470","Субвенція з місцевого бюджету на реформування регіональних систем охорони здоров'я для здійснення заходів з виконання спільного з Міжнародним банком реконструкції та розвитку проекту \"Поліпшення охорони здоров'я на службі у людей\" за рахунок відповідної субвенції з державного бюджету"]
["9480","Субвенція з місцевого бюджету на реалізацію заходів, спрямованих на розвиток системи охорони здоров'я у сільській місцевості за рахунок відповідної субвенції з державного бюджету"]
["9490","Субвенція з місцевого бюджету на реалізацію заходів, спрямованих на розвиток системи охорони здоров'я у сільській місцевості, за рахунок залишку коштів відповідної субвенції з державного бюджету, що утворився на початок бюджетного періоду"]
["9500","Субвенції з місцевого бюджету іншим місцевим бюджетам на здійснення програм соціально-економічного та культурного розвитку регіонів за рахунок коштів, які надаються з державного бюджету"]
["9510","Субвенція з місцевого бюджету на здійснення заходів щодо соціально-економічного розвитку окремих територій за рахунок відповідної субвенції з державного бюджету"]
["9511","Субвенція з місцевого бюджету на соціально-економічний розвиток Закарпатської області за рахунок відповідної субвенції з державного бюджету"]
["9520","Субвенція з місцевого бюджету на підтримку розвитку об'єднаних територіальних громад за рахунок відповідної субвенції з державного бюджету"]
["9530","Субвенція з місцевого бюджету на реалізацію проектів в рамках Надзвичайної кредитної програми для відновлення України за рахунок відповідної субвенції з державного бюджету"]
["9540","Субвенція з місцевого бюджету на фінансове забезпечення будівництва, реконструкції, ремонту і утримання автомобільних доріг загального користування місцевого значення, вулиць і доріг комунальної власності у населених пунктах за рахунок відповідної субвенції з державного бюджету"]
["9541","Субвенція з місцевого бюджету на будівництво моста через річку Бистриця Солотвинська та транспортної розв'язки в районі вулиць Хіміків - Надрічна за рахунок відповідної субвенції з державного бюджету"]
["9542","Субвенція з місцевого бюджету на проведення капітального та поточного середнього ремонту автомобільних доріг за рахунок відповідної субвенції з державного бюджету"]
["9543","Субвенція з місцевого бюджету на нове будівництво моста через річку Східничанка з підходами по вул. Кропивницькій в смт Східниця м. Борислава Львівської області за рахунок відповідної субвенції з державного бюджету"]
["9550","Субвенція з місцевого бюджету на створення нових, будівельно-ремонтні роботи існуючих палаців спорту та завершення розпочатих у попередньому періоді робіт з будівництва/реконструкції палаців спорту за рахунок відповідної субвенції з державного бюджету"]
["9560","Субвенція з місцевого бюджету на здійснення заходів щодо підтримки територій, що зазнали негативного впливу внаслідок збройного конфлікту на сході України, за рахунок відповідної субвенції з державного бюджету"]
["9570","Субвенція з місцевого бюджету на здійснення заходів щодо соціально-економічного розвитку окремих територій за рахунок залишку коштів відповідної субвенції з державного бюджету, що утворився на початок бюджетного періоду"]
["9580","Субвенція з місцевого бюджету на будівництво сучасного біатлонного комплексу в с. Поляниця Яремчанської міської ради Івано-Франківської області за рахунок відповідної субвенції з державного бюджету"]
["9590","Субвенція з місцевого бюджету на завершення розпочатих у попередньому періоді робіт з будівництва/реконструкції, будівництво нових, реконструкцію та капітальний ремонт існуючих спортивних п'ятдесятиметрових і двадцятип'ятиметрових басейнів за рахунок відповідної субвенції з державного бюджету"]
["9600","Субвенції з місцевого бюджету іншим місцевим бюджетам на здійснення інших програм та заходів за рахунок субвенцій з державного бюджету"]
["9610","Субвенція з місцевого бюджету на погашення різниці між фактичною вартістю теплової енергії, послуг з централізованого опалення, постачання гарячої води, централізованого водопостачання та водовідведення, постачання холодної води та водовідведення (з використанням внутрішньобудинкових систем), що вироблялися, транспортувалися та постачалися населенню, бюджетним установам і організаціям та/або іншим підприємствам теплопостачання, централізованого питного водопостачання та водовідведення, які надають населенню такі послуги, та тарифами, що затверджувалися та/або погоджувалися органами державної влади чи місцевого самоврядування, за рахунок відповідної субвенції з державного бюджету"]
["9620","Субвенція з місцевого бюджету на проведення виборів депутатів місцевих рад та сільських, селищних, міських голів за рахунок відповідної субвенції з державного бюджету"]
["9700","Субвенції з місцевого бюджету іншим місцевим бюджетам на здійснення програм та заходів за рахунок коштів місцевих бюджетів"]
["9710","Субвенція з місцевого бюджету на утримання об'єктів спільного користування чи ліквідацію негативних наслідків діяльності об'єктів спільного користування"]
["9720","Субвенція з місцевого бюджету на виконання інвестиційних проектів"]
["9730","Субвенція з місцевого бюджету на фінансове забезпечення будівництва, реконструкції, ремонту і утримання автомобільних доріг загального користування місцевого значення, вулиць і доріг комунальної власності у населених пунктах"]
["9740","Субвенція з місцевого бюджету на здійснення природоохоронних заходів"]
["9750","Субвенція з місцевого бюджету на співфінансування інвестиційних проектів"]
["9760","Субвенція з місцевого бюджету на реалізацію проектів співробітництва між територіальними громадами"]
["9770","Інші субвенції з місцевого бюджету"]
["9800","Субвенція з місцевого бюджету державному бюджету на виконання програм соціально-економічного розвитку регіонів"]

{"sheet":"Заполнить","index":5,"n_rows":26,"n_cols":10,"rows_kept":26,"cut":false,"hidden":false,"merged":[[13,1,13,5],[24,2,26,13],[14,1,14,4],[20,2,20,7],[15,1,15,3],[16,1,16,3],[11,1,11,4],[1,1,1,7],[2,1,2,2],[3,1,3,7],[10,1,10,4]]}
[]
["Назва установи","Підліський ліцей Загвіздянської сільської ради"]
["Код за ЭДРПОУ","20562786"]
["найменування міста, району, області","с. Підлісся, Івано-Франківський район, Івано-Франківська область"]
[null,{"$f":"IF(B6=B7,1,2)","v":2},"1 - державний,  2 - місцевий"]
["вид бюджету","Місцевий"]
[null,"Державний"]
[null,"Місцевий"]
[]
[]
["Власне ім’я ПРІЗВИЩЕ директор ліцею","Андрій Пастернак"]
["Власне ім’я ПРІЗВИЩЕ бухгалтер ліцею","Дмитро Шкаврітко"]
[]
["Посада Затверджуючого","Сільський голова"]
["Власне ім’я ПРІЗВИЩЕ керівника хто ЗАТВЕРДЖУЄ","Володимир Ружанський"]
["(__________________ 20__ р.) ЗАТВЕРДЖЕННЯ","28 січня 2021 р.",null,null,null,"приклад: 15 січня 2021 р."]
["(__________________ 20__ р.) ПІДПИСАННЯ","28 січня 2021 р.",null,null,null,"приклад: 15 січня 2020 р."]
[]
[]
[]
["Код та назва відомчої класифікації місцевий","01",{"$f":"VLOOKUP(B21,'ДовидникКВК(месн)'!A:B,2,FALSE)","v":"Апарат (секретаріат) місцевої ради (Верховної Ради Автономної Республіки Крим, обласних, Київської та Севастопольської міських рад, районних рад і рад міст обла"},null,null,null,null,null,null,"сюда вписать назву КВК"]
["Код відомчої класифікації для Держбюджету","350",{"$f":"VLOOKUP(Заполнить!B22,'ДовидникКВК(ГОС)'!A:B,2,FALSE)","v":"Міністерство фінансів України"}]
["Код програмної (державний) або ТПКВКМБ / ТКВКБМС (місцевий)","0111021",{"$f":"IF(B5=1,VLOOKUP(Заполнить!B23,ДовидникКПК!B:C,2,FALSE),C25)","v":"Надання загальної середньої освіти закладами загальної середньої освіти"}]
[]
[null,null,{"$f":"VLOOKUP(B26,КПКВМБ!A:B,2,FALSE)","v":"Надання загальної середньої освіти закладами загальної середньої освіти"}]
["ТПКВКМБ / ТКВКБМС",{"$f":"RIGHT(B23,4)","v":"1021"}]

{"sheet":"кошторис","index":6,"n_rows":123,"n_cols":5,"rows_kept":123,"cut":false,"hidden":false,"merged":[[0,1,1,4],[3,6,3,9],[26,0,27,0],[26,1,27,1],[15,5,15,9],[16,0,16,4],[21,0,21,4],[17,5,17,9],[13,0,13,4],[3,1,4,4],[118,5,118,6],[116,3,116,4],[117,3,117,4],[114,3,114,4],[18,5,18,9],[26,2,26,3],[26,4,27,4],[22,0,22,4],[19,0,19,4],[19,5,19,9],[20,0,20,4],[23,0,23,4],[118,3,118,4],[18,0,18,4],[47,0,48,0],[122,0,123,4],[10,1,10,2],[11,1,11,2],[5,1,5,4],[6,1,6,4],[7,1,7,4],[8,3,8,4],[9,1,9,2],[9,3,9,4],[115,3,115,4],[14,0,14,4],[15,0,15,4],[17,0,17,4]]}
[null,"ЗАТВЕРДЖЕНО\nНаказ Міністерства фінансів України\n28 січня 2002 року № 57\n(у редакції наказу Міністерства фінансів України\n04.12.2015 № 1118)"]
[]
[]
[null,{"$f":"CONCATENATE(\"Затверджений у сумі \",СумаПрописом(E50),\"  \",E50,\" грн.\")","v":"Затверджений у сумі Два мiльйони вiсiмсот шiстдесят двi тисячi три гривнi 00 копiйок  2862003 грн."}]
[]
[null,"(сума словами і цифрами)"]
[null,{"$f":"Заполнить!$B$14","v":"Сільський голова"}]
[null,"(посада)                      "]
[null,null,null,{"$f":"Заполнить!$B$15","v":"Володимир Ружанський"}]
[null,"(підпис)"]
[null,{"$f":"Заполнить!$B$16","v":"28 січня 2021 р."}]
[null,null,null,null,"М.П."]
[]
[" КОШТОРИС \nна 2021 рік"]
["_______________________________________"]
["(індивідуальний, зведений)"]
[{"$f":"CONCATENATE(Заполнить!$B$3,\"  \",Заполнить!$B$2)","v":"20562786  Підліський ліцей Загвіздянської сільської ради"}]
["(код за ЄДРПОУ та найменування  бюджетної установи)"]
[{"$f":"Заполнить!$B$4","v":"с. Підлісся, Івано-Франківський район, Івано-Франківська область"}]
["(найменування міста, району, області)"]
[{"$f":"CONCATENATE(\"Вид бюджету  \",IF(Заполнить!$B$5=1,\"ДЕРЖАВНИЙ\",\"МІСЦЕВИЙ\"))","v":"Вид бюджету  МІСЦЕВИЙ"}]
[{"$f":"IF(Заполнить!B5=1,CONCATENATE(\"код та назва відомчої класифікації видатків та кредитування бюджету   \",Заполнить!$B$22,\"  \",Заполнить!$C$22),CONCATENATE(\"код та назва відомчої класифікації видатків та кредитування бюджету  \",Заполнить!$B$21,\"  \",Заполнить!$C$21))","v":"код та назва відомчої класифікації видатків та кредитування бюджету  01  Апарат (секретаріат) місцевої ради (Верховної Ради Автономної Республіки Крим, обласних, Київської та Севастопольської міських рад, районних рад і рад міст обла"}]
[{"$f":"IF(Заполнить!$B$5=1,CONCATENATE(\"код та назва програмної класифікації видатків та кредитування державного бюджету  \",Заполнить!$B$23,\"  \",Заполнить!$C$23),CONCATENATE(\"код та назва програмної класифікації видатків та кредитування державного бюджету  \"))","v":"код та назва програмної класифікації видатків та кредитування державного бюджету  "}]
[{"$f":"IF(Заполнить!$B$5=2,CONCATENATE(\"(код та назва програмної класифікації видатків та кредитування місцевих бюджетів \",\"(код та назва Типової програмної класифікації видатків та кредитування місцевих бюджетів)     \",Заполнить!$B$23,\"  \",Заполнить!$C$23,\")\"),CONCATENATE(\"(код та назва програмної класифікації видатків та кредитування місцевих бюджетів \",\"(код та назва Типової програмної класифікації видатків та кредитування місцевих бюджетів ___________\",\")\"))","v":"(код та назва програмної класифікації видатків та кредитування місцевих бюджетів (код та назва Типової програмної класифікації видатків та кредитування місцевих бюджетів)     0111021  Надання загальної середньої освіти закладами загальної середньої освіти)"}]
[]
[null,null,null,null,"(грн)"]
["Найменування","Код","Усього на рік",null,"РАЗОМ"]
[null,null,"Загальний фонд","Спеціальний фонд"]
[1,2,3,4,5]
["НАДХОДЖЕННЯ - усього","х",{"$f":"C31","v":2752003},{"$f":"D32","v":110000},{"$f":"C30+D30","v":2862003}]
["Надходження коштів із загального фонду бюджету","х",{"$f":"C50","v":2752003},"х",{"$f":"C31","v":2752003}]
["Надходження коштів із спеціального фонду бюджету, у тому числі:","х",0,{"$f":"D33+D39","v":110000},{"$f":"D32","v":110000}]
["Надходження від плати за послуги, що надаються бюджетними установами згідно із законодавством",25010000,"х",{"$f":"SUM(D34:D37)","v":110000},{"$f":"D33","v":110000}]
["Плата за послуги, що надаються бюджетними установами згідно з їх основною діяльністю",25010100,"Х",110000,110000]
["Надходження бюджетних установ від додаткової (господарської) діяльності",25010200,"Х",0,0]
["Плата за оренду майна бюджетних установ, що здійснюється відповідно до Закону України \"Про оренду державного та комунального майна\"",25010300,"Х",0,0]
["Надходження бюджетних установ від реалізації в установленому порядку майна (крім нерухомого майна)",25010400,"Х",0,0]
["(розписати за підгрупами)"," ",null,0,0]
["Інші джерела власних надходжень бюджетних установ",25020000,"х",{"$f":"SUM(D40:D42)","v":0},0]
["Благодійні внески, гранти та дарунки",25020100,"Х",0,0]
["Надходження, що отримують бюджетні установи від підприємств, організацій, фізичних осіб та від інших бюджетних установ для виконання цільових заходів, у тому числі заходів з відчуження для суспільних потреб земельних ділянок та розміщених на них інших об'єктів нерухомого майна, що перебувають у приватній власності фізичних або юридичних осіб,",25020200,"Х",0,0]
["Надходження, що отримують державні і комунальні заклади професійної (професійно-технічної), фахової передвищої та вищої освіти від розміщення на депозитах тимчасово вільних бюджетних коштів, отриманих за надання платних послуг, якщо таким закладам законом надано відповідне право; надходження, що отримують державні і комунальні заклади фахової передвищої та вищої освіти, наукові установи та заклади культури як відсотки, нараховані на залишок коштів на поточних рахунках, відкритих у банках державного сектору для розміщення власних надходжень, отриманих як плата за послуги, що надаються ними згідно з основною діяльністю, благодійні внески та гранти",25020300,"Х",0,0]
[]
["(розписати за підгрупами)",null,null,0,0]
["інші надходження, у тому числі:",null,"х",0,0]
["інші доходи (розписати за кодами класифікації доходів бюджету)",null,"х",0,0]
["фінансування (розписати за кодами класифікації фінансування бюджету  за типом боргового зобов'язання)",null,"х",0,0]
["повернення кредитів до бюджету (розписати за кодами програмної класифікації видатків та кредитування бюджету, класифікації кредитування бюджету)",null,"х"]
[null,null,"х","**","**"]
["ВИДАТКИ ТА НАДАННЯ КРЕДИТІВ - усього","х",{"$f":"C51+C87+C107+C108+C112","v":2752003},{"$f":"D51+D87+D107+D108+D112","v":110000},{"$f":"SUM(C50:D50)","v":2862003}]
[{"$f":"VLOOKUP(B51,ДовКЕКВ!A:B,2,FALSE)","v":"Поточні видатки"},2000,{"$f":"C52+C58+C75+C78+C82+C86","v":2752003},{"$f":"D52+D58+D75+D78+D82+D86","v":110000},2862003]
[{"$f":"VLOOKUP(B52,ДовКЕКВ!A:B,2,FALSE)","v":"Оплата праці і нарахування на заробітну плату"},2100,{"$f":"C53+C57","v":1723003},{"$f":"D53+D57","v":0},1723003]
[{"$f":"VLOOKUP(B53,ДовКЕКВ!A:B,2,FALSE)","v":"Оплата праці"},2110,{"$f":"SUM(C54:C56)","v":1412297},{"$f":"SUM(D54:D56)","v":0},1412297]
[{"$f":"VLOOKUP(B54,ДовКЕКВ!A:B,2,FALSE)","v":"Заробітна плата"},2111,1412297,0,1412297]
[{"$f":"VLOOKUP(B55,ДовКЕКВ!A:B,2,FALSE)","v":"Грошове забезпечення військовослужбовців"},2112,0,0,0]
[{"$f":"VLOOKUP(B56,ДовКЕКВ!A:B,2,FALSE)","v":"Суддівська винагорода"},2113,0,0,0]
[{"$f":"VLOOKUP(B57,ДовКЕКВ!A:B,2,FALSE)","v":"Нарахування на оплату праці"},2120,310706,0,310706]
[{"$f":"VLOOKUP(B58,ДовКЕКВ!A:B,2,FALSE)","v":"Використання товарів і послуг"},2200,{"$f":"SUM(C59:C65)+C72","v":1017000},{"$f":"SUM(D59:D65)+D72","v":110000},1127000]
[{"$f":"VLOOKUP(B59,ДовКЕКВ!A:B,2,FALSE)","v":"Предмети, матеріали, обладнання та інвентар"},2210,260000,0,260000]
[{"$f":"VLOOKUP(B60,ДовКЕКВ!A:B,2,FALSE)","v":"Медикаменти та перев'язувальні матеріали"},2220,0,0,0]
[{"$f":"VLOOKUP(B61,ДовКЕКВ!A:B,2,FALSE)","v":"Продукти харчування"},2230,89000,110000,199000]
[{"$f":"VLOOKUP(B62,ДовКЕКВ!A:B,2,FALSE)","v":"Оплата послуг (крім комунальних)"},2240,60000,0,60000]
[{"$f":"VLOOKUP(B63,ДовКЕКВ!A:B,2,FALSE)","v":"Видатки на відрядження"},2250,10000,0,10000]
[{"$f":"VLOOKUP(B64,ДовКЕКВ!A:B,2,FALSE)","v":"Видатки та заходи спеціального призначення"},2260,0,0,0]
[{"$f":"VLOOKUP(B65,ДовКЕКВ!A:B,2,FALSE)","v":"Оплата комунальних послуг та енергоносіїв"},2270,{"$f":"SUM(C66:C71)","v":598000},{"$f":"SUM(D66:D71)","v":0},{"$f":"SUM(C65:D65)","v":598000}]
[{"$f":"VLOOKUP(B66,ДовКЕКВ!A:B,2,FALSE)","v":"Оплата теплопостачання"},2271,500000,0,500000]
[{"$f":"VLOOKUP(B67,ДовКЕКВ!A:B,2,FALSE)","v":"Оплата водопостачання та водовідведення"},2272,0,0,0]
[{"$f":"VLOOKUP(B68,ДовКЕКВ!A:B,2,FALSE)","v":"Оплата електроенергії"},2273,98000,0,98000]
[{"$f":"VLOOKUP(B69,ДовКЕКВ!A:B,2,FALSE)","v":"Оплата природного газу"},2274,0,0,0]
[{"$f":"VLOOKUP(B70,ДовКЕКВ!A:B,2,FALSE)","v":"Оплата інших енергоносіїв та інших комунальних послуг"},2275,0,0,0]
[{"$f":"VLOOKUP(B71,ДовКЕКВ!A:B,2,FALSE)","v":"Оплата енергосервісу "},2276,0,0,{"$f":"SUM(C71:D71)","v":0}]
[{"$f":"VLOOKUP(B72,ДовКЕКВ!A:B,2,FALSE)","v":"Дослідження і розробки, окремі заходи по реалізації державних (регіональних) програм"},2280,{"$f":"SUM(C73:C74)","v":0},{"$f":"SUM(D73:D74)","v":0},0]
[{"$f":"VLOOKUP(B73,ДовКЕКВ!A:B,2,FALSE)","v":"Дослідження і розробки, окремі заходи розвитку по реалізації державних (регіональних) програм"},2281,0,0,0]
[{"$f":"VLOOKUP(B74,ДовКЕКВ!A:B,2,FALSE)","v":"Окремі заходи по реалізації державних (регіональних) програм, не віднесені до заходів розвитку"},2282,0,0,0]
[{"$f":"VLOOKUP(B75,ДовКЕКВ!A:B,2,FALSE)","v":"Обслуговування боргових зобов'язань"},2400,{"$f":"SUM(C76:C77)","v":0},{"$f":"SUM(D76:D77)","v":0},0]
[{"$f":"VLOOKUP(B76,ДовКЕКВ!A:B,2,FALSE)","v":"Обслуговування внутрішніх боргових зобов'язань"},2410,0,0,{"$f":"SUM(C76:D76)","v":0}]
[{"$f":"VLOOKUP(B77,ДовКЕКВ!A:B,2,FALSE)","v":"Обслуговування зовнішніх боргових зобов'язань"},2420,0,0,{"$f":"SUM(C77:D77)","v":0}]
[{"$f":"VLOOKUP(B78,ДовКЕКВ!A:B,2,FALSE)","v":"Поточні трансферти"},2600,{"$f":"SUM(C79:C81)","v":0},{"$f":"SUM(D79:D81)","v":0},{"$f":"SUM(C78:D78)","v":0}]
[{"$f":"VLOOKUP(B79,ДовКЕКВ!A:B,2,FALSE)","v":"Субсидії та поточні трансферти підприємствам (установам, організаціям)"},2610,0,0,0]
[{"$f":"VLOOKUP(B80,ДовКЕКВ!A:B,2,FALSE)","v":"Поточні трансферти органам державного управління інших рівнів"},2620,0,0,0]
[{"$f":"VLOOKUP(B81,ДовКЕКВ!A:B,2,FALSE)","v":"Поточні трансферти урядам іноземних держав та міжнародним організаціям"},2630,"-",0,0]
[{"$f":"VLOOKUP(B82,ДовКЕКВ!A:B,2,FALSE)","v":"Соціальне забезпечення"},2700,{"$f":"SUM(C83:C85)","v":11000},{"$f":"SUM(D83:D85)","v":0},11000]
[{"$f":"VLOOKUP(B83,ДовКЕКВ!A:B,2,FALSE)","v":"Виплата пенсій і допомоги"},2710,0,0,0]
[{"$f":"VLOOKUP(B84,ДовКЕКВ!A:B,2,FALSE)","v":"Стипендії"},2720,0,0,0]
[{"$f":"VLOOKUP(B85,ДовКЕКВ!A:B,2,FALSE)","v":"Інші виплати населенню"},2730,11000,0,11000]
[{"$f":"VLOOKUP(B86,ДовКЕКВ!A:B,2,FALSE)","v":"Інші поточні видатки"},2800,1000,null,1000]
[{"$f":"VLOOKUP(B87,ДовКЕКВ!A:B,2,FALSE)","v":"Капітальні видатки"},3000,{"$f":"C88+C102","v":0},{"$f":"D88+D102","v":0},0]
[{"$f":"VLOOKUP(B88,ДовКЕКВ!A:B,2,FALSE)","v":"Придбання основного капіталу"},3100,{"$f":"C89+C90+C93+C96+C100+C101","v":0},{"$f":"D89+D90+D93+D96+D100+D101","v":0},0]
[{"$f":"VLOOKUP(B89,ДовКЕКВ!A:B,2,FALSE)","v":"Придбання обладнання і предметів довгострокового користування"},3110,0,0,0]
[{"$f":"VLOOKUP(B90,ДовКЕКВ!A:B,2,FALSE)","v":"Капітальне будівництво (придбання)"},3120,{"$f":"SUM(C91:C92)","v":0},{"$f":"SUM(D91:D92)","v":0},0]
[{"$f":"VLOOKUP(B91,ДовКЕКВ!A:B,2,FALSE)","v":"Капітальне будівництво (придбання) житла"},3121,0,0,0]
[{"$f":"VLOOKUP(B92,ДовКЕКВ!A:B,2,FALSE)","v":"Капітальне будівництво (придбання) інших об'єктів"},3122,0,0,0]
[{"$f":"VLOOKUP(B93,ДовКЕКВ!A:B,2,FALSE)","v":"Капітальний ремонт"},3130,{"$f":"SUM(C94:C95)","v":0},{"$f":"SUM(D94:D95)","v":0},0]
[{"$f":"VLOOKUP(B94,ДовКЕКВ!A:B,2,FALSE)","v":"Капітальний ремонт житлового фонду (приміщень)"},3131,0,0,0]
[{"$f":"VLOOKUP(B95,ДовКЕКВ!A:B,2,FALSE)","v":"Капітальний ремонт інших об'єктів"},3132,0,0,0]
[{"$f":"VLOOKUP(B96,ДовКЕКВ!A:B,2,FALSE)","v":"Реконструкція та реставрація"},3140,{"$f":"SUM(C97:C99)","v":0},{"$f":"SUM(D97:D99)","v":0},{"$f":"SUM(C96:D96)","v":0}]
[{"$f":"VLOOKUP(B97,ДовКЕКВ!A:B,2,FALSE)","v":"Реконструкція житлового фонду (приміщень)"},3141,0,0,{"$f":"SUM(C97:D97)","v":0}]
[{"$f":"VLOOKUP(B98,ДовКЕКВ!A:B,2,FALSE)","v":"Реконструкція та реставрація інших об'єктів"},3142,0,0,0]
[{"$f":"VLOOKUP(B99,ДовКЕКВ!A:B,2,FALSE)","v":"Реставрація пам'яток культури, історії та архітектури"},3143,0,0,0]
[{"$f":"VLOOKUP(B100,ДовКЕКВ!A:B,2,FALSE)","v":"Створення державних запасів і резервів"},3150,0,0,0]
[{"$f":"VLOOKUP(B101,ДовКЕКВ!A:B,2,FALSE)","v":"Придбання землі та нематеріальних активів"},3160,0,0,0]
[{"$f":"VLOOKUP(B102,ДовКЕКВ!A:B,2,FALSE)","v":"Капітальні трансферти"},3200,{"$f":"SUM(C103:C106)","v":0},{"$f":"SUM(D103:D106)","v":0},0]
[{"$f":"VLOOKUP(B103,ДовКЕКВ!A:B,2,FALSE)","v":"Капітальні трансферти підприємствам (установам, організаціям)"},3210,0,0,0]
[{"$f":"VLOOKUP(B104,ДовКЕКВ!A:B,2,FALSE)","v":"Капітальні трансферти органам державного управління інших рівнів"},3220,0,0,0]
[{"$f":"VLOOKUP(B105,ДовКЕКВ!A:B,2,FALSE)","v":"Капітальні трансферти урядам іноземних держав та міжнародним організаціям"},3230]
[{"$f":"VLOOKUP(B106,ДовКЕКВ!A:B,2,FALSE)","v":"Капітальні трансферти населенню"},3240,0,0,0]
[]
[{"$f":"VLOOKUP(B108,ДовКреди!A:B,2,FALSE)","v":"Надання внутрішніх кредитів "},4110,{"$f":"SUM(C109:C111)","v":0},{"$f":"SUM(D109:D111)","v":0}]
[{"$f":"VLOOKUP(B109,ДовКреди!A:B,2,FALSE)","v":"Надання кредитів органам державного управління інших рівнів "},4111,0,0,0]
[{"$f":"VLOOKUP(B110,ДовКреди!A:B,2,FALSE)","v":"Надання кредитів підприємствам, установам, організаціям "},4112,0,0,0]
[{"$f":"VLOOKUP(B111,ДовКреди!A:B,2,FALSE)","v":"Надання інших внутрішніх кредитів "},4113,0,0,0]
[{"$f":"VLOOKUP(B112,ДовКреди!A:B,2,FALSE)","v":"Надання зовнішніх кредитів "},4210,0,0,{"$f":"SUM(C112:D112)","v":0}]
[{"$f":"VLOOKUP(B113,ДовКЕКВ!A:B,2,FALSE)","v":"Нерозподілені видатки"},9000,0,0,{"$f":"SUM(C113:D113)","v":0}]
[]
["Директор ліцею",null,null,{"$f":"Заполнить!B11","v":"Андрій Пастернак"}]
[null,"(підпис)"]
["Бухгалтер ліцею",null,null,{"$f":"Заполнить!B12","v":"Дмитро Шкаврітко"}]
[null,"(підпис)"]
[{"$f":"Заполнить!$B$17","v":"28 січня 2021 р."}]
[]
["М.П.***"]
[]
["** Сума проставляється за кодом відповідно до класифікації кредитування бюджету та не враховується у рядку \"НАДХОДЖЕННЯ - усього\".\n*** Заповнюється розпорядниками нижчого рівня, крім головних розпорядників та національних закладів вищої освіти, яким безпосередньо встановлені призначення у державному бюджеті."]

{"sheet":"план скорочений","index":7,"n_rows":46,"n_cols":18,"rows_kept":46,"cut":false,"hidden":false,"merged":[[40,5,40,6],[40,8,40,10],[41,5,41,6],[41,8,41,10],[45,0,45,11],[39,5,39,6],[39,8,39,10],[14,0,14,14],[15,0,15,14],[16,0,16,14],[17,0,17,14],[18,0,18,14],[19,0,19,14],[20,0,20,14],[21,0,21,14],[22,0,22,14],[38,5,38,6],[38,8,38,10],[13,0,13,14],[0,9,2,14],[4,9,5,14],[6,9,6,14],[7,9,7,14],[8,9,8,14],[9,11,9,14],[10,9,10,10],[10,11,10,14],[11,9,11,12],[12,9,12,12],[12,13,12,14]]}
[null,null,null,null,null,null,null,null,null,"ЗАТВЕРДЖЕНО\nНаказ Міністерства фінансів України\n28 січня 2002 року № 57\n(у редакції наказу Міністерства фінансів України\nвід 26 листопада 2012 року № 1220)"]
[]
[]
[]
[null,null,null,null,null,null,null,null,null,{"$f":"CONCATENATE(\"Затверджений у сумі \",СумаПрописом(O35),\"  \",O35,\" грн.\")","v":"Затверджений у сумі Два мiльйони сiмсот п`ятдесят двi тисячi три гривнi 00 копiйок  2752003 грн."}]
[null,null,null,null,null,null,null,null,null,null,null,null,null,null,null,null,null,"ф++"]
[null,null,null,null,null,null,null,null,null,"(сума словами і цифрами)"]
[null,null,null,null,null,null,null,null,null,{"$f":"Заполнить!$B$14","v":"Сільський голова"}]
[null,null,null,null,null,null,null,null,null,"(посада)                      "]
[null,null,null,null,null,null,null,null,null,null,null,{"$f":"Заполнить!$B$15","v":"Володимир Ружанський"}]
[null,null,null,null,null,null,null,null,null,"(підпис)"]
[null,null,null,null,null,null,null,null,null,{"$f":"Заполнить!$B$16","v":"28 січня 2021 р."}]
[null,null,null,null,null,null,null,null,null,null,null,null,null,"М.П."]
["ПЛАН АСИГНУВАНЬ (ЗА ВИНЯТКОМ НАДАННЯ КРЕДИТІВ З БЮДЖЕТУ) ЗАГАЛЬНОГО ФОНДУ БЮДЖЕТУ"]
["НА 2021 РІК"]
[{"$f":"CONCATENATE(Заполнить!$B$3,\"  \",Заполнить!$B$2)","v":"20562786  Підліський ліцей Загвіздянської сільської ради"}]
["(код за ЄДРПОУ та найменування  бюджетної установи)"]
[{"$f":"Заполнить!$B$4","v":"с. Підлісся, Івано-Франківський район, Івано-Франківська область"}]
["(найменування міста, району, області)"]
[{"$f":"CONCATENATE(\"Вид бюджету  \",IF(Заполнить!$B$5=1,\"ДЕРЖАВНИЙ\",\"МІСЦЕВИЙ\"))","v":"Вид бюджету  МІСЦЕВИЙ"}]
[{"$f":"IF(Заполнить!B5=1,CONCATENATE(\"код та назва відомчої класифікації видатків та кредитування бюджету   \",Заполнить!$B$22,\"  \",Заполнить!$C$22),CONCATENATE(\"код та назва відомчої класифікації видатків та кредитування бюджету   \",Заполнить!$B$21,\"  \",Заполнить!$C$21))","v":"код та назва відомчої класифікації видатків та кредитування бюджету   01  Апарат (секретаріат) місцевої ради (Верховної Ради Автономної Республіки Крим, обласних, Київської та Севастопольської міських рад, районних рад і рад міст обла"}]
[{"$f":"IF(Заполнить!$B$5=1,CONCATENATE(\"код та назва програмної класифікації видатків та кредитування державного бюджету  \",Заполнить!$B$23,\"  \",Заполнить!$C$23),CONCATENATE(\"код та назва програмної класифікації видатків та кредитування державного бюджету  \"))","v":"код та назва програмної класифікації видатків та кредитування державного бюджету  "}]
[{"$f":"IF(Заполнить!$B$5=2,CONCATENATE(\"(код та назва програмної класифікації видатків та кредитування місцевих бюджетів \",\"(код та назва Типової програмної класифікації видатків та кредитування місцевих бюджетів)     \",Заполнить!$B$23,\"  \",Заполнить!$C$23,\")\"),CONCATENATE(\"(код та назва програмної класифікації видатків та кредитування місцевих бюджетів \",\"(код та назва Типової програмної класифікації видатків та кредитування місцевих бюджетів ___________\",\")\"))","v":"(код та назва програмної класифікації видатків та кредитування місцевих бюджетів (код та назва Типової програмної класифікації видатків та кредитування місцевих бюджетів)     0111021  Надання загальної середньої освіти закладами загальної середньої освіти)"}]
[null,null,null,null,null,null,null,null,null,null,null,null,null,null,"(грн)"]
["Найменування ","КЕКВ","Січень","Лютий","Березень","Квітень","Травень","Червень","Липень","Серпень","Вересень","Жовтень","Листопад","Грудень","Разом на рік"]
[1,2,3,4,5,6,7,8,9,10,11,12,13,14,15]
[{"$f":"VLOOKUP(B27,ДовКЕКВ!A:B,2,FALSE)","v":"Оплата праці"},2110,120000,116000,116000,114000,102000,204000,80000,102000,111000,114000,117000,116297,{"$f":"SUM(C27:N27)","v":1412297}]
[{"$f":"VLOOKUP(B28,ДовКЕКВ!A:B,2,FALSE)","v":"Нарахування на оплату праці"},2120,26400,25520,25520,25080,22440,44880,17600,22440,24420,25080,25740,25586,{"$f":"SUM(C28:N28)","v":310706}]
[{"$f":"VLOOKUP(B29,ДовКЕКВ!A:B,2,FALSE)","v":"Медикаменти та перев'язувальні матеріали"},2220,null,null,null,null,null,null,null,null,null,null,null,null,{"$f":"SUM(C29:N29)","v":0}]
[{"$f":"VLOOKUP(B30,ДовКЕКВ!A:B,2,FALSE)","v":"Продукти харчування"},2230,8900,8900,8900,8900,8900,8900,0,0,8900,8900,8900,8900,89000]
[{"$f":"VLOOKUP(B31,ДовКЕКВ!A:B,2,FALSE)","v":"Оплата комунальних послуг та енергоносіїв"},2270,115000,110000,79000,59000,9000,5000,5000,5000,8000,18000,108000,77000,598000]
[{"$f":"VLOOKUP(B32,ДовКЕКВ!A:B,2,FALSE)","v":"Дослідження і розробки, окремі заходи по реалізації державних (регіональних) програм"},2280,null,null,null,null,null,null,null,null,null,null,null,null,{"$f":"SUM(C32:N32)","v":0}]
["Соціальне забезпечення",2700,0,0,0,0,11000,0,0,0,0,0,0,0,11000]
["Інші видатки",5000,{"$f":"20968+5000+1000","v":26968},{"$f":"20000+5000+1000+250","v":26250},{"$f":"20000+5000+1000","v":26000},{"$f":"20000+5000+1000","v":26000},{"$f":"250+39032+5000+1000+11000","v":56282},1000,{"$f":"20000+10000","v":30000},{"$f":"250+20000+5000","v":25250},{"$f":"20000+5000+0+1000","v":26000},{"$f":"20000+5000+1000","v":26000},{"$f":"250+20000+5000+1000","v":26250},{"$f":"40000+5000+1000","v":46000},{"$f":"SUM(C34:N34)","v":342000}]
["УСЬОГО",null,{"$f":"C27+C28+C30+C31+C34","v":297268},286670,255420,232980,198622,263780,132600,154690,178320,191980,285890,273783,{"$f":"SUM(C35:N35)","v":2752003}]
[]
[]
[]
["Директор ліцею",null,null,null,null,null,null,null,{"$f":"Заполнить!$B$11","v":"Андрій Пастернак"}]
[null,null,null,null,null,"(підпис)"]
["Бухгалтер ліцею",null,null,null,null,null,null,null,{"$f":"Заполнить!$B$12","v":"Дмитро Шкаврітко"}]
[null,null,null,null,null,"(підпис)"]
["М.П.**"]
[{"$f":"Заполнить!$B$17","v":"28 січня 2021 р."}]
[]
["* Технічний код, який включає в себе всі коди економічної класифікації видатків бюджету, крім тих, що виділені окремо.\n** Заповнюється розпорядниками нижчого рівня, крім головних розпорядників та національних закладів вищої освіти, яким безпосередньо встановлені призначення у державному бюджеті."]

{"sheet":"план","index":8,"n_rows":52,"n_cols":15,"rows_kept":52,"cut":false,"hidden":false,"merged":[[0,9,2,14],[11,9,11,12],[9,11,9,14],[6,9,6,14],[7,9,7,14],[8,9,8,14],[4,9,5,14],[10,11,10,14],[10,9,10,10],[45,8,45,10],[19,0,19,14],[47,5,47,6],[44,8,44,10],[46,8,46,10],[51,0,51,11],[12,9,12,12],[44,5,44,6],[45,5,45,6],[12,13,12,14],[46,5,46,6],[15,0,15,14],[14,0,14,14],[20,0,20,14],[17,0,17,14],[13,0,13,14],[47,8,47,10],[22,0,22,14],[16,0,16,14],[18,0,18,14],[21,0,21,14]]}
[null,null,null,null,null,null,null,null,null,"ЗАТВЕРДЖЕНО\nНаказ Міністерства фінансів України\n28 січня 2002 року № 57\n(у редакції наказу Міністерства фінансів України\nвід 26 листопада 2012 року № 1220)"]
[]
[]
[]
[null,null,null,null,null,null,null,null,null,{"$f":"CONCATENATE(\"Затверджений у сумі \",СумаПрописом(O41),\"  \",O41,\" грн.\")","v":"Затверджений у сумі Два мiльйони сiмсот п`ятдесят двi тисячi три гривнi 00 копiйок  2752003 грн."}]
[]
[null,null,null,null,null,null,null,null,null,"(сума словами і цифрами)"]
[null,null,null,null,null,null,null,null,null,{"$f":"Заполнить!$B$14","v":"Сільський голова"}]
[null,null,null,null,null,null,null,null,null,"(посада)                      "]
[null,null,null,null,null,null,null,null,null,null,null,{"$f":"Заполнить!$B$15","v":"Володимир Ружанський"}]
[null,null,null,null,null,null,null,null,null,"(підпис)"]
[null,null,null,null,null,null,null,null,null,{"$f":"Заполнить!$B$16","v":"28 січня 2021 р."}]
[null,null,null,null,null,null,null,null,null,null,null,null,null,"М.П."]
["ПЛАН АСИГНУВАНЬ (ЗА ВИНЯТКОМ НАДАННЯ КРЕДИТІВ З БЮДЖЕТУ) ЗАГАЛЬНОГО ФОНДУ БЮДЖЕТУ"]
["НА 2021 РІК"]
[{"$f":"CONCATENATE(Заполнить!$B$3,\"  \",Заполнить!$B$2)","v":"20562786  Підліський ліцей Загвіздянської сільської ради"}]
["(код за ЄДРПОУ та найменування  бюджетної установи)"]
[{"$f":"Заполнить!$B$4","v":"с. Підлісся, Івано-Франківський район, Івано-Франківська область"}]
["(найменування міста, району, області)"]
[{"$f":"CONCATENATE(\"Вид бюджету  \",IF(Заполнить!$B$5=1,\"ДЕРЖАВНИЙ\",\"МІСЦЕВИЙ\"))","v":"Вид бюджету  МІСЦЕВИЙ"}]
[{"$f":"IF(Заполнить!B5=1,CONCATENATE(\"код та назва відомчої класифікації видатків та кредитування бюджету   \",Заполнить!$B$22,\"  \",Заполнить!$C$22),CONCATENATE(\"код та назва відомчої класифікації видатків та кредитування бюджету   \",Заполнить!$B$21,\"  \",Заполнить!$C$21))","v":"код та назва відомчої класифікації видатків та кредитування бюджету   01  Апарат (секретаріат) місцевої ради (Верховної Ради Автономної Республіки Крим, обласних, Київської та Севастопольської міських рад, районних рад і рад міст обла"}]
[{"$f":"IF(Заполнить!$B$5=1,CONCATENATE(\"код та назва програмної класифікації видатків та кредитування державного бюджету  \",Заполнить!$B$23,\"  \",Заполнить!$C$23),CONCATENATE(\"код та назва програмної класифікації видатків та кредитування державного бюджету  \"))","v":"код та назва програмної класифікації видатків та кредитування державного бюджету  "}]
[{"$f":"IF(Заполнить!$B$5=2,CONCATENATE(\"(код та назва програмної класифікації видатків та кредитування місцевих бюджетів \",\"(код та назва Типової програмної класифікації видатків та кредитування місцевих бюджетів)     \",Заполнить!$B$23,\"  \",Заполнить!$C$23,\")\"),CONCATENATE(\"(код та назва програмної класифікації видатків та кредитування місцевих бюджетів \",\"(код та назва Типової програмної класифікації видатків та кредитування місцевих бюджетів ___________\",\")\"))","v":"(код та назва програмної класифікації видатків та кредитування місцевих бюджетів (код та назва Типової програмної класифікації видатків та кредитування місцевих бюджетів)     0111021  Надання загальної середньої освіти закладами загальної середньої освіти)"}]
[null,null,null,null,null,null,null,null,null,null,null,null,null,null,"(грн)"]
["Найменування ","КЕКВ","Січень","Лютий","Березень","Квітень","Травень","Червень","Липень","Серпень","Вересень","Жовтень","Листопад","Грудень","Разом на рік"]
[1,2,3,4,5,6,7,8,9,10,11,12,13,14,15]
[{"$f":"VLOOKUP(B27,ДовКЕКВ!A:B,2,FALSE)","v":"Оплата праці"},2110,120000,116000,116000,114000,102000,204000,80000,102000,111000,114000,117000,116297,{"$f":"SUM(C27:N27)","v":1412297}]
[{"$f":"VLOOKUP(B28,ДовКЕКВ!A:B,2,FALSE)","v":"Нарахування на оплату праці"},2120,26400,25520,25520,25080,22440,44880,17600,22440,24420,25080,25740,25586,{"$f":"SUM(C28:N28)","v":310706}]
["Предмети, матеріали, обладнання та інвентар",2210,20968,20000,20000,20000,39032,null,20000,20000,20000,20000,20000,40000,{"$f":"SUM(C29:N29)","v":260000}]
[{"$f":"VLOOKUP(B30,ДовКЕКВ!A:B,2,FALSE)","v":"Медикаменти та перев'язувальні матеріали"},2220,null,null,null,null,null,null,null,null,null,null,null,null,{"$f":"SUM(C30:N30)","v":0}]
[{"$f":"VLOOKUP(B31,ДовКЕКВ!A:B,2,FALSE)","v":"Продукти харчування"},2230,8900,8900,8900,8900,8900,8900,0,0,8900,8900,8900,8900,89000]
["Оплата послуг (крім комунальних)",2240,5000,5000,5000,5000,5000,0,10000,5000,5000,5000,5000,5000,{"$f":"SUM(C32:N32)","v":60000}]
["Видатки на відрядження",2250,1000,1000,1000,1000,1000,1000,0,0,1000,1000,1000,1000,{"$f":"SUM(C33:N33)","v":10000}]
[{"$f":"VLOOKUP(B34,ДовКЕКВ!A:B,2,FALSE)","v":"Оплата комунальних послуг та енергоносіїв"},2270,115000,110000,79000,59000,9000,5000,5000,5000,8000,18000,108000,77000,598000]
["Оплата теплопостачання",2271,100000,100000,70000,50000,0,0,0,0,0,10000,100000,70000,500000]
["Оплата електроенергії",2273,15000,10000,9000,9000,9000,5000,5000,5000,8000,8000,8000,7000,98000]
["Соціальне забезпечення",2700,0,0,0,0,11000,0,0,0,0,0,0,0,11000]
["Інші виплати населенню",2730,0,0,0,0,11000,0,0,0,0,0,0,0,{"$f":"SUM(C38:N38)","v":11000}]
[{"$f":"VLOOKUP(B39,ДовКЕКВ!A:B,2,FALSE)","v":"Дослідження і розробки, окремі заходи по реалізації державних (регіональних) програм"},2280,null,null,null,null,null,null,null,null,null,null,null,null,0]
["Інші поточні видатки",2800,0,250,0,0,250,0,0,250,0,0,250,0,{"$f":"SUM(C40:N40)","v":1000}]
["УСЬОГО",null,{"$f":"C27+C28+C29+C30+C31+C32+C33+C34+C38+C39+C40","v":297268},286670,255420,232980,198622,263780,132600,154690,178320,191980,285890,273783,{"$f":"SUM(C41:N41)","v":2752003}]
[]
[]
[]
["Директор ліцею",null,null,null,null,null,null,null,{"$f":"Заполнить!$B$11","v":"Андрій Пастернак"}]
[null,null,null,null,null,"(підпис)"]
["Бухгалтер ліцею",null,null,null,null,null,null,null,{"$f":"Заполнить!$B$12","v":"Дмитро Шкаврітко"}]
[null,null,null,null,null,"(підпис)"]
["М.П.**"]
[{"$f":"Заполнить!$B$17","v":"28 січня 2021 р."}]
[]
["* Технічний код, який включає в себе всі коди економічної класифікації видатків бюджету, крім тих, що виділені окремо.\n** Заповнюється розпорядниками нижчого рівня, крім головних розпорядників та національних закладів вищої освіти, яким безпосередньо встановлені призначення у державному бюджеті."]

{"sheet":"ДовДоходів","index":9,"n_rows":487,"n_cols":2,"rows_kept":487,"cut":false,"hidden":true,"merged":[]}
[10000000,"Податкові надходження  "]
[11000000,"Податки на доходи, податки на прибуток, податки на збільшення ринкової вартості  "]
[11010000,"Податок та збір на доходи фізичних осіб"]
[11010100,"Податок на доходи фізичних осіб, що сплачується податковими агентами, із доходів платника податку у вигляді заробітної плати"]
[11010200,"Податок на доходи фізичних осіб з грошового забезпечення, грошових винагород та інших виплат, одержаних військовослужбовцями та особами рядового і начальницького складу, що сплачується податковими агентами"]
[11010300,"Податок на доходи фізичних осіб із доходів у формі заробітної плати шахтарів-працівників"]
[11010400,"Податок на доходи фізичних осіб, що сплачується податковими агентами, із доходів платника податку інших ніж заробітна плата"]
[11010500,"Податок на доходи фізичних осіб, що сплачується фізичними особами за результатами річного декларування"]
[11010600,"Фіксований податок на доходи фізичних осіб від зайняття підприємницькою діяльністю, нарахований до 1 січня 2012 року"]
[11010700,"Надходження сум реструктурованої заборгованості зі сплати податку на доходи фізичних осіб"]
[11010800,"Податок на доходи фізичних осіб із доходу у вигляді процентів "]
[11010900,"Податок на доходи фізичних осіб із суми пенсійних виплат або щомісячного довічного грошового утримання, що оподатковуються відповідно до підпункту 164.2.19 пункту 164.2 статті 164 Податкового кодексу"]
[11011000,"Військовий збір"]
[41031100,"Субвенція з державного бюджету міському бюджету міста Києва на виконання функцій столиці"]
[11020000,"Податок на прибуток підприємств  "]
[11020100,"Податок на прибуток підприємств і організацій, що перебувають у державній власності  "]
[11020200,"Податок на прибуток підприємств та фінансових установ комунальної власності "]
[11020300,"Податок на прибуток підприємств, створених за участю іноземних інвесторів  "]
[11020400,"Податок на прибуток від казино, відеосалонів, гральних автоматів, концертно-видовищних заходів  "]
[11020500,"Податок на прибуток іноземних юридичних осіб  "]
[11020600,"Податок на прибуток банківських організацій, включаючи філіали аналогічних організацій, розташованих на території України  "]
[11020700,"Податок на прибуток страхових організацій, включаючи філіали аналогічних організацій, розташованих на території України  "]
[11020900,"Податок на прибуток організацій і підприємств споживчої кооперації, кооперативів та громадських об'єднань  "]
[11021000,"Податок на прибуток приватних підприємств  "]
[11021100,"Інші платники податку на прибуток  "]
[11021300,"Реструктурована сума заборгованості податку на прибуток підприємств і організацій  "]
[11021400,"Надходження від підприємств податку на прибуток, одержаного від виконання інноваційних проектів "]
[11021500,"Податок на прибуток, одержаний за рахунок знижувального коефіцієнта 0,8 до норм амортизації  "]
[11021600,"Податок на прибуток фінансових установ, включаючи філіали аналогічних організацій, розташованих на території України, за винятком страхових організацій  "]
[11021900,"Податкова заборгованість з податку на прибуток підприємств (крім підприємств комунальної власності), додаткові податкові зобов'язання з цього податку, розстрочені податкові зобов'язання НАК \"Нафтогаз України\" та її підприємств з податку на прибуток (у тому числі відсотки за користування податковим кредитом), що спрямовуються на розрахунки з погашення заборгованості з різниці в тарифах на теплову енергію, послуги з водопостачання та водовідведення, що вироблялися, транспортувалися та постачалися населенню, яка виникла у зв'язку з невідповідністю фактичної вартості теплової енергії, послуг з водопостачання та водовідведення тарифам, що затверджувалися або погоджувалися відповідними органами державної влади чи органами місцевого самоврядування  "]
[11022100,"Податкова заборгованість з податку на прибуток підприємств (крім підприємств комунальної власності), додаткові податкові зобов'язання з цього податку, розстрочені податкові зобов'язання НАК \"Нафтогаз України\" та її підприємств з податку на прибуток (у тому числі відсотки за користування податковим кредитом), що спрямовуються на субвенцію з державного бюджету місцевим бюджетам на надання пільг та житлових субсидій населенню на оплату електроенергії, природного газу, послуг тепло-, водопостачання і водовідведення, квартирної плати, вивезення побутового сміття та рідких нечистот  "]
[11022200,"Надходження від погашення податкового боргу, в тому числі реструктуризованого або розстроченого (відстроченого), з податку на прибуток підприємств, що сплачується підприємствами електроенергетичної, нафтогазової, вугільної галузей, підприємствами, що надають послуги з виробництва, транспортування та постачання теплової енергії, підприємствами централізованого водопостачання та водовідведення, та нараховані суми податку на прибуток таких підприємств, які виникають після проведення розрахунків по субвенції з державного бюджету місцевим бюджетам, визначеній пунктом 24 статті 14 Закону України \"Про Державний бюджет України на 2014 рік\" "]
[11023100,"Авансові внески з податку на прибуток підприємств і організацій, що перебувають у державній власності"]
[11023200,"Авансові внески з податку на прибуток підприємств та фінансових установ комунальної власності"]
[11023300,"Авансові внески з податку на прибуток підприємств, створених за участю іноземних інвесторів"]
[11023400,"Авансові внески з податку на прибуток від казино, відеосалонів, гральних автоматів, концертно-видовищних заходів"]
[11023500,"Авансові внески з податку на прибуток іноземних юридичних осіб"]
[11023600,"Авансові внески з податку на прибуток банківських організацій, включаючи філіали аналогічних організацій, розташованих на території України"]
[11023700,"Авансові внески з податку на прибуток страхових організацій, включаючи філіали аналогічних організацій, розташованих на території України"]
[11023900,"Авансові внески з податку на прибуток організацій і підприємств споживчої кооперації, кооперативів та громадських об'єднань"]
[11024000,"Авансові внески з податку на прибуток приватних підприємств"]
[11024100,"Авансові внески з податку на прибуток від інших платників податку на прибуток"]
[11024600,"Авансові внески з податку на прибуток фінансових установ, включаючи філіали аналогічних організацій, розташованих на території України, за винятком страхових організацій"]
[11024700,"Податок на дохід, який сплачують суб'єкти, що здійснюють діяльність з випуску та проведення державних лотерей "]
[12000000,"Податки на власність  "]
[12020000,"Податок з власників транспортних засобів та інших самохідних машин і механізмів  "]
[12020100,"Податок з власників наземних транспортних засобів та інших самохідних машин і механізмів (юридичних осіб)  "]
[12020200,"Податок з власників наземних транспортних засобів та інших самохідних машин і механізмів (з громадян)  "]
[12020300,"Надходження сум реструктурованої заборгованості зі сплати податку власниками транспортних засобів та інших самохідних машин і механізмів  "]
[12020400,"Податок з власників водних транспортних засобів  "]
[12020500,"Податок з власників наземних транспортних засобів та інших самохідних машин і механізмів (юридичних осіб), зареєстрованих у місті Києві "]
[12020600,"Податок з власників наземних транспортних засобів та інших самохідних машин і механізмів (з громадян), зареєстрованих у місті Києві "]
[12020700,"Надходження сум реструктурованої заборгованості зі сплати податку власниками транспортних засобів та інших самохідних машин і механізмів, зареєстрованих у місті Києві "]
[12020800,"Податок з власників водних транспортних засобів, зареєстрованих в місті Києві "]
[13000000,"Рентна плата та плата за використання інших природних ресурсів "]
[13010000,"Рентна плата за спеціальне використання лісових ресурсів "]
[13010100,"Рентна плата за спеціальне використання лісових ресурсів в частині деревини, заготовленої в порядку рубок головного користування "]
[13010200,"Рентна плата за спеціальне використання лісових ресурсів (крім рентної плати за спеціальне використання лісових ресурсів в частині деревини, заготовленої в порядку рубок головного користування) "]
[13010300,"Надходження сум реструктурованої заборгованості рентної плати за спеціальне використання лісових ресурсів "]
[13020000,"Рентна плата за спеціальне використання води "]
[13020100,"Рентна плата за спеціальне використання води (крім рентної плати за спеціальне використання води водних об'єктів місцевого значення) "]
[13020200,"Рентна плата за спеціальне використання води водних об'єктів місцевого значення "]
[13020300,"Рентна плата за спеціальне використання води для потреб гідроенергетики "]
[13020400,"Надходження рентної плати за спеціальне використання води від підприємств житлово-комунального господарства "]
[13020500,"Надходження сум реструктурованої заборгованості зі сплати рентної плати за спеціальне використання води "]
[13020600,"Рентна плата за спеціальне використання води в частині використання поверхневих вод для потреб водного транспорту (крім стоянкових і службово-допоміжного флотів) "]
[13030000,"Рентна плата за користування надрами "]
[13030100,"Рентна плата за користування надрами для видобування корисних копалин загальнодержавного значення "]
[13030200,"Рентна плата за користування надрами для видобування корисних копалин місцевого значення "]
[13030400,"Рентна плата за користування надрами континентального шельфу і в межах виключної (морської) економічної зони "]
[13030500,"Надходження сум реструктурованої заборгованості зі сплати рентної плати за користування надрами "]
[13030600,"Рентна плата за користування надрами в цілях, не пов'язаних з видобуванням корисних копалин "]
[13030700,"Рентна плата за користування надрами для видобування нафти "]
[13030800,"Рентна плата за користування надрами для видобування природного газу "]
[13030900,"Рентна плата за користування надрами для видобування газового конденсату "]
[13060000,"Рентна плата за користування радіочастотним ресурсом України "]
[13070000,"Плата за використання інших природних ресурсів  "]
[13070100,"Плата за спеціальне використання диких тварин  "]
[13070200,"Плата за спеціальне використання рибних та інших водних ресурсів  "]
[13070300,"Надходження сум реструктурованої заборгованості зі сплати платежів за використання інших природних ресурсів  "]
[14000000,"Внутрішні податки на товари та послуги  "]
[14010000,"Податок на додану вартість  "]
[14010100,"Податок на додану вартість з вироблених в Україні товарів (робіт, послуг) "]
[14010200,"Бюджетне відшкодування податку на додану вартість грошовими коштами "]
[14010300,"Податок на додану вартість з ввезених на територію України товарів "]
[14010400,"Реструктурована сума заборгованості податку на додану вартість  "]
[14010500,"Податок на додану вартість із імпортованих на територію України робіт, послуг "]
[14010600,"Надходження від підприємств податку на додану вартість по операціях, пов'язаних з виконанням інноваційних проектів "]
[14010700,"Податок на додану вартість, що сплачується юридичними особами при здійсненні ними операцій з постачання власної виробленої продукції (молока, молочної сировини, молочних продуктів, м'яса, м'ясопродуктів, іншої продукції переробки тварин (шкур, субпродуктів, м'ясо-кісткового борошна), виготовленої з поставлених молока або м'яса в живій вазі сільськогосподарськими підприємствами, іншими юридичними і фізичними особами, у тому числі фізичними особами - підприємцями, які самостійно вирощують, розводять, відгодовують продукцію тваринництва"]
[14010900,"Податкова заборгованість з податку на додану вартість підприємств, додаткові податкові зобов'язання з цього податку, розстрочені податкові зобов'язання НАК \"Нафтогаз України\" та її підприємств з податку на додану вартість (у тому числі відсотки за користування податковим кредитом), що спрямовуються на розрахунки з погашення заборгованості з різниці в тарифах на теплову енергію, послуги з водопостачання та водовідведення, що вироблялися, транспортувалися та постачалися населенню, яка виникла у зв'язку з невідповідністю фактичної вартості теплової енергії, послуг з водопостачання та водовідведення тарифам, що затверджувалися або погоджувалися відповідними органами державної влади чи органами місцевого самоврядування  "]
[14011100,"Податкова заборгованість з податку на додану вартість підприємств, додаткові податкові зобов'язання з цього податку, розстрочені податкові зобов'язання НАК \"Нафтогаз України\" та її підприємств з податку на додану вартість (у тому числі відсотки за користування податковим кредитом), що спрямовуються на субвенцію з державного бюджету місцевим бюджетам на надання пільг та житлових субсидій населенню на оплату електроенергії, природного газу, послуг тепло-, водопостачання і водовідведення, квартирної плати, вивезення побутового сміття та рідких нечистот  "]
[14020000,"Акцизний податок з вироблених в Україні підакцизних товарів (продукції) "]
[14020100,"Спирт  "]
[14020200,"Лікеро-горілчана продукція  "]
[14020300,"Виноробна продукція (за звітний місяць) "]
[14020400,"Пиво  "]
[14020600,"Тютюн та тютюнові вироби (за ставкою у твердих сумах з одиниці реалізованого товару (продукції) "]
[14020700,"Тютюн та тютюнові вироби за ставкою у процентах до обороту з реалізації товару (продукції) "]
[14020800,"Транспортні засоби (крім мотоциклів і велосипедів)  "]
[14020900,"Мотоцикли і велосипеди  "]
[14021000,"Кузови для моторних транспортних засобів "]
[14021100,"Скраплений газ "]
[14021200,"Операції з відчуження цінних паперів та операції з деривативами, що справлялись до 1 січня 2015 року "]
[14021300,"Електрична енергія "]
[14021600,"Інші підакцизні товари вітчизняного виробництва  "]
[14021700,"Бензин моторний для автомобілів  "]
[14021800,"Інші нафтопродукти  "]
[14022100,"Надходження сум реструктурованої заборгованості зі сплати акцизного податку з вироблених в Україні підакцизних товарів (продукції) "]
[14022300,"Виноробна продукція (при придбанні акцизних марок) "]
[14030000,"Акцизний податок з ввезених на митну територію України підакцизних товарів (продукції) "]
[14030100,"Спирт  "]
[14030200,"Лікеро-горілчана продукція  "]
[14030300,"Виноробна продукція  "]
[14030400,"Пиво  "]
[14030600,"Тютюн та тютюнові вироби (за ставкою у твердих сумах з одиниці реалізованого товару (продукції) "]
[14030700,"Тютюн та тютюнові вироби за ставкою у процентах до обороту з реалізації товару (продукції) "]
[14030800,"Транспортні засоби (крім мотоциклів і велосипедів)  "]
[14030900,"Мотоцикли і велосипеди  "]
[14031000,"Кузови для моторних транспортних засобів "]
[14031100,"Скраплений газ "]
[14031600,"Інші підакцизні товари іноземного виробництва  "]
[14031700,"Бензин моторний для автомобілів  "]
[14031800,"Інші нафтопродукти  "]
[14040000,"Акцизний податок з реалізації суб'єктами господарювання роздрібної торгівлі підакцизних товарів "]
[14050000,"Податки на окремі категорії послуг  "]
[15000000,"Податки на міжнародну торгівлю та зовнішні операції  "]
[15010000,"Ввізне мито  "]
[15010100,"Мито на товари, що ввозяться суб'єктами підприємницької діяльності  "]
[15010200,"Мито на товари, які ввозяться (пересилаються) громадянами  "]
[15010300,"Інші збори з імпорту  "]
[15010800,"Спеціальне мито "]
[15010900,"Антидемпінгове мито "]
[15011000,"Компенсаційне мито "]
[15011100,"Додатковий імпортний збір "]
[15020000,"Вивізне мито  "]
[15020100,"Мито на товари, що вивозяться суб'єктами підприємницької діяльності  "]
[15020200,"Мито на товари, які вивозяться (пересилаються) громадянами  "]
[15020300,"Надходження від реалізації валютних коштів, одержаних у результаті проведення операцій за державним контрактом  "]
[16000000,"Окремі податки і збори, що зараховуються до місцевих бюджетів "]
[16010000,"Місцеві податки і збори, нараховані до 1 січня 2011 року "]
[16010100,"Податок з реклами  "]
[16010200,"Комунальний податок  "]
[16010400,"Збір за припаркування автотранспорту  "]
[16010500,"Ринковий збір  "]
[16010600,"Збір за видачу ордера на квартиру  "]
[16010700,"Курортний збір  "]
[16010800,"Збір за участь у бігах на іподромі  "]
[16010900,"Збір за виграш у бігах на іподромі  "]
[16011000,"Збір з осіб, які беруть участь у грі на тоталізаторі на іподромі  "]
[16011100,"Збір за право використання місцевої символіки  "]
[16011200,"Збір за право проведення кіно- і телезйомок  "]
[16011300,"Збір за право проведення місцевих аукціонів, конкурсного розпродажу і лотерей  "]
[16011500,"Збір за видачу дозволу на розміщення об'єктів торгівлі та сфери послуг  "]
[16011600,"Збір із власників собак  "]
[16011700,"Надходження сум реструктурованої заборгованості зі сплати місцевих податків  "]
[16011800,"Збір на розвиток рекреаційного комплексу в Автономній Республіці Крим "]
[16011900,"Збір на розвиток пасажирського електротранспорту в Автономній Республіці Крим "]
[16012100,"Податок на промисел  "]
[17000000,"Рентна плата за транспортування, збори на паливно-енергетичні ресурси "]
[17010000,"Рентна плата за вуглеводні, що нарахована до 1 січня 2013 року та рентна плата за транспортування "]
[17010100,"Рентна плата за нафту, що видобувається в Україні, нарахована до 1 січня 2013 року"]
[17010200,"Рентна плата за природний газ, що видобувається в Україні, нарахована до 1 січня 2013 року"]
[17010300,"Рентна плата за газовий конденсат, що видобувається в Україні, нарахована до 1 січня 2013 року"]
[17010400,"Надходження сум реструктурованої заборгованості зі сплати рентної плати за нафту, що видобувається в Україні, що нарахована до 1 січня 2013 року "]
[17010500,"Надходження сум реструктурованої заборгованості зі сплати рентної плати за природний газ, що видобувається в Україні, що нарахована до 1 січня 2013 року "]
[17010700,"Рентна плата за транзитне транспортування трубопроводами природного газу територією України "]
[17010800,"Рентна плата за транспортування нафти та нафтопродуктів магістральними нафтопроводами та нафтопродуктопроводами територією України "]
[17010900,"Рентна плата за транзитне транспортування трубопроводами аміаку територією України "]
[17011200,"Податкова заборгованість з рентної плати за транзитне транспортування трубопроводами природного газу територією України, розстрочені податкові зобов'язання НАК \"Нафтогаз України\" та її підприємств з цього податку (у тому числі відсотки за користування податковим кредитом), що спрямовуються на розрахунки з погашення заборгованості з різниці в тарифах на теплову енергію, послуги з водопостачання та водовідведення, що вироблялися, транспортувалися та постачалися населенню, яка виникла у зв'язку з невідповідністю фактичної вартості теплової енергії, послуг з водопостачання та водовідведення тарифам, що затверджувалися або погоджувалися відповідними органами державної влади чи органами місцевого самоврядування "]
[17011500,"Податкова заборгованість з рентної плати за транзитне транспортування трубопроводами природного газу територією України, розстрочені податкові зобов'язання НАК \"Нафтогаз України\" та її підприємств з цього податку (у тому числі відсотки за користування податковим кредитом), що спрямовуються на субвенцію з державного бюджету місцевим бюджетам на надання пільг та житлових субсидій населенню на оплату електроенергії, природного газу, послуг тепло-, водопостачання і водовідведення, квартирної плати, вивезення побутового сміття та рідких нечистот "]
[17060000,"Збір у вигляді цільової надбавки до діючого тарифу на природний газ для споживачів усіх форм власності "]
[17060100,"Збір у вигляді цільової надбавки до діючого тарифу на природний газ для споживачів усіх форм власності, який справляється за поставлений природний газ споживачам на підставі укладених з ними договорів "]
[17060200,"Збір у вигляді цільової надбавки до діючого тарифу на природний газ для споживачів усіх форм власності, який справляється за імпортований суб'єктами господарювання природний газ для споживання ними як палива або сировини "]
[17060300,"Збір у вигляді цільової надбавки до діючого тарифу на природний газ для споживачів усіх форм власності, який справляється за видобутий суб'єктами господарювання та спожитий ними природний газ як паливо або сировина "]
[17070000,"Надходження нарахованих і не сплачених зобов'язань Державного підприємства \"Енергоринок\" перед державним бюджетом по збору у вигляді цільової надбавки до діючого тарифу на електричну та теплову енергію за минулі роки"]
[18000000,"Місцеві податки "]
[18010000,"Податок на майно "]
[18010100,"Податок на нерухоме майно, відмінне від земельної ділянки, сплачений юридичними особами, які є власниками об'єктів житлової нерухомості "]
[18010200,"Податок на нерухоме майно, відмінне від земельної ділянки, сплачений фізичними особами, які є власниками об'єктів житлової нерухомості "]
[18010300,"Податок на нерухоме майно, відмінне від земельної ділянки, сплачений фізичними особами, які є власниками об'єктів нежитлової нерухомості "]
[18010400,"Податок на нерухоме майно, відмінне від земельної ділянки, сплачений юридичними особами, які є власниками об'єктів нежитлової нерухомості "]
[18010500,"Земельний податок з юридичних осіб "]
[18010600,"Орендна плата з юридичних осіб "]
[18010700,"Земельний податок з фізичних осіб "]
[18010800,"Реструктурована сума заборгованості з плати за землю "]
[18010900,"Орендна плата з фізичних осіб "]
[18011000,"Транспортний податок з фізичних осіб "]
[18011100,"Транспортний податок з юридичних осіб "]
[18020000,"Збір за місця для паркування транспортних засобів "]
[18020100,"Збір за місця для паркування транспортних засобів, сплачений юридичними особами "]
[18020200,"Збір за місця для паркування транспортних засобів, сплачений фізичними особами "]
[18030000,"Туристичний збір "]
[18030100,"Туристичний збір, сплачений юридичними особами "]
[18030200,"Туристичний збір, сплачений фізичними особами "]
[18040000,"Збір за провадження деяких видів підприємницької діяльності, що справлявся до 1 січня 2015 року "]
[18040100,"Збір за провадження торговельної діяльності (роздрібна торгівля), сплачений фізичними особами, що справлявся до 1 січня 2015 року "]
[18040200,"Збір за провадження торговельної діяльності (роздрібна торгівля), сплачений юридичними особами, що справлявся до 1 січня 2015 року "]
[18040300,"Збір за здійснення торгівлі валютними цінностями, що справлявся до 1 січня 2015 року "]
[18040500,"Збір за провадження торговельної діяльності (оптова торгівля), сплачений фізичними особами, що справлявся до 1 січня 2015 року "]
[18040600,"Збір за провадження торговельної діяльності (ресторанне господарство), сплачений фізичними особами, що справлявся до 1 січня 2015 року "]
[18040700,"Збір за провадження торговельної діяльності (оптова торгівля), сплачений юридичними особами, що справлявся до 1 січня 2015 року "]
[18040800,"Збір за провадження торговельної діяльності (ресторанне господарство), сплачений юридичними особами, що справлявся до 1 січня 2015 року "]
[18040900,"Збір за провадження торговельної діяльності із придбанням пільгового торгового патенту, що справлявся до 1 січня 2015 року "]
[18041000,"Збір за провадження торговельної діяльності із придбанням короткотермінового торгового патенту, що справлявся до 1 січня 2015 року "]
[18041300,"Збір за провадження діяльності з надання платних послуг, сплачений фізичними особами, що справлявся до 1 січня 2015 року "]
[18041400,"Збір за провадження діяльності з надання платних послуг, сплачений юридичними особами, що справлявся до 1 січня 2015 року "]
[18041500,"Збір за провадження торговельної діяльності нафтопродуктами, скрапленим та стиснутим газом на стаціонарних, малогабаритних і пересувних автозаправних станціях, заправних пунктах, що справлявся до 1 січня 2015 року "]
[18041600,"Надходження сум реструктурованої заборгованості із сплати збору за провадження деяких видів підприємницької діяльності, що справлявся до 1 січня 2015 року "]
[18041700,"Збір за здійснення діяльності у сфері розваг, сплачений юридичними особами, що справлявся до 1 січня 2015 року "]
[18041800,"Збір за здійснення діяльності у сфері розваг, сплачений фізичними особами, що справлявся до 1 січня 2015 року "]
[18050000,"Єдиний податок  "]
[18050100,"Єдиний податок з юридичних осіб, нарахований до 1 січня 2011 року "]
[18050200,"Єдиний податок з фізичних осіб, нарахований до 1 січня 2011 року "]
[18050300,"Єдиний податок з юридичних осіб "]
[18050400,"Єдиний податок з фізичних осіб "]
[18050500,"Єдиний податок з сільськогосподарських товаровиробників, у яких частка сільськогосподарського товаровиробництва за попередній податковий (звітний) рік дорівнює або перевищує 75 відсотків\" "]
[19000000,"Інші податки та збори "]
[19010000,"Екологічний податок "]
[19010100,"Надходження від викидів забруднюючих речовин в атмосферне повітря стаціонарними джерелами забруднення "]
[19010200,"Надходження від скидів забруднюючих речовин безпосередньо у водні об'єкти "]
[19010300,"Надходження від розміщення відходів у спеціально відведених для цього місцях чи на об'єктах, крім розміщення окремих видів відходів як вторинної сировини "]
[19010400,"Екологічний податок, який справляється за утворення радіоактивних відходів (включаючи вже накопичені) та/або тимчасове зберігання радіоактивних відходів їх виробниками понад установлений особливими умовами ліцензій строк "]
[19010700,"Екологічний податок, який справляється при ввезенні на митну територію України транспортних засобів та/або кузовів до них (за винятком кузовів товарної категорії 8707 10 10 згідно з УКТ ЗЕД) в митному режимі імпорту"]
[19010800,"Екологічний податок, який справляється при продажу на внутрішньому ринку України транспортних засобів, вироблених (виготовлених) на митній території України"]
[19010900,"Екологічний податок, який справляється при придбанні транспортних засобів в осіб, які не є платниками цього податку згідно з Податковим кодексом України"]
[19050000,"Збір за забруднення навколишнього природного середовища  "]
[19050100,"Надходження коштів від енергопідприємств до Державного фонду охорони навколишнього природного середовища  "]
[19050200,"Інші збори за забруднення навколишнього природного середовища до Фонду охорони навколишнього природного середовища  "]
[19050300,"Надходження від сплати збору за забруднення навколишнього природного середовища фізичними особами  "]
[19060000,"Збір на розвиток виноградарства, садівництва і хмелярства, нарахований до 1 січня 2015 року "]
[19060100,"Збір на розвиток виноградарства, садівництва і хмелярства, нарахований до 1 січня 2015 року "]
[19060200,"Надходження сум реструктурованої заборгованості зі сплати збору на розвиток виноградарства, садівництва і хмелярства, нарахований до 1 січня 2015 року "]
[19090000,"Податки та збори, не віднесені до інших категорій  "]
[19090400,"Кошти, сплачені в рахунок погашення податкового боргу відповідно до норм Податкового кодексу України за доходами, визначеними частиною другою статті 29 Бюджетного кодексу України, зокрема за податками і зборами (обов'язковими платежами), які справлялися до 1 січня 2011 року та встановлені Податковим кодексом України"]
[20000000,"Неподаткові надходження  "]
[21000000,"Доходи від власності та підприємницької діяльності  "]
[21010000,"Частина чистого прибутку (доходу) державних або комунальних унітарних підприємств та їх об'єднань, що вилучається до відповідного бюджету, та дивіденди (дохід), нараховані на акції (частки, паї) господарських товариств, у статутних капіталах яких є державна або комунальна власність"]
[21010100,"Частина чистого прибутку (доходу) господарських організацій (державних унітарних підприємств та їх об'єднань), що вилучається до державного бюджету відповідно до закону"]
[21010300,"Частина чистого прибутку (доходу) комунальних унітарних підприємств та їх об'єднань, що вилучається до відповідного місцевого бюджету"]
[21010500,"Дивіденди (доход), нараховані на акції (частки, паї) господарських товариств, у статутних капіталах яких є державна власність  "]
[21010600,"Надходження від погашення заборгованості із сплати дивідендів, підприємств електроенергетичної галузі, що сплачується до державного бюджету відповідно до законодавства, в тому числі із сплати реструктуризованої або розстроченої (відстроченої) заборгованості, а також надходження із сплати такими підприємствами дивідендів, нарахованих за результатами діяльності у 2013 році "]
[21010700,"Надходження від сплати дивідендів (доходу), нарахованих на акції (частки, паї) за результатами фінансово-господарської діяльності за 2011 рік публічного акціонерного товариства \"Національна акціонерна компанія \"Нафтогаз України\""]
[21010800,"Дивіденди (дохід), нараховані на акції (частки, паї) господарських товариств, у статутних капіталах яких є майно Автономної Республіки Крим, комунальна власність "]
[21010900,"Заборгованість за минулі періоди із сплати частини чистого прибутку (доходу) Національної акціонерної компанії \"Нафтогаз України\" та її підприємств  "]
[21020000,"Кошти, що перераховуються Національним банком України відповідно до Закону України \"Про Національний банк України\" "]
[21030000,"Відрахування коштів, отриманих від проведення державних лотерей в Україні"]
[21040000,"Плата за розміщення тимчасово вільних коштів державного бюджету  "]
[21050000,"Плата за розміщення тимчасово вільних коштів місцевих бюджетів "]
[21080000,"Інші надходження  "]
[21080100,"Платежі, пов'язані з перебуванням Чорноморського флоту Російської Федерації на території України, відповідно до укладеної міжурядової угоди  "]
[21080200,"Платежі, пов'язані з виконанням Угоди між Урядом України і Урядом Російської Федерації про участь Російської Федерації в розвитку соціально-економічної сфери міста Севастополя та інших населених пунктів, в яких дислокуються військові формування Чорноморського флоту Російської Федерації на території України "]
[21080500,"Інші надходження "]
[21080600,"Суми, стягнені з винних осіб, за шкоду, заподіяну державі, підприємству, установі, організації  "]
[21080700,"Перерахування підприємцями частки вартості виготовленої нестандартної продукції з дозволу на тимчасове відхилення від вимог відповідних стандартів щодо якості продукції, виданого Державним комітетом України по стандартизації, метрології і сертифікації  "]
[21080800,"Суми, стягнені з винних осіб за порушення правил пожежної безпеки  "]
[21080900,"Штрафні санкції за порушення законодавства про патентування, за порушення норм регулювання обігу готівки та про застосування реєстраторів розрахункових операцій у сфері торгівлі, громадського харчування та послуг "]
[21081000,"Пеня за порушення термінів розрахунків у сфері зовнішньоекономічної діяльності, за невиконання зобов'язань та штрафні санкції за порушення вимог валютного законодавства  "]
[21081100,"Адміністративні штрафи та інші санкції "]
[21081200,"Штрафні санкції за порушення законодавства з питань забезпечення ефективного використання енергетичних ресурсів  "]
[21081300,"Адміністративні штрафи у сфері забезпечення безпеки дорожнього руху  "]
[21081400,"Надходження податків і зборів (обов'язкових платежів), які справлялися до 1 січня 2011 року, але не визначені Податковим кодексом (крім податків та зборів, які надходили до місцевих бюджетів), включаючи розстрочені та відстрочені суми грошових зобов'язань, суми податкового боргу з урахуванням штрафних санкцій та пені, що обліковувались станом на 31 грудня 2010 року та сум донарахованих за актами перевірок "]
[21082000,"Надходження коштів від сплати інвалідами часткової вартості автомобілів та коштів від реалізації автомобілів, повернутих інвалідами "]
[21083000,"Надходження від реалізації автомобілів, засобів наземного, водного та повітряного транспорту, сільськогосподарської техніки, обладнання та устаткування, що перебувають на балансі органів державної влади та інших державних органів, утворених органами державної влади підприємств, установ та організацій, які використовують кошти державного бюджету"]
[21090000,"Кошти від використання (реалізації) частини виробленої продукції, що залишається у власності держави відповідно до угод про розподіл продукції, та/або кошти у вигляді грошового еквівалента такої державної частини продукції\" "]
[21110000,"Надходження коштів від відшкодування втрат сільськогосподарського і лісогосподарського виробництва  "]
[22000000,"Адміністративні збори та платежі, доходи від некомерційної господарської діяльності "]
[22010000,"Плата за надання адміністративних послуг"]
[22010200,"Плата за ліцензії на певні види господарської діяльності та сертифікати, що видаються Радою міністрів Автономної Республіки Крим, виконавчими органами місцевих рад і місцевими органами виконавчої влади "]
[22010300,"Адміністративний збір за проведення державної реєстрації юридичних осіб та фізичних осіб - підприємців "]
[22010400,"Кошти в іноземній валюті за реєстрацію представництв іноземних суб'єктів господарської діяльності  "]
[22010500,"Плата за ліцензії на виробництво спирту етилового, коньячного і плодового, алкогольних напоїв та тютюнових виробів  "]
[22010600,"Плата за ліцензії на право експорту, імпорту та оптової торгівлі спирту етилового, коньячного та плодового  "]
[22010700,"Плата за ліцензії на право експорту, імпорту алкогольними напоями та тютюновими виробами  "]
[22010900,"Плата за державну реєстрацію (крім реєстраційного збору за проведення державної реєстрації юридичних осіб та фізичних осіб - підприємців) "]
[22011000,"Плата за ліцензії на право оптової торгівлі алкогольними напоями та тютюновими виробами  "]
[22011100,"Плата за ліцензії на право роздрібної торгівлі алкогольними напоями та тютюновими виробами  "]
[22011200,"Плата за видачу, продовження, переоформлення ліцензій і за видачу дубліката ліцензій на мовлення, та ліцензій провайдера програмної послуги  "]
[22011400,"Плата за видачу, переоформлення, продовження терміну дії ліцензій на користування радіочастотним ресурсом України та видачу дублікатів таких ліцензій "]
[22011500,"Плата за ліцензії, видані Національною комісією, що здійснює державне регулювання у сферах енергетики та комунальних послуг "]
[22011700,"Плата за видачу, переоформлення, продовження терміну дії ліцензій на здійснення діяльності у сфері телекомунікацій та видачу копій і дублікатів таких ліцензій "]
[22011800,"Плата за ліцензії та сертифікати, що сплачується ліцензіатами за місцем здійснення діяльності "]
[22011900,"Збори за підготовку до державної реєстрації авторського права і договорів, які стосуються прав автора на твір, та плата за одержання контрольних марок"]
[22012000,"Плата за видачу дозволів на право ввезення на територію України, вивезення з території України або транзиту через територію України наркотичних засобів, психотропних речовин і прекурсорів"]
[22012100,"Збір за видачу спеціальних дозволів на користування надрами та кошти від продажу таких дозволів"]
[22012200,"Плата за виділення номерного ресурсу"]
[22012300,"Плата за державну реєстрацію джерел іонізуючого випромінювання (реєстраційний збір)"]
[22012400,"Плата за оформлення посвідчення закордонного українця"]
[22012500,"Плата за надання інших адміністративних послуг"]
[22012600,"Адміністративний збір за державну реєстрацію речових прав на нерухоме майно та їх обтяжень "]
[22012700,"Плата за надання відомостей з Єдиного державного реєстру юридичних осіб та фізичних осіб - підприємців, за одержання інформації з інших державних реєстрів, держателем яких є центральний орган виконавчої влади з формування та забезпечення реалізації державної правової політики та центральний орган виконавчої влади, що забезпечує реалізацію державної політики у сферах державної реєстрації актів цивільного стану, державної реєстрації речових прав на нерухоме майно, державної реєстрації юридичних осіб та фізичних осіб - підприємців "]
[22012800,"Плата за оприлюднення повідомлення на офіційному веб-сайті центрального органу виконавчої влади, що реалізує державну політику у сфері державної реєстрації юридичних осіб та фізичних осіб - підприємців "]
[22020000,"Плата за утримання дітей у школах-інтернатах  "]
[22030000,"Судовий збір"]
[22050000,"Надходження від оплати витрат з інформаційно-технічного забезпечення розгляду справ у судах  "]
[22060000,"Кошти, отримані за вчинення консульських дій  "]
[22070000,"Виконавчий збір "]
[22080000,"Надходження від орендної плати за користування цілісним майновим комплексом та іншим державним майном  "]
[22080100,"Надходження від орендної плати за користування цілісним майновим комплексом  "]
[22080200,"Надходження від орендної плати за користування майном бюджетних установ  "]
[22080300,"Надходження від орендної плати за користування іншим державним майном  "]
[22080400,"Надходження від орендної плати за користування цілісним майновим комплексом та іншим майном, що перебуває в комунальній власності "]
[22080500,"Надходження платежів за надані орендареві грошові кошти та цінні папери на умовах кредиту  "]
[22090000,"Державне мито  "]
[22090100,"Державне мито, що сплачується за місцем розгляду та оформлення документів, у тому числі за оформлення документів на спадщину і дарування  "]
[22090200,"Державне мито, не віднесене до інших категорій  "]
[22090300,"Державне мито за дії, пов'язані з одержанням патентів на об'єкти права інтелектуальної власності, підтриманням їх чинності та передаванням прав їхніми власниками  "]
[22090400,"Державне мито, пов'язане з видачею та оформленням закордонних паспортів (посвідок) та паспортів громадян України  "]
[22090500,"Надходження сум реструктурованої заборгованості зі сплати державного мита  "]
[22090600,"Державне мито за державну реєстрацію права власності на нерухоме майно; за державну реєстрацію іншого речового права на нерухоме майно, обтяження права на нерухоме майно"]
[22110000,"Єдиний збір, який справляється у пунктах пропуску через державний кордон України  "]
[22130000,"Орендна плата за водні об'єкти (їх частини), що надаються в користування на умовах оренди, районними, Київською та Севастопольською міськими державними адміністраціями, місцевими радами "]
[22150000,"Портовий (адміністративний) збір"]
[22150100,"Портовий (адміністративний) збір (за винятком портового (адміністративного) збору, що надходить від риболовних портів)"]
[22150200,"Портовий (адміністративний) збір, що надходить від риболовних портів"]
[22160000,"Інші адміністративні збори та платежі"]
[22160100,"Плата за проїзд автомобільними дорогами транспортних засобів та інших самохідних машин і механізмів, вагові або габаритні параметри яких перевищують нормативні"]
[22200000,"Плата за виконання митних формальностей органами доходів і зборів поза місцем розташування цих органів або поза робочим часом, установленим для них "]
[24000000,"Інші неподаткові надходження  "]
[24010000,"Кошти від реалізації майна, конфіскованого за рішенням суду  "]
[24010100,"Кошти від реалізації конфіскованого майна за матеріалами митних органів  "]
[24010200,"Кошти від реалізації товарів та інших предметів, конфіскованих за матеріалами правоохоронних та інших уповноважених органів  "]
[24010300,"Надходження конфіскованої національної та іноземної валюти за матеріалами митних органів "]
[24010400,"Надходження конфіскованої національної та іноземної валюти за матеріалами правоохоронних й інших уповноважених органів "]
[24030000,"Надходження сум кредиторської та депонентської заборгованості підприємств, організацій та установ, щодо яких минув строк позовної давності "]
[24040000,"Кошти від реалізації надлишкової космічної техніки військового та подвійного призначення "]
[24050000,"Кошти від реалізації надлишкового озброєння, військової та спеціальної техніки, нерухомого військового майна Збройних Сил України та інших утворених відповідно до законів України військових формувань, правоохоронних органів та інших державних органів"]
[24060000,"Інші надходження  "]
[24060300,"Інші надходження  "]
[24060500,"Відрахування від суми коштів, витрачених на рекламу тютюнових виробів та/або алкогольних напоїв у межах України  "]
[24060600,"Надходження коштів з рахунків виборчих фондів  "]
[24060700,"Нез'ясовані надходження  "]
[24060800,"Надходження від збору за проведення гастрольних заходів "]
[24061500,"Надходження до Державного спеціалізованого фонду фінансування загальнодержавних витрат на авіаційну діяльність та участь України у міжнародних авіаційних організаціях  "]
[24061600,"Інші надходження до фондів охорони навколишнього природного середовища  "]
[24061800,"Плата за подання скарги до органу оскарження відповідно до статті 18 Закону України \"Про здійснення державних закупівель\" "]
[24061900,"Кошти, отримані від надання учасниками процедури закупівель забезпечення їх пропозиції конкурсних торгів, які не підлягають поверненню цим учасникам, у випадках, передбачених Законом України \"Про здійснення державних закупівель\" "]
[24062000,"Кошти, отримані від учасника - переможця процедури закупівлі під час укладання договору про закупівлю як забезпечення виконання цього договору, які не підлягають поверненню учаснику - переможцю  "]
[24062100,"Грошові стягнення за шкоду, заподіяну порушенням законодавства про охорону навколишнього природного середовища внаслідок господарської та іншої діяльності "]
[24062200,"Кошти за шкоду, що заподіяна на земельних ділянках державної та комунальної власності, які не надані у користування та не передані у власність, внаслідок їх самовільного зайняття, використання не за цільовим призначенням, зняття ґрунтового покриву (родючого шару ґрунту) без спеціального дозволу; відшкодування збитків за погіршення якості ґрунтового покриву тощо та за неодержання доходів у зв'язку з тимчасовим невикористанням земельних ділянок "]
[24062400,"Кошти, отримані від продажу частин встановленої кількості викидів парникових газів, передбаченого статтею 17 Кіотського протоколу до Рамкової конвенції Організації Об'єднаних Націй про зміну клімату"]
[24063100,"Кошти, отримані відповідно до статті 8 Закону України \"Про впорядкування питань, пов'язаних із забезпеченням ядерної безпеки\" (включаючи надходження заборгованості минулих років за цими коштами), та дохід від розміщення цих коштів у цінні папери відповідно до статті 9 цього ж Закону України"]
[24063500,"Кошти від реалізації продуктів утилізації твердого ракетного палива "]
[24110000,"Доходи від операцій з кредитування та надання гарантій  "]
[24110100,"Плата за надання державних гарантій та кредитів (позик), залучених державою"]
[24110200,"Плата за користування кредитами (позиками), залученими державою "]
[24110300,"Відсотки за користування державним пільговим кредитом, наданим індивідуальним сільським забудовникам  "]
[24110400,"Відсотки за користування пільговим довгостроковим державним кредитом, наданим молодим сім'ям та одиноким молодим громадянам на будівництво (реконструкцію) та придбання житла"]
[24110500,"Інші (курсові різниці)  "]
[24110600,"Відсотки за користування позиками, які надавалися з місцевих бюджетів  "]
[24110700,"Плата за гарантії, надані Верховною Радою Автономної Республіки Крим та міськими радами  "]
[24110800,"Плата за користування кредитом з державного бюджету "]
[24110900,"Відсотки за користування довгостроковим кредитом, що надається з місцевих бюджетів молодим сім'ям та одиноким молодим громадянам на будівництво (реконструкцію) та придбання житла "]
[24111000,"Плата за користування суб'єктами малого підприємництва мікрокредитами з державного бюджету"]
[24130000,"Збір на соціально-економічну компенсацію ризику населення, яке проживає на території зони спостереження  "]
[24130100,"Збір на соціально-економічну компенсацію ризику населення, яке проживає на території зони спостереження, що сплачується експлуатуючими організаціями при реалізації електричної енергії  "]
[24130200,"Збір на соціально-економічну компенсацію ризику населення, яке проживає на території зони спостереження, що сплачується підприємствами з видобування і переробки уранових руд  "]
[24130300,"Збір на соціально-економічну компенсацію ризику населення, яке проживає на території зони спостереження, що сплачується експлуатуючими організаціями за зберігання відпрацьованого ядерного палива  "]
[24140000,"Збори на обов'язкове державне пенсійне страхування з окремих видів господарських операцій  "]
[24140100,"Збір з операцій з купівлі іноземної валюти в готівковій формі "]
[24140200,"Збір при поданні ювелірних та побутових виробів з дорогоцінних металів на клеймування державним пробірним клеймом до казенних підприємств пробірного контролю "]
[24140300,"Збір під час набуття права власності на легкові автомобілі"]
[24140500,"Збір з операцій придбавання (купівлі-продажу) нерухомого майна  "]
[24140600,"Збір з користування та надання послуг стільникового рухомого зв'язку  "]
[24160000,"Концесійні платежі  "]
[24160100,"Концесійні платежі щодо об'єктів комунальної власності (крім тих, які мають цільове спрямування згідно із законом) "]
[24160200,"Концесійні платежі щодо об'єктів комунальної власності (які мають цільове спрямування згідно із законом) "]
[24160300,"Концесійні платежі щодо об'єктів державної власності "]
[24170000,"Надходження коштів пайової участі у розвитку інфраструктури населеного пункту"]
[25000000,"Власні надходження бюджетних установ  "]
[25010000,"Надходження від плати за послуги, що надаються бюджетними установами згідно із законодавством "]
[25010100,"Плата за послуги, що надаються бюджетними установами згідно з їх основною діяльністю "]
[25010200,"Надходження бюджетних установ від додаткової (господарської) діяльності "]
[25010300,"Плата за оренду майна бюджетних установ  "]
[25010400,"Надходження бюджетних установ від реалізації в установленому порядку майна (крім нерухомого майна) "]
[25020000,"Інші джерела власних надходжень бюджетних установ  "]
[25020100,"Благодійні внески, гранти та дарунки "]
[25020200,"Кошти, що отримують бюджетні установи від підприємств, організацій, фізичних осіб та від інших бюджетних установ для виконання цільових заходів, у тому числі заходів з відчуження для суспільних потреб земельних ділянок та розміщених на них інших об'єктів нерухомого майна, що перебувають у приватній власності фізичних або юридичних осіб"]
[25020300,"Кошти, що отримують вищі та професійно-технічні навчальні заклади від розміщення на депозитах тимчасово вільних бюджетних коштів, отриманих за надання платних послуг, якщо таким закладам законом надано відповідне право "]
[25020400,"Кошти, отримані від реалізації майнових прав на фільми, вихідні матеріали фільмів та фільмокопій, створені за бюджетні кошти як за державним замовленням, так і на умовах фінансової підтримки "]
[30000000,"Доходи від операцій з капіталом  "]
[31000000,"Надходження від продажу основного капіталу  "]
[31010000,"Кошти від реалізації скарбів, майна, одержаного державою або територіальною громадою в порядку спадкування чи дарування, безхазяйного майна, знахідок, а також валютних цінностей і грошових коштів, власники яких невідомі "]
[31010100,"Кошти від реалізації скарбів, які є пам'ятками історії та культури, майна, одержаного державою в порядку спадкування чи дарування  "]
[31010200,"Кошти від реалізації безхазяйного майна, знахідок, спадкового майна, майна, одержаного територіальною громадою в порядку спадкування чи дарування, а також валютні цінності і грошові кошти, власники яких невідомі  "]
[31020000,"Надходження коштів від Державного фонду дорогоцінних металів і дорогоцінного каміння  "]
[31030000,"Кошти від відчуження майна, що належить Автономній Республіці Крим та майна, що перебуває в комунальній власності  "]
[32000000,"Надходження від реалізації державних запасів товарів  "]
[32010000,"Надходження від реалізації матеріальних цінностей державного резерву  "]
[32010100,"Надходження від реалізації матеріальних цінностей державного резерву "]
[32010200,"Надходження від погашення підприємствами паливно-енергетичного комплексу та нафтогазової галузі перед Державним агентством резерву України заборгованості та зобов'язань за матеріальні цінності (включаючи зобов'язання з податку на додану вартість, що виникають за результатами проведення таких розрахунків, та із сплати штрафних санкцій і відсотків за користування ресурсами), а також надходження Державного агентства резерву України від реалізації матеріальних цінностей, повернутих підприємствами паливно-енергетичного комплексу та нафтогазової галузі "]
[32010400,"Надходження від реалізації матеріальних цінностей державного резерву медичного призначення  "]
[32020000,"Надходження від реалізації розброньованих матеріальних цінностей мобілізаційного резерву  "]
[33000000,"Кошти від продажу землі і нематеріальних активів "]
[33010000,"Кошти від продажу землі  "]
[33010100,"Кошти від продажу земельних ділянок несільськогосподарського призначення, що перебувають у державній або комунальній власності, та земельних ділянок, які знаходяться на території Автономної Республіки Крим"]
[33010300,"Кошти від продажу земельних ділянок несільськогосподарського призначення або прав на них, що перебувають у державній власності, на яких розташовані об'єкти, які підлягають приватизації"]
[33010200,"Кошти від продажу прав на земельні ділянки несільськогосподарського призначення, що перебувають у державній або комунальній власності, та прав на земельні ділянки, які знаходяться на території Автономної Республіки Крим"]
[33010400,"Кошти від продажу земельних ділянок несільськогосподарського призначення до розмежування земель державної та комунальної власності з розстроченням платежу"]
[33020000,"Надходження від продажу нематеріальних активів  "]
[33030000,"Кошти від відчуження земельних ділянок, на яких розташовані об'єкти нерухомого військового майна, що підлягають реалізації, та земельних ділянок, які вивільняються у процесі реформування Збройних Сил України і Державної спеціальної служби транспорту "]
[34000000,"Податки на фінансові операції та операції з капіталом  "]
[40000000,"Офіційні трансферти  "]
[41000000,"Від органів державного управління  "]
[41010000,"Кошти, що надходять з інших бюджетів  "]
[41010100,"Реверсна дотація "]
[41010200,"Кошти, що надходять за взаємними розрахунками із додаткової дотації до державного бюджету  "]
[41010300,"Кошти, що надходять за взаємними розрахунками із додаткової дотації з державного бюджету  "]
[41010400,"Кошти, що надходять за взаємними розрахунками із додаткової дотації з районних та міських (міст Києва і Севастополя, міст республіканського та обласного значення) до міських (міст районного значення), селищних та сільських бюджетів  "]
[41010500,"Кошти, що надходять за взаємними розрахунками із додаткової дотації з міських (міст районного значення), селищних та сільських бюджетів до районних та міських (міст Києва і Севастополя, міст республіканського та обласного значення) бюджетів  "]
[41010600,"Кошти, що надходять до районних та міських (міст Києва і Севастополя, міст республіканського і обласного значення) бюджетів з міських (міст районного значення), селищних, сільських та районних у містах бюджетів  "]
[41010700,"Кошти, що надходять за взаємними розрахунками до державного бюджету з місцевих бюджетів  "]
[41010800,"Кошти, що надходять за взаємними розрахунками до місцевих бюджетів з державного бюджету  "]
[41010900,"Кошти, що надходять за взаємними розрахунками між місцевими бюджетами  "]
[41020000,"Дотації  "]
[41020100,"Базова дотація "]
[41020300,"Дотації вирівнювання, що одержуються з районних та міських (міст Києва і Севастополя, міст республіканського і обласного значення) бюджетів  "]
[41020400,"Додаткові дотації з державного бюджету місцевим бюджетам  "]
[41020600,"Стабілізаційна дотація "]
[41020800,"Додаткова дотація з державного бюджету міському бюджету міста Славутича на забезпечення утримання соціальної інфраструктури міста Славутича "]
[41020900,"Інші додаткові дотації  "]
[41021000,"Додаткова дотація з державного бюджету місцевим бюджетам на компенсацію втрат доходів місцевих бюджетів внаслідок наданих державою податкових пільг зі сплати земельного податку суб'єктам космічної діяльності, літакобудування, суднобудування та кінематографії"]
[41021100,"Додаткова дотація з державного бюджету місцевим бюджетам на виплату надбавок за обсяг та якість виконаної роботи медичним працівникам закладів охорони здоров'я, що надають первинну медичну допомогу, у непілотних регіонах "]
[41021200,"Додаткова дотація з державного бюджету місцевим бюджетам на покращення надання соціальних послуг найуразливішим верствам населення"]
[41021300,"Додаткова дотація з державного бюджету місцевим бюджетам на виплату допомоги по догляду за інвалідом I чи II групи внаслідок психічного розладу"]
[41021800,"Додаткова дотація з державного бюджету місцевим бюджетам на оплату праці працівників бюджетних установ"]
[41022000,"Додаткова дотація з державного бюджету обласному бюджету Донецької області на забезпечення функціонування Донецького палацу молоді \"Юність\""]
[41030000,"Субвенції  "]
[41030200,"Субвенція з державного бюджету обласному бюджету Івано-Франківської області для здійснення природоохоронних заходів із видалення, перевезення та утилізації небезпечних відходів гексахлорбензолу у зоні консервації Домбровського кар'єру в Калуському районі"]
[41030300,"Субвенція на утримання об'єктів спільного користування чи ліквідацію негативних наслідків діяльності об'єктів спільного користування  "]
[41030400,"Субвенція з інших бюджетів на виконання інвестиційних проектів "]
[41030600,"Субвенція з державного бюджету місцевим бюджетам на виплату допомоги сім'ям з дітьми, малозабезпеченим сім'ям, інвалідам з дитинства, дітям-інвалідам, тимчасової державної допомоги дітям та допомоги по догляду за інвалідами I чи II групи внаслідок психічного розладу "]
[41030700,"Субвенція з державного бюджету бюджету Автономної Республіки Крим для здійснення природоохоронного заходу з розроблення матеріалів до проекту зміни меж та розширення території Ялтинського гірсько-лісового природного заповідника"]
[41030800,"Субвенція з державного бюджету місцевим бюджетам на надання пільг та житлових субсидій населенню на оплату електроенергії, природного газу, послуг тепло-, водопостачання і водовідведення, квартирної плати (утримання будинків і споруд та прибудинкових територій), вивезення побутового сміття та рідких нечистот  "]
[41030900,"Субвенція з державного бюджету місцевим бюджетам на надання пільг з послуг зв'язку, інших передбачених законодавством пільг (крім пільг на одержання ліків, зубопротезування, оплату електроенергії, природного і скрапленого газу на побутові потреби, твердого та рідкого пічного побутового палива, послуг тепло-, водопостачання і водовідведення, квартирної плати (утримання будинків і споруд та прибудинкових територій), вивезення побутового сміття та рідких нечистот), на компенсацію втрати частини доходів у зв'язку з відміною податку з власників транспортних засобів та інших самохідних машин і механізмів та відповідним збільшенням ставок акцизного податку з пального і на компенсацію за пільговий проїзд окремих категорій громадян"]
[41031000,"Субвенція з державного бюджету місцевим бюджетам на надання пільг та житлових субсидій населенню на придбання твердого та рідкого пічного побутового палива і скрапленого газу "]
[41031300,"Субвенція з державного бюджету місцевим бюджетам на проекти ліквідації підприємств вугільної та торфодобувної промисловості і утримання водовідливних комплексів у безпечному режимі на умовах співфінансування (50 відсотків) "]
[41031500,"Субвенція з державного бюджету міському бюджету міста Жовті Води на виконання заходів щодо радіаційного та соціального захисту населення міста Жовті Води "]
[41031600,"Субвенція з державного бюджету обласному бюджету Донецької області на будівництво ПЕТ-КТ центру, капітальний ремонт і реконструкцію лікарняних споруд та закупівлю високовартісного медичного обладнання для Донецького обласного клінічного територіального медичного об'єднання"]
[41031700,"Субвенція з державного бюджету місцевим бюджетам на придбання медичного автотранспорту та обладнання для закладів охорони здоров'я"]
[41031800,"Субвенція з державного бюджету місцевим бюджетам на придбання медичного обладнання (мамографічного, рентгенологічного та апаратів ультразвукової діагностики) вітчизняного виробництва"]
[41031900,"Субвенція з державного бюджету міському бюджету міста Києва на забезпечення функціонування Київської міської клінічної лікарні \"Київський міський центр серця"]
[41032000,"Субвенція з державного бюджету міському бюджету міста Славутича на виконання заходів із запобігання аваріям та техногенним катастрофам у житлово-комунальному господарстві міста Славутича  "]
[41032100,"Субвенція з державного бюджету місцевим бюджетам на відшкодування частини відсоткових ставок по залучених кредитах на оновлення парку автобусів та тролейбусів приймаючих міст по підготовці до проведення в Україні фінальної частини чемпіонату Європи 2012 року з футболу "]
[41032300,"Субвенція з державного бюджету місцевим бюджетам на погашення кредиторської заборгованості за медичне обладнання, придбане в 2011 році за рахунок субвенції з державного бюджету місцевим бюджетам на придбання витратних матеріалів та медичного обладнання для закладів охорони здоров'я"]
[41032400,"Субвенція з місцевого бюджету державному бюджету на виконання програм соціально-економічного та культурного розвитку регіонів "]
[41032500,"Субвенція з державного бюджету обласному бюджету Донецької області на будівництво сучасної регіональної лікарні швидкої медичної допомоги в м. Донецьку "]
[41032600,"Субвенція з державного бюджету місцевим бюджетам на придбання медикаментів та виробів медичного призначення для забезпечення швидкої медичної допомоги"]
[41032700,"Субвенція з державного бюджету міському бюджету міста Донецька на погашення частини кредиту, залученого на оновлення парку автобусів та тролейбусів приймаючих міст по підготовці до проведення в Україні фінальної частини чемпіонату Європи 2012 року з футболу "]
[41032800,"Субвенція з державного бюджету міському бюджету міста Світловодська Кіровоградської області на ремонт автомобільної дороги по вул. Б. Хмельницького"]
[41032900,"Субвенція з державного бюджету міському бюджету м. Дніпропетровська на будівництво та підтримання в безпечному стані гірничих виробок Дніпропетровського метрополітену "]
[41033000,"Субвенція з державного бюджету місцевим бюджетам для сплати заборгованості за поставлене у 2012 році медичне обладнання вітчизняного виробництва "]
[41033100,"Субвенція з державного бюджету місцевим бюджетам на підтримку реформування системи охорони здоров'я (придбання медичного автотранспорту, автотранспорту, техніки, інвентарю та медичного обладнання для центрів первинної медичної (медико-санітарної) допомоги) у Вінницькій, Дніпропетровській, Донецькій областях та м. Києві"]
[41033400,"Субвенція з державного бюджету бюджету м. Дніпропетровська для продовження будівництва автомобільної дороги в м. Дніпропетровську на ділянці від Кайдацького шляху до автомобільної дороги Київ - Луганськ - Ізварине, у тому числі оплату виконаних у 2012 році робіт "]
[41033500,"Субвенція на підготовку робітничих кадрів з державного бюджету місцевим бюджетам "]
[41033700,"Субвенція з державного бюджету місцевим бюджетам на придбання витратних матеріалів для закладів охорони здоров'я та лікарських засобів для інгаляційної анестезії"]
[41033900,"Освітня субвенція з державного бюджету місцевим бюджетам "]
[41034000,"Субвенція з державного бюджету обласному бюджету Харківської області на придбання лікарських засобів та виробів медичного призначення для Обласної клінічної лікарні - центру екстреної медичної допомоги та медицини катастроф "]
[41034100,"Субвенція з державного бюджету обласному бюджету Тернопільської області на продовження будівництва житлових будинків у м. Почаєві Кременецького району з метою відселення сторонніх осіб з території Свято-Успенської Почаївської Лаври"]
[41034200,"Медична субвенція з державного бюджету місцевим бюджетам "]
[41034300,"Субвенція з державного бюджету місцевим бюджетам на фінансування ремонту приміщень управлінь праці та соціального захисту виконавчих органів міських (міст республіканського в Автономній Республіці Крим і обласного значення), районних у містах Києві і Севастополі та районних у містах рад для здійснення заходів з виконання спільного із Світовим банком проекту \"Вдосконалення системи соціальної допомоги\""]
[41034500,"Субвенція з державного бюджету місцевим бюджетам на здійснення заходів щодо соціально-економічного розвитку окремих територій "]
[41034700,"Субвенція з державного бюджету районному бюджету Шацького району Волинської області для продовження будівництва та капітального ремонту доріг Шацьк - Світязь - Залісся - Пульмо - Шацьк, в тому числі на оплату виконаних у 2012 році робіт "]
[41034800,"Субвенція з державного бюджету місцевим бюджетам на часткове відшкодування вартості лікарських засобів для лікування осіб з гіпертонічною хворобою"]
[41034900,"Субвенція з державного бюджету місцевим бюджетам на реформування регіональних систем охорони здоров'я для здійснення заходів з виконання спільного з Міжнародним банком реконструкції та розвитку проекту \"Поліпшення охорони здоров'я на службі у людей "]
[41035000,"Інші субвенції "]
[41035100,"Субвенція з державного бюджету місцевим бюджетам на фінансування заходів соціально-економічної компенсації ризику населення, яке проживає на території зони спостереження  "]
[41035500,"Субвенція з державного бюджету місцевим бюджетам на проведення заходів з відзначення 200-річчя від дня народження Тараса Шевченка "]
[41035800,"Субвенція з державного бюджету місцевим бюджетам на виплату державної соціальної допомоги на дітей-сиріт та дітей, позбавлених батьківського піклування, грошового забезпечення батькам-вихователям і прийомним батькам за надання соціальних послуг у дитячих будинках сімейного типу та прийомних сім'ях за принципом \"гроші ходять за дитиною\" "]
[41036300,"Субвенція з державного бюджету місцевим бюджетам на фінансування Програм - переможців Всеукраїнського конкурсу проектів та програм розвитку місцевого самоврядування  "]
[41036500,"Субвенція з державного бюджету місцевим бюджетам на капітальний ремонт систем централізованого водопостачання та водовідведення"]
[41036600,"Субвенція з державного бюджету місцевим бюджетам на погашення заборгованості з різниці в тарифах на теплову енергію, послуги з централізованого водопостачання та водовідведення, що вироблялися, транспортувалися та постачалися населенню, яка виникла у зв'язку з невідповідністю фактичної вартості теплової енергії та послуг з централізованого водопостачання та водовідведення тарифам, що затверджувалися та/або погоджувалися органами державної влади чи місцевого самоврядування"]
[41037000,"Субвенція з державного бюджету місцевим бюджетам на проведення виборів депутатів місцевих рад та сільських, селищних, міських голів "]
[41037600,"Субвенція з державного бюджету міському бюджету міста Києва на забезпечення функціонування Центру ядерної медицини Київського міського клінічного онкологічного центру"]
[41037700,"Субвенція з державного бюджету міському бюджету міста Дніпропетровська на завершення будівництва метрополітену у м. Дніпропетровську"]
[41039800,"Субвенція з державного бюджету міському бюджету міста Києва для здійснення заходів з деодорації на спорудах Бортницької станції аерації"]
[42000000,"Від урядів зарубіжних країн та міжнародних організацій  "]
[42010000,"Кошти, отримані від секретаріату ООН, НАТО, ЄС, ОБСЄ або іншої міжнародної організації за участь України в міжнародних операціях з підтримання миру і безпеки"]
[42020000,"Гранти (дарунки), що надійшли до бюджетів усіх рівнів  "]
[42030000,"Надходження в рамках програм допомоги Європейського Союзу  "]
[42030100,"Надходження в рамках програм секторальної бюджетної підтримки Європейського Союзу  "]
[42030200,"Інша допомога, надана Європейським Союзом  "]
[50000000,"Цільові фонди  "]
[50070000,"Надходження до Фонду соціального захисту інвалідів  "]
[50080000,"Надходження до цільового фонду для забезпечення оборони і безпеки держави "]
[50080100,"Конфісковані кошти та кошти від реалізації конфіскованого майна, які були привласнені корупційними методами "]
[50100000,"Інші фонди  "]
[50110000,"Цільові фонди, утворені Верховною Радою Автономної Республіки Крим, органами місцевого самоврядування та місцевими органами виконавчої влади  "]

{"sheet":"ДовФінансування","index":10,"n_rows":136,"n_cols":2,"rows_kept":136,"cut":false,"hidden":true,"merged":[]}
[200000,"Внутрішнє фінансування "]
[201000,"Фінансування за рахунок коштів державних фондів "]
[201100,"Позики, одержані з державних фондів "]
[201110,"Одержано позик "]
[201120,"Погашено позик "]
[202000,"Фінансування за рахунок позик банківських установ "]
[202100,"Фінансування за рахунок позик Національного банку України "]
[202110,"Одержано позик "]
[202120,"Погашено позик "]
[202200,"Фінансування за рахунок інших банків "]
[202210,"Одержано позик "]
[202220,"Погашено позик "]
[203000,"Інше внутрішнє фінансування "]
[203100,"Позики інших фінансових установ "]
[203110,"Одержано позик "]
[203120,"Погашено позик "]
[203130,"Позицію виключено"]
[203200,"Позики нефінансових державних підприємств "]
[203210,"Одержано позик "]
[203220,"Погашено позик "]
[203230,"Позицію виключено"]
[203300,"Позики нефінансового приватного сектора "]
[203310,"Одержано позик "]
[203320,"Погашено позик "]
[203400,"Фінансування за рахунок коштів єдиного казначейського рахунку "]
[203410,"Одержано "]
[203420,"Повернено "]
[203500,"Фінансування за рахунок випуску цінних паперів "]
[203510,"Одержано позик "]
[203520,"Погашено позик "]
[203600,"Інше внутрішнє фінансування"]
[203610,"Одержано позик"]
[203620,"Погашено позик"]
[204000,"Надходження від приватизації державного майна "]
[205000,"Фінансування за рахунок залишків коштів на рахунках бюджетних установ "]
[205100,"На початок періоду "]
[205200,"На кінець періоду "]
[205300,"Інші розрахунки "]
[205310,"Курсова різниця "]
[205320,"Передача коштів із спеціального до загального фонду бюджету "]
[205330,"Передача коштів із загального до спеціального фонду бюджету "]
[205340,"Інші розрахунки "]
[206000,"Зміни обсягів депозитів і цінних паперів, що використовуються для управління ліквідністю "]
[206100,"Повернення бюджетних коштів з депозитів, надходження внаслідок продажу/пред'явлення цінних паперів"]
[206110,"Повернення бюджетних коштів з депозитів"]
[206120,"Надходження внаслідок продажу/пред'явлення цінних паперів"]
[206200,"Розміщення бюджетних коштів на депозитах або придбання цінних паперів"]
[206210,"Розміщення бюджетних коштів на депозитах"]
[206220,"Придбання цінних паперів"]
[207000,"Позицію виключено"]
[207100,"Позицію виключено"]
[207200,"Позицію виключено"]
[207300,"Позицію виключено"]
[208000,"Фінансування за рахунок зміни залишків коштів бюджетів "]
[208100,"На початок періоду "]
[208200,"На кінець періоду "]
[208300,"Інші розрахунки "]
[208310,"Курсова різниця "]
[208320,"Передача коштів із спеціального до загального фонду бюджету "]
[208330,"Передача коштів із загального до спеціального фонду бюджету "]
[208340,"Інші розрахунки "]
[208400,"Кошти, що передаються із загального фонду бюджету до бюджету розвитку (спеціального фонду) "]
[209000,"Зміни обсягів товарно-матеріальних цінностей "]
[209100,"На початок періоду "]
[209200,"На кінець періоду "]
[300000,"Зовнішнє фінансування "]
[301000,"Позики, надані міжнародними фінансовими організаціями"]
[301100,"Одержано позик "]
[301200,"Погашено позик "]
[302000,"Позики, надані органами управління іноземних держав "]
[302100,"Одержано позик "]
[302200,"Погашено позик "]
[303000,"Позики, надані іноземними комерційними банками, іншими іноземними фінансовими установами "]
[303100,"Одержано позик "]
[303200,"Погашено позик "]
[304000,"Фінансування за рахунок випуску цінних паперів "]
[304100,"Одержано позик "]
[304200,"Погашено позик "]
[305000,"Інше зовнішнє фінансування "]
[305100,"Одержано позик "]
[305200,"Погашено позик "]
[306000,"Зміни обсягів депозитів і цінних паперів, що використовуються для управління ліквідністю "]
[306100,"Повернення бюджетних коштів з депозитів, надходження внаслідок продажу/пред'явлення цінних паперів"]
[306200,"Розміщення бюджетних коштів на депозитах або придбання цінних паперів"]
[307000,"Позицію виключено"]
[307100,"Позицію виключено"]
[307200,"Позицію виключено"]
[400000,"Фінансування за борговими операціями "]
[401000,"Запозичення "]
[401100,"Внутрішні запозичення "]
[401101,"Довгострокові зобов'язання "]
[401102,"Середньострокові зобов'язання "]
[401103,"Короткострокові зобов'язання та векселі "]
[401104,"Інші зобов'язання "]
[401200,"Зовнішні запозичення "]
[401201,"Довгострокові зобов'язання "]
[401202,"Середньострокові зобов'язання "]
[401203,"Короткострокові зобов'язання та векселі "]
[401204,"Інші зобов'язання "]
[402000,"Погашення "]
[402100,"Внутрішні зобов'язання "]
[402101,"Довгострокові зобов'язання "]
[402102,"Середньострокові зобов'язання "]
[402103,"Короткострокові зобов'язання та векселі "]
[402104,"Інші зобов'язання "]
[402200,"Зовнішні зобов'язання "]
[402201,"Довгострокові зобов'язання "]
[402202,"Середньострокові зобов'язання "]
[402203,"Короткострокові зобов'язання та векселі "]
[402204,"Інші зобов'язання "]
[500000,"Надходження від приватизації державного майна "]
[501000,"Надходження від приватизації державного майна (крім об'єктів, для яких передбачено окремий розподіл коштів відповідно до Державної програми приватизації на 2000 - 2002 роки) та інших надходжень, безпосередньо пов'язаних з процесом приватизації та кредитування підприємств"]
[502000,"Надходження від приватизації об'єктів незавершеного будівництва, що споруджувались відповідно до Чорнобильської будівельної програми "]
[504000,"Надходження від приватизації підприємств, що належать до сфери управління Міністерства оборони України "]
[505000,"Понадпланові надходження від приватизації державного майна з урахуванням можливого заміщення інших джерел фінансування державного бюджету "]
[600000,"Фінансування за активними операціями "]
[601000,"Зміни обсягів депозитів і цінних паперів, що використовуються для управління ліквідністю "]
[601100,"Повернення бюджетних коштів з депозитів, надходження внаслідок продажу/пред'явлення цінних паперів"]
[601110,"Повернення бюджетних коштів з депозитів"]
[601120,"Надходження внаслідок продажу/пред'явлення цінних паперів"]
[601200,"Розміщення бюджетних коштів на депозитах або придбання цінних паперів"]
[601210,"Розміщення бюджетних коштів на депозитах"]
[601220,"Придбання цінних паперів"]
[602000,"Зміни обсягів бюджетних коштів"]
[602100,"На початок періоду "]
[602200,"На кінець періоду "]
[602300,"Інші розрахунки "]
[602301,"Курсова різниця "]
[602302,"Передача коштів із спеціального до загального фонду бюджету "]
[602303,"Передача коштів із загального до спеціального фонду бюджету "]
[602304,"Інші розрахунки "]
[602400,"Кошти, що передаються із загального фонду бюджету до бюджету розвитку (спеціального фонду) "]
[603000,"Фінансування за рахунок коштів єдиного казначейського рахунку "]
[604000,"Зміни обсягів товарно-матеріальних цінностей "]
[604100,"На початок періоду "]
[604200,"На кінець періоду "]

{"sheet":"ДовКЕКВ","index":11,"n_rows":58,"n_cols":2,"rows_kept":58,"cut":false,"hidden":true,"merged":[]}
[2000,"Поточні видатки"]
[2100,"Оплата праці і нарахування на заробітну плату"]
[2110,"Оплата праці"]
[2111,"Заробітна плата"]
[2112,"Грошове забезпечення військовослужбовців"]
[2113,"Суддівська винагорода"]
[2120,"Нарахування на оплату праці"]
[2200,"Використання товарів і послуг"]
[2210,"Предмети, матеріали, обладнання та інвентар"]
[2220,"Медикаменти та перев'язувальні матеріали"]
[2230,"Продукти харчування"]
[2240,"Оплата послуг (крім комунальних)"]
[2250,"Видатки на відрядження"]
[2260,"Видатки та заходи спеціального призначення"]
[2270,"Оплата комунальних послуг та енергоносіїв"]
[2271,"Оплата теплопостачання"]
[2272,"Оплата водопостачання та водовідведення"]
[2273,"Оплата електроенергії"]
[2274,"Оплата природного газу"]
[2275,"Оплата інших енергоносіїв та інших комунальних послуг"]
[2276,"Оплата енергосервісу "]
[2280,"Дослідження і розробки, окремі заходи по реалізації державних (регіональних) програм"]
[2281,"Дослідження і розробки, окремі заходи розвитку по реалізації державних (регіональних) програм"]
[2282,"Окремі заходи по реалізації державних (регіональних) програм, не віднесені до заходів розвитку"]
[2400,"Обслуговування боргових зобов'язань"]
[2410,"Обслуговування внутрішніх боргових зобов'язань"]
[2420,"Обслуговування зовнішніх боргових зобов'язань"]
[2600,"Поточні трансферти"]
[2610,"Субсидії та поточні трансферти підприємствам (установам, організаціям)"]
[2620,"Поточні трансферти органам державного управління інших рівнів"]
[2630,"Поточні трансферти урядам іноземних держав та міжнародним організаціям"]
[2700,"Соціальне забезпечення"]
[2710,"Виплата пенсій і допомоги"]
[2720,"Стипендії"]
[2730,"Інші виплати населенню"]
[2800,"Інші поточні видатки"]
[2900,"Позицію виключено"]
[3000,"Капітальні видатки"]
[3100,"Придбання основного капіталу"]
[3110,"Придбання обладнання і предметів довгострокового користування"]
[3120,"Капітальне будівництво (придбання)"]
[3121,"Капітальне будівництво (придбання) житла"]
[3122,"Капітальне будівництво (придбання) інших об'єктів"]
[3130,"Капітальний ремонт"]
[3131,"Капітальний ремонт житлового фонду (приміщень)"]
[3132,"Капітальний ремонт інших об'єктів"]
[3140,"Реконструкція та реставрація"]
[3141,"Реконструкція житлового фонду (приміщень)"]
[3142,"Реконструкція та реставрація інших об'єктів"]
[3143,"Реставрація пам'яток культури, історії та архітектури"]
[3150,"Створення державних запасів і резервів"]
[3160,"Придбання землі та нематеріальних активів"]
[3200,"Капітальні трансферти"]
[3210,"Капітальні трансферти підприємствам (установам, організаціям)"]
[3220,"Капітальні трансферти органам державного управління інших рівнів"]
[3230,"Капітальні трансферти урядам іноземних держав та міжнародним організаціям"]
[3240,"Капітальні трансферти населенню"]
[9000,"Нерозподілені видатки"]

{"sheet":"ДовКреди","index":12,"n_rows":13,"n_cols":2,"rows_kept":13,"cut":false,"hidden":true,"merged":[]}
[4000,"Кредитування "]
[4100,"Внутрішнє кредитування "]
[4110,"Надання внутрішніх кредитів "]
[4111,"Надання кредитів органам державного управління інших рівнів "]
[4112,"Надання кредитів підприємствам, установам, організаціям "]
[4113,"Надання інших внутрішніх кредитів "]
[4120,"Повернення внутрішніх кредитів "]
[4121,"Повернення кредитів органами державного управління інших рівнів "]
[4122,"Повернення кредитів підприємствами, установами, організаціями "]
[4123,"Повернення інших внутрішніх кредитів "]
[4200,"Зовнішнє кредитування "]
[4210,"Надання зовнішніх кредитів "]
[4220,"Повернення зовнішніх кредитів "]